Workbook

Sheet Cover
B2: TRMbd_BP2020.xlsm
B3: Home / Contents
B5: Purpose of this Workbook:
B6: This workbook computes TRM billing determinants used for rate making and as a data feed to Contracts and Billing. Input data is provided from the RAM Data Inputs workbook, with outputs to RAM presented in the "RAM Export" sheet. All user modification should be done in the RAM inputs sheet; inputs to the TRM billing determinants are entered as values in this workbook, with no modification to assumptions; that is, settings in this workbook should not be altered. Annual Billing Determinants for Composite, Nonslice and Tier 2 customer charges and included on the TOCA sheet. Subsequent sheets compute Load Shaping and Demand charges by customer for the two-year rate period. This model is fundamentally 2-year monthly/diurnal, but can be accessed iteratively through use of macros for extended forecasts at the user's discretion.
B8: Legend:
B10: Tab Colors | G10: Font Colors | K10: Hyperlink Types
B12: Blue Tab | D12: Cover Sheet | G12: Blue Font | H12: Constant Values | K12: Cover Hyperlink | M12: Cover Page
B13: Green Tab | D13: Table of Contents | G13: Black Font | H13: Calculated Values | K13: TOC Hyperlink | M13: TOC
B14: Grey Tabs | D14: Base Case Sheets | G14: Plum Font | H14: Hyperlinks | K14: Sheet Top Hyperlink | M14: é
B15: Rose Tabs | D15: Assumption Sheets | G15: Red Font | H15: Errors
B16: Tan Tabs | D16: Output Sheets | G16: Black/Yellow | H16: Work in Progress
B17: Teal Tabs | D17: Lookup Sheets | G17: Black/Gold | H17: Modifiable Assumptions
B18: Reb Tabs | D18: Log/Error Sheet | G18: White/Grey | H18: Locked Data
B19: Blue Tabs | D19: Spreadsheet Input
B20: Black Tabs | D20: Locked Data Sheet

Sheet TOC
B1: Table of Contents
A2: TOC
B3: Cover Sheet
B5: Section & Sheet Titles | M5: Page | N5: Input
B7: 1 | C7: Initialize Assumptions | M7: 3
B8: 2 | C8: Slice Shaping for Block Purchase Assumptions | M8: 4
B9: 3 | C9: Slice - Load Following Assumption - LDD BD | M9: 5
B10: 4 | C10: Total Retail Load | M10: 6
B11: 5 | C11: Customer System Peak (includes Above HWM Load) | M11: 7
B12: 6 | C12: Customer Demand Quantity | M12: 8
B13: 7 | C13: New Large Single Load by customer | M13: 9
B14: 8 | C14: Existing Resources by Customer ID | M14: 10
B15: 9 | C15: Existing Resources by Customer ID (SNEERS, CORs, Green Exception) | M15: 11
... 18 more rows

Sheet Init
B1: Initiation Sheet
A2: TOC
B3: Input Parameters | E3: Monthly Hours | M3: Annual Hours | Q3: Preference Customer Parameters | BV3: 9 | BW3: =+BV3+1 -> 10 | BX3: =+BW3+1 -> 11 | BY3: =+BX3+1 -> 12 | BZ3: 13 | CA3: 14 | CB3: 15 | CC3: 16 | CD3: 17 | CE3: 18 | CF3: 19 | CL3: 22 | CM3: =+CL3+1 -> 23 | CN3: =+CM3+1 -> 24 | CO3: 25 | CP3: 26 | CQ3: 27 | CR3: 28 | DB3: 35 | DC3: =+DB3+1 -> 36 | DD3: =+DC3+1 -> 37 | DE3: 38 | DF3: 39 | DG3: 40 | DH3: 41 | DI3: 42 | DJ3: 43 | DK3: 44 | DL3: 45
E4: FiscalID | F4: Cal Date | G4: HLH | H4: LLH | I4: Total | J4: HLH% | K4: LLH% | M4: year | N4: days | O4: hours | Q4: BESID | R4: AccountName | S4: Slice | T4: PNGC | U4: Initial CHWM | V4: RHWM Aug 2016 | W4: RHWM Aug 2018 | X4: RHWM Aug 2020 | Y4: RHWM Aug 2022 | Z4: RHWM Aug 2024 | AA4: RHWM Aug 2026 | AB4: RHWM Aug 2028 | AC4: RHWM Aug 2030 | AD4: Initial Slice% | AE4: 60-40 | AF4: RHWM 2016 | AG4: RHWM 2018 | AH4: RHWM 2020 | AI4: RHWM 2022 | AJ4: RHWM 2024 | AK4: RHWM 2026 | AL4: RHWM 2028 | AM4: RHWM 2030 | AN4: TRL - NLSL - Existing Resource 2016 | AO4: TRL - NLSL - Existing Resource 2017 | AP4: TRL - NLSL - Existing Resource 2018 | AQ4: TRL - NLSL - Existing Resource 2019 | AR4: TRL - NLSL - Existing Resource 2020 | AS4: TRL - NLSL - Existing Resource 2021 | AT4: TRL - NLSL - Existing Resource 2022 | AU4: TRL - NLSL - Existing Resource 2023 | AV4: TRL - NLSL - Existing Resource 2024 | AW4: TRL - NLSL - Existing Resource 2025 | AX4: TRL - NLSL - Existing Resource 2026 | AY4: TRL - NLSL - Existing Resource 2027 | AZ4: TRL - NLSL - Existing Resource 2028 | BA4: TRL - NLSL - Existing Resource 2029 | BB4: TRL - NLSL - Existing Resource 2030 | BC4: TRL - NLSL - Existing Resource 2031 | BD4: Above RHWM 2016 | BE4: Above RHWM 2017 | BF4: Above RHWM 2018 | BG4: Above RHWM 2019 | BH4: Above RHWM 2020 | BI4: Above RHWM 2021 | BJ4: Above RHWM 2022 | BK4: Above RHWM 2023 | BL4: Above RHWM 2024 | BM4: Above RHWM 2025 | BN4: Above RHWM 2026 | BO4: Above RHWM 2027 | BP4: Above RHWM 2028 | BQ4: Above RHWM 2029 | BR4: Above RHWM 2030 | BS4: Above RHWM 2031 | BT4: Election 2016 | BU4: Election 2017 | BV4: Election 2018 | BW4: Election 2019 | BX4: Election 2020 | BY4: Election 2021 | BZ4: Election 2022 | CA4: Election 2023 | CB4: Election 2024 | CC4: Election 2025 | CD4: Election 2026 | CE4: Election 2027 | CF4: Election 2028 | CG4: Election 2029 | CH4: Election 2030 | CI4: Election 2031 | CJ4: Amount 2016 | CK4: Amount 2017 | CL4: Amount 2018 | CM4: Amount 2019 | CN4: Amount 2020 | CO4: Amount 2021 | CP4: Amount 2022 | CQ4: Amount 2023 | CR4: Amount 2024 | CS4: Amount 2025 | CT4: Amount 2026 | CU4: Amount 2027 | CV4: Amount 2028 | CW4: Amount 2029 | CX4: Amount 2030 | CY4: Amount 2031 | CZ4: Type 2016 | DA4: Type 2017 | DB4: Type 2018 | DC4: Type 2019 | DD4: Type 2020 | DE4: Type 2021 | DF4: Type 2022 | DG4: Type 2023 | DH4: Type 2024 | DI4: Type 2025 | DJ4: Type 2026 | DK4: Type 2027 | DL4: Type 2028 | DM4: Type 2029 | DN4: Type 2030 | DO4: Type 2031 | DP4: Vintage 2014 for 2016 | DQ4: Vintage 2014 for 2017 | DR4: Vintage 2014 for 2018 | DS4: Vintage 2014 for 2019 | DT4: Vintage 2016 for 2016 | DU4: Vintage 2016 for 2017 | DV4: Vintage 2016 for 2018 | DW4: Vintage 2016 for 2019 | DX4: Total Vintage 2016 | DY4: Total Vintage 2017 | DZ4: Total Vintage 2018 | EA4: Total Vintage 2019 | EB4: Total Vintage 2020 | EC4: Total Vintage 2021 | ED4: Total Vintage 2022 | EE4: Total Vintage 2023 | EF4: Total Vintage 2024 | EG4: Total Vintage 2025 | EH4: Total Vintage 2026 | EI4: Total Vintage 2027 | EJ4: Total Vintage 2028 | EK4: Total Vintage 2029 | EL4: Total Vintage 2030 | EM4: Total Vintage 2031 | EN4: Rounddown | EO4: Eligible LDD | EP4: IRD Loads | EQ4: T1 Percentage 2016 | ER4: T1 Percentage 2017 | ES4: T1 Percentage 2018 | ET4: T1 Percentage 2019 | EU4: T1 Percentage 2020 | EV4: T1 Percentage 2021 | EW4: T1 Percentage 2022 | EX4: T1 Percentage 2023 | EY4: T1 Percentage 2024 | EZ4: T1 Percentage 2025 | FA4: T1 Percentage 2026 | FB4: T1 Percentage 2027 | FC4: T1 Percentage 2028 | FD4: T1 Percentage 2029 | FE4: T1 Percentage 2030 | FF4: T1 Percentage 2031
E5: 2015_1 | F5: 2014-10-01 | G5: 432 | H5: 312 | I5: 744 | J5: 0.5806451613 | K5: 0.4193548387 | M5: 2009 | N5: 365 | O5: 8760 | Q5: 10005 | R5: Alder Mutual | S5: 0 | T5: 0 | U5: 0.556 | V5: 0 | W5: 0 | X5: 0 | Y5: 0 | Z5: 0 | AA5: 0 | AB5: 0 | AC5: 0 | AD5: 0 | AE5: 0 | AF5: 0.542 | AG5: 0.539 | AH5: 0.545 | AI5: 0 | AJ5: 0 | AK5: 0 | AL5: 0 | AM5: 0 | AN5: 0.538 | AO5: 0.542 | AP5: 0.531 | AQ5: 0.535 | AR5: 0.544 | AS5: 0.545 | AT5: 0 | AU5: 0 | AV5: 0 | AW5: 0 | AX5: 0 | AY5: 0 | AZ5: 0 | BA5: 0 | BB5: 0 | BC5: 0 | BD5: 0 | BE5: 0 | BF5: 0 | BG5: 0 | BH5: 0 | BI5: 0 | BJ5: 0 | BK5: 0 | BL5: 0 | BM5: 0 | BN5: 0 | BO5: 0 | BP5: 0 | BQ5: 0 | BR5: 0 | BS5: 0 | BT5: 1 | BU5: 1 | BV5: 1 | BW5: 1 | BX5: 1 | BY5: 1 | BZ5: 1 | CA5: 1 | CB5: 1 | CC5: =+CB5 -> 1 | CD5: =+CC5 -> 1 | CE5: 1 | CF5: 1 | CG5: 1 | CH5: 1 | CI5: 1 | CJ5: 0 | CK5: 0 | CL5: 0 | CM5: 0 | CN5: 0 | CO5: 0 | CP5: 0 | CQ5: 0 | CR5: 0 | CS5: =+CR5 -> 0 | CT5: =+CS5 -> 0 | CU5: 0 | CV5: 0 | CW5: 0 | CX5: 0 | CY5: 0 | CZ5: LGR | DA5: LGR | DB5: LGR | DC5: LGR | DD5: LGR | DE5: LGR | DF5: LGR | DG5: LGR | DH5: LGR | DI5: =+DH5 -> LGR | DJ5: =+DI5 -> LGR | DK5: LGR | DL5: LGR | DM5: LGR | DN5: LGR | DO5: LGR | DP5: 0 | DQ5: 0 | DR5: 0 | DS5: 0 | DT5: 0 | DU5: 0 | DV5: 0 | DW5: 0 | DX5: =+DP5+DT5 -> 0 | DY5: =+DQ5+DU5 -> 0 | DZ5: =+DR5+DV5 -> 0 | EA5: =+DS5+DW5 -> 0 | EB5: 0 | EC5: 0 | ED5: 0 | EE5: 0 | EF5: 0 | EG5: 0 | EH5: 0 | EI5: 0 | EJ5: 0 | EK5: 0 | EL5: 0 | EM5: 0 | EN5: 0 | EO5: 0.035 | EP5: 0 | EQ5: 0.9992982549 | ER5: 1 | ES5: 1 | ET5: 0.9995385832 | EU5: 0.9994434353 | EV5: 1 | EW5: 0 | EX5: 0 | EY5: 0 | EZ5: 0 | FA5: 0 | FB5: 0 | FC5: 0 | FD5: 0 | FE5: 0 | FF5: 0
E6: 2015_2 | F6: 2014-11-01 | G6: 384 | H6: 337 | I6: 721 | J6: 0.53259362 | K6: 0.46740638 | M6: 2010 | N6: 365 | O6: 8760 | Q6: 10015 | R6: Asotin County PUD #1 | S6: 0 | T6: 0 | U6: 0.582 | V6: 0 | W6: 0 | X6: 0 | Y6: 0 | Z6: 0 | AA6: 0 | AB6: 0 | AC6: 0 | AD6: 0 | AE6: 0 | AF6: 0.568 | AG6: 0.564 | AH6: 0.57 | AI6: 0 | AJ6: 0 | AK6: 0 | AL6: 0 | AM6: 0 | AN6: 0.591 | AO6: 0.597 | AP6: 0.618 | AQ6: 0.621 | AR6: 0.667 | AS6: 0.67 | AT6: 0 | AU6: 0 | AV6: 0 | AW6: 0 | AX6: 0 | AY6: 0 | AZ6: 0 | BA6: 0 | BB6: 0 | BC6: 0 | BD6: 0.023 | BE6: 0.029 | BF6: 0.054 | BG6: 0.057 | BH6: 0.097 | BI6: 0.1 | BJ6: 0 | BK6: 0 | BL6: 0 | BM6: 0 | BN6: 0 | BO6: 0 | BP6: 0 | BQ6: 0 | BR6: 0 | BS6: 0 | BT6: 1 | BU6: 1 | BV6: 1 | BW6: 1 | BX6: 1 | BY6: 1 | BZ6: 1 | CA6: 1 | CB6: 1 | CC6: =+CB6 -> 1 | CD6: 1 | CE6: 1 | CF6: 1 | CG6: 1 | CH6: 1 | CI6: 1 | CJ6: 0 | CK6: 0 | CL6: 0 | CM6: 0 | CN6: 0 | CO6: 0 | CP6: 0 | CQ6: 0 | CR6: 0 | CS6: =+CR6 -> 0 | CT6: 0 | CU6: 0 | CV6: 0 | CW6: 0 | CX6: 0 | CY6: 0 | CZ6: LGR | DA6: LGR | DB6: LGR | DC6: LGR | DD6: LGR | DE6: LGR | DF6: LGR | DG6: LGR | DH6: LGR | DI6: =+DH6 -> LGR | DJ6: LGR | DK6: LGR | DL6: LGR | DM6: LGR | DN6: LGR | DO6: LGR | DP6: 0 | DQ6: 0 | DR6: 0 | DS6: 0 | DT6: 0 | DU6: 0 | DV6: 0 | DW6: 0 | DX6: =+DP6+DT6 -> 0 | DY6: 0 | DZ6: 0 | EA6: 0 | EB6: 0 | EC6: 0 | ED6: 0 | EE6: 0 | EF6: 0 | EG6: 0 | EH6: 0 | EI6: 0 | EJ6: 0 | EK6: 0 | EL6: 0 | EM6: 0 | EN6: 0 | EO6: 0 | EP6: 0 | EQ6: 0.9609300997 | ER6: 0.9511712639 | ES6: 0.9124943288 | ET6: 0.9080861436 | EU6: 0.8541048324 | EV6: 0.8502804824 | EW6: 0 | EX6: 0 | EY6: 0 | EZ6: 0 | FA6: 0 | FB6: 0 | FC6: 0 | FD6: 0 | FE6: 0 | FF6: 0
B7: Loss Percent Assumption | C7: 0.03060908997 | E7: 2015_3 | F7: 2014-12-01 | G7: 416 | H7: 328 | I7: 744 | J7: 0.5591397849 | K7: 0.4408602151 | M7: 2011 | N7: 365 | O7: 8760 | Q7: 10024 | R7: Benton County PUD #1 | S7: 1 | T7: 0 | U7: 204.282 | V7: 0 | W7: 0 | X7: 0 | Y7: 0 | Z7: 0 | AA7: 0 | AB7: 0 | AC7: 0 | AD7: 0.0138126 | AE7: 0 | AF7: 199.617 | AG7: 198.049 | AH7: 200.214 | AI7: 0 | AJ7: 0 | AK7: 0 | AL7: 0 | AM7: 0 | AN7: 204.386 | AO7: 206.55 | AP7: 209.206 | AQ7: 209.939 | AR7: 205.669 | AS7: 206.52 | AT7: 0 | AU7: 0 | AV7: 0 | AW7: 0 | AX7: 0 | AY7: 0 | AZ7: 0 | BA7: 0 | BB7: 0 | BC7: 0 | BD7: 4.769 | BE7: 6.933 | BF7: 10.857 | BG7: 11.59 | BH7: 5.455 | BI7: 6.306 | BJ7: 0 | BK7: 0 | BL7: 0 | BM7: 0 | BN7: 0 | BO7: 0 | BP7: 0 | BQ7: 0 | BR7: 0 | BS7: 0 | BT7: 4 | BU7: 4 | BV7: 4 | BW7: 4 | BX7: 4 | BY7: 4 | BZ7: 4 | CA7: 4 | CB7: 4 | CC7: =+CB7 -> 4 | CD7: 4 | CE7: 4 | CF7: 4 | CG7: 4 | CH7: 4 | CI7: 4 | CJ7: 0 | CK7: 0 | CL7: 0 | CM7: 0 | CN7: 0 | CO7: 0 | CP7: 0 | CQ7: 0 | CR7: 0 | CS7: =+CR7 -> 0 | CT7: 0 | CU7: 0 | CV7: 0 | CW7: 0 | CX7: 0 | CY7: 0 | CZ7: 0 | DA7: 0 | DB7: 0 | DC7: 0 | DD7: 0 | DE7: 0 | DF7: 0 | DG7: 0 | DH7: 0 | DI7: =+DH7 -> 0 | DJ7: 0 | DK7: 0 | DL7: 0 | DM7: 0 | DN7: 0 | DO7: 0 | DP7: 0 | DQ7: 0 | DR7: 0 | DS7: 0 | DT7: 0 | DU7: 0 | DV7: 0 | DW7: 0 | DX7: 0 | DY7: 0 | DZ7: 0 | EA7: 0 | EB7: 0 | EC7: 0 | ED7: 0 | EE7: 0 | EF7: 0 | EG7: 0 | EH7: 0 | EI7: 0 | EJ7: 0 | EK7: 0 | EL7: 0 | EM7: 0 | EN7: 0 | EO7: 0 | EP7: 312239.2 | EQ7: 0.9767722178 | ER7: 0.9665810551 | ES7: 0.9483306064 | ET7: 0.9450339502 | EU7: 0.9735948822 | EV7: 0.9696009233 | EW7: 0 | EX7: 0 | EY7: 0 | EZ7: 0 | FA7: 0 | FB7: 0 | FC7: 0 | FD7: 0 | FE7: 0 | FF7: 0
E8: 2015_4 | F8: 2015-01-01 | G8: 416 | H8: 328 | I8: 744 | J8: 0.5591397849 | K8: 0.4408602151 | M8: 2012 | N8: 366 | O8: 8784 | Q8: 10025 | R8: Benton REA | S8: 0 | T8: 0 | U8: 60.549 | V8: 0 | W8: 0 | X8: 0 | Y8: 0 | Z8: 0 | AA8: 0 | AB8: 0 | AC8: 0 | AD8: 0 | AE8: 0 | AF8: 66.081 | AG8: 58.702 | AH8: 59.343 | AI8: 0 | AJ8: 0 | AK8: 0 | AL8: 0 | AM8: 0 | AN8: 69.528 | AO8: 70.504 | AP8: 64.711 | AQ8: 65.775 | AR8: 66.508 | AS8: 67.372 | AT8: 0 | AU8: 0 | AV8: 0 | AW8: 0 | AX8: 0 | AY8: 0 | AZ8: 0 | BA8: 0 | BB8: 0 | BC8: 0 | BD8: 3.447 | BE8: 4.423 | BF8: 7.579 | BG8: 8.643 | BH8: 7.165 | BI8: 8.029 | BJ8: 0 | BK8: 0 | BL8: 0 | BM8: 0 | BN8: 0 | BO8: 0 | BP8: 0 | BQ8: 0 | BR8: 0 | BS8: 0 | BT8: 3 | BU8: 3 | BV8: 3 | BW8: 3 | BX8: 1 | BY8: 1 | BZ8: 1 | CA8: 1 | CB8: 1 | CC8: =+CB8 -> 1 | CD8: 1 | CE8: 1 | CF8: 1 | CG8: 1 | CH8: 1 | CI8: 1 | CJ8: 10 | CK8: 11 | CL8: 12 | CM8: 14 | CN8: 0 | CO8: 0 | CP8: 0 | CQ8: 0 | CR8: 0 | CS8: =+CR8 -> 0 | CT8: 0 | CU8: 0 | CV8: 0 | CW8: 0 | CX8: 0 | CY8: 0 | CZ8: LGR | DA8: LGR | DB8: LGR | DC8: LGR | DD8: STR | DE8: STR | DF8: STR | DG8: STR | DH8: STR | DI8: =+DH8 -> STR | DJ8: STR | DK8: STR | DL8: STR | DM8: STR | DN8: STR | DO8: STR | DP8: 0 | DQ8: 0 | DR8: 0 | DS8: 0 | DT8: 0 | DU8: 0 | DV8: 0 | DW8: 0 | DX8: 0 | DY8: 0 | DZ8: 0 | EA8: 0 | EB8: 0 | EC8: 0 | ED8: 0 | EE8: 0 | EF8: 0 | EG8: 0 | EH8: 0 | EI8: 0 | EJ8: 0 | EK8: 0 | EL8: 0 | EM8: 0 | EN8: 0 | EO8: 0.06 | EP8: 82900.857 | EQ8: 0.9504215223 | ER8: 0.9372695023 | ES8: 0.8965214833 | ET8: 0.88368387 | EU8: 0.8922697627 | EV8: 0.8808270109 | EW8: 0 | EX8: 0 | EY8: 0 | EZ8: 0 | FA8: 0 | FB8: 0 | FC8: 0 | FD8: 0 | FE8: 0 | FF8: 0
B9: Base Year | C9: 2020 | E9: 2015_5 | F9: 2015-02-01 | G9: 384 | H9: 288 | I9: 672 | J9: 0.5714285714 | K9: 0.4285714286 | M9: 2013 | N9: 365 | O9: 8760 | Q9: 10027 | R9: Big Bend Elec Coop | S9: 0 | T9: 0 | U9: 62.107 | V9: 0 | W9: 0 | X9: 0 | Y9: 0 | Z9: 0 | AA9: 0 | AB9: 0 | AC9: 0 | AD9: 0 | AE9: 0 | AF9: 60.597 | AG9: 60.212 | AH9: 60.87 | AI9: 0 | AJ9: 0 | AK9: 0 | AL9: 0 | AM9: 0 | AN9: 60.704 | AO9: 61.23 | AP9: 63.741 | AQ9: 64.451 | AR9: 65.199 | AS9: 65.771 | AT9: 0 | AU9: 0 | AV9: 0 | AW9: 0 | AX9: 0 | AY9: 0 | AZ9: 0 | BA9: 0 | BB9: 0 | BC9: 0 | BD9: 0.107 | BE9: 0.633 | BF9: 3.529 | BG9: 4.239 | BH9: 4.329 | BI9: 4.901 | BJ9: 0 | BK9: 0 | BL9: 0 | BM9: 0 | BN9: 0 | BO9: 0 | BP9: 0 | BQ9: 0 | BR9: 0 | BS9: 0 | BT9: 3 | BU9: 3 | BV9: 3 | BW9: 3 | BX9: 3 | BY9: 3 | BZ9: 3 | CA9: 3 | CB9: 3 | CC9: =+CB9 -> 3 | CD9: 3 | CE9: 3 | CF9: 3 | CG9: 3 | CH9: 3 | CI9: 3 | CJ9: 4.52 | CK9: 5.57 | CL9: 6.45 | CM9: 7.35 | CN9: 24 | CO9: 25 | CP9: 25 | CQ9: 26 | CR9: 27 | CS9: =+CR9 -> 27 | CT9: 27 | CU9: 27 | CV9: 27 | CW9: 27 | CX9: 27 | CY9: 27 | CZ9: STR | DA9: STR | DB9: STR | DC9: STR | DD9: STR | DE9: STR | DF9: STR | DG9: STR | DH9: STR | DI9: =+DH9 -> STR | DJ9: STR | DK9: STR | DL9: STR | DM9: STR | DN9: STR | DO9: STR | DP9: 1 | DQ9: 1 | DR9: 1 | DS9: 1 | DT9: 0 | DU9: 0 | DV9: 0 | DW9: 0 | DX9: 1 | DY9: 1 | DZ9: 1 | EA9: 1 | EB9: 0 | EC9: 0 | ED9: 0 | EE9: 0 | EF9: 0 | EG9: 0 | EH9: 0 | EI9: 0 | EJ9: 0 | EK9: 0 | EL9: 0 | EM9: 0 | EN9: 1 | EO9: 0.07 | EP9: 209669.54 | EQ9: 0.9982323218 | ER9: 0.9896615614 | ES9: 0.9446324159 | ET9: 0.9342262311 | EU9: 0.93360644 | EV9: 0.9254870123 | EW9: 0 | EX9: 0 | EY9: 0 | EZ9: 0 | FA9: 0 | FB9: 0 | FC9: 0 | FD9: 0 | FE9: 0 | FF9: 0
E10: 2015_6 | F10: 2015-03-01 | G10: 416 | H10: 327 | I10: 743 | J10: 0.5598923284 | K10: 0.4401076716 | M10: 2014 | N10: 365 | O10: 8760 | Q10: 10029 | R10: Blachly Lane Elec Coop | S10: 0 | T10: 1 | U10: 17.879 | V10: 0 | W10: 0 | X10: 0 | Y10: 0 | Z10: 0 | AA10: 0 | AB10: 0 | AC10: 0 | AD10: 0 | AE10: 0 | AF10: 17.444 | AG10: 17.333 | AH10: 17.523 | AI10: 0 | AJ10: 0 | AK10: 0 | AL10: 0 | AM10: 0 | AN10: 19.667 | AO10: 19.874 | AP10: 20.024 | AQ10: 20.024 | AR10: 21.166 | AS10: 21.178 | AT10: 0 | AU10: 0 | AV10: 0 | AW10: 0 | AX10: 0 | AY10: 0 | AZ10: 0 | BA10: 0 | BB10: 0 | BC10: 0 | BD10: 2.223 | BE10: 2.43 | BF10: 2.691 | BG10: 2.691 | BH10: 3.643 | BI10: 3.655 | BJ10: 0 | BK10: 0 | BL10: 0 | BM10: 0 | BN10: 0 | BO10: 0 | BP10: 0 | BQ10: 0 | BR10: 0 | BS10: 0 | BT10: 6 | BU10: 6 | BV10: 6 | BW10: 6 | BX10: 6 | BY10: 6 | BZ10: 6 | CA10: 6 | CB10: 6 | CC10: =+CB10 -> 6 | CD10: 6 | CE10: 6 | CF10: 6 | CG10: 6 | CH10: 6 | CI10: 6 | CJ10: 0 | CK10: 0 | CL10: 0 | CM10: 0 | CN10: 0 | CO10: 0 | CP10: 0 | CQ10: 0 | CR10: 0 | CS10: =+CR10 -> 0 | CT10: 0 | CU10: 0 | CV10: 0 | CW10: 0 | CX10: 0 | CY10: 0 | CZ10: STR | DA10: STR | DB10: STR | DC10: STR | DD10: STR | DE10: STR | DF10: STR | DG10: STR | DH10: STR | DI10: =+DH10 -> STR | DJ10: STR | DK10: STR | DL10: STR | DM10: STR | DN10: STR | DO10: STR | DP10: 0 | DQ10: 0 | DR10: 0 | DS10: 0 | DT10: 0 | DU10: 0 | DV10: 0 | DW10: 0 | DX10: 0 | DY10: 0 | DZ10: 0 | EA10: 0 | EB10: 0 | EC10: 0 | ED10: 0 | EE10: 0 | EF10: 0 | EG10: 0 | EH10: 0 | EI10: 0 | EJ10: 0 | EK10: 0 | EL10: 0 | EM10: 0 | EN10: 0 | EO10: 0.06 | EP10: 0 | EQ10: 0.8869483627 | ER10: 0.8777277374 | ES10: 0.865608602 | ET10: 0.865608602 | EU10: 0.8278675793 | EV10: 0.8273984882 | EW10: 0 | EX10: 0 | EY10: 0 | EZ10: 0 | FA10: 0 | FB10: 0 | FC10: 0 | FD10: 0 | FE10: 0 | FF10: 0
B11: Base Month | C11: 10 | E11: 2015_7 | F11: 2015-04-01 | G11: 416 | H11: 304 | I11: 720 | J11: 0.5777777778 | K11: 0.4222222222 | M11: 2015 | N11: 365 | O11: 8760 | Q11: 10044 | R11: Canby, City of | S11: 0 | T11: 0 | U11: 20.612 | V11: 0 | W11: 0 | X11: 0 | Y11: 0 | Z11: 0 | AA11: 0 | AB11: 0 | AC11: 0 | AD11: 0 | AE11: 0 | AF11: 20.111 | AG11: 19.983 | AH11: 20.202 | AI11: 0 | AJ11: 0 | AK11: 0 | AL11: 0 | AM11: 0 | AN11: 21.792 | AO11: 21.96 | AP11: 20.635 | AQ11: 20.731 | AR11: 20.77 | AS11: 20.893 | AT11: 0 | AU11: 0 | AV11: 0 | AW11: 0 | AX11: 0 | AY11: 0 | AZ11: 0 | BA11: 0 | BB11: 0 | BC11: 0 | BD11: 1.681 | BE11: 1.849 | BF11: 0.652 | BG11: 0.748 | BH11: 0.568 | BI11: 0.691 | BJ11: 0 | BK11: 0 | BL11: 0 | BM11: 0 | BN11: 0 | BO11: 0 | BP11: 0 | BQ11: 0 | BR11: 0 | BS11: 0 | BT11: 1 | BU11: 1 | BV11: 1 | BW11: 1 | BX11: 1 | BY11: 1 | BZ11: 1 | CA11: 1 | CB11: 1 | CC11: =+CB11 -> 1 | CD11: 1 | CE11: 1 | CF11: 1 | CG11: 1 | CH11: 1 | CI11: 1 | CJ11: 0 | CK11: 0 | CL11: 0 | CM11: 0 | CN11: 0 | CO11: 0 | CP11: 0 | CQ11: 0 | CR11: 0 | CS11: =+CR11 -> 0 | CT11: 0 | CU11: 0 | CV11: 0 | CW11: 0 | CX11: 0 | CY11: 0 | CZ11: STR | DA11: STR | DB11: STR | DC11: STR | DD11: STR | DE11: STR | DF11: STR | DG11: STR | DH11: STR | DI11: =+DH11 -> STR | DJ11: STR | DK11: STR | DL11: STR | DM11: STR | DN11: STR | DO11: STR | DP11: 0 | DQ11: 0 | DR11: 0 | DS11: 0 | DT11: 0 | DU11: 0 | DV11: 0 | DW11: 0 | DX11: 0 | DY11: 0 | DZ11: 0 | EA11: 0 | EB11: 0 | EC11: 0 | ED11: 0 | EE11: 0 | EF11: 0 | EG11: 0 | EH11: 0 | EI11: 0 | EJ11: 0 | EK11: 0 | EL11: 0 | EM11: 0 | EN11: 0 | EO11: 0 | EP11: 0 | EQ11: 0.9228727893 | ER11: 0.9158119221 | ES11: 0.9684080388 | ET11: 0.9639235869 | EU11: 0.9726429495 | EV11: 0.966916865 | EW11: 0 | EX11: 0 | EY11: 0 | EZ11: 0 | FA11: 0 | FB11: 0 | FC11: 0 | FD11: 0 | FE11: 0 | FF11: 0
C12: =DATE((C9-1),C11,1) -> 2019-10-01 | E12: 2015_8 | F12: 2015-05-01 | G12: 400 | H12: 344 | I12: 744 | J12: 0.5376344086 | K12: 0.4623655914 | M12: 2016 | N12: 366 | O12: 8784 | Q12: 10046 | R12: Central Electric Coop | S12: 0 | T12: 1 | U12: 83.072 | V12: 0 | W12: 0 | X12: 0 | Y12: 0 | Z12: 0 | AA12: 0 | AB12: 0 | AC12: 0 | AD12: 0 | AE12: 0 | AF12: 81.052 | AG12: 80.537 | AH12: 81.418 | AI12: 0 | AJ12: 0 | AK12: 0 | AL12: 0 | AM12: 0 | AN12: 82.298 | AO12: 82.947 | AP12: 82.607 | AQ12: 82.967 | AR12: 90.594 | AS12: 92.031 | AT12: 0 | AU12: 0 | AV12: 0 | AW12: 0 | AX12: 0 | AY12: 0 | AZ12: 0 | BA12: 0 | BB12: 0 | BC12: 0 | BD12: 1.246 | BE12: 1.895 | BF12: 2.07 | BG12: 2.43 | BH12: 9.176 | BI12: 10.613 | BJ12: 0 | BK12: 0 | BL12: 0 | BM12: 0 | BN12: 0 | BO12: 0 | BP12: 0 | BQ12: 0 | BR12: 0 | BS12: 0 | BT12: 6 | BU12: 6 | BV12: 6 | BW12: 6 | BX12: 6 | BY12: 6 | BZ12: 6 | CA12: 6 | CB12: 6 | CC12: =+CB12 -> 6 | CD12: 6 | CE12: 6 | CF12: 6 | CG12: 6 | CH12: 6 | CI12: 6 | CJ12: 0 | CK12: 0 | CL12: 0 | CM12: 0 | CN12: 0 | CO12: 0 | CP12: 0 | CQ12: 0 | CR12: 0 | CS12: =+CR12 -> 0 | CT12: 0 | CU12: 0 | CV12: 0 | CW12: 0 | CX12: 0 | CY12: 0 | CZ12: STR | DA12: STR | DB12: STR | DC12: STR | DD12: STR | DE12: STR | DF12: STR | DG12: STR | DH12: STR | DI12: =+DH12 -> STR | DJ12: STR | DK12: STR | DL12: STR | DM12: STR | DN12: STR | DO12: STR | DP12: 0 | DQ12: 0 | DR12: 0 | DS12: 0 | DT12: 0 | DU12: 0 | DV12: 0 | DW12: 0 | DX12: 0 | DY12: 0 | DZ12: 0 | EA12: 0 | EB12: 0 | EC12: 0 | ED12: 0 | EE12: 0 | EF12: 0 | EG12: 0 | EH12: 0 | EI12: 0 | EJ12: 0 | EK12: 0 | EL12: 0 | EM12: 0 | EN12: 0 | EO12: 0.065 | EP12: 41085.457 | EQ12: 0.9848639457 | ER12: 0.9771570969 | ES12: 0.9749451694 | ET12: 0.9707148096 | EU12: 0.8987163475 | EV12: 0.8846835174 | EW12: 0 | EX12: 0 | EY12: 0 | EZ12: 0 | FA12: 0 | FB12: 0 | FC12: 0 | FD12: 0 | FE12: 0 | FF12: 0
E13: 2015_9 | F13: 2015-06-01 | G13: 416 | H13: 304 | I13: 720 | J13: 0.5777777778 | K13: 0.4222222222 | M13: 2017 | N13: 365 | O13: 8760 | Q13: 10047 | R13: Central Lincoln PUD | S13: 0 | T13: 0 | U13: 159.01 | V13: 0 | W13: 0 | X13: 0 | Y13: 0 | Z13: 0 | AA13: 0 | AB13: 0 | AC13: 0 | AD13: 0 | AE13: 0 | AF13: 155.144 | AG13: 154.158 | AH13: 155.843 | AI13: 0 | AJ13: 0 | AK13: 0 | AL13: 0 | AM13: 0 | AN13: 153.104 | AO13: 153.501 | AP13: 152.864 | AQ13: 153.239 | AR13: 154.201 | AS13: 154.536 | AT13: 0 | AU13: 0 | AV13: 0 | AW13: 0 | AX13: 0 | AY13: 0 | AZ13: 0 | BA13: 0 | BB13: 0 | BC13: 0 | BD13: 0 | BE13: 0 | BF13: 0 | BG13: 0 | BH13: 0 | BI13: 0 | BJ13: 0 | BK13: 0 | BL13: 0 | BM13: 0 | BN13: 0 | BO13: 0 | BP13: 0 | BQ13: 0 | BR13: 0 | BS13: 0 | BT13: 3 | BU13: 3 | BV13: 3 | BW13: 3 | BX13: 3 | BY13: 3 | BZ13: 3 | CA13: 3 | CB13: 3 | CC13: =+CB13 -> 3 | CD13: 3 | CE13: 3 | CF13: 3 | CG13: 3 | CH13: 3 | CI13: 3 | CJ13: 0 | CK13: 0 | CL13: 0 | CM13: 1 | CN13: 9 | CO13: 9 | CP13: 9 | CQ13: 9 | CR13: 10 | CS13: =+CR13 -> 10 | CT13: 10 | CU13: 10 | CV13: 10 | CW13: 10 | CX13: 10 | CY13: 10 | CZ13: STR | DA13: STR | DB13: STR | DC13: STR | DD13: STR | DE13: STR | DF13: STR | DG13: STR | DH13: STR | DI13: =+DH13 -> STR | DJ13: STR | DK13: STR | DL13: STR | DM13: STR | DN13: STR | DO13: STR | DP13: 0 | DQ13: 0 | DR13: 0 | DS13: 0 | DT13: 0 | DU13: 0 | DV13: 0 | DW13: 0 | DX13: 0 | DY13: 0 | DZ13: 0 | EA13: 0 | EB13: 0 | EC13: 0 | ED13: 0 | EE13: 0 | EF13: 0 | EG13: 0 | EH13: 0 | EI13: 0 | EJ13: 0 | EK13: 0 | EL13: 0 | EM13: 0 | EN13: 1 | EO13: 0 | EP13: 0 | EQ13: 1 | ER13: 0.9999976626 | ES13: 0.9999980361 | ET13: 0.9999981824 | EU13: 0.9999979411 | EV13: 0.9999983935 | EW13: 0 | EX13: 0 | EY13: 0 | EZ13: 0 | FA13: 0 | FB13: 0 | FC13: 0 | FD13: 0 | FE13: 0 | FF13: 0
B14: RHWM Lock | C14: Yes | E14: 2015_10 | F14: 2015-07-01 | G14: 416 | H14: 328 | I14: 744 | J14: 0.5591397849 | K14: 0.4408602151 | M14: 2018 | N14: 365 | O14: 8760 | Q14: 10055 | R14: Albion, City of | S14: 0 | T14: 0 | U14: 0.404 | V14: 0 | W14: 0 | X14: 0 | Y14: 0 | Z14: 0 | AA14: 0 | AB14: 0 | AC14: 0 | AD14: 0 | AE14: 0 | AF14: 0.394 | AG14: 0.392 | AH14: 0.396 | AI14: 0 | AJ14: 0 | AK14: 0 | AL14: 0 | AM14: 0 | AN14: 0.402 | AO14: 0.405 | AP14: 0.391 | AQ14: 0.392 | AR14: 0.385 | AS14: 0.385 | AT14: 0 | AU14: 0 | AV14: 0 | AW14: 0 | AX14: 0 | AY14: 0 | AZ14: 0 | BA14: 0 | BB14: 0 | BC14: 0 | BD14: 0.008 | BE14: 0.011 | BF14: 0 | BG14: 0 | BH14: 0 | BI14: 0 | BJ14: 0 | BK14: 0 | BL14: 0 | BM14: 0 | BN14: 0 | BO14: 0 | BP14: 0 | BQ14: 0 | BR14: 0 | BS14: 0 | BT14: 1 | BU14: 1 | BV14: 1 | BW14: 1 | BX14: 1 | BY14: 1 | BZ14: 1 | CA14: 1 | CB14: 1 | CC14: =+CB14 -> 1 | CD14: 1 | CE14: 1 | CF14: 1 | CG14: 1 | CH14: 1 | CI14: 1 | CJ14: 0 | CK14: 0 | CL14: 0 | CM14: 0 | CN14: 0 | CO14: 0 | CP14: 0 | CQ14: 0 | CR14: 0 | CS14: =+CR14 -> 0 | CT14: 0 | CU14: 0 | CV14: 0 | CW14: 0 | CX14: 0 | CY14: 0 | CZ14: LGR | DA14: LGR | DB14: LGR | DC14: LGR | DD14: LGR | DE14: LGR | DF14: LGR | DG14: LGR | DH14: LGR | DI14: =+DH14 -> LGR | DJ14: LGR | DK14: LGR | DL14: LGR | DM14: LGR | DN14: LGR | DO14: LGR | DP14: 0 | DQ14: 0 | DR14: 0 | DS14: 0 | DT14: 0 | DU14: 0 | DV14: 0 | DW14: 0 | DX14: 0 | DY14: 0 | DZ14: 0 | EA14: 0 | EB14: 0 | EC14: 0 | ED14: 0 | EE14: 0 | EF14: 0 | EG14: 0 | EH14: 0 | EI14: 0 | EJ14: 0 | EK14: 0 | EL14: 0 | EM14: 0 | EN14: 0 | EO14: 0 | EP14: 0 | EQ14: 0.9807334733 | ER14: 0.9734030706 | ES14: 0.999986777 | ET14: 0.9992074347 | EU14: 0.9998526171 | EV14: 0.9998526171 | EW14: 0 | EX14: 0 | EY14: 0 | EZ14: 0 | FA14: 0 | FB14: 0 | FC14: 0 | FD14: 0 | FE14: 0 | FF14: 0
B15: VBARS Study ID | C15: 239 | E15: 2015_11 | F15: 2015-08-01 | G15: 416 | H15: 328 | I15: 744 | J15: 0.5591397849 | K15: 0.4408602151 | M15: 2019 | N15: 365 | O15: 8760 | Q15: 10057 | R15: Ashland, City of | S15: 0 | T15: 0 | U15: 21.383 | V15: 0 | W15: 0 | X15: 0 | Y15: 0 | Z15: 0 | AA15: 0 | AB15: 0 | AC15: 0 | AD15: 0 | AE15: 0 | AF15: 20.863 | AG15: 20.731 | AH15: 20.957 | AI15: 0 | AJ15: 0 | AK15: 0 | AL15: 0 | AM15: 0 | AN15: 20.876 | AO15: 20.984 | AP15: 20.832 | AQ15: 20.878 | AR15: 19.991 | AS15: 19.984 | AT15: 0 | AU15: 0 | AV15: 0 | AW15: 0 | AX15: 0 | AY15: 0 | AZ15: 0 | BA15: 0 | BB15: 0 | BC15: 0 | BD15: 0.013 | BE15: 0.121 | BF15: 0.101 | BG15: 0.147 | BH15: 0 | BI15: 0 | BJ15: 0 | BK15: 0 | BL15: 0 | BM15: 0 | BN15: 0 | BO15: 0 | BP15: 0 | BQ15: 0 | BR15: 0 | BS15: 0 | BT15: 1 | BU15: 1 | BV15: 1 | BW15: 1 | BX15: 1 | BY15: 1 | BZ15: 1 | CA15: 1 | CB15: 1 | CC15: =+CB15 -> 1 | CD15: 1 | CE15: 1 | CF15: 1 | CG15: 1 | CH15: 1 | CI15: 1 | CJ15: 0 | CK15: 0 | CL15: 0 | CM15: 0 | CN15: 0 | CO15: 0 | CP15: 0 | CQ15: 0 | CR15: 0 | CS15: =+CR15 -> 0 | CT15: 0 | CU15: 0 | CV15: 0 | CW15: 0 | CX15: 0 | CY15: 0 | CZ15: STR | DA15: STR | DB15: STR | DC15: STR | DD15: STR | DE15: STR | DF15: STR | DG15: STR | DH15: STR | DI15: =+DH15 -> STR | DJ15: STR | DK15: STR | DL15: STR | DM15: STR | DN15: STR | DO15: STR | DP15: 0 | DQ15: 0 | DR15: 0 | DS15: 0 | DT15: 0 | DU15: 0 | DV15: 0 | DW15: 0 | DX15: 0 | DY15: 0 | DZ15: 0 | EA15: 0 | EB15: 0 | EC15: 0 | ED15: 0 | EE15: 0 | EF15: 0 | EG15: 0 | EH15: 0 | EI15: 0 | EJ15: 0 | EK15: 0 | EL15: 0 | EM15: 0 | EN15: 0 | EO15: 0 | EP15: 0 | EQ15: 0.9993446014 | ER15: 0.9942772973 | ES15: 0.9951910336 | ET15: 0.993014822 | EU15: 1 | EV15: 1 | EW15: 0 | EX15: 0 | EY15: 0 | EZ15: 0 | FA15: 0 | FB15: 0 | FC15: 0 | FD15: 0 | FE15: 0 | FF15: 0
... 18 more rows

Sheet EE
B1: Energy Efficiency Inputs
B2: Percent of Non-PNGC Reported EE Savings (Last 3 Years Average)
B4: BESID | C4: AccountName | D4: Percent
B5: 10005 | C5: Alder Mutual | D5: 0.0001097661521
B6: 10015 | C6: Asotin County PUD #1 | D6: 0.000154592926
B7: 10024 | C7: Benton County PUD #1 | D7: 0.03949578321
B8: 10025 | C8: Benton REA | D8: 0.007313422183
B9: 10027 | C9: Big Bend Elec Coop | D9: 0.008047096494
B10: 10029 | C10: Blachly Lane Elec Coop | D10: 1.107132908e-05
B11: 10044 | C11: Canby, City of | D11: 0.002081513106
B12: 10046 | C12: Central Electric Coop | D12: 0.001159148885
B13: 10047 | C13: Central Lincoln PUD | D13: 0.01891754399
B14: 10055 | C14: Albion, City of | D14: 5.451759946e-05
B15: 10057 | C15: Ashland, City of | D15: 0.002602091426
... 18 more rows

Sheet SlicePercent
B1: Slice-Block Inputs
A2: TOC | D2: Monthly Block Shaping Factors
B3: BESID | C3: AccountName | D3: 10 | E3: 11 | F3: 12 | G3: 1 | H3: 2 | I3: 3 | J3: 4 | K3: 5 | L3: 6 | M3: 7 | N3: 8 | O3: 9
B4: 10170 | C4: Eugene Water & Electric Board | D4: 0.081 | E4: 0.077 | F4: 0.099 | G4: 0.105 | H4: 0.093 | I4: 0.092 | J4: 0.081 | K4: 0.066 | L4: 0.066 | M4: 0.081 | N4: 0.083 | O4: 0.076
B5: 10204 | C5: Idaho Falls Power | D5: 0.074 | E5: 0.085 | F5: 0.105 | G5: 0.108 | H5: 0.089 | I5: 0.083 | J5: 0.072 | K5: 0.079 | L5: 0.074 | M5: 0.083 | N5: 0.081 | O5: 0.067
B6: 10349 | C6: Seattle City Light | D6: 0.08 | E6: 0.127 | F6: 0.129 | G6: 0.14 | H6: 0.119 | I6: 0.126 | J6: 0.061 | K6: 0.02 | L6: 0 | M6: 0.048 | N6: 0.057 | O6: 0.093
B7: 10370 | C7: Tacoma Public Utilities | D7: 0.068 | E7: 0.088 | F7: 0.109 | G7: 0.103 | H7: 0.088 | I7: 0.101 | J7: 0.085 | K7: 0.076 | L7: 0.068 | M7: 0.073 | N7: 0.069 | O7: 0.072
B8: 10024 | C8: Benton County PUD #1 | D8: 0.065 | E8: 0.069 | F8: 0.081 | G8: 0.088 | H8: 0.066 | I8: 0.065 | J8: 0.07 | K8: 0.088 | L8: 0.103 | M8: 0.125 | N8: 0.108 | O8: 0.072
B9: 10103 | C9: Clark County PUD #1 | D9: 0.071 | E9: 0.095 | F9: 0.118 | G9: 0.12 | H9: 0.087 | I9: 0.081 | J9: 0.067 | K9: 0.094 | L9: 0.065 | M9: 0.071 | N9: 0.072 | O9: 0.059
B10: 10105 | C10: Clatskanie PUD | D10: 0.083 | E10: 0.083 | F10: 0.092 | G10: 0.09 | H10: 0.083 | I10: 0.091 | J10: 0.086 | K10: 0.067 | L10: 0.084 | M10: 0.08 | N10: 0.081 | O10: 0.08
B11: 10123 | C11: Cowlitz County PUD #1 | D11: 0.083 | E11: 0.086 | F11: 0.092 | G11: 0.091 | H11: 0.079 | I11: 0.084 | J11: 0.082 | K11: 0.081 | L11: 0.078 | M11: 0.082 | N11: 0.082 | O11: 0.08
B12: 10157 | C12: Emerald PUD | D12: 0.076 | E12: 0.093 | F12: 0.114 | G12: 0.105 | H12: 0.091 | I12: 0.087 | J12: 0.079 | K12: 0.071 | L12: 0.066 | M12: 0.076 | N12: 0.075 | O12: 0.067
B13: 10183 | C13: Franklin County PUD #1 | D13: 0.075 | E13: 0.071 | F13: 0.083 | G13: 0.089 | H13: 0.07 | I13: 0.069 | J13: 0.069 | K13: 0.079 | L13: 0.091 | M13: 0.112 | N13: 0.107 | O13: 0.085
B14: 10191 | C14: Grays Harbor PUD #1 | D14: 0.078 | E14: 0.093 | F14: 0.107 | G14: 0.107 | H14: 0.091 | I14: 0.09 | J14: 0.081 | K14: 0.075 | L14: 0.07 | M14: 0.07 | N14: 0.069 | O14: 0.069
B15: 10231 | C15: Klickitat County PUD #1 | D15: 0.08 | E15: 0.083 | F15: 0.104 | G15: 0.113 | H15: 0.087 | I15: 0.079 | J15: 0.074 | K15: 0.066 | L15: 0.062 | M15: 0.087 | N15: 0.088 | O15: 0.077
B16: 10237 | C16: Lewis County PUD #1 | D16: 0.08 | E16: 0.095 | F16: 0.115 | G16: 0.101 | H16: 0.089 | I16: 0.089 | J16: 0.084 | K16: 0.075 | L16: 0.068 | M16: 0.067 | N16: 0.068 | O16: 0.069
B17: 10286 | C17: Okanogan County PUD #1 | D17: 0.077 | E17: 0.086 | F17: 0.119 | G17: 0.131 | H17: 0.108 | I17: 0.107 | J17: 0.071 | K17: 0.055 | L17: 0.038 | M17: 0.08 | N17: 0.061 | O17: 0.067
B18: 10294 | C18: Pacific County PUD #2 | D18: 0.076 | E18: 0.098 | F18: 0.116 | G18: 0.117 | H18: 0.094 | I18: 0.094 | J18: 0.08 | K18: 0.071 | L18: 0.063 | M18: 0.063 | N18: 0.064 | O18: 0.064
B19: 10306 | C19: Pend Oreille County PUD #1 | D19: 0.034 | E19: 0.149 | F19: 0.135 | G19: 0.19 | H19: 0.168 | I19: 0.159 | J19: 0.01 | K19: 0 | L19: 0 | M19: 0.038 | N19: 0.039 | O19: 0.078
B20: 10354 | C20: Snohomish County PUD #1 | D20: 0.082 | E20: 0.092 | F20: 0.107 | G20: 0.105 | H20: 0.088 | I20: 0.089 | J20: 0.078 | K20: 0.074 | L20: 0.071 | M20: 0.071 | N20: 0.071 | O20: 0.072

Sheet I_TRL
B1: Total Retail Loads (MWh)
A2: TOC | D2: 2015-10-01 | E2: 2015-10-01 | F2: 2015-11-01 | G2: 2015-11-01 | H2: 2015-12-01 | I2: 2015-12-01 | J2: 2016-01-01 | K2: 2016-01-01 | L2: 2016-02-01 | M2: 2016-02-01 | N2: 2016-03-01 | O2: 2016-03-01 | P2: 2016-04-01 | Q2: 2016-04-01 | R2: 2016-05-01 | S2: 2016-05-01 | T2: 2016-06-01 | U2: 2016-06-01 | V2: 2016-07-01 | W2: 2016-07-01 | X2: 2016-08-01 | Y2: 2016-08-01 | Z2: 2016-09-01 | AA2: 2016-09-01 | AB2: 2016-10-01 | AC2: 2016-10-01 | AD2: 2016-11-01 | AE2: 2016-11-01 | AF2: 2016-12-01 | AG2: 2016-12-01 | AH2: 2017-01-01 | AI2: 2017-01-01 | AJ2: 2017-02-01 | AK2: 2017-02-01 | AL2: 2017-03-01 | AM2: 2017-03-01 | AN2: 2017-04-01 | AO2: 2017-04-01 | AP2: 2017-05-01 | AQ2: 2017-05-01 | AR2: 2017-06-01 | AS2: 2017-06-01 | AT2: 2017-07-01 | AU2: 2017-07-01 | AV2: 2017-08-01 | AW2: 2017-08-01 | AX2: 2017-09-01 | AY2: 2017-09-01 | AZ2: 2017-10-01 | BA2: 2017-10-01 | BB2: 2017-11-01 | BC2: 2017-11-01 | BD2: 2017-12-01 | BE2: 2017-12-01 | BF2: 2018-01-01 | BG2: 2018-01-01 | BH2: 2018-02-01 | BI2: 2018-02-01 | BJ2: 2018-03-01 | BK2: 2018-03-01 | BL2: 2018-04-01 | BM2: 2018-04-01 | BN2: 2018-05-01 | BO2: 2018-05-01 | BP2: 2018-06-01 | BQ2: 2018-06-01 | BR2: 2018-07-01 | BS2: 2018-07-01 | BT2: 2018-08-01 | BU2: 2018-08-01 | BV2: 2018-09-01 | BW2: 2018-09-01 | BX2: 2018-10-01 | BY2: 2018-10-01 | BZ2: 2018-11-01 | CA2: 2018-11-01 | CB2: 2018-12-01 | CC2: 2018-12-01 | CD2: 2019-01-01 | CE2: 2019-01-01 | CF2: 2019-02-01 | CG2: 2019-02-01 | CH2: 2019-03-01 | CI2: 2019-03-01 | CJ2: 2019-04-01 | CK2: 2019-04-01 | CL2: 2019-05-01 | CM2: 2019-05-01 | CN2: 2019-06-01 | CO2: 2019-06-01 | CP2: 2019-07-01 | CQ2: 2019-07-01 | CR2: 2019-08-01 | CS2: 2019-08-01 | CT2: 2019-09-01 | CU2: 2019-09-01 | CV2: 2019-10-01 | CW2: 2019-10-01 | CX2: 2019-11-01 | CY2: 2019-11-01 | CZ2: 2019-12-01 | DA2: 2019-12-01 | DB2: 2020-01-01 | DC2: 2020-01-01 | DD2: 2020-02-01 | DE2: 2020-02-01 | DF2: 2020-03-01 | DG2: 2020-03-01 | DH2: 2020-04-01 | DI2: 2020-04-01 | DJ2: 2020-05-01 | DK2: 2020-05-01 | DL2: 2020-06-01 | DM2: 2020-06-01 | DN2: 2020-07-01 | DO2: 2020-07-01 | DP2: 2020-08-01 | DQ2: 2020-08-01 | DR2: 2020-09-01 | DS2: 2020-09-01 | DT2: 2020-10-01 | DU2: 2020-10-01 | DV2: 2020-11-01 | DW2: 2020-11-01 | DX2: 2020-12-01 | DY2: 2020-12-01 | DZ2: 2021-01-01 | EA2: 2021-01-01 | EB2: 2021-02-01 | EC2: 2021-02-01 | ED2: 2021-03-01 | EE2: 2021-03-01 | EF2: 2021-04-01 | EG2: 2021-04-01 | EH2: 2021-05-01 | EI2: 2021-05-01 | EJ2: 2021-06-01 | EK2: 2021-06-01 | EL2: 2021-07-01 | EM2: 2021-07-01 | EN2: 2021-08-01 | EO2: 2021-08-01 | EP2: 2021-09-01 | EQ2: 2021-09-01 | ER2: 2021-10-01 | ES2: 2021-10-01 | ET2: 2021-11-01 | EU2: 2021-11-01 | EV2: 2021-12-01 | EW2: 2021-12-01 | EX2: 2022-01-01 | EY2: 2022-01-01 | EZ2: 2022-02-01 | FA2: 2022-02-01 | FB2: 2022-03-01 | FC2: 2022-03-01 | FD2: 2022-04-01 | FE2: 2022-04-01 | FF2: 2022-05-01 | FG2: 2022-05-01 | FH2: 2022-06-01 | FI2: 2022-06-01 | FJ2: 2022-07-01 | FK2: 2022-07-01 | FL2: 2022-08-01 | FM2: 2022-08-01 | FN2: 2022-09-01 | FO2: 2022-09-01 | FP2: 2022-10-01 | FQ2: 2022-10-01 | FR2: 2022-11-01 | FS2: 2022-11-01 | FT2: 2022-12-01 | FU2: 2022-12-01 | FV2: 2023-01-01 | FW2: 2023-01-01 | FX2: 2023-02-01 | FY2: 2023-02-01 | FZ2: 2023-03-01 | GA2: 2023-03-01 | GB2: 2023-04-01 | GC2: 2023-04-01 | GD2: 2023-05-01 | GE2: 2023-05-01 | GF2: 2023-06-01 | GG2: 2023-06-01 | GH2: 2023-07-01 | GI2: 2023-07-01 | GJ2: 2023-08-01 | GK2: 2023-08-01 | GL2: 2023-09-01 | GM2: 2023-09-01 | GN2: 2023-10-01 | GO2: 2023-10-01 | GP2: 2023-11-01 | GQ2: 2023-11-01 | GR2: 2023-12-01 | GS2: 2023-12-01 | GT2: 2024-01-01 | GU2: 2024-01-01 | GV2: 2024-02-01 | GW2: 2024-02-01 | GX2: 2024-03-01 | GY2: 2024-03-01 | GZ2: 2024-04-01 | HA2: 2024-04-01 | HB2: 2024-05-01 | HC2: 2024-05-01 | HD2: 2024-06-01 | HE2: 2024-06-01 | HF2: 2024-07-01 | HG2: 2024-07-01 | HH2: 2024-08-01 | HI2: 2024-08-01 | HJ2: 2024-09-01 | HK2: 2024-09-01 | HL2: 2024-10-01 | HM2: 2024-10-01 | HN2: 2024-11-01 | HO2: 2024-11-01 | HP2: 2024-12-01 | HQ2: 2024-12-01 | HR2: 2025-01-01 | HS2: 2025-01-01 | HT2: 2025-02-01 | HU2: 2025-02-01 | HV2: 2025-03-01 | HW2: 2025-03-01 | HX2: 2025-04-01 | HY2: 2025-04-01 | HZ2: 2025-05-01 | IA2: 2025-05-01 | IB2: 2025-06-01 | IC2: 2025-06-01 | ID2: 2025-07-01 | IE2: 2025-07-01 | IF2: 2025-08-01 | IG2: 2025-08-01 | IH2: 2025-09-01 | II2: 2025-09-01 | IJ2: 2025-10-01 | IK2: 2025-10-01 | IL2: 2025-11-01 | IM2: 2025-11-01 | IN2: 2025-12-01 | IO2: 2025-12-01 | IP2: 2026-01-01 | IQ2: 2026-01-01 | IR2: 2026-02-01 | IS2: 2026-02-01 | IT2: 2026-03-01 | IU2: 2026-03-01 | IV2: 2026-04-01 | IW2: 2026-04-01 | IX2: 2026-05-01 | IY2: 2026-05-01 | IZ2: 2026-06-01 | JA2: 2026-06-01 | JB2: 2026-07-01 | JC2: 2026-07-01 | JD2: 2026-08-01 | JE2: 2026-08-01 | JF2: 2026-09-01 | JG2: 2026-09-01 | JH2: 2026-10-01 | JI2: 2026-10-01 | JJ2: 2026-11-01 | JK2: 2026-11-01 | JL2: 2026-12-01 | JM2: 2026-12-01 | JN2: 2027-01-01 | JO2: 2027-01-01 | JP2: 2027-02-01 | JQ2: 2027-02-01 | JR2: 2027-03-01 | JS2: 2027-03-01 | JT2: 2027-04-01 | JU2: 2027-04-01 | JV2: 2027-05-01 | JW2: 2027-05-01 | JX2: 2027-06-01 | JY2: 2027-06-01 | JZ2: 2027-07-01 | KA2: 2027-07-01 | KB2: 2027-08-01 | KC2: 2027-08-01 | KD2: 2027-09-01 | KE2: 2027-09-01 | KF2: 2027-10-01 | KG2: 2027-10-01 | KH2: 2027-11-01 | KI2: 2027-11-01 | KJ2: 2027-12-01 | KK2: 2027-12-01 | KL2: 2028-01-01 | KM2: 2028-01-01 | KN2: 2028-02-01 | KO2: 2028-02-01 | KP2: 2028-03-01 | KQ2: 2028-03-01 | KR2: 2028-04-01 | KS2: 2028-04-01 | KT2: 2028-05-01 | KU2: 2028-05-01 | KV2: 2028-06-01 | KW2: 2028-06-01 | KX2: 2028-07-01 | KY2: 2028-07-01 | KZ2: 2028-08-01 | LA2: 2028-08-01 | LB2: 2028-09-01 | LC2: 2028-09-01 | LD2: 2028-10-01 | LE2: 2028-10-01 | LF2: 2028-11-01 | LG2: 2028-11-01 | LH2: 2028-12-01 | LI2: 2028-12-01 | LJ2: 2029-01-01 | LK2: 2029-01-01 | LL2: 2029-02-01 | LM2: 2029-02-01 | LN2: 2029-03-01 | LO2: 2029-03-01 | LP2: 2029-04-01 | LQ2: 2029-04-01 | LR2: 2029-05-01 | LS2: 2029-05-01 | LT2: 2029-06-01 | LU2: 2029-06-01 | LV2: 2029-07-01 | LW2: 2029-07-01 | LX2: 2029-08-01 | LY2: 2029-08-01 | LZ2: 2029-09-01 | MA2: 2029-09-01 | MB2: 2029-10-01 | MC2: 2029-10-01 | MD2: 2029-11-01 | ME2: 2029-11-01 | MF2: 2029-12-01 | MG2: 2029-12-01 | MH2: 2030-01-01 | MI2: 2030-01-01 | MJ2: 2030-02-01 | MK2: 2030-02-01 | ML2: 2030-03-01 | MM2: 2030-03-01 | MN2: 2030-04-01 | MO2: 2030-04-01 | MP2: 2030-05-01 | MQ2: 2030-05-01 | MR2: 2030-06-01 | MS2: 2030-06-01 | MT2: 2030-07-01 | MU2: 2030-07-01 | MV2: 2030-08-01 | MW2: 2030-08-01 | MX2: 2030-09-01 | MY2: 2030-09-01 | MZ2: 2030-10-01 | NA2: 2030-10-01 | NB2: 2030-11-01 | NC2: 2030-11-01 | ND2: 2030-12-01 | NE2: 2030-12-01 | NF2: 2031-01-01 | NG2: 2031-01-01 | NH2: 2031-02-01 | NI2: 2031-02-01 | NJ2: 2031-03-01 | NK2: 2031-03-01 | NL2: 2031-04-01 | NM2: 2031-04-01 | NN2: 2031-05-01 | NO2: 2031-05-01 | NP2: 2031-06-01 | NQ2: 2031-06-01 | NR2: 2031-07-01 | NS2: 2031-07-01 | NT2: 2031-08-01 | NU2: 2031-08-01 | NV2: 2031-09-01 | NW2: 2031-09-01 | NY2: 2016 | NZ2: 2017 | OA2: 2018 | OB2: 2019 | OC2: 2020 | OD2: 2021 | OE2: 2022 | OF2: 2023 | OG2: 2024 | OH2: 2025 | OI2: 2026 | OJ2: 2027 | OK2: 2028 | OL2: 2029 | OM2: 2030 | ON2: 2031
B3: BESID | C3: AccountName | D3: HLH | E3: LLH | F3: HLH | G3: LLH | H3: HLH | I3: LLH | J3: HLH | K3: LLH | L3: HLH | M3: LLH | N3: HLH | O3: LLH | P3: HLH | Q3: LLH | R3: HLH | S3: LLH | T3: HLH | U3: LLH | V3: HLH | W3: LLH | X3: HLH | Y3: LLH | Z3: HLH | AA3: LLH | AB3: HLH | AC3: LLH | AD3: HLH | AE3: LLH | AF3: HLH | AG3: LLH | AH3: HLH | AI3: LLH | AJ3: HLH | AK3: LLH | AL3: HLH | AM3: LLH | AN3: HLH | AO3: LLH | AP3: HLH | AQ3: LLH | AR3: HLH | AS3: LLH | AT3: HLH | AU3: LLH | AV3: HLH | AW3: LLH | AX3: HLH | AY3: LLH | AZ3: HLH | BA3: LLH | BB3: HLH | BC3: LLH | BD3: HLH | BE3: LLH | BF3: HLH | BG3: LLH | BH3: HLH | BI3: LLH | BJ3: HLH | BK3: LLH | BL3: HLH | BM3: LLH | BN3: HLH | BO3: LLH | BP3: HLH | BQ3: LLH | BR3: HLH | BS3: LLH | BT3: HLH | BU3: LLH | BV3: HLH | BW3: LLH | BX3: HLH | BY3: LLH | BZ3: HLH | CA3: LLH | CB3: HLH | CC3: LLH | CD3: HLH | CE3: LLH | CF3: HLH | CG3: LLH | CH3: HLH | CI3: LLH | CJ3: HLH | CK3: LLH | CL3: HLH | CM3: LLH | CN3: HLH | CO3: LLH | CP3: HLH | CQ3: LLH | CR3: HLH | CS3: LLH | CT3: HLH | CU3: LLH | CV3: HLH | CW3: LLH | CX3: HLH | CY3: LLH | CZ3: HLH | DA3: LLH | DB3: HLH | DC3: LLH | DD3: HLH | DE3: LLH | DF3: HLH | DG3: LLH | DH3: HLH | DI3: LLH | DJ3: HLH | DK3: LLH | DL3: HLH | DM3: LLH | DN3: HLH | DO3: LLH | DP3: HLH | DQ3: LLH | DR3: HLH | DS3: LLH | DT3: HLH | DU3: LLH | DV3: HLH | DW3: LLH | DX3: HLH | DY3: LLH | DZ3: HLH | EA3: LLH | EB3: HLH | EC3: LLH | ED3: HLH | EE3: LLH | EF3: HLH | EG3: LLH | EH3: HLH | EI3: LLH | EJ3: HLH | EK3: LLH | EL3: HLH | EM3: LLH | EN3: HLH | EO3: LLH | EP3: HLH | EQ3: LLH | ER3: HLH | ES3: LLH | ET3: HLH | EU3: LLH | EV3: HLH | EW3: LLH | EX3: HLH | EY3: LLH | EZ3: HLH | FA3: LLH | FB3: HLH | FC3: LLH | FD3: HLH | FE3: LLH | FF3: HLH | FG3: LLH | FH3: HLH | FI3: LLH | FJ3: HLH | FK3: LLH | FL3: HLH | FM3: LLH | FN3: HLH | FO3: LLH | FP3: HLH | FQ3: LLH | FR3: HLH | FS3: LLH | FT3: HLH | FU3: LLH | FV3: HLH | FW3: LLH | FX3: HLH | FY3: LLH | FZ3: HLH | GA3: LLH | GB3: HLH | GC3: LLH | GD3: HLH | GE3: LLH | GF3: HLH | GG3: LLH | GH3: HLH | GI3: LLH | GJ3: HLH | GK3: LLH | GL3: HLH | GM3: LLH | GN3: HLH | GO3: LLH | GP3: HLH | GQ3: LLH | GR3: HLH | GS3: LLH | GT3: HLH | GU3: LLH | GV3: HLH | GW3: LLH | GX3: HLH | GY3: LLH | GZ3: HLH | HA3: LLH | HB3: HLH | HC3: LLH | HD3: HLH | HE3: LLH | HF3: HLH | HG3: LLH | HH3: HLH | HI3: LLH | HJ3: HLH | HK3: LLH | HL3: HLH | HM3: LLH | HN3: HLH | HO3: LLH | HP3: HLH | HQ3: LLH | HR3: HLH | HS3: LLH | HT3: HLH | HU3: LLH | HV3: HLH | HW3: LLH | HX3: HLH | HY3: LLH | HZ3: HLH | IA3: LLH | IB3: HLH | IC3: LLH | ID3: HLH | IE3: LLH | IF3: HLH | IG3: LLH | IH3: HLH | II3: LLH | IJ3: HLH | IK3: LLH | IL3: HLH | IM3: LLH | IN3: HLH | IO3: LLH | IP3: HLH | IQ3: LLH | IR3: HLH | IS3: LLH | IT3: HLH | IU3: LLH | IV3: HLH | IW3: LLH | IX3: HLH | IY3: LLH | IZ3: HLH | JA3: LLH | JB3: HLH | JC3: LLH | JD3: HLH | JE3: LLH | JF3: HLH | JG3: LLH | JH3: HLH | JI3: LLH | JJ3: HLH | JK3: LLH | JL3: HLH | JM3: LLH | JN3: HLH | JO3: LLH | JP3: HLH | JQ3: LLH | JR3: HLH | JS3: LLH | JT3: HLH | JU3: LLH | JV3: HLH | JW3: LLH | JX3: HLH | JY3: LLH | JZ3: HLH | KA3: LLH | KB3: HLH | KC3: LLH | KD3: HLH | KE3: LLH | KF3: HLH | KG3: LLH | KH3: HLH | KI3: LLH | KJ3: HLH | KK3: LLH | KL3: HLH | KM3: LLH | KN3: HLH | KO3: LLH | KP3: HLH | KQ3: LLH | KR3: HLH | KS3: LLH | KT3: HLH | KU3: LLH | KV3: HLH | KW3: LLH | KX3: HLH | KY3: LLH | KZ3: HLH | LA3: LLH | LB3: HLH | LC3: LLH | LD3: HLH | LE3: LLH | LF3: HLH | LG3: LLH | LH3: HLH | LI3: LLH | LJ3: HLH | LK3: LLH | LL3: HLH | LM3: LLH | LN3: HLH | LO3: LLH | LP3: HLH | LQ3: LLH | LR3: HLH | LS3: LLH | LT3: HLH | LU3: LLH | LV3: HLH | LW3: LLH | LX3: HLH | LY3: LLH | LZ3: HLH | MA3: LLH | MB3: HLH | MC3: LLH | MD3: HLH | ME3: LLH | MF3: HLH | MG3: LLH | MH3: HLH | MI3: LLH | MJ3: HLH | MK3: LLH | ML3: HLH | MM3: LLH | MN3: HLH | MO3: LLH | MP3: HLH | MQ3: LLH | MR3: HLH | MS3: LLH | MT3: HLH | MU3: LLH | MV3: HLH | MW3: LLH | MX3: HLH | MY3: LLH | MZ3: HLH | NA3: LLH | NB3: HLH | NC3: LLH | ND3: HLH | NE3: LLH | NF3: HLH | NG3: LLH | NH3: HLH | NI3: LLH | NJ3: HLH | NK3: LLH | NL3: HLH | NM3: LLH | NN3: HLH | NO3: LLH | NP3: HLH | NQ3: LLH | NR3: HLH | NS3: LLH | NT3: HLH | NU3: LLH | NV3: HLH | NW3: LLH
A4: 0 | B4: 10005 | C4: Alder Mutual | D4: 218.599 | E4: 143.32 | F4: 284.209 | G4: 203.687 | H4: 316.262 | I4: 229.611 | J4: 312.667 | K4: 227.64 | L4: 282.883 | M4: 187.373 | N4: 273.441 | O4: 180.796 | P4: 237.96 | Q4: 161.839 | R4: 190.142 | S4: 139.716 | T4: 179.102 | U4: 113.523 | V4: 165.07 | W4: 114.456 | X4: 171.397 | Y4: 106.963 | Z4: 172.807 | AA4: 119.204 | AB4: 212.737 | AC4: 139.477 | AD4: 276.252 | AE4: 197.984 | AF4: 306.301 | AG4: 222.379 | AH4: 302.01 | AI4: 219.881 | AJ4: 272.656 | AK4: 180.599 | AL4: 265.179 | AM4: 175.333 | AN4: 230.669 | AO4: 156.881 | AP4: 185.746 | AQ4: 136.485 | AR4: 176.278 | AS4: 111.733 | AT4: 162.814 | AU4: 112.892 | AV4: 169.096 | AW4: 105.527 | AX4: 170.545 | AY4: 117.643 | AZ4: 215.727 | BA4: 148.583 | BB4: 290.723 | BC4: 206.517 | BD4: 309.018 | BE4: 235.732 | BF4: 321.889 | BG4: 227.141 | BH4: 281.422 | BI4: 188.508 | BJ4: 270.583 | BK4: 176.027 | BL4: 225.899 | BM4: 166.421 | BN4: 189.486 | BO4: 135.034 | BP4: 178.353 | BQ4: 112.987 | BR4: 161.425 | BS4: 118.765 | BT4: 175.216 | BU4: 104.404 | BV4: 167.173 | BW4: 126.427 | BX4: 225.217 | BY4: 140.693 | BZ4: 291.641 | CA4: 207.169 | CB4: 309.948 | CC4: 236.442 | CD4: 322.851 | CE4: 227.819 | CF4: 282.308 | CG4: 189.102 | CH4: 261.104 | CI4: 187.156 | CJ4: 236.316 | CK4: 157.594 | CL4: 190.443 | CM4: 135.717 | CN4: 172.266 | CO4: 120.674 | CP4: 168.961 | CQ4: 112.889 | CR4: 176.268 | CS4: 105.032 | CT4: 168.106 | CU4: 127.134 | CV4: 239.121 | CW4: 154.149 | CX4: 329.074 | CY4: 240.526 | CZ4: 348.587 | DA4: 277.283 | DB4: 365.156 | DC4: 263.914 | DD4: 339.197 | DE4: 235.443 | DF4: 300.65 | DG4: 226.16 | DH4: 275.619 | DI4: 190.461 | DJ4: 192.775 | DK4: 156.675 | DL4: 188.588 | DM4: 124.082 | DN4: 179.334 | DO4: 120.266 | DP4: 180.446 | DQ4: 119.744 | DR4: 185.348 | DS4: 131.462 | DT4: 241.638 | DU4: 155.772 | DV4: 315.319 | DW4: 258.291 | DX4: 368.004 | DY4: 262.016 | DZ4: 350.367 | EA4: 282.843 | EB4: 328.116 | EC4: 231.684 | ED4: 317.448 | EE4: 213.502 | EF4: 277.996 | EG4: 192.104 | EH4: 195.059 | EI4: 158.531 | EJ4: 191.006 | EK4: 125.674 | EL4: 181.818 | EM4: 121.932 | EN4: 182.935 | EO4: 121.395 | EP4: 187.694 | EQ4: 133.126 | ER4: 233.259 | ES4: 168.301 | ET4: 333.713 | EU4: 243.917 | EV4: 370.422 | EW4: 263.737 | EX4: 352.663 | EY4: 284.697 | EZ4: 330.314 | FA4: 233.236 | FB4: 319.923 | FC4: 215.167 | FD4: 280.368 | FE4: 193.742 | FF4: 197.348 | FG4: 160.392 | FH4: 193.425 | FI4: 127.265 | FJ4: 175.936 | FK4: 131.954 | FL4: 193.805 | FM4: 114.675 | FN4: 190.04 | FO4: 134.79 | FP4: 235.664 | FQ4: 170.036 | FR4: 336.035 | FS4: 245.615 | FT4: 372.847 | FU4: 265.463 | FV4: 354.954 | FW4: 286.546 | FX4: 332.506 | FY4: 234.784 | FZ4: 322.399 | GA4: 216.831 | GB4: 269.325 | GC4: 208.795 | GD4: 209.457 | GE4: 152.423 | GF4: 195.843 | GG4: 128.857 | GH4: 178.308 | GI4: 133.732 | GJ4: 196.406 | GK4: 116.214 | GL4: 192.386 | GM4: 136.454 | GN4: 238.074 | GO4: 171.776 | GP4: 338.352 | GQ4: 247.308 | GR4: 357.821 | GS4: 284.629 | GT4: 374.78 | GU4: 270.87 | GV4: 348.352 | GW4: 241.798 | GX4: 310.101 | GY4: 233.269 | GZ4: 285.11 | HA4: 197.02 | HB4: 211.859 | HC4: 154.171 | HD4: 189.04 | HE4: 139.67 | HF4: 189.258 | HG4: 126.922 | HH4: 199.013 | HI4: 117.757 | HJ4: 185.394 | HK4: 147.456 | HL4: 251.72 | HM4: 162.27 | HN4: 340.675 | HO4: 249.005 | HP4: 360.133 | HQ4: 286.467 | HR4: 377.183 | HS4: 272.607 | HT4: 336.896 | HU4: 237.884 | HV4: 312.464 | HW4: 235.046 | HX4: 287.482 | HY4: 198.658 | HZ4: 214.256 | IA4: 155.914 | IB4: 191.346 | IC4: 141.374 | ID4: 191.742 | IE4: 128.588 | IF4: 192.901 | IG4: 128.009 | IH4: 197.084 | II4: 139.786 | IJ4: 254.243 | IK4: 163.897 | IL4: 326.363 | IM4: 267.337 | IN4: 380.107 | IO4: 270.633 | IP4: 379.592 | IQ4: 274.348 | IR4: 339.088 | IS4: 239.432 | IT4: 314.826 | IU4: 236.824 | IV4: 289.853 | IW4: 200.297 | IX4: 206.494 | IY4: 167.826 | IZ4: 203.099 | JA4: 133.631 | JB4: 194.22 | JC4: 130.25 | JD4: 195.396 | JE4: 129.664 | JF4: 199.43 | JG4: 141.45 | JH4: 256.76 | JI4: 165.52 | JJ4: 328.567 | JK4: 269.143 | JL4: 382.531 | JM4: 272.359 | JN4: 364.128 | JO4: 293.952 | JP4: 341.286 | JQ4: 240.984 | JR4: 332.3 | JS4: 223.49 | JT4: 292.224 | JU4: 201.936 | JV4: 208.778 | JW4: 169.682 | JX4: 205.524 | JY4: 135.226 | JZ4: 196.704 | KA4: 131.916 | KB4: 197.884 | KC4: 131.316 | KD4: 201.776 | KE4: 143.114 | KF4: 247.705 | KG4: 178.725 | KH4: 347.636 | KI4: 254.094 | KJ4: 384.949 | KK4: 274.081 | KL4: 366.424 | KM4: 295.806 | KN4: 357.507 | KO4: 248.153 | KP4: 334.775 | KQ4: 225.155 | KR4: 280.619 | KS4: 217.551 | KT4: 221.456 | KU4: 161.154 | KV4: 207.943 | KW4: 136.817 | KX4: 190.148 | KY4: 142.612 | KZ4: 209.43 | LA4: 123.92 | LB4: 204.122 | LC4: 144.778 | LD4: 250.11 | LE4: 180.46 | LF4: 349.959 | LG4: 255.791 | LH4: 369.367 | LI4: 293.813 | LJ4: 386.808 | LK4: 279.562 | LL4: 345.671 | LM4: 244.079 | LN4: 337.25 | LO4: 226.82 | LP4: 282.883 | LQ4: 219.307 | LR4: 223.852 | LS4: 162.898 | LT4: 210.361 | LU4: 138.409 | LV4: 192.519 | LW4: 144.391 | LX4: 212.031 | LY4: 125.459 | LZ4: 196.567 | MA4: 156.343 | MB4: 264.324 | MC4: 170.396 | MD4: 352.281 | ME4: 257.489 | MF4: 371.673 | MG4: 295.647 | MH4: 389.217 | MI4: 281.303 | MJ4: 347.869 | MK4: 245.631 | ML4: 324.277 | MM4: 243.933 | MN4: 299.344 | MO4: 206.856 | MP4: 226.254 | MQ4: 164.646 | MR4: 202.882 | MS4: 149.898 | MT4: 204.145 | MU4: 136.905 | MV4: 214.638 | MW4: 127.002 | MX4: 198.801 | MY4: 158.119 | MZ4: 266.841 | NA4: 172.019 | NB4: 354.598 | NC4: 259.182 | ND4: 373.985 | NE4: 297.485 | NF4: 391.62 | NG4: 283.04 | NH4: 350.061 | NI4: 247.179 | NJ4: 326.64 | NK4: 245.71 | NL4: 301.715 | NM4: 208.495 | NN4: 228.65 | NO4: 166.39 | NP4: 205.188 | NQ4: 151.602 | NR4: 206.629 | NS4: 138.571 | NT4: 207.851 | NU4: 137.929 | NV4: 211.16 | NW4: 149.77 | NY4: =+SUM(D4:AA4) -> 4732.667 | NZ4: =+SUM(AB4:AY4) -> 4607.097 | OA4: =+SUM(AZ4:BW4) -> 4733.46 | OB4: =+SUM(BX4:CU4) -> 4752.85 | OC4: =+SUM(CV4:DS4) -> 5364.06 | OD4: =+SUM(DT4:EQ4) -> 5394.27 | OE4: =+SUM(ER4:FO4) -> 5443.089 | OF4: =+SUM(FP4:GM4) -> 5491.88 | OG4: =+SUM(GN4:HK4) -> 5559.8 | OH4: =+SUM(HL4:II4) -> 5589.49 | OI4: =+SUM(IJ4:JG4) -> 5638.3 | OJ4: =+SUM(JH4:KE4) -> 5687.1 | OK4: =+SUM(KF4:LC4) -> 5755.56 | OL4: =+SUM(LD4:MA4) -> 5784.71 | OM4: =+SUM(MB4:MY4) -> 5833.53 | ON4: =+SUM(MZ4:NW4) -> 5882.31
A5: 0 | B5: 10015 | C5: Asotin County PUD #1 | D5: 158.885 | E5: 123.417 | F5: 100.217 | G5: 62.326 | H5: 89.961 | I5: 79.094 | J5: 103.249 | K5: 66.466 | L5: 99.565 | M5: 52.422 | N5: 113.772 | O5: 69.469 | P5: 154.892 | Q5: 99.356 | R5: 273.82 | S5: 232.806 | T5: 341.515 | U5: 284.089 | V5: 561.288 | W5: 486.719 | X5: 578.046 | Y5: 455.044 | Z5: 307.885 | AA5: 341.17 | AB5: 172.27 | AC5: 133.814 | AD5: 102.518 | AE5: 63.757 | AF5: 92.009 | AG5: 80.895 | AH5: 104.336 | AI5: 67.166 | AJ5: 100.624 | AK5: 52.979 | AL5: 110.394 | AM5: 67.407 | AN5: 148.752 | AO5: 95.417 | AP5: 285.888 | AQ5: 243.066 | AR5: 373.447 | AS5: 310.651 | AT5: 564.223 | AU5: 489.264 | AV5: 572.096 | AW5: 450.361 | AX5: 336.64 | AY5: 373.033 | AZ5: 183.658 | BA5: 149.874 | BB5: 91.794 | BC5: 69.553 | BD5: 93.705 | BE5: 75.12 | BF5: 114.116 | BG5: 65.23 | BH5: 98.208 | BI5: 53.588 | BJ5: 117.713 | BK5: 66.923 | BL5: 193.528 | BM5: 116.367 | BN5: 333.53 | BO5: 301.659 | BP5: 419.482 | BQ5: 375.444 | BR5: 593.344 | BS5: 508.135 | BT5: 546.458 | BU5: 459.45 | BV5: 312.637 | BW5: 338.989 | BX5: 186.781 | BY5: 152.423 | BZ5: 93.366 | CA5: 70.745 | CB5: 95.313 | CC5: 76.409 | CD5: 116.037 | CE5: 66.328 | CF5: 99.886 | CG5: 54.504 | CH5: 119.718 | CI5: 68.062 | CJ5: 196.796 | CK5: 118.332 | CL5: 339.196 | CM5: 306.783 | CN5: 426.622 | CO5: 381.834 | CP5: 603.42 | CQ5: 516.764 | CR5: 555.748 | CS5: 467.261 | CT5: 317.892 | CU5: 344.687 | CV5: 178.256 | CW5: 144.568 | CX5: 86.028 | CY5: 70.26 | CZ5: 90.56 | DA5: 72.869 | DB5: 106.746 | DC5: 66.779 | DD5: 91.007 | DE5: 54.8 | DF5: 111.991 | DG5: 65.138 | DH5: 182.541 | DI5: 114.543 | DJ5: 308.813 | DK5: 297.993 | DL5: 402.135 | DM5: 357.263 | DN5: 559.144 | DO5: 494.955 | DP5: 520.757 | DQ5: 441.094 | DR5: 300.222 | DS5: 326.646 | DT5: 179.433 | DU5: 145.522 | DV5: 86.587 | DW5: 70.717 | DX5: 91.14 | DY5: 73.336 | DZ5: 107.564 | EA5: 67.291 | EB5: 91.622 | EC5: 55.171 | ED5: 112.743 | EE5: 65.575 | EF5: 183.786 | EG5: 115.324 | EH5: 310.788 | EI5: 299.899 | EJ5: 404.693 | EK5: 359.535 | EL5: 562.809 | EM5: 498.199 | EN5: 524.122 | EO5: 443.944 | EP5: 302.386 | EQ5: 329 | ER5: 180.62 | ES5: 146.485 | ET5: 87.151 | EU5: 71.178 | EV5: 91.725 | EW5: 73.806 | EX5: 108.39 | EY5: 67.807 | EZ5: 92.243 | FA5: 55.544 | FB5: 113.501 | FC5: 66.016 | FD5: 185.042 | FE5: 116.112 | FF5: 312.78 | FG5: 301.821 | FH5: 407.271 | FI5: 361.825 | FJ5: 566.505 | FK5: 501.471 | FL5: 527.516 | FM5: 446.819 | FN5: 304.571 | FO5: 331.377 | FP5: 181.817 | FQ5: 147.456 | FR5: 87.72 | FS5: 71.642 | FT5: 92.315 | FU5: 74.281 | FV5: 109.225 | FW5: 68.33 | FX5: 92.869 | FY5: 55.921 | FZ5: 114.267 | GA5: 66.461 | GB5: 186.309 | GC5: 116.907 | GD5: 314.788 | GE5: 303.759 | GF5: 409.87 | GG5: 364.135 | GH5: 570.233 | GI5: 504.771 | GJ5: 530.938 | GK5: 449.717 | GL5: 306.777 | GM5: 333.777 | GN5: 183.025 | GO5: 148.436 | GP5: 88.294 | GQ5: 72.111 | GR5: 92.91 | GS5: 74.76 | GT5: 110.069 | GU5: 68.857 | GV5: 93.501 | GW5: 56.302 | GX5: 115.039 | GY5: 66.91 | GZ5: 187.588 | HA5: 117.71 | HB5: 316.814 | HC5: 305.714 | HD5: 412.492 | HE5: 366.464 | HF5: 573.995 | HG5: 508.101 | HH5: 534.39 | HI5: 452.641 | HJ5: 309.005 | HK5: 336.201 | HL5: 184.243 | HM5: 149.424 | HN5: 88.873 | HO5: 72.584 | HP5: 93.51 | HQ5: 75.243 | HR5: 110.921 | HS5: 69.39 | HT5: 94.138 | HU5: 56.686 | HV5: 115.817 | HW5: 67.363 | HX5: 188.878 | HY5: 118.519 | HZ5: 318.856 | IA5: 307.684 | IB5: 415.135 | IC5: 368.812 | ID5: 577.787 | IE5: 511.457 | IF5: 537.87 | IG5: 455.589 | IH5: 311.253 | II5: 338.647 | IJ5: 185.472 | IK5: 150.421 | IL5: 89.457 | IM5: 73.061 | IN5: 94.115 | IO5: 75.729 | IP5: 111.781 | IQ5: 69.929 | IR5: 94.782 | IS5: 57.073 | IT5: 116.603 | IU5: 67.82 | IV5: 190.181 | IW5: 119.336 | IX5: 320.915 | IY5: 309.671 | IZ5: 417.799 | JA5: 371.179 | JB5: 581.613 | JC5: 514.844 | JD5: 541.38 | JE5: 458.562 | JF5: 313.524 | JG5: 341.118 | JH5: 186.712 | JI5: 151.426 | JJ5: 90.046 | JK5: 73.542 | JL5: 94.725 | JM5: 76.22 | JN5: 112.651 | JO5: 70.473 | JP5: 95.431 | JQ5: 57.464 | JR5: 117.396 | JS5: 68.281 | JT5: 191.495 | JU5: 120.161 | JV5: 322.992 | JW5: 311.675 | JX5: 420.486 | JY5: 373.566 | JZ5: 585.471 | KA5: 518.26 | KB5: 544.92 | KC5: 461.561 | KD5: 315.816 | KE5: 343.612 | KF5: 187.963 | KG5: 152.44 | KH5: 90.64 | KI5: 74.026 | KJ5: 95.34 | KK5: 76.715 | KL5: 113.53 | KM5: 71.022 | KN5: 96.085 | KO5: 57.858 | KP5: 118.196 | KQ5: 68.746 | KR5: 192.821 | KS5: 120.993 | KT5: 325.087 | KU5: 313.696 | KV5: 423.196 | KW5: 375.974 | KX5: 589.364 | KY5: 521.706 | KZ5: 548.491 | LA5: 464.585 | LB5: 318.132 | LC5: 346.132 | LD5: 189.224 | LE5: 153.463 | LF5: 91.239 | LG5: 74.516 | LH5: 95.96 | LI5: 77.214 | LJ5: 114.417 | LK5: 71.578 | LL5: 96.746 | LM5: 58.256 | LN5: 119.003 | LO5: 69.216 | LP5: 194.159 | LQ5: 121.833 | LR5: 327.198 | LS5: 315.734 | LT5: 425.928 | LU5: 378.401 | LV5: 593.29 | LW5: 525.181 | LX5: 552.091 | LY5: 467.635 | LZ5: 320.47 | MA5: 348.675 | MB5: 190.497 | MC5: 154.496 | MD5: 91.843 | ME5: 75.009 | MF5: 96.586 | MG5: 77.718 | MH5: 115.028 | MI5: 71.96 | MJ5: 97.171 | MK5: 58.512 | ML5: 119.52 | MM5: 69.516 | MN5: 195.024 | MO5: 122.376 | MP5: 328.51 | MQ5: 316.999 | MR5: 427.618 | MS5: 379.902 | MT5: 595.768 | MU5: 527.374 | MV5: 554.343 | MW5: 469.542 | MX5: 322.029 | MY5: 350.372 | MZ5: 191.305 | NA5: 155.151 | NB5: 92.223 | NC5: 75.319 | ND5: 96.975 | NE5: 78.031 | NF5: 115.645 | NG5: 72.346 | NH5: 97.6 | NI5: 58.77 | NJ5: 120.041 | NK5: 69.819 | NL5: 195.896 | NM5: 122.923 | NN5: 329.831 | NO5: 318.274 | NP5: 429.32 | NQ5: 381.414 | NR5: 598.264 | NS5: 529.584 | NT5: 556.611 | NU5: 471.463 | NV5: 323.602 | NW5: 352.083 | NY5: =+SUM(D5:AA5) -> 5235.473 | NZ5: =+SUM(AB5:AY5) -> 5391.007 | OA5: =+SUM(AZ5:BW5) -> 5678.505 | OB5: =+SUM(BX5:CU5) -> 5774.907 | OC5: =+SUM(CV5:DS5) -> 5445.108 | OD5: =+SUM(DT5:EQ5) -> 5481.186 | OE5: =+SUM(ER5:FO5) -> 5517.576 | OF5: =+SUM(FP5:GM5) -> 5554.285 | OG5: =+SUM(GN5:HK5) -> 5591.329 | OH5: =+SUM(HL5:II5) -> 5628.679 | OI5: =+SUM(IJ5:JG5) -> 5666.365 | OJ5: =+SUM(JH5:KE5) -> 5704.382 | OK5: =+SUM(KF5:LC5) -> 5742.738 | OL5: =+SUM(LD5:MA5) -> 5781.427 | OM5: =+SUM(MB5:MY5) -> 5807.713 | ON5: =+SUM(MZ5:NW5) -> 5832.49
A6: 0 | B6: 10024 | C6: Benton County PUD #1 | D6: 72609.945 | E6: 43984.938 | F6: 71716.602 | G6: 51043.328 | H6: 91608.961 | I6: 65984.563 | J6: 86698.867 | K6: 62828.375 | L6: 70522.555 | M6: 47630.105 | N6: 73297.82 | O6: 47714.246 | P6: 77232.797 | Q6: 47207.531 | R6: 97686.75 | S6: 66967.156 | T6: 110656.219 | U6: 70497.375 | V6: 136540.297 | W6: 92112.398 | X6: 123164.805 | Y6: 74705.641 | Z6: 81168.203 | AA6: 52364.414 | AB6: 73736.148 | AC6: 44666.449 | AD6: 64744.391 | AE6: 46080.98 | AF6: 79217.398 | AG6: 57059.137 | AH6: 87501.523 | AI6: 63397.582 | AJ6: 78718.32 | AK6: 53165.301 | AL6: 74797.617 | AM6: 48690.629 | AN6: 83715.266 | AO6: 51169.625 | AP6: 95241.703 | AQ6: 65284.594 | AR6: 116283.359 | AS6: 74078.734 | AT6: 131957.203 | AU6: 88992.328 | AV6: 130424.359 | AW6: 79104.766 | AX6: 89995.047 | AY6: 58041.34 | AZ6: 73766.078 | BA6: 44684.578 | BB6: 64822.059 | BC6: 46136.273 | BD6: 79315.688 | BE6: 57125.789 | BF6: 87878.523 | BG6: 63659.508 | BH6: 79054.578 | BI6: 53388.039 | BJ6: 75136.789 | BK6: 48911.43 | BL6: 84013.328 | BM6: 51350.563 | BN6: 95499.422 | BO6: 65452.82 | BP6: 116513.086 | BQ6: 74225.063 | BR6: 132195 | BS6: 89140.539 | BT6: 130687.617 | BU6: 79264.422 | BV6: 90263.203 | BW6: 58214.238 | BX6: 74055.641 | BY6: 44859.988 | BZ6: 65125.246 | CA6: 46352.055 | CB6: 79670.859 | CC6: 57381.605 | CD6: 88283.281 | CE6: 63952.711 | CF6: 79419.828 | CG6: 53634.703 | CH6: 75512.336 | CI6: 49155.887 | CJ6: 84347.227 | CK6: 51554.637 | CL6: 95788.43 | CM6: 65650.898 | CN6: 116779.422 | CO6: 74394.734 | CP6: 132462.609 | CQ6: 89320.992 | CR6: 130988.883 | CS6: 79447.148 | CT6: 90567.758 | CU6: 58410.637 | CV6: 72397.75 | CW6: 43869.008 | CX6: 71024.617 | CY6: 50555.836 | CZ6: 91341.648 | DA6: 65792.102 | DB6: 87491.203 | DC6: 63390.156 | DD6: 72530.148 | DE6: 48985.914 | DF6: 70803.492 | DG6: 46091.695 | DH6: 76819.781 | DI6: 46954.922 | DJ6: 96111.844 | DK6: 65881.078 | DL6: 115202.148 | DM6: 73406.102 | DN6: 135540.453 | DO6: 91408.906 | DP6: 120963.148 | DQ6: 73385.898 | DR6: 76824.445 | DS6: 49567.563 | DT6: 72348.313 | DU6: 43839.047 | DV6: 70984.023 | DW6: 50526.93 | DX6: 91305.141 | DY6: 65765.797 | DZ6: 87527.641 | EA6: 63416.547 | EB6: 73278.977 | EC6: 49491.672 | ED6: 70809.469 | EE6: 46095.586 | EF6: 76831.102 | EG6: 46961.836 | EH6: 96237.117 | EI6: 65966.961 | EJ6: 115452.523 | EK6: 73565.633 | EL6: 136032.219 | EM6: 91740.547 | EN6: 121391.539 | EO6: 73645.805 | EP6: 76896.305 | EQ6: 49613.93 | ER6: 72601.992 | ES6: 43992.766 | ET6: 71214.688 | EU6: 50691.125 | EV6: 91526.938 | EW6: 65925.563 | EX6: 87805.07 | EY6: 63617.555 | EZ6: 73549.695 | FA6: 49674.508 | FB6: 71069.742 | FC6: 46265.016 | FD6: 77104.336 | FE6: 47128.844 | FF6: 96619.273 | FG6: 66228.898 | FH6: 115974.609 | FI6: 73898.313 | FJ6: 136806.109 | FK6: 92262.469 | FL6: 122109.547 | FM6: 74081.406 | FN6: 77223.922 | FO6: 49825.305 | FP6: 72862.453 | FQ6: 44150.594 | FR6: 71448.195 | FS6: 50857.336 | FT6: 91749.289 | FU6: 66085.711 | FV6: 87745.383 | FW6: 63574.305 | FX6: 73465.992 | FY6: 49617.977 | FZ6: 70968 | GA6: 46198.789 | GB6: 77010.078 | GC6: 47071.234 | GD6: 96648.813 | GE6: 66249.141 | GF6: 116133.148 | GG6: 73999.336 | GH6: 137199.484 | GI6: 92527.766 | GJ6: 122453.492 | GK6: 74290.055 | GL6: 77221.602 | GM6: 49823.813 | GN6: 72790.25 | GO6: 44106.844 | GP6: 71363.25 | GQ6: 50796.867 | GR6: 91660.75 | GS6: 66021.938 | GT6: 88025.961 | GU6: 63777.602 | GV6: 73021.859 | GW6: 49318.016 | GX6: 71250.578 | GY6: 46382.734 | GZ6: 77310 | HA6: 47254.555 | HB6: 97053.781 | HC6: 66526.734 | HD6: 116676.563 | HE6: 74345.594 | HF6: 137988.875 | HG6: 93060.141 | HH6: 123199.313 | HI6: 74742.531 | HJ6: 77591.883 | HK6: 50062.711 | HL6: 73099.992 | HM6: 44294.523 | HN6: 71643.297 | HO6: 50996.211 | HP6: 91933.094 | HQ6: 66218.094 | HR6: 88374.531 | HS6: 64030.156 | HT6: 74090.883 | HU6: 50040.016 | HV6: 71578.094 | HW6: 46595.945 | HX6: 77654.281 | HY6: 47464.992 | HZ6: 97509.523 | IA6: 66839.133 | IB6: 117283.5 | IC6: 74732.328 | ID6: 138858.828 | IE6: 93646.828 | IF6: 124020.711 | IG6: 75240.867 | IH6: 78006.297 | II6: 50330.102 | IJ6: 73448.922 | IK6: 44505.969 | IL6: 71970.414 | IM6: 51229.055 | IN6: 92267.711 | IO6: 66459.117 | IP6: 88758.656 | IQ6: 64308.469 | IR6: 74463.398 | IS6: 50291.617 | IT6: 71929.945 | IU6: 46825 | IV6: 78020.258 | IW6: 47688.688 | IX6: 97979.508 | IY6: 67161.305 | IZ6: 117898.117 | JA6: 75123.961 | JB6: 139729.766 | JC6: 94234.203 | JD6: 124851.047 | JE6: 75744.609 | JF6: 78444.781 | JG6: 50613.016 | JH6: 73827.531 | JI6: 44735.383 | JJ6: 72333.531 | JK6: 51487.516 | JL6: 92648.594 | JM6: 66733.469 | JN6: 89165.563 | JO6: 64603.281 | JP6: 74866.984 | JQ6: 50564.188 | JR6: 72322.602 | JS6: 47080.609 | JT6: 78434.078 | JU6: 47941.633 | JV6: 98509.539 | JW6: 67524.617 | JX6: 118591.672 | JY6: 75565.891 | JZ6: 140709.453 | KA6: 94894.891 | KB6: 125788.938 | KC6: 76313.609 | KD6: 78947.992 | KE6: 50937.688 | KF6: 74265.539 | KG6: 45000.789 | KH6: 72748.055 | KI6: 51782.586 | KJ6: 93081.711 | KK6: 67045.43 | KL6: 89648.844 | KM6: 64953.422 | KN6: 74613.352 | KO6: 50392.883 | KP6: 72773.563 | KQ6: 47374.172 | KR6: 78906.297 | KS6: 48230.273 | KT6: 99098.953 | KU6: 67928.625 | KV6: 119351.859 | KW6: 76050.281 | KX6: 141757.766 | KY6: 95601.891 | KZ6: 126792.773 | LA6: 76922.617 | LB6: 79505.602 | LC6: 51297.453 | LD6: 74756.547 | LE6: 45298.305 | LF6: 73223.289 | LG6: 52120.859 | LH6: 93586.594 | LI6: 67409.094 | LJ6: 90198.68 | LK6: 65351.805 | LL6: 75874.703 | LM6: 51244.789 | LN6: 73277.305 | LO6: 47702.102 | LP6: 79430.133 | LQ6: 48550.445 | LR6: 99740.313 | LS6: 68368.25 | LT6: 120169.219 | LU6: 76571.094 | LV6: 142871.953 | LW6: 96353.281 | LX6: 127858.523 | LY6: 77569.18 | LZ6: 80105.195 | MA6: 51684.32 | MB6: 75285.953 | MC6: 45619.102 | MD6: 73734.82 | ME6: 52484.969 | MF6: 94131.141 | MG6: 67801.328 | MH6: 90767.648 | MI6: 65764.039 | MJ6: 76426.469 | MK6: 51617.445 | ML6: 73796.844 | MM6: 48040.305 | MN6: 79968.789 | MO6: 48879.695 | MP6: 100395.531 | MQ6: 68817.391 | MR6: 120999.883 | MS6: 77100.383 | MT6: 144003.844 | MU6: 97116.641 | MV6: 128944.281 | MW6: 78227.891 | MX6: 80721.242 | MY6: 52081.805 | MZ6: 75832.508 | NA6: 45950.273 | NB6: 74263.328 | NC6: 52861.156 | ND6: 94693.5 | NE6: 68206.391 | NF6: 91372.078 | NG6: 66201.969 | NH6: 77013.906 | NI6: 52014.188 | NJ6: 74350.992 | NK6: 48401.047 | NL6: 80545.172 | NM6: 49232.008 | NN6: 101097.961 | NO6: 69298.867 | NP6: 121892.703 | NQ6: 77669.281 | NR6: 145218.766 | NS6: 97935.984 | NT6: 130107.688 | NU6: 78933.719 | NV6: 81377.906 | NW6: 52505.484 | NY6: 1815943.891 | NZ6: 1836063.799 | OA6: 1840698.633 | OB6: 1847117.515 | OC6: 1806339.857 | OD6: 1809724.66 | OE6: 1817197.689 | OF6: 1819351.986 | OG6: 1824329.33 | OH6: 1834482.226 | OI6: 1843947.532 | OJ6: 1854529.252 | OK6: 1865124.736 | OL6: 1879315.978 | OM6: 1892727.439 | ON6: 1906976.875
A7: 0 | B7: 10025 | C7: Benton REA | D7: 29712.207 | E7: 19697.816 | F7: 25326.461 | G7: 19050.641 | H7: 27593.699 | I7: 22459.621 | J7: 28448.922 | K7: 20720.895 | L7: 24088.52 | M7: 16569.59 | N7: 22644.83 | O7: 16486.225 | P7: 25723.578 | Q7: 17148.938 | R7: 30686.449 | S7: 20992.164 | T7: 34903.113 | U7: 24497.34 | V7: 44305.18 | W7: 29579.305 | X7: 44576.93 | Y7: 28399.867 | Z7: 34342.484 | AA7: 26538.629 | AB7: 28380.9 | AC7: 18316.451 | AD7: 24845.463 | AE7: 18684.955 | AF7: 29097.768 | AG7: 23683.826 | AH7: 29932.113 | AI7: 21859.631 | AJ7: 24309.641 | AK7: 16738.188 | AL7: 22344.219 | AM7: 16267.812 | AN7: 27637.609 | AO7: 18236.697 | AP7: 32181.133 | AQ7: 22172.824 | AR7: 34073.883 | AS7: 24066.369 | AT7: 43806.156 | AU7: 29556.441 | AV7: 42547.344 | AW7: 27330.166 | AX7: 29679.924 | AY7: 22774.41 | AZ7: 27290.064 | BA7: 17363.023 | BB7: 23320.867 | BC7: 17558.045 | BD7: 27795.92 | BE7: 22610.156 | BF7: 27819.793 | BG7: 20321.115 | BH7: 22377.855 | BI7: 15409.19 | BJ7: 20855.035 | BK7: 15183.343 | BL7: 26145.738 | BM7: 17253.311 | BN7: 29335.139 | BO7: 20224.916 | BP7: 30359.283 | BQ7: 21441.775 | BR7: 39133.492 | BS7: 26403.957 | BT7: 36996.52 | BU7: 23765.334 | BV7: 24831.375 | BW7: 19020.588 | BX7: 27714.283 | BY7: 17636.805 | BZ7: 23691.293 | CA7: 17836.619 | CB7: 28232.539 | CC7: 22965.537 | CD7: 28261.256 | CE7: 20642.652 | CF7: 22735.688 | CG7: 15655.358 | CH7: 21180.813 | CI7: 15420.565 | CJ7: 26554.391 | CK7: 17522.658 | CL7: 29802.365 | CM7: 20544.689 | CN7: 30869.084 | CO7: 21801.975 | CP7: 39790.918 | CQ7: 26847.531 | CR7: 37634.656 | CS7: 24175.197 | CT7: 25263.678 | CU7: 19355.285 | CV7: 27630.699 | CW7: 17788.223 | CX7: 23726.443 | CY7: 17858.426 | CZ7: 27870.803 | DA7: 22788.582 | DB7: 28405.098 | DC7: 20714.57 | DD7: 23653.412 | DE7: 16304.315 | DF7: 21019.861 | DG7: 15311.217 | DH7: 25581.619 | DI7: 16914.469 | DJ7: 30121.365 | DK7: 20679.881 | DL7: 32117.367 | DM7: 22698.57 | DN7: 41937.902 | DO7: 28364.674 | DP7: 41202.578 | DQ7: 26489.078 | DR7: 29122.943 | DS7: 22536.26 | DT7: 28323.652 | DU7: 18266.527 | DV7: 24365.146 | DW7: 18356.65 | DX7: 28466.068 | DY7: 23393.684 | DZ7: 29080.574 | EA7: 21231.674 | EB7: 23603.494 | EC7: 16296.041 | ED7: 21627.182 | EE7: 15757.426 | EF7: 26181.729 | EG7: 17346.643 | EH7: 30730.326 | EI7: 21121.42 | EJ7: 32713.637 | EK7: 23124.07 | EL7: 42560.949 | EM7: 28816.611 | EN7: 41820.512 | EO7: 26895.938 | EP7: 29621.256 | EQ7: 22934.66 | ER7: 28805.176 | ES7: 18588.947 | ET7: 24767.219 | EU7: 18663.498 | EV7: 28835.053 | EW7: 23709.088 | EX7: 29428.984 | EY7: 21485.439 | EZ7: 23929.814 | FA7: 16520.529 | FB7: 21938.438 | FC7: 15984.076 | FD7: 26524.631 | FE7: 17572.654 | FF7: 31091.822 | FG7: 21368.838 | FH7: 33083.211 | FI7: 23385.193 | FJ7: 42983.895 | FK7: 29101.979 | FL7: 42243.84 | FM7: 27167.836 | FN7: 29967.076 | FO7: 23202.398 | FP7: 29160.99 | FQ7: 18818.586 | FR7: 25092.184 | FS7: 18907.885 | FT7: 29174.018 | FU7: 23984.982 | FV7: 29780.176 | FW7: 21741.232 | FX7: 24258.836 | FY7: 16746.875 | FZ7: 22252.297 | GA7: 16212.619 | GB7: 26870.338 | GC7: 17800.51 | GD7: 31456.203 | GE7: 21618.223 | GF7: 33455.695 | GG7: 23648.371 | GH7: 43410.035 | GI7: 29389.502 | GJ7: 42670.402 | GK7: 27441.813 | GL7: 30315.646 | GM7: 23472.266 | GN7: 29519.689 | GO7: 19050.082 | GP7: 25419.811 | GQ7: 19154.277 | GR7: 29515.67 | GS7: 24263.068 | GT7: 30134.178 | GU7: 21999.074 | GV7: 25269.697 | GW7: 17444.365 | GX7: 22568.771 | GY7: 16443.07 | GZ7: 27218.871 | HA7: 18030.23 | HB7: 31823.484 | HC7: 21869.602 | HD7: 33831.109 | HE7: 23913.621 | HF7: 43839.391 | HG7: 29679.193 | HH7: 43100.203 | HI7: 27717.863 | HJ7: 30666.988 | HK7: 23744.283 | HL7: 29881.287 | HM7: 19283.449 | HN7: 25750.113 | HO7: 19402.682 | HP7: 29860.037 | HQ7: 24543.365 | HR7: 30491.006 | HS7: 22258.969 | HT7: 24925.072 | HU7: 17205.201 | HV7: 22887.889 | HW7: 16675.445 | HX7: 27570.248 | HY7: 18261.826 | HZ7: 32193.693 | IA7: 22122.975 | IB7: 34209.48 | IC7: 24180.957 | ID7: 44271.996 | IE7: 29971.072 | IF7: 43533.262 | IG7: 27996.016 | IH7: 31021.119 | II7: 24018.457 | IJ7: 30245.809 | IK7: 19518.701 | IL7: 26083.115 | IM7: 19653.117 | IN7: 30207.143 | IO7: 24825.885 | IP7: 30850.678 | IQ7: 22520.938 | IR7: 25262.322 | IS7: 17437.209 | IT7: 23209.67 | IU7: 16909.754 | IV7: 27924.492 | IW7: 18495.309 | IX7: 32566.842 | IY7: 22378.369 | IZ7: 34590.809 | JA7: 24450.387 | JB7: 44707.848 | JC7: 30265.158 | JD7: 43969.613 | JE7: 28276.273 | JF7: 31378.059 | JG7: 24294.803 | JH7: 30613.27 | JI7: 19755.857 | JJ7: 26418.836 | JK7: 19905.592 | JL7: 30556.998 | JM7: 25110.646 | JN7: 31213.219 | JO7: 22784.994 | JP7: 25602.344 | JQ7: 17671.125 | JR7: 23534.125 | JS7: 17146.014 | JT7: 28281.619 | JU7: 18730.693 | JV7: 32942.953 | JW7: 22635.787 | JX7: 34975.137 | JY7: 24721.926 | JZ7: 45146.996 | KA7: 30561.447 | KB7: 44409.262 | KC7: 28558.664 | KD7: 31737.824 | KE7: 24573.338 | KF7: 30983.697 | KG7: 19994.922 | KH7: 26757.293 | KI7: 20160.127 | KJ7: 30909.621 | KK7: 25397.66 | KL7: 31578.645 | KM7: 23051.154 | KN7: 26637.529 | KO7: 18385.346 | KP7: 23861.271 | KQ7: 17384.238 | KR7: 28641.646 | KS7: 18967.994 | KT7: 33322.051 | KU7: 22895.242 | KV7: 35362.469 | KW7: 24995.598 | KX7: 45589.445 | KY7: 30859.975 | KZ7: 44852.258 | LA7: 28843.191 | LB7: 32100.439 | LC7: 24854.082 | LD7: 31357.104 | LE7: 20235.91 | LF7: 27098.5 | LG7: 20416.732 | LH7: 31265.041 | LI7: 25686.951 | LJ7: 31946.977 | LK7: 23319.432 | LL7: 26290.813 | LM7: 18144.746 | LN7: 24191.137 | LO7: 17624.436 | LP7: 29004.602 | LQ7: 19207.219 | LR7: 33704.145 | LS7: 23156.756 | LT7: 35752.836 | LU7: 25271.41 | LV7: 46035.215 | LW7: 31160.744 | LX7: 45298.59 | LY7: 29129.867 | LZ7: 32465.922 | MA7: 25137.045 | MB7: 31733.52 | MC7: 20478.842 | MD7: 27442.488 | ME7: 20675.428 | MF7: 31623.26 | MG7: 25978.521 | MH7: 32318.23 | MI7: 23589.834 | MJ7: 26639.299 | MK7: 18384.482 | ML7: 24523.736 | MM7: 17866.629 | MN7: 29370.506 | MO7: 19448.389 | MP7: 34089.262 | MQ7: 23420.342 | MR7: 36146.25 | MS7: 25549.379 | MT7: 46484.344 | MU7: 31463.779 | MV7: 45748.305 | MW7: 29418.715 | MX7: 32834.285 | MY7: 25422.238 | MZ7: 32112.955 | NA7: 20723.723 | NB7: 27789.264 | NC7: 20936.219 | ND7: 31984.316 | NE7: 26272.395 | NF7: 32692.432 | NG7: 23862.383 | NH7: 26990.637 | NI7: 18626.18 | NJ7: 24859.09 | NK7: 18110.822 | NL7: 29739.371 | NM7: 19691.512 | NN7: 34477.43 | NO7: 23686.01 | NP7: 36542.738 | NQ7: 25829.516 | NR7: 46936.844 | NS7: 31769.084 | NT7: 46201.422 | NU7: 29709.746 | NV7: 33205.559 | NW7: 25709.682 | NY7: 634493.404 | NZ7: 628523.923 | OA7: 572815.834 | OB7: 582135.835 | OC7: 600838.355 | OD7: 612635.869 | OE7: 620349.634 | OF7: 627679.684 | OG7: 636216.59 | OH7: 642515.616 | OI7: 650022.303 | OJ7: 657588.666 | OK7: 666385.893 | OL7: 672902.13 | OM7: 680650.063 | ON7: 688459.33
A8: 0 | B8: 10027 | C8: Big Bend Elec Coop | D8: 21513.086 | E8: 14715.813 | F8: 13251.338 | G8: 9881.162 | H8: 15817.067 | I8: 11782.233 | J8: 15545.653 | K8: 11437.546 | L8: 12959.495 | M8: 9008.204 | N8: 12804.505 | O8: 8590.396 | P8: 22933.857 | Q8: 15721.443 | R8: 34279.961 | S8: 25465.738 | T8: 41382.516 | U8: 28182.281 | V8: 45614.664 | W8: 34317.938 | X8: 43359.336 | Y8: 29669.367 | Z8: 31536.848 | AA8: 23457.254 | AB8: 22829.391 | AC8: 15471.355 | AD8: 14325.249 | AE8: 10680.446 | AF8: 16843.117 | AG8: 12558.838 | AH8: 15295.813 | AI8: 11262.022 | AJ8: 13843.08 | AK8: 9639.91 | AL8: 14317.738 | AM8: 9469.305 | AN8: 24449.273 | AO8: 16639.887 | AP8: 37373.891 | AQ8: 27875.586 | AR8: 43250.137 | AS8: 29637.895 | AT8: 46985.773 | AU8: 35652.375 | AV8: 44403.324 | AW8: 30634.066 | AX8: 32947.977 | AY8: 24530.926 | AZ8: 22822.725 | BA8: 15467.501 | BB8: 14622.054 | BC8: 10901.735 | BD8: 17142.391 | BE8: 12777.66 | BF8: 15594.213 | BG8: 11481.727 | BH8: 14148.497 | BI8: 9852.593 | BJ8: 14629.589 | BK8: 9675.552 | BL8: 24353.107 | BM8: 16586.008 | BN8: 36964.844 | BO8: 27539.742 | BP8: 42581.688 | BQ8: 29201.025 | BR8: 46205.684 | BS8: 35037.563 | BT8: 43711.047 | BU8: 30185.223 | BV8: 32598.051 | BW8: 24294.336 | BX8: 23131.541 | BY8: 15676.786 | BZ8: 14918.863 | CA8: 11123.027 | CB8: 17439.23 | CC8: 12998.92 | CD8: 15892.603 | CE8: 11701.427 | CF8: 14453.914 | CG8: 10065.275 | CH8: 14941.44 | CI8: 9881.8 | CJ8: 24661.391 | CK8: 16795.822 | CL8: 37261.602 | CM8: 27761.086 | CN8: 42889.109 | CO8: 29411.697 | CP8: 46500.258 | CQ8: 35261.09 | CR8: 44017.641 | CS8: 30396.746 | CT8: 32895.035 | CU8: 24515.453 | CV8: 23787.539 | CW8: 16121.354 | CX8: 15625.582 | CY8: 11649.934 | CZ8: 18256.492 | DA8: 13608.094 | DB8: 17752.979 | DC8: 13071.188 | DD8: 15233.338 | DE8: 10608.043 | DF8: 15686.213 | DG8: 10374.371 | DH8: 25796 | DI8: 17568.025 | DJ8: 35417.461 | DK8: 26385.617 | DL8: 44227.086 | DM8: 30328.564 | DN8: 45728.102 | DO8: 34675.184 | DP8: 43835.719 | DQ8: 30271.238 | DR8: 32485.93 | DS8: 24210.859 | DT8: 23981.061 | DU8: 16252.505 | DV8: 15811.938 | DW8: 11788.874 | DX8: 18442.943 | DY8: 13747.072 | DZ8: 17940.973 | EA8: 13209.604 | EB8: 15158.565 | EC8: 10555.974 | ED8: 15882.019 | EE8: 10503.87 | EF8: 25989.258 | EG8: 17699.553 | EH8: 35603.215 | EI8: 26524.164 | EJ8: 44419.59 | EK8: 30460.482 | EL8: 45912.543 | EM8: 34815.133 | EN8: 44027.652 | EO8: 30403.648 | EP8: 32671.855 | EQ8: 24349.285 | ER8: 24174.574 | ES8: 16383.644 | ET8: 15998.269 | EU8: 11927.796 | EV8: 18629.369 | EW8: 13886.033 | EX8: 18128.926 | EY8: 13347.99 | EZ8: 15350.287 | FA8: 10689.484 | FB8: 16077.795 | FC8: 10633.352 | FD8: 26182.508 | FE8: 17831.076 | FF8: 35788.965 | FG8: 26662.707 | FH8: 44612.098 | FI8: 30592.396 | FJ8: 46096.973 | FK8: 34955.078 | FL8: 44219.574 | FM8: 30536.063 | FN8: 32857.777 | FO8: 24487.707 | FP8: 24368.076 | FQ8: 16514.779 | FR8: 16184.575 | FS8: 12066.7 | FT8: 18815.775 | FU8: 14024.975 | FV8: 18316.838 | FW8: 13486.346 | FX8: 15541.983 | FY8: 10822.976 | FZ8: 16273.548 | GA8: 10762.815 | GB8: 26375.748 | GC8: 17962.594 | GD8: 35974.711 | GE8: 26801.25 | GF8: 44804.586 | GG8: 30724.307 | GH8: 46281.402 | GI8: 35095.023 | GJ8: 44411.5 | GK8: 30668.473 | GL8: 33043.695 | GM8: 24626.133 | GN8: 24561.572 | GO8: 16645.912 | GP8: 16370.86 | GQ8: 12205.589 | GR8: 19002.158 | GS8: 14163.9 | GT8: 18504.709 | GU8: 13624.672 | GV8: 16000.301 | GW8: 11142.135 | GX8: 16469.275 | GY8: 10892.264 | GZ8: 26568.98 | HA8: 18094.104 | HB8: 36160.461 | HC8: 26939.793 | HD8: 44997.082 | HE8: 30856.217 | HF8: 46465.832 | HG8: 35234.969 | HH8: 44603.414 | HI8: 30800.879 | HJ8: 33229.609 | HK8: 24764.551 | HL8: 24755.059 | HM8: 16777.039 | HN8: 16557.123 | HO8: 12344.459 | HP8: 19188.521 | HQ8: 14302.814 | HR8: 18692.545 | HS8: 13762.973 | HT8: 15925.307 | HU8: 11089.91 | HV8: 16664.979 | HW8: 11021.695 | HX8: 26762.201 | HY8: 18225.609 | HZ8: 36346.207 | IA8: 27078.328 | IB8: 45189.582 | IC8: 30988.131 | ID8: 46650.27 | IE8: 35374.906 | IF8: 44795.336 | IG8: 30933.285 | IH8: 33415.523 | II8: 24902.973 | IJ8: 24948.541 | IK8: 16908.158 | IL8: 16743.363 | IM8: 12483.314 | IN8: 19374.863 | IO8: 14441.711 | IP8: 18880.35 | IQ8: 13901.248 | IR8: 16116.933 | IS8: 11223.353 | IT8: 16860.658 | IU8: 11151.113 | IV8: 26955.416 | IW8: 18357.105 | IX8: 36531.949 | IY8: 27216.867 | IZ8: 45382.07 | JA8: 31120.033 | JB8: 46834.688 | JC8: 35514.848 | JD8: 44987.254 | JE8: 31065.688 | JF8: 33601.43 | JG8: 25041.387 | JH8: 25142.012 | JI8: 17039.273 | JJ8: 16929.586 | JK8: 12622.154 | JL8: 19561.184 | JM8: 14580.59 | JN8: 19068.115 | JO8: 14039.498 | JP8: 16308.54 | JQ8: 11356.782 | JR8: 17056.318 | JS8: 11280.516 | JT8: 27148.619 | JU8: 18488.598 | JV8: 36717.688 | JW8: 27355.402 | JX8: 45574.555 | JY8: 31251.939 | JZ8: 47019.113 | KA8: 35654.789 | KB8: 45179.164 | KC8: 31198.09 | KD8: 33787.34 | KE8: 25179.801 | KF8: 25335.475 | KG8: 17170.381 | KH8: 17115.789 | KI8: 12760.982 | KJ8: 19747.488 | KK8: 14719.457 | KL8: 19255.852 | KM8: 14177.727 | KN8: 16766.881 | KO8: 11675.959 | KP8: 17251.957 | KQ8: 11409.906 | KR8: 27341.816 | KS8: 18620.088 | KT8: 36903.426 | KU8: 27493.934 | KV8: 45767.043 | KW8: 31383.842 | KX8: 47203.539 | KY8: 35794.723 | KZ8: 45371.082 | LA8: 31330.492 | LB8: 33973.246 | LC8: 25318.215 | LD8: 25528.93 | LE8: 17301.484 | LF8: 17301.975 | LG8: 12899.797 | LH8: 19933.771 | LI8: 14858.311 | LJ8: 19443.555 | LK8: 14315.926 | LL8: 16691.691 | LM8: 11623.598 | LN8: 17447.58 | LO8: 11539.283 | LP8: 27535.006 | LQ8: 18751.57 | LR8: 37089.16 | LS8: 27632.465 | LT8: 45959.52 | LU8: 31515.748 | LV8: 47387.953 | LW8: 35934.66 | LX8: 45562.992 | LY8: 31462.887 | LZ8: 34159.145 | MA8: 25456.621 | MB8: 25722.381 | MC8: 17432.588 | MD8: 17488.141 | ME8: 13038.598 | MF8: 20120.043 | MG8: 14997.156 | MH8: 19631.232 | MI8: 14454.111 | MJ8: 16883.242 | MK8: 11756.988 | ML8: 17643.182 | MM8: 11668.648 | MN8: 27728.188 | MO8: 18883.049 | MP8: 37274.895 | MQ8: 27770.996 | MR8: 46152 | MS8: 31647.643 | MT8: 47572.367 | MU8: 36074.598 | MV8: 45754.891 | MW8: 31595.285 | MX8: 34345.043 | MY8: 25595.035 | MZ8: 25915.824 | NA8: 17563.68 | NB8: 17674.293 | NC8: 13177.385 | ND8: 20306.293 | NE8: 15135.984 | NF8: 19818.879 | NG8: 14592.27 | NH8: 17074.773 | NI8: 11890.365 | NJ8: 17838.766 | NK8: 11798 | NL8: 27921.357 | NM8: 19014.52 | NN8: 37460.629 | NO8: 27909.527 | NP8: 46344.477 | NQ8: 31779.541 | NR8: 47756.781 | NS8: 36214.527 | NT8: 45946.801 | NU8: 31727.68 | NV8: 34530.938 | NW8: 25733.441 | NY8: 533227.701 | NZ8: 560917.374 | OA8: 558374.555 | OB8: 564591.756 | OC8: 572704.912 | OD8: 576151.776 | OE8: 580050.441 | OF8: 583948.808 | OG8: 588299.238 | OH8: 591744.775 | OI8: 595642.34 | OJ8: 599539.666 | OK8: 603889.3 | OL8: 607333.628 | OM8: 611230.3 | ON8: 615126.731
A9: 1 | B9: 10029 | C9: Blachly Lane Elec Coop | D9: 8987.786 | E9: 4688.754 | F9: 9182.613 | G9: 5859.493 | H9: 10370.279 | I9: 6218.675 | J9: 10454.674 | K9: 6597.378 | L9: 9908.985 | M9: 5558.084 | N9: 9793.305 | O9: 5360.581 | P9: 9412.046 | Q9: 5154.786 | R9: 8243.752 | S9: 5013.926 | T9: 8700.613 | U9: 4557.468 | V9: 8227.113 | W9: 4861.131 | X9: 8870.017 | Y9: 4531.24 | Z9: 8177.497 | AA9: 4535.59 | AB9: 8912.844 | AC9: 5004.375 | AD9: 9779.031 | AE9: 5799.013 | AF9: 10480.322 | AG9: 6284.665 | AH9: 10425.88 | AI9: 6579.209 | AJ9: 9927.284 | AK9: 5630.463 | AL9: 9935.862 | AM9: 5438.612 | AN9: 9353.297 | AO9: 5521.052 | AP9: 8540.456 | AQ9: 4834.116 | AR9: 8687.688 | AS9: 4550.698 | AT9: 8351.894 | AU9: 4934.858 | AV9: 9029.969 | AW9: 4612.952 | AX9: 8228.624 | AY9: 4563.948 | AZ9: 8732.387 | BA9: 4908.583 | BB9: 9382.453 | BC9: 5556.914 | BD9: 9934.25 | BE9: 6396.465 | BF9: 10369.415 | BG9: 6094.255 | BH9: 9571.111 | BI9: 5429.097 | BJ9: 9952.958 | BK9: 5450.867 | BL9: 9097.54 | BM9: 5377.306 | BN9: 8306.649 | BO9: 4720.977 | BP9: 8460.266 | BQ9: 4452.161 | BR9: 8121.61 | BS9: 4804.461 | BT9: 9061.939 | BU9: 4646.96 | BV9: 7986.202 | BW9: 4783.687 | BX9: 8962.799 | BY9: 4678.17 | BZ9: 9382.453 | CA9: 5556.914 | CB9: 9934.25 | CC9: 6396.465 | CD9: 10369.415 | CE9: 6094.255 | CF9: 9571.111 | CG9: 5429.097 | CH9: 9692.42 | CI9: 5711.404 | CJ9: 9350.188 | CK9: 5124.659 | CL9: 8306.649 | CM9: 4720.977 | CN9: 8234.89 | CO9: 4677.537 | CP9: 8339.946 | CQ9: 4586.125 | CR9: 9061.939 | CS9: 4646.96 | CT9: 7986.202 | CU9: 4783.687 | CV9: 9836.74 | CW9: 5167.726 | CX9: 10091.908 | CY9: 6033.387 | CZ9: 11120.971 | DA9: 7186.165 | DB9: 11245.355 | DC9: 6675.118 | DD9: 10856.315 | DE9: 6126.806 | DF9: 10376.212 | DG9: 6147.777 | DH9: 10062.282 | DI9: 5561.245 | DJ9: 8812.032 | DK9: 5423.962 | DL9: 9464.813 | DM9: 5029.785 | DN9: 9314.549 | DO9: 5177.946 | DP9: 9553.773 | DQ9: 5296.109 | DR9: 8874.253 | DS9: 5002.121 | DT9: 9926.176 | DU9: 5221.073 | DV9: 9861.519 | DW9: 6329.415 | DX9: 11415.077 | DY9: 6892.059 | DZ9: 10956.24 | EA9: 6964.233 | EB9: 10451.225 | EC9: 5961.325 | ED9: 10641.45 | EE9: 5882.539 | EF9: 10062.282 | EG9: 5561.245 | EH9: 8812.032 | EI9: 5423.962 | EJ9: 9464.813 | EK9: 5029.785 | EL9: 9314.549 | EM9: 5177.946 | EN9: 9553.773 | EO9: 5296.109 | EP9: 8874.253 | EQ9: 5002.121 | ER9: 9684.861 | ES9: 5462.388 | ET9: 10129.92 | EU9: 6061.013 | EV9: 11415.077 | EW9: 6892.059 | EX9: 10956.24 | EY9: 6964.233 | EZ9: 10473.978 | FA9: 5975.696 | FB9: 10694.286 | FC9: 5914.541 | FD9: 10129.548 | FE9: 5602.922 | FF9: 8922.754 | FG9: 5505.387 | FH9: 9551.852 | FI9: 5081.202 | FJ9: 9234.65 | FK9: 5509.823 | FL9: 9976.816 | FM9: 5166.542 | FN9: 9096.125 | FO9: 5152.083 | FP9: 9935.311 | FQ9: 5626.082 | FR9: 10383.059 | FS9: 6233.299 | FT9: 11717.424 | FU9: 7097.777 | FV9: 11176.727 | FW9: 7136.573 | FX9: 10701.507 | FY9: 6119.4 | FZ9: 10932.047 | GA9: 6058.548 | GB9: 10050.076 | GC9: 5972.909 | GD9: 9342.632 | GE9: 5421.766 | GF9: 9656.298 | GG9: 5142.901 | GH9: 9358.838 | GI9: 5595.618 | GJ9: 10084.208 | GK9: 5226.85 | GL9: 9179.326 | GM9: 5208.319 | GN9: 9990.966 | GO9: 5662.458 | GP9: 10408.373 | GQ9: 6250.528 | GR9: 11423.316 | GS9: 7391.883 | GT9: 11465.841 | GU9: 6847.458 | GV9: 11115.537 | GW9: 6290.526 | GX9: 10666.809 | GY9: 6323.786 | GZ9: 10308.926 | HA9: 5714.059 | HB9: 9342.632 | HC9: 5421.766 | HD9: 9417.973 | HE9: 5381.227 | HF9: 9587.761 | HG9: 5366.695 | HH9: 10084.208 | HI9: 5226.85 | HJ9: 8954.282 | HK9: 5433.362 | HL9: 10232.28 | HM9: 5421.144 | HN9: 10408.373 | HO9: 6250.528 | HP9: 11423.316 | HQ9: 7391.883 | HR9: 11465.841 | HS9: 6847.458 | HT9: 10701.507 | HU9: 6119.4 | HV9: 10666.809 | HW9: 6323.786 | HX9: 10308.926 | HY9: 5714.059 | HZ9: 9342.632 | IA9: 5421.766 | IB9: 9417.973 | IC9: 5381.227 | ID9: 9587.761 | IE9: 5366.695 | IF9: 9849.102 | IG9: 5461.956 | IH9: 9179.326 | II9: 5208.319 | IJ9: 10232.28 | IK9: 5421.144 | IL9: 10139.971 | IM9: 6518.93 | IN9: 11717.424 | IO9: 7097.777 | IP9: 11465.841 | IQ9: 6847.458 | IR9: 10724.26 | IS9: 6133.771 | IT9: 10719.645 | IU9: 6355.788 | IV9: 10376.193 | IW9: 5755.735 | IX9: 9227.242 | IY9: 5729.302 | IZ9: 9743.337 | JA9: 5194.317 | JB9: 9736.787 | JC9: 5469.648 | JD9: 10037.038 | JE9: 5567.496 | JF9: 9401.198 | JG9: 5358.28 | JH9: 10482.73 | JI9: 5584.838 | JJ9: 10393.109 | JK9: 6691.216 | JL9: 12019.77 | JM9: 7303.495 | JN9: 11397.214 | JO9: 7308.913 | JP9: 10951.791 | JQ9: 6277.475 | JR9: 11222.644 | JS9: 6234.558 | JT9: 10555.571 | JU9: 5866.872 | JV9: 9421.007 | JW9: 5871.794 | JX9: 9847.783 | JY9: 5256.017 | JZ9: 9860.975 | KA9: 5555.443 | KB9: 10144.431 | KC9: 5627.804 | KD9: 9484.399 | KE9: 5414.516 | KF9: 10297.07 | KG9: 5862.529 | KH9: 10686.825 | KI9: 6440.042 | KJ9: 12019.77 | KK9: 7303.495 | KL9: 11397.214 | KM9: 7308.913 | KN9: 11374.759 | KO9: 6454.246 | KP9: 11222.644 | KQ9: 6234.558 | KR9: 10296.721 | KS9: 6125.723 | KT9: 9647.119 | KU9: 5645.682 | KV9: 9847.783 | KW9: 5256.017 | KX9: 9632.052 | KY9: 5784.366 | KZ9: 10379.537 | LA9: 5392.697 | LB9: 9484.399 | LC9: 5414.516 | LD9: 10297.07 | LE9: 5862.529 | LF9: 10686.825 | LG9: 6440.042 | LH9: 11725.663 | LI9: 7597.601 | LJ9: 11686.328 | LK9: 7019.798 | LL9: 10951.791 | LM9: 6277.475 | LN9: 11222.644 | LO9: 6234.558 | LP9: 10296.721 | LQ9: 6125.723 | LR9: 9647.119 | LS9: 5645.682 | LT9: 9847.783 | LU9: 5256.017 | LV9: 9632.052 | LW9: 5784.366 | LX9: 10379.537 | LY9: 5392.697 | LZ9: 9259.355 | MA9: 5639.559 | MB9: 10538.386 | MC9: 5621.214 | MD9: 10686.825 | ME9: 6440.042 | MF9: 11725.663 | MG9: 7597.601 | MH9: 11686.328 | MI9: 7019.798 | MJ9: 10951.791 | MK9: 6277.475 | ML9: 10957.406 | MM9: 6499.795 | MN9: 10555.571 | MO9: 5866.872 | MP9: 9647.119 | MQ9: 5645.682 | MR9: 9609.457 | MS9: 5494.342 | MT9: 9860.975 | MU9: 5555.443 | MV9: 10379.537 | MW9: 5392.697 | MX9: 9259.355 | MY9: 5639.559 | MZ9: 10538.386 | NA9: 5621.214 | NB9: 10686.825 | NC9: 6440.042 | ND9: 11725.663 | NE9: 7597.601 | NF9: 11686.328 | NG9: 7019.798 | NH9: 10951.791 | NI9: 6277.475 | NJ9: 10957.406 | NK9: 6499.795 | NL9: 10555.571 | NM9: 5866.872 | NN9: 9647.119 | NO9: 5645.682 | NP9: 9609.457 | NQ9: 5494.342 | NR9: 9860.975 | NS9: 5555.443 | NT9: 10144.431 | NU9: 5627.804 | NV9: 9484.399 | NW9: 5414.516 | NY9: 173265.786 | NZ9: 175407.112 | OA9: 171598.513 | OB9: 171598.512 | OC9: 188437.35 | OD9: 188075.201 | OE9: 189553.996 | OF9: 193357.495 | OG9: 194077.222 | OH9: 193492.067 | OI9: 194970.862 | OJ9: 198774.365 | OK9: 199508.677 | OL9: 198908.935 | OM9: 198908.933 | ON9: 198908.935
A10: 0 | B10: 10044 | C10: Canby, City of | D10: 9530.083 | E10: 4919.665 | F10: 10323.782 | G10: 6602.677 | H10: 12154.946 | I10: 7105.22 | J10: 11332.89 | K10: 7166.81 | L10: 10521.146 | M10: 5682.753 | N10: 10158.859 | O10: 5328.671 | P10: 9463.064 | Q10: 5021.92 | R10: 8811.851 | S10: 5278.779 | T10: 9201.647 | U10: 4714.934 | V10: 9833.667 | W10: 5792.103 | X10: 10499.475 | Y10: 5216.49 | Z10: 8935.397 | AA10: 4954.072 | AB10: 8759.803 | AC10: 4973.744 | AD10: 10207.023 | AE10: 6042.545 | AF10: 11659.224 | AG10: 6869.756 | AH10: 10833.36 | AI10: 6951.744 | AJ10: 9816.252 | AK10: 5438.438 | AL10: 9701.263 | AM10: 5105.008 | AN10: 8712.765 | AO10: 5084.697 | AP10: 8598.546 | AQ10: 4776.362 | AR10: 8701.468 | AS10: 4524.643 | AT10: 9281.74 | AU10: 5638.121 | AV10: 9950.019 | AW10: 5058.24 | AX10: 8484.952 | AY10: 4717.734 | AZ10: 8756.853 | BA10: 4971.372 | BB10: 10209.616 | BC10: 6043.601 | BD10: 11274.307 | BE10: 7263.707 | BF10: 11218.042 | BG10: 6580.543 | BH10: 9830.698 | BI10: 5446.762 | BJ10: 9717.832 | BK10: 5113.482 | BL10: 8723.088 | BM10: 5092.771 | BN10: 8611.672 | BO10: 4782.032 | BP10: 8719.151 | BQ10: 4533.158 | BR10: 9296.766 | BS10: 5647.207 | BT10: 9965.48 | BU10: 5065.953 | BV10: 8211.381 | BW10: 5013.967 | BX10: 9107.053 | BY10: 4712.61 | BZ10: 10263.229 | CA10: 6075.375 | CB10: 11323.146 | CC10: 7294.989 | CD10: 11265.211 | CE10: 6608.471 | CF10: 9878.479 | CG10: 5473.211 | CH10: 9451.373 | CI10: 5453.802 | CJ10: 9072.976 | CK10: 4817.053 | CL10: 8659.143 | CM10: 4808.521 | CN10: 8476.777 | CO10: 4848.786 | CP10: 9659.086 | CQ10: 5358.114 | CR10: 10013.939 | CS10: 5090.615 | CT10: 8256.729 | CU10: 5041.577 | CV10: 9130.538 | CW10: 4725.213 | CX10: 10304.729 | CY10: 6100.029 | CZ10: 11357.404 | DA10: 7316.489 | DB10: 11300.285 | DC10: 6630.604 | DD10: 10163.474 | DE10: 5552.413 | DF10: 9486.163 | DG10: 5472.721 | DH10: 9118.656 | DI10: 4840.874 | DJ10: 8373.217 | DK10: 5092.556 | DL10: 8808.957 | DM10: 4580.14 | DN10: 9698.535 | DO10: 5380.829 | DP10: 9737.303 | DQ10: 5431.3 | DR10: 8588.777 | DS10: 4775.014 | DT10: 9192.267 | DU10: 4758.159 | DV10: 10001.327 | DW10: 6490.657 | DX10: 11801.466 | DY10: 6953.262 | DZ10: 10968.218 | EA10: 7037.662 | EB10: 9960.949 | EC10: 5518.688 | ED10: 9842.485 | EE10: 5179.19 | EF10: 9155.944 | EG10: 4860.785 | EH10: 8413.177 | EI10: 5116.864 | EJ10: 8851.048 | EK10: 4602.078 | EL10: 9739.605 | EM10: 5403.688 | EN10: 9778.262 | EO10: 5454.162 | EP10: 8629.624 | EQ10: 4797.787 | ER10: 8939.117 | ES10: 5074.938 | ET10: 10399.273 | EU10: 6156.077 | EV10: 11841.252 | EW10: 6976.743 | EX10: 11006.563 | EY10: 7062.312 | EZ10: 10001.185 | FA10: 5540.975 | FB10: 9883.238 | FC10: 5200.652 | FD10: 9196.531 | FE10: 4882.35 | FF10: 8451.67 | FG10: 5140.279 | FH10: 8891.563 | FI10: 4623.173 | FJ10: 9459.113 | FK10: 5745.585 | FL10: 10139.379 | FM10: 5154.227 | FN10: 8668.773 | FO10: 4819.568 | FP10: 8977.864 | FQ10: 5096.949 | FR10: 10437.269 | FS10: 6178.573 | FT10: 11879.154 | FU10: 6999.079 | FV10: 11043.161 | FW10: 7085.802 | FX10: 10039.737 | FY10: 5562.333 | FZ10: 9922.391 | GA10: 5221.255 | GB10: 8928.004 | GC10: 5210.506 | GD10: 8775.979 | GE10: 4875.457 | GF10: 8930.579 | GG10: 4643.46 | GH10: 9495.924 | GI10: 5767.944 | GJ10: 10178.519 | GK10: 5174.121 | GL10: 8706.621 | GM10: 4840.612 | GN10: 9015.367 | GO10: 5118.242 | GP10: 10474.108 | GQ10: 6200.382 | GR10: 11517.495 | GS10: 7419.234 | GT10: 11461.417 | GU10: 6725.905 | GV10: 10324.445 | GW10: 5640.348 | GX10: 9640.124 | GY10: 5561.56 | GZ10: 9273.318 | HA10: 4923.11 | HB10: 8813.121 | HC10: 4896.099 | HD10: 8672.047 | HE10: 4959.602 | HF10: 9854.095 | HG10: 5467.258 | HH10: 10216.545 | HI10: 5193.449 | HJ10: 8447.535 | HK10: 5156.92 | HL10: 9350.502 | HM10: 4840.242 | HN10: 10509.907 | HO10: 6221.576 | HP10: 11552.075 | HQ10: 7441.506 | HR10: 11497.149 | HS10: 6746.892 | HT10: 10113.572 | HU10: 5603.237 | HV10: 9675.905 | HW10: 5582.193 | HX10: 9310.1 | HY10: 4942.636 | HZ10: 8849.232 | IA10: 4916.167 | IB10: 8707.683 | IC10: 4979.978 | ID10: 9890.038 | IE10: 5487.207 | IF10: 9928.07 | IG10: 5537.694 | IH10: 8779.156 | II10: 4880.943 | IJ10: 9387.108 | IK10: 4859.202 | IL10: 10180.21 | IM10: 6606.706 | IN10: 11986.523 | IO10: 7062.352 | IP10: 11531.935 | IQ10: 6767.324 | IR10: 10149.024 | IS10: 5622.876 | IT10: 9710.779 | IU10: 5602.306 | IV10: 9345.994 | IW10: 4961.694 | IX10: 8593.648 | IY10: 5226.626 | IZ10: 9041.34 | JA10: 4701.07 | JB10: 9925.199 | JC10: 5506.741 | JD10: 9963.146 | JE10: 5557.257 | JF10: 8814.201 | JG10: 4900.45 | JH10: 9423.029 | JI10: 4877.854 | JJ10: 10213.235 | JK10: 6628.133 | JL10: 12020.743 | JM10: 7082.534 | JN10: 11179.928 | JO10: 7173.605 | JP10: 10183.784 | JQ10: 5642.132 | JR10: 10068.682 | JS10: 5298.25 | JT10: 9381.165 | JU10: 4980.379 | JV10: 8627.063 | JW10: 5246.951 | JX10: 9076.564 | JY10: 4719.412 | JZ10: 9959.575 | KA10: 5525.853 | KB10: 9997.424 | KC10: 5576.381 | KD10: 8848.417 | KE10: 4919.504 | KF10: 9155.996 | KG10: 5198.152 | KH10: 10612.257 | KI10: 6282.209 | KJ10: 12054.083 | KK10: 7102.201 | KL10: 11212.127 | KM10: 7194.292 | KN10: 10465.659 | KO10: 5717.494 | KP10: 10103.054 | KQ10: 5316.349 | KR10: 9102.025 | KS10: 5312.003 | KT10: 8952.681 | KU10: 4973.709 | KV10: 9110.895 | KW10: 4737.291 | KX10: 9666.173 | KY10: 5871.391 | KZ10: 10359.608 | LA10: 5266.25 | LB10: 8881.771 | LC10: 4938.079 | LD10: 9189.097 | LE10: 5216.98 | LF10: 10644.759 | LG10: 6301.473 | LH10: 11682.483 | LI10: 7525.484 | LJ10: 11631.862 | LK10: 6826.127 | LL10: 10250.681 | LM10: 5679.188 | LN10: 10136.568 | LO10: 5333.998 | LP10: 9134.354 | LQ10: 5330.856 | LR10: 8985.498 | LS10: 4991.97 | LT10: 9144.377 | LU10: 4754.728 | LV10: 9697.798 | LW10: 5890.616 | LX10: 10393.252 | LY10: 5283.381 | LZ10: 8612.729 | MA10: 5257.773 | MB10: 9525.597 | MC10: 4931.139 | MD10: 10676.467 | ME10: 6320.266 | MF10: 11713.154 | MG10: 7545.235 | MH10: 11663.535 | MI10: 6844.768 | MJ10: 10282.902 | MK10: 5697.037 | ML10: 9842.326 | MM10: 5678.159 | MN10: 9481.481 | MO10: 5033.674 | MP10: 9017.524 | MQ10: 5009.788 | MR10: 8873.802 | MS10: 5074.992 | MT10: 10057.655 | MU10: 5580.386 | MV10: 10426.089 | MW10: 5300.102 | MX10: 8643.425 | MY10: 5276.518 | MZ10: 9558.139 | NA10: 4948.049 | NB10: 10707.421 | NC10: 6338.611 | ND10: 11743.1 | NE10: 7564.516 | NF10: 11694.43 | NG10: 6862.947 | NH10: 10314.311 | NI10: 5714.436 | NJ10: 9873.171 | NK10: 5695.946 | NL10: 9513.217 | NM10: 5050.53 | NN10: 9048.661 | NO10: 5027.106 | NP10: 8904.51 | NQ10: 5092.553 | NR10: 10088.614 | NS10: 5597.582 | NT10: 10126.074 | NU10: 5648.146 | NV10: 8976.833 | NW10: 4991 | NY10: 188550.901 | NZ10: 179887.447 | OA10: 180089.441 | OB10: 181010.265 | OC10: 181966.22 | OD10: 182507.354 | OE10: 183254.536 | OF10: 183971.293 | OG10: 184971.726 | OH10: 185343.66 | OI10: 186003.711 | OJ10: 186650.597 | OK10: 187585.749 | OL10: 187896.032 | OM10: 188496.021 | ON10: 189079.903
A11: 1 | B11: 10046 | C11: Central Electric Coop | D11: 29899.125 | E11: 18322.51 | F11: 37306.445 | G11: 26737.055 | H11: 47900.324 | I11: 33370.129 | J11: 42722.449 | K11: 31289.334 | L11: 37632.191 | M11: 25122.1 | N11: 34444.773 | O11: 22839.076 | P11: 31666.473 | Q11: 20331.674 | R11: 32630.199 | S11: 22901.002 | T11: 33622.547 | U11: 20905.438 | V11: 36966.012 | W11: 24541.545 | X11: 36670.406 | Y11: 22231.984 | Z11: 31710.783 | AA11: 21138.813 | AB11: 29944.375 | AC11: 18350.234 | AD11: 37279.078 | AE11: 26717.441 | AF11: 48188.047 | AG11: 33570.57 | AH11: 42363.648 | AI11: 31026.049 | AJ11: 36719.797 | AK11: 24513.008 | AL11: 34331.391 | AM11: 22763.957 | AN11: 31699.629 | AO11: 20275.137 | AP11: 32719.756 | AQ11: 22963.16 | AR11: 33598.109 | AS11: 20889.887 | AT11: 36884.895 | AU11: 24486.486 | AV11: 36377.383 | AW11: 22190.699 | AX11: 31574.275 | AY11: 21047.816 | AZ11: 30931.77 | BA11: 18955.326 | BB11: 38043.559 | BC11: 27265.566 | BD11: 49212.723 | BE11: 34284.422 | BF11: 43476.094 | BG11: 31841.299 | BH11: 37701.66 | BI11: 25168.469 | BJ11: 35367.816 | BK11: 23451.111 | BL11: 32823.176 | BM11: 20994.547 | BN11: 33682.273 | BO11: 23639.385 | BP11: 34869.328 | BQ11: 21680.646 | BR11: 37816.59 | BS11: 25106.098 | BT11: 37440.008 | BU11: 22839.316 | BV11: 32450.74 | BW11: 21632.074 | BX11: 31192.656 | BY11: 19115.199 | BZ11: 38288.676 | CA11: 27441.242 | CB11: 49460.738 | CC11: 34457.195 | CD11: 43718.992 | CE11: 32019.189 | CF11: 37953.969 | CG11: 25336.908 | CH11: 35620.813 | CI11: 23618.863 | CJ11: 33079.793 | CK11: 21158.686 | CL11: 33929.508 | CM11: 23812.906 | CN11: 35128.777 | CO11: 21841.967 | CP11: 38069.477 | CQ11: 25273.986 | CR11: 37701.352 | CS11: 22998.74 | CT11: 32703.209 | CU11: 21800.375 | CV11: 34054.18 | CW11: 20868.771 | CX11: 41200.273 | CY11: 29527.969 | CZ11: 52575.516 | DA11: 36627.129 | DB11: 47122.965 | DC11: 34512.219 | DD11: 42192.742 | DE11: 28166.586 | DF11: 38998.375 | DG11: 25858.4 | DH11: 36561.871 | DI11: 23385.908 | DJ11: 36918.641 | DK11: 25910.777 | DL11: 38777.141 | DM11: 24110.398 | DN11: 41155.543 | DO11: 27322.801 | DP11: 41739.012 | DQ11: 25461.807 | DR11: 35849.699 | DS11: 23897.867 | DT11: 34774.367 | DU11: 21310.107 | DV11: 41876.93 | DW11: 30012.922 | DX11: 53260.148 | DY11: 37104.094 | DZ11: 47793.496 | EA11: 35003.297 | EB11: 42180.902 | EC11: 28158.676 | ED11: 39696.781 | EE11: 26321.484 | EF11: 37270.27 | EG11: 23839.018 | EH11: 37601.152 | EI11: 26389.787 | EJ11: 39493.359 | EK11: 24555.719 | EL11: 41853.645 | EM11: 27786.262 | EN11: 42460.453 | EO11: 25901.908 | EP11: 36546.652 | EQ11: 24362.461 | ER11: 35494.555 | ES11: 21751.445 | ET11: 42553.586 | EU11: 30497.879 | EV11: 53944.793 | EW11: 37581.055 | EX11: 48464.02 | EY11: 35494.379 | EZ11: 42877.426 | FA11: 28623.648 | FB11: 40395.191 | FC11: 26784.578 | FD11: 37978.668 | FE11: 24292.131 | FF11: 38283.66 | FG11: 26868.799 | FH11: 40209.582 | FI11: 25001.047 | FJ11: 42551.746 | FK11: 28249.727 | FL11: 43181.902 | FM11: 26342.006 | FN11: 37243.605 | FO11: 24827.064 | FP11: 36214.738 | FQ11: 22192.785 | FR11: 43230.242 | FS11: 30982.834 | FT11: 54629.438 | FU11: 38058.02 | FV11: 49134.539 | FW11: 35985.465 | FX11: 43573.941 | FY11: 29088.625 | FZ11: 41093.602 | GA11: 27247.666 | GB11: 38687.066 | GC11: 24745.24 | GD11: 38966.172 | GE11: 27347.809 | GF11: 40925.805 | GG11: 25446.373 | GH11: 43249.848 | GI11: 28713.188 | GJ11: 43903.344 | GK11: 26782.107 | GL11: 37940.559 | GM11: 25291.66 | GN11: 36934.926 | GO11: 22634.125 | GP11: 43906.902 | GQ11: 31467.783 | GR11: 55314.078 | GS11: 38534.977 | GT11: 49805.066 | GU11: 36476.547 | GV11: 44978.824 | GW11: 30026.486 | GX11: 41792.008 | GY11: 27710.758 | GZ11: 39395.465 | HA11: 25198.35 | HB11: 39648.684 | HC11: 27826.816 | HD11: 41642.027 | HE11: 25891.693 | HF11: 43947.945 | HG11: 29176.652 | HH11: 44624.797 | HI11: 27222.201 | HJ11: 38637.512 | HK11: 25756.258 | HL11: 37655.113 | HM11: 23075.461 | HN11: 44583.555 | HO11: 31952.742 | HP11: 55998.719 | HQ11: 39011.938 | HR11: 50475.594 | HS11: 36967.629 | HT11: 44966.977 | HU11: 30018.578 | HV11: 42490.418 | HW11: 28173.844 | HX11: 40103.867 | HY11: 25651.465 | HZ11: 40331.195 | IA11: 28305.826 | IB11: 42358.246 | IC11: 26337.018 | ID11: 44646.051 | IE11: 29640.117 | IF11: 45346.238 | IG11: 27662.303 | IH11: 39334.461 | II11: 26220.854 | IJ11: 38375.301 | IK11: 23516.803 | IL11: 45260.207 | IM11: 32437.699 | IN11: 56683.359 | IO11: 39488.895 | IP11: 51146.117 | IQ11: 37458.719 | IR11: 45663.496 | IS11: 30483.555 | IT11: 43188.824 | IU11: 28636.936 | IV11: 40812.27 | IW11: 26104.57 | IX11: 41013.703 | IY11: 28784.836 | IZ11: 43074.469 | JA11: 26782.338 | JB11: 45344.152 | JC11: 30103.584 | JD11: 46067.684 | JE11: 28102.404 | JF11: 40031.414 | JG11: 26685.449 | JH11: 39095.488 | JI11: 23958.139 | JJ11: 45936.863 | JK11: 32922.652 | JL11: 57368 | JM11: 39965.855 | JN11: 51816.645 | JO11: 37949.797 | JP11: 46360.016 | JQ11: 30948.527 | JR11: 43887.23 | JS11: 29100.025 | JT11: 41520.664 | JU11: 26557.684 | JV11: 41696.215 | JW11: 29263.844 | JX11: 43790.688 | JY11: 27227.664 | JZ11: 46042.254 | KA11: 30567.045 | KB11: 46789.129 | KC11: 28542.502 | KD11: 40728.367 | KE11: 27150.047 | KF11: 39815.676 | KG11: 24399.479 | KH11: 46613.523 | KI11: 33407.602 | KJ11: 58052.641 | KK11: 40442.813 | KL11: 52487.164 | KM11: 38440.883 | KN11: 47764.902 | KO11: 31886.385 | KP11: 44585.641 | KQ11: 29563.117 | KR11: 42229.063 | KS11: 27010.793 | KT11: 42378.723 | KU11: 29742.857 | KV11: 44506.91 | KW11: 27672.984 | KX11: 46740.355 | KY11: 31030.506 | KZ11: 47510.574 | LA11: 28982.604 | LB11: 41425.316 | LC11: 27614.646 | LD11: 40535.863 | LE11: 24840.816 | LF11: 47290.176 | LG11: 33892.559 | LH11: 58737.281 | LI11: 40919.773 | LJ11: 53157.695 | LK11: 38931.965 | LL11: 47753.055 | LM11: 31878.477 | LN11: 45284.055 | LO11: 30026.201 | LP11: 42937.465 | LQ11: 27463.902 | LR11: 43061.234 | LS11: 30221.867 | LT11: 45223.129 | LU11: 28118.309 | LV11: 47438.457 | LW11: 31493.967 | LX11: 48232.023 | LY11: 29422.699 | LZ11: 42122.27 | MA11: 28079.242 | MB11: 41256.047 | MC11: 25282.152 | MD11: 47966.832 | ME11: 34377.516 | MF11: 59421.922 | MG11: 41396.734 | MH11: 53828.219 | MI11: 39423.047 | MJ11: 48449.578 | MK11: 32343.451 | ML11: 45982.465 | MM11: 30489.295 | MN11: 43645.863 | MO11: 27917.012 | MP11: 43743.746 | MQ11: 30700.875 | MR11: 45939.352 | MS11: 28563.629 | MT11: 48136.555 | MU11: 31957.436 | MV11: 48953.469 | MW11: 29862.801 | MX11: 42819.227 | MY11: 28543.842 | MZ11: 41976.234 | NA11: 25723.488 | NB11: 48643.488 | NC11: 34862.473 | ND11: 60106.566 | NE11: 41873.695 | NF11: 54498.738 | NG11: 39914.133 | NH11: 49146.098 | NI11: 32808.426 | NJ11: 46680.871 | NK11: 30952.387 | NL11: 44354.258 | NM11: 28370.127 | NN11: 44426.258 | NO11: 31179.885 | NP11: 46655.57 | NQ11: 29008.955 | NR11: 48834.656 | NS11: 32420.896 | NT11: 49674.914 | NU11: 30302.898 | NV11: 43516.18 | NW11: 29008.439 | NY11: 722902.387 | NZ11: 720474.827 | OA11: 740673.996 | OB11: 745723.216 | OC11: 812796.59 | OD11: 825553.89 | OE11: 839492.492 | OF11: 853431.066 | OG11: 868550.88 | OH11: 881308.209 | OI11: 895246.784 | OJ11: 909185.34 | OK11: 924305.157 | OL11: 937062.48 | OM11: 951001.065 | ON11: 964939.633
A12: 0 | B12: 10047 | C12: Central Lincoln PUD | D12: 67564.672 | E12: 42982.121 | F12: 68227.125 | G12: 53843.613 | H12: 78400.234 | I12: 53990.848 | J12: 76012.609 | K12: 58311.453 | L12: 70249.016 | M12: 46089.398 | N12: 72723.164 | O12: 46270.559 | P12: 64208.27 | Q12: 41973.508 | R12: 57868.273 | S12: 44872.426 | T12: 59238.773 | U12: 38906.59 | V12: 56734.945 | W12: 44253.605 | X12: 61178.293 | Y12: 39509.242 | Z12: 59213.953 | AA12: 42562.496 | AB12: 65509.203 | AC12: 45823.559 | AD12: 71679.711 | AE12: 51453.688 | AF12: 78463.281 | AG12: 54049.152 | AH12: 76263.43 | AI12: 58480.852 | AJ12: 66952.18 | AK12: 44518.594 | AL12: 72276.047 | AM12: 45993.426 | AN12: 59964.215 | AO12: 43161.66 | AP12: 59016.109 | AQ12: 41771.469 | AR12: 58852.164 | AS12: 38656.883 | AT12: 56042.566 | AU12: 43711.574 | AV12: 61276.109 | AW12: 39549.66 | AX12: 59546.172 | AY12: 42803.781 | AZ12: 65905.75 | BA12: 46101.008 | BB12: 72089 | BC12: 51747.641 | BD12: 75891.547 | BE12: 57347.461 | BF12: 79730.008 | BG12: 55746.238 | BH12: 67357.234 | BI12: 44787.781 | BJ12: 72698.5 | BK12: 46262.035 | BL12: 60344.191 | BM12: 43435.113 | BN12: 59395.559 | BO12: 42039.535 | BP12: 59238.078 | BQ12: 38910.27 | BR12: 56404.816 | BS12: 43994.184 | BT12: 61669.73 | BU12: 39803.52 | BV12: 57526.758 | BW12: 45474.281 | BX12: 68596.391 | BY12: 43683.758 | BZ12: 72265.133 | CA12: 51874.082 | CB12: 76077.094 | CC12: 57487.664 | CD12: 79924.922 | CE12: 55882.523 | CF12: 67521.508 | CG12: 44897.016 | CH12: 70185.445 | CI12: 49065.367 | CJ12: 62913.215 | CK12: 41118.828 | CL12: 59540.141 | CM12: 42141.863 | CN12: 57091.586 | CO12: 41295.602 | CP12: 58809.625 | CQ12: 41833.633 | CR12: 61819.754 | CS12: 39900.352 | CT12: 57666.703 | CU12: 45584.91 | CV12: 67900.281 | CW12: 43534.563 | CX12: 72108.844 | CY12: 52332.602 | CZ12: 75132.484 | DA12: 57653.418 | DB12: 77592.945 | DC12: 55390.742 | DD12: 68596.445 | DE12: 45336.281 | DF12: 68709.359 | DG12: 48479.484 | DH12: 62768.461 | DI12: 41544.996 | DJ12: 56743.348 | DK12: 44539.648 | DL12: 59019.992 | DM12: 39047.582 | DN12: 58569.016 | DO12: 41866.711 | DP12: 59113.59 | DQ12: 41997.148 | DR12: 59695.09 | DS12: 43233.48 | DT12: 68067.242 | DU12: 43641.625 | DV12: 69417.383 | DW12: 55330.395 | DX12: 78284.328 | DY12: 54828.762 | DZ12: 74812.891 | EA12: 58498.27 | EB12: 66049.797 | EC12: 44272.922 | ED12: 71499.984 | EE12: 45976.895 | EF12: 62922.473 | EG12: 41646.934 | EH12: 56882.496 | EI12: 44648.871 | EJ12: 59164.625 | EK12: 39143.273 | EL12: 58712.563 | EM12: 41969.324 | EN12: 59258.453 | EO12: 42100.07 | EP12: 59841.387 | EQ12: 43339.434 | ER12: 65738.484 | ES12: 46244.488 | ET12: 72463.938 | EU12: 52590.305 | EV12: 78476.648 | EW12: 54963.477 | EX12: 74996.664 | EY12: 58641.977 | EZ12: 66211.656 | FA12: 44381.41 | FB12: 71675.297 | FC12: 46089.617 | FD12: 63076.488 | FE12: 41748.871 | FF12: 57021.645 | FG12: 44758.09 | FH12: 59309.266 | FI12: 39238.961 | FJ12: 56606.711 | FK12: 44321.34 | FL12: 61667.844 | FM12: 39938.473 | FN12: 59987.742 | FO12: 43445.434 | FP12: 65899.344 | FQ12: 46357.652 | FR12: 72641.438 | FS12: 52719.133 | FT12: 78668.984 | FU12: 55098.172 | FV12: 75180.43 | FW12: 58785.668 | FX12: 66373.508 | FY12: 44489.902 | FZ12: 71850.609 | GA12: 46202.352 | GB12: 60810.473 | GC12: 44270.852 | GD12: 59434.707 | GE12: 42593.391 | GF12: 59453.895 | GG12: 39334.648 | GH12: 56744.828 | GI12: 44429.477 | GJ12: 61818.281 | GK12: 40035.906 | GL12: 60134.039 | GM12: 43551.383 | GN12: 66060.195 | GO12: 46470.805 | GP12: 72818.961 | GQ12: 52847.961 | GR12: 75872.75 | GS12: 58221.465 | GT12: 78357.227 | GU12: 55936.332 | GV12: 69270.758 | GW12: 45781.949 | GX12: 69384.883 | GY12: 48956.109 | GZ12: 63384.527 | HA12: 41952.754 | HB12: 59579.391 | HC12: 42697.078 | HD12: 57317.934 | HE12: 41711.027 | HF12: 59143.266 | HG12: 42277.203 | HH12: 61968.684 | HI12: 40133.309 | HJ12: 57886.648 | HK12: 46051.035 | HL12: 68735.156 | HM12: 44069.855 | HN12: 72996.469 | HO12: 52976.781 | HP12: 76057.789 | HQ12: 58363.461 | HR12: 78548.297 | HS12: 56072.734 | HT12: 66697.211 | HU12: 44706.883 | HV12: 69553.766 | HW12: 49075.27 | HX12: 63538.605 | HY12: 42054.738 | HZ12: 59724.137 | IA12: 42800.809 | IB12: 57457.031 | IC12: 41812.25 | ID12: 59286.813 | IE12: 42379.813 | IF12: 59837.977 | IG12: 42511.793 | IH12: 60426.629 | II12: 43763.297 | IJ12: 68902.125 | IK12: 44176.898 | IL12: 70269.781 | IM12: 56009.816 | IN12: 79245.984 | IO12: 55502.297 | IP12: 78739.367 | IQ12: 56209.125 | IR12: 66859.063 | IS12: 44815.363 | IT12: 69722.711 | IU12: 49194.473 | IV12: 63692.621 | IW12: 42156.672 | IX12: 57578.289 | IY12: 45195.02 | IZ12: 59887.852 | JA12: 39621.762 | JB12: 59430.367 | JC12: 42482.43 | JD12: 59982.848 | JE12: 42614.707 | JF12: 60572.934 | JG12: 43869.25 | JH12: 69069.078 | JI12: 44283.949 | JJ12: 70440.242 | JK12: 56145.688 | JL12: 79438.328 | JM12: 55637.004 | JN12: 75915.594 | JO12: 59360.504 | JP12: 67020.984 | JQ12: 44923.898 | JR12: 72551.914 | JS12: 46653.32 | JT12: 63846.633 | JU12: 42258.609 | JV12: 57717.434 | JW12: 45304.242 | JX12: 60032.484 | JY12: 39717.449 | JZ12: 59573.914 | KA12: 42585.039 | KB12: 60127.715 | KC12: 42717.637 | KD12: 60719.23 | KE12: 43975.203 | KF12: 66703.609 | KG12: 46923.426 | KH12: 73528.992 | KI12: 53363.266 | KJ12: 79630.734 | KK12: 55771.77 | KL12: 76099.359 | KM12: 59504.195 | KN12: 69945.148 | KO12: 46227.664 | KP12: 72727.219 | KQ12: 46766.051 | KR12: 61551.141 | KS12: 44810.066 | KT12: 60158.184 | KU12: 43111.867 | KV12: 60177.117 | KW12: 39813.141 | KX12: 57435.141 | KY12: 44969.969 | KZ12: 62570.234 | LA12: 40522.895 | LB12: 60865.531 | LC12: 44081.16 | LD12: 66864.469 | LE12: 47036.586 | LF12: 73706.578 | LG12: 53492.141 | LH12: 76798.039 | LI12: 58931.508 | LJ12: 79312.656 | LK12: 56618.375 | LL12: 67344.68 | LM12: 45140.871 | LN12: 72902.523 | LO12: 46878.777 | LP12: 61699.266 | LQ12: 44917.902 | LR12: 60302.863 | LS12: 43215.551 | LT12: 60321.754 | LU12: 39908.828 | LV12: 57573.203 | LW12: 45078.07 | LX12: 62720.617 | LY12: 40620.293 | LZ12: 58589.141 | MA12: 46609.902 | MB12: 69570.039 | MC12: 44605.145 | MD12: 73884.078 | ME12: 53620.969 | MF12: 76983.086 | MG12: 59073.496 | MH12: 79503.727 | MI12: 56754.777 | MJ12: 67506.539 | MK12: 45249.367 | ML12: 70398.242 | MM12: 49671.117 | MN12: 64308.688 | MO12: 42564.43 | MP12: 60447.547 | MQ12: 43319.234 | MR12: 58152.535 | MS12: 42318.375 | MT12: 60004.559 | MU12: 42892.871 | MV12: 62871.07 | MW12: 40717.73 | MX12: 58729.625 | MY12: 46721.664 | MZ12: 69737 | NA12: 44712.188 | NB12: 74061.602 | NC12: 53749.797 | ND12: 77168.141 | NE12: 59215.504 | NF12: 79694.797 | NG12: 56891.168 | NH12: 67668.391 | NI12: 45357.852 | NJ12: 70567.109 | NK12: 49790.273 | NL12: 64462.711 | NM12: 42666.375 | NN12: 60592.234 | NO12: 43422.918 | NP12: 58291.688 | NQ12: 42419.641 | NR12: 60148.164 | NS12: 42995.531 | NT12: 60707.238 | NU12: 43129.355 | NV12: 61304.48 | NW12: 44399.063 | NY12: 1345185.186 | NZ12: 1335815.485 | OA12: 1343900.238 | OB12: 1347177.115 | OC12: 1340906.51 | OD12: 1340310.397 | OE12: 1343594.826 | OF12: 1346879.072 | OG12: 1354082.251 | OH12: 1353447.564 | OI12: 1356731.755 | OJ12: 1360016.092 | OK12: 1367257.879 | OL12: 1366584.593 | OM12: 1369868.91 | ON12: 1373153.22
A13: 0 | B13: 10055 | C13: Albion, City of | D13: 147.375 | E13: 94.445 | F13: 172.27 | G13: 144.254 | H13: 254.517 | I13: 188.465 | J13: 234.413 | K13: 197.44 | L13: 215.435 | M13: 153.795 | N13: 179.367 | O13: 123.916 | P13: 153.147 | Q13: 104.671 | R13: 127.728 | S13: 97.231 | T13: 130.618 | U13: 74.566 | V13: 143.087 | W13: 91.797 | X13: 142.385 | Y13: 74.614 | Z13: 122.074 | AA13: 77.466 | AB13: 140.766 | AC13: 98.826 | AD13: 179.94 | AE13: 137.538 | AF13: 254.113 | AG13: 189.091 | AH13: 234.262 | AI13: 197.57 | AJ13: 203.351 | AK13: 148.441 | AL13: 178.599 | AM13: 123.6 | AN13: 146.267 | AO13: 110.23 | AP13: 131.769 | AQ13: 91.439 | AR13: 129.745 | AS13: 73.818 | AT13: 140.873 | AU13: 90.661 | AV13: 142.533 | AW13: 74.883 | AX13: 122.859 | AY13: 78.26 | AZ13: 132.197 | BA13: 92.436 | BB13: 172.571 | BC13: 132.082 | BD13: 237.562 | BE13: 194.268 | BF13: 237.007 | BG13: 183.161 | BH13: 195.852 | BI13: 143.187 | BJ13: 170.621 | BK13: 117.917 | BL13: 138.23 | BM13: 104.257 | BN13: 123.073 | BO13: 85.575 | BP13: 121.277 | BQ13: 68.668 | BR13: 132.822 | BS13: 85.765 | BT13: 132.7 | BU13: 69.944 | BV13: 110.105 | BW13: 77.366 | BX13: 137.781 | BY13: 87.693 | BZ13: 173.047 | CA13: 132.447 | CB13: 238.025 | CC13: 194.647 | CD13: 237.482 | CE13: 183.527 | CF13: 196.337 | CG13: 143.542 | CH13: 164.579 | CI13: 124.8 | CJ13: 144.384 | CK13: 98.944 | CL13: 123.569 | CM13: 85.92 | CN13: 117.364 | CO13: 73.421 | CP13: 138.285 | CQ13: 81.143 | CR13: 133.251 | CS13: 70.234 | CT13: 110.598 | CU13: 77.713 | CV13: 142.06 | CW13: 90.913 | CX13: 179.221 | CY13: 137.338 | CZ13: 243.266 | DA13: 200.893 | DB13: 247.634 | DC13: 193.284 | DD13: 213.749 | DE13: 154.54 | DF13: 171.807 | DG13: 131.539 | DH13: 150.638 | DI13: 103.572 | DJ13: 121.062 | DK13: 93.282 | DL13: 125.508 | DM13: 71.429 | DN13: 141.099 | DO13: 82.776 | DP13: 130.282 | DQ13: 76.229 | DR13: 115.664 | DS13: 74.176 | DT13: 142.06 | DU13: 90.913 | DV13: 171.828 | DW13: 144.731 | DX13: 253.318 | DY13: 190.841 | DZ13: 237.656 | EA13: 203.262 | EB13: 205.15 | EC13: 150.44 | ED13: 178.681 | EE13: 124.665 | EF13: 150.638 | EG13: 103.572 | EH13: 121.062 | EI13: 93.282 | EJ13: 125.508 | EK13: 71.429 | EL13: 141.099 | EM13: 82.776 | EN13: 130.282 | EO13: 76.229 | EP13: 115.664 | EQ13: 74.176 | ER13: 136.788 | ES13: 96.185 | ET13: 179.221 | EU13: 137.338 | EV13: 253.318 | EW13: 190.841 | EX13: 237.656 | EY13: 203.262 | EZ13: 205.15 | FA13: 150.44 | FB13: 178.681 | FC13: 124.665 | FD13: 150.638 | FE13: 103.572 | FF13: 121.062 | FG13: 93.282 | FH13: 125.508 | FI13: 71.429 | FJ13: 136.032 | FK13: 87.842 | FL13: 134.955 | FM13: 71.555 | FN13: 115.664 | FO13: 74.176 | FP13: 136.788 | FQ13: 96.185 | FR13: 179.221 | FS13: 137.338 | FT13: 253.318 | FU13: 190.841 | FV13: 237.656 | FW13: 203.262 | FX13: 205.15 | FY13: 150.44 | FZ13: 178.681 | GA13: 124.665 | GB13: 144.693 | GC13: 109.517 | GD13: 125.913 | GE13: 88.431 | GF13: 125.508 | GG13: 71.429 | GH13: 136.032 | GI13: 87.842 | GJ13: 134.955 | GK13: 71.555 | GL13: 115.664 | GM13: 74.176 | GN13: 136.788 | GO13: 96.185 | GP13: 179.221 | GQ13: 137.338 | GR13: 243.266 | GS13: 200.893 | GT13: 247.634 | GU13: 193.284 | GV13: 213.749 | GW13: 154.54 | GX13: 171.807 | GY13: 131.539 | GZ13: 150.638 | HA13: 103.572 | HB13: 125.913 | HC13: 88.431 | HD13: 120.902 | HE13: 76.035 | HF13: 141.099 | HG13: 82.776 | HH13: 134.955 | HI13: 71.555 | HJ13: 111.225 | HK13: 78.616 | HL13: 142.06 | HM13: 90.913 | HN13: 179.221 | HO13: 137.338 | HP13: 243.266 | HQ13: 200.893 | HR13: 247.634 | HS13: 193.284 | HT13: 205.15 | HU13: 150.44 | HV13: 171.807 | HW13: 131.539 | HX13: 150.638 | HY13: 103.572 | HZ13: 125.913 | IA13: 88.431 | IB13: 120.902 | IC13: 76.035 | ID13: 141.099 | IE13: 82.776 | IF13: 130.282 | IG13: 76.229 | IH13: 115.664 | II13: 74.176 | IJ13: 142.06 | IK13: 90.913 | IL13: 171.828 | IM13: 144.731 | IN13: 253.318 | IO13: 190.841 | IP13: 247.634 | IQ13: 193.284 | IR13: 205.15 | IS13: 150.44 | IT13: 171.807 | IU13: 131.539 | IV13: 150.638 | IW13: 103.572 | IX13: 121.062 | IY13: 93.282 | IZ13: 125.508 | JA13: 71.429 | JB13: 141.099 | JC13: 82.776 | JD13: 130.282 | JE13: 76.229 | JF13: 115.664 | JG13: 74.176 | JH13: 142.06 | JI13: 90.913 | JJ13: 171.828 | JK13: 144.731 | JL13: 253.318 | JM13: 190.841 | JN13: 237.656 | JO13: 203.262 | JP13: 205.15 | JQ13: 150.44 | JR13: 178.681 | JS13: 124.665 | JT13: 150.638 | JU13: 103.572 | JV13: 121.062 | JW13: 93.282 | JX13: 125.508 | JY13: 71.429 | JZ13: 141.099 | KA13: 82.776 | KB13: 130.282 | KC13: 76.229 | KD13: 115.664 | KE13: 74.176 | KF13: 136.788 | KG13: 96.185 | KH13: 179.221 | KI13: 137.338 | KJ13: 253.318 | KK13: 190.841 | KL13: 237.656 | KM13: 203.262 | KN13: 213.749 | KO13: 154.54 | KP13: 178.681 | KQ13: 124.665 | KR13: 144.693 | KS13: 109.517 | KT13: 125.913 | KU13: 88.431 | KV13: 125.508 | KW13: 71.429 | KX13: 136.032 | KY13: 87.842 | KZ13: 134.955 | LA13: 71.555 | LB13: 115.664 | LC13: 74.176 | LD13: 136.788 | LE13: 96.185 | LF13: 179.221 | LG13: 137.338 | LH13: 243.266 | LI13: 200.893 | LJ13: 247.634 | LK13: 193.284 | LL13: 205.15 | LM13: 150.44 | LN13: 178.681 | LO13: 124.665 | LP13: 144.693 | LQ13: 109.517 | LR13: 125.913 | LS13: 88.431 | LT13: 125.508 | LU13: 71.429 | LV13: 136.032 | LW13: 87.842 | LX13: 134.955 | LY13: 71.555 | LZ13: 111.225 | MA13: 78.616 | MB13: 142.06 | MC13: 90.913 | MD13: 179.221 | ME13: 137.338 | MF13: 243.266 | MG13: 200.893 | MH13: 247.634 | MI13: 193.284 | MJ13: 205.15 | MK13: 150.44 | ML13: 171.807 | MM13: 131.539 | MN13: 150.638 | MO13: 103.572 | MP13: 125.913 | MQ13: 88.431 | MR13: 120.902 | MS13: 76.035 | MT13: 141.099 | MU13: 82.776 | MV13: 134.955 | MW13: 71.555 | MX13: 111.225 | MY13: 78.616 | MZ13: 142.06 | NA13: 90.913 | NB13: 179.221 | NC13: 137.338 | ND13: 243.266 | NE13: 200.893 | NF13: 247.634 | NG13: 193.284 | NH13: 205.15 | NI13: 150.44 | NJ13: 171.807 | NK13: 131.539 | NL13: 150.638 | NM13: 103.572 | NN13: 125.913 | NO13: 88.431 | NP13: 120.902 | NQ13: 76.035 | NR13: 141.099 | NS13: 82.776 | NT13: 130.282 | NU13: 76.229 | NV13: 115.664 | NW13: 74.176 | NY13: 3445.076 | NZ13: 3419.434 | OA13: 3258.643 | OB13: 3268.733 | OC13: 3391.961 | OD13: 3379.262 | OE13: 3379.26 | OF13: 3379.26 | OG13: 3391.961 | OH13: 3379.262 | OI13: 3379.262 | OJ13: 3379.262 | OK13: 3391.959 | OL13: 3379.261 | OM13: 3379.262 | ON13: 3379.262
A14: 0 | B14: 10057 | C14: Ashland, City of | D14: 9275.919 | E14: 4835.144 | F14: 10026.972 | G14: 6746.062 | H14: 11502.778 | I14: 6930.567 | J14: 11288.175 | K14: 7518.079 | L14: 10300.496 | M14: 5821.833 | N14: 9863.293 | O14: 5376.762 | P14: 9263.47 | Q14: 5011.36 | R14: 8221.579 | S14: 5201.742 | T14: 8454.343 | U14: 4400.6 | V14: 9920.263 | W14: 5925.064 | X14: 10199.979 | Y14: 5050.73 | Z14: 7891.823 | AA14: 4459.587 | AB14: 8987.99 | AC14: 5192.559 | AD14: 10457.183 | AE14: 6352.214 | AF14: 11528.401 | AG14: 6942.749 | AH14: 11305.262 | AI14: 7535.154 | AJ14: 9927.731 | AK14: 5698.396 | AL14: 9884.841 | AM14: 5389.758 | AN14: 8933.663 | AO14: 5376.108 | AP14: 8552.345 | AQ14: 4920.277 | AR14: 8484.262 | AS14: 4413.106 | AT14: 9921.165 | AU14: 5930.956 | AV14: 10209.14 | AW14: 5049.664 | AX14: 7937.084 | AY14: 4486.918 | AZ14: 8616.324 | BA14: 4977.749 | BB14: 10111.185 | BC14: 6142.031 | BD14: 10712.182 | BE14: 7130.701 | BF14: 11379.161 | BG14: 6861.796 | BH14: 9667.987 | BI14: 5548.163 | BJ14: 9579.046 | BK14: 5222.771 | BL14: 8573.955 | BM14: 5159.592 | BN14: 8137.574 | BO14: 4680.977 | BP14: 8004.426 | BQ14: 4162.341 | BR14: 9565.919 | BS14: 5717.732 | BT14: 9811.252 | BU14: 4853.319 | BV14: 7265.506 | BW14: 4562.389 | BX14: 8939.39 | BY14: 4654.684 | BZ14: 10111.185 | CA14: 6142.031 | CB14: 10712.182 | CC14: 7130.701 | CD14: 11379.161 | CE14: 6861.796 | CF14: 9667.987 | CG14: 5548.163 | CH14: 9226.805 | CI14: 5575.012 | CJ14: 8911.215 | CK14: 4822.332 | CL14: 8137.574 | CM14: 4680.977 | CN14: 7705.642 | CO14: 4461.125 | CP14: 9929.138 | CQ14: 5354.514 | CR14: 9811.252 | CS14: 4853.319 | CT14: 7265.506 | CU14: 4562.389 | CV14: 8757.063 | CW14: 4559.748 | CX14: 10098.551 | CY14: 6134.359 | CZ14: 10750.429 | DA14: 7156.161 | DB14: 11374.332 | DC14: 6858.877 | DD14: 9924.726 | DE14: 5606.778 | DF14: 9234.012 | DG14: 5579.363 | DH14: 8846.936 | DI14: 4787.541 | DJ14: 7733.906 | DK14: 4922.57 | DL14: 8024.084 | DM14: 4172.559 | DN14: 9923.991 | DO14: 5351.732 | DP14: 9751.764 | DQ14: 5360.688 | DR14: 7639.472 | DS14: 4319.129 | DT14: 8757.063 | DU14: 4559.748 | DV14: 9700.468 | DW14: 6532.442 | DX14: 11175.981 | DY14: 6730.608 | DZ14: 10941.018 | EA14: 7292.191 | EB14: 9534.645 | EC14: 5471.636 | ED14: 9586.526 | EE14: 5226.849 | EF14: 8846.936 | EG14: 4787.541 | EH14: 7733.906 | EI14: 4922.57 | EJ14: 8024.084 | EK14: 4172.559 | EL14: 9923.991 | EM14: 5351.732 | EN14: 9751.764 | EO14: 5360.688 | EP14: 7639.472 | EQ14: 4319.129 | ER14: 8440.589 | ES14: 4876.223 | ET14: 10098.551 | EU14: 6134.359 | EV14: 11175.981 | EW14: 6730.608 | EX14: 10941.018 | EY14: 7292.191 | EZ14: 9534.645 | FA14: 5471.636 | FB14: 9586.526 | FC14: 5226.849 | FD14: 8846.936 | FE14: 4787.541 | FF14: 7733.906 | FG14: 4922.57 | FH14: 8024.084 | FI14: 4172.559 | FJ14: 9560.962 | FK14: 5714.762 | FL14: 10110.912 | FM14: 5001.539 | FN14: 7639.472 | FO14: 4319.129 | FP14: 8440.589 | FQ14: 4876.223 | FR14: 10098.551 | FS14: 6134.359 | FT14: 11175.981 | FU14: 6730.608 | FV14: 10941.018 | FW14: 7292.191 | FX14: 9534.645 | FY14: 5471.636 | FZ14: 9586.526 | GA14: 5226.849 | GB14: 8512.11 | GC14: 5122.366 | GD14: 8034.689 | GE14: 4621.788 | GF14: 8024.084 | GG14: 4172.559 | GH14: 9560.962 | GI14: 5714.762 | GJ14: 10110.912 | GK14: 5001.539 | GL14: 7639.472 | GM14: 4319.129 | GN14: 8440.589 | GO14: 4876.223 | GP14: 10098.551 | GQ14: 6134.359 | GR14: 10750.429 | GS14: 7156.161 | GT14: 11374.332 | GU14: 6858.877 | GV14: 9924.726 | GW14: 5606.778 | GX14: 9234.012 | GY14: 5579.363 | GZ14: 8846.936 | HA14: 4787.541 | HB14: 8034.689 | HC14: 4621.788 | HD14: 7724.567 | HE14: 4472.075 | HF14: 9923.991 | HG14: 5351.732 | HH14: 10110.912 | HI14: 5001.539 | HJ14: 7345.801 | HK14: 4612.799 | HL14: 8757.063 | HM14: 4559.748 | HN14: 10098.551 | HO14: 6134.359 | HP14: 10750.429 | HQ14: 7156.161 | HR14: 11374.332 | HS14: 6858.877 | HT14: 9534.645 | HU14: 5471.636 | HV14: 9234.012 | HW14: 5579.363 | HX14: 8846.936 | HY14: 4787.541 | HZ14: 8034.689 | IA14: 4621.788 | IB14: 7724.567 | IC14: 4472.075 | ID14: 9923.991 | IE14: 5351.732 | IF14: 9751.764 | IG14: 5360.688 | IH14: 7639.472 | II14: 4319.129 | IJ14: 8757.063 | IK14: 4559.748 | IL14: 9700.468 | IM14: 6532.442 | IN14: 11175.981 | IO14: 6730.608 | IP14: 11374.332 | IQ14: 6858.877 | IR14: 9534.645 | IS14: 5471.636 | IT14: 9234.012 | IU14: 5579.363 | IV14: 8846.936 | IW14: 4787.541 | IX14: 7733.906 | IY14: 4922.57 | IZ14: 8024.084 | JA14: 4172.559 | JB14: 9923.991 | JC14: 5351.732 | JD14: 9751.764 | JE14: 5360.688 | JF14: 7639.472 | JG14: 4319.129 | JH14: 8757.063 | JI14: 4559.748 | JJ14: 9700.468 | JK14: 6532.442 | JL14: 11175.981 | JM14: 6730.608 | JN14: 10941.018 | JO14: 7292.191 | JP14: 9534.645 | JQ14: 5471.636 | JR14: 9586.526 | JS14: 5226.849 | JT14: 8846.936 | JU14: 4787.541 | JV14: 7733.906 | JW14: 4922.57 | JX14: 8024.084 | JY14: 4172.559 | JZ14: 9923.991 | KA14: 5351.732 | KB14: 9751.764 | KC14: 5360.688 | KD14: 7639.472 | KE14: 4319.129 | KF14: 8440.589 | KG14: 4876.223 | KH14: 10098.551 | KI14: 6134.359 | KJ14: 11175.981 | KK14: 6730.608 | KL14: 10941.018 | KM14: 7292.191 | KN14: 9924.726 | KO14: 5606.778 | KP14: 9586.526 | KQ14: 5226.849 | KR14: 8512.11 | KS14: 5122.366 | KT14: 8034.689 | KU14: 4621.788 | KV14: 8024.084 | KW14: 4172.559 | KX14: 9560.962 | KY14: 5714.762 | KZ14: 10110.912 | LA14: 5001.539 | LB14: 7639.472 | LC14: 4319.129 | LD14: 8440.589 | LE14: 4876.223 | LF14: 10098.551 | LG14: 6134.359 | LH14: 10750.429 | LI14: 7156.161 | LJ14: 11374.332 | LK14: 6858.877 | LL14: 9534.645 | LM14: 5471.636 | LN14: 9586.526 | LO14: 5226.849 | LP14: 8512.11 | LQ14: 5122.366 | LR14: 8034.689 | LS14: 4621.788 | LT14: 8024.084 | LU14: 4172.559 | LV14: 9560.962 | LW14: 5714.762 | LX14: 10110.912 | LY14: 5001.539 | LZ14: 7345.801 | MA14: 4612.799 | MB14: 8757.063 | MC14: 4559.748 | MD14: 10098.551 | ME14: 6134.359 | MF14: 10750.429 | MG14: 7156.161 | MH14: 11374.332 | MI14: 6858.877 | MJ14: 9534.645 | MK14: 5471.636 | ML14: 9234.012 | MM14: 5579.363 | MN14: 8846.936 | MO14: 4787.541 | MP14: 8034.689 | MQ14: 4621.788 | MR14: 7724.567 | MS14: 4472.075 | MT14: 9923.991 | MU14: 5351.732 | MV14: 10110.912 | MW14: 5001.539 | MX14: 7345.801 | MY14: 4612.799 | MZ14: 8757.063 | NA14: 4559.748 | NB14: 10098.551 | NC14: 6134.359 | ND14: 10750.429 | NE14: 7156.161 | NF14: 11374.332 | NG14: 6858.877 | NH14: 9534.645 | NI14: 5471.636 | NJ14: 9234.012 | NK14: 5579.363 | NL14: 8846.936 | NM14: 4787.541 | NN14: 8034.689 | NO14: 4621.788 | NP14: 7724.567 | NQ14: 4472.075 | NR14: 9923.991 | NS14: 5351.732 | NT14: 9751.764 | NU14: 5360.688 | NV14: 7639.472 | NW14: 4319.129 | NY14: 183486.62 | NZ14: 183416.926 | OA14: 176444.078 | OB14: 176444.08 | OC14: 176868.771 | OD14: 176343.547 | OE14: 176343.548 | OF14: 176343.548 | OG14: 176868.77 | OH14: 176343.548 | OI14: 176343.547 | OJ14: 176343.547 | OK14: 176868.771 | OL14: 176343.548 | OM14: 176343.546 | ON14: 176343.548
A15: 0 | B15: 10059 | C15: Bandon, City of | D15: 3291.089 | E15: 1769.144 | F15: 3699.018 | G15: 2550.542 | H15: 4153.158 | I15: 2611.47 | J15: 4236.726 | K15: 2977.043 | L15: 3854.986 | M15: 2249.686 | N15: 3733.568 | O15: 2149.633 | P15: 3468.747 | Q15: 2047.263 | R15: 2762.619 | S15: 1883.515 | T15: 2829.275 | U15: 1578.71 | V15: 2663.381 | W15: 1752.987 | X15: 2924.745 | Y15: 1563.969 | Z15: 2839.539 | AA15: 1698.706 | AB15: 3185.497 | AC15: 1887.311 | AD15: 3853.201 | AE15: 2411.886 | AF15: 4163.47 | AG15: 2617.954 | AH15: 4247.244 | AI15: 2984.434 | AJ15: 3711.058 | AK15: 2197.739 | AL15: 3742.833 | AM15: 2154.967 | AN15: 3349.202 | AO15: 2180.493 | AP15: 2873.931 | AQ15: 1783.728 | AR15: 2836.292 | AS15: 1582.625 | AT15: 2669.985 | AU15: 1757.334 | AV15: 2931.996 | AW15: 1567.846 | AX15: 2846.58 | AY15: 1702.918 | AZ15: 3152.335 | BA15: 1868.601 | BB15: 3836.129 | BC15: 2400.591 | BD15: 3991.674 | BE15: 2747.801 | BF15: 4398.943 | BG15: 2822.024 | BH15: 3712.697 | BI15: 2204.018 | BJ15: 3823.497 | BK15: 2199.82 | BL15: 3294.9 | BM15: 2153.792 | BN15: 2875.888 | BO15: 1784.271 | BP15: 2830.277 | BQ15: 1578.848 | BR15: 2637.94 | BS15: 1741.427 | BT15: 2889.683 | BU15: 1547.548 | BV15: 2732.367 | BW15: 1803.483 | BX15: 3274.146 | BY15: 1759.342 | BZ15: 3845.719 | CA15: 2406.593 | CB15: 4001.653 | CC15: 2754.671 | CD15: 4409.94 | CE15: 2829.08 | CF15: 3721.979 | CG15: 2209.528 | CH15: 3696.196 | CI15: 2342.18 | CJ15: 3430.896 | CK15: 2031.418 | CL15: 2883.077 | CM15: 1788.732 | CN15: 2733.969 | CO15: 1686.179 | CP15: 2743.907 | CQ15: 1646.406 | CR15: 2896.907 | CS15: 1551.417 | CT15: 2739.198 | CU15: 1807.991 | CV15: 3333.658 | CW15: 1797.231 | CX15: 3902.055 | CY15: 2510.581 | CZ15: 4066.327 | DA15: 2865.106 | DB15: 4494.553 | DC15: 2909.882 | DD15: 3935.166 | DE15: 2342.848 | DF15: 3713.923 | DG15: 2400.046 | DH15: 3527.276 | DI15: 2105.387 | DJ15: 2777.008 | DK15: 1929.075 | DL15: 2880.15 | DM15: 1630.281 | DN15: 2797.952 | DO15: 1699.7 | DP15: 2823.946 | DQ15: 1703.475 | DR15: 2871.328 | DS15: 1739.221 | DT15: 3341.96 | DU15: 1801.707 | DV15: 3749.353 | DW15: 2679.249 | DX15: 4246.584 | DY15: 2702.11 | DZ15: 4323.999 | EA15: 3098.864 | EB15: 3867.758 | EC15: 2339.743 | ED15: 3873.429 | EE15: 2255.75 | EF15: 3536.049 | EG15: 2110.624 | EH15: 2783.913 | EI15: 1933.872 | EJ15: 2887.31 | EK15: 1634.335 | EL15: 2804.906 | EM15: 1703.925 | EN15: 2830.964 | EO15: 1707.708 | EP15: 2878.462 | EQ15: 1743.542 | ER15: 3224.015 | ES15: 1932.433 | ET15: 3921.489 | EU15: 2523.085 | EV15: 4257.128 | EW15: 2708.82 | EX15: 4334.733 | EY15: 3106.557 | EZ15: 3877.358 | FA15: 2345.551 | FB15: 3883.041 | FC15: 2261.347 | FD15: 3544.821 | FE15: 2115.86 | FF15: 2790.819 | FG15: 1938.668 | FH15: 2894.471 | FI15: 1638.388 | FJ15: 2701.194 | FK15: 1818.817 | FL15: 2949.381 | FM15: 1600.542 | FN15: 2885.599 | FO15: 1747.865 | FP15: 3232.004 | FQ15: 1937.222 | FR15: 3931.204 | FS15: 2529.335 | FT15: 4267.672 | FU15: 2715.529 | FV15: 4345.468 | FW15: 3114.25 | FX15: 3886.958 | FY15: 2351.358 | FZ15: 3892.653 | GA15: 2266.945 | GB15: 3410.025 | GC15: 2264.666 | GD15: 2913.806 | GE15: 1827.383 | GF15: 2901.631 | GG15: 1642.441 | GH15: 2707.878 | GI15: 1823.317 | GJ15: 2956.677 | GK15: 1604.501 | GL15: 2892.733 | GM15: 1752.186 | GN15: 3239.993 | GO15: 1942.01 | GP15: 3940.919 | GQ15: 2535.586 | GR15: 4106.82 | GS15: 2893.636 | GT15: 4539.295 | GU15: 2938.85 | GV15: 3974.332 | GW15: 2366.166 | GX15: 3750.879 | GY15: 2423.928 | GZ15: 3562.367 | HA15: 2126.333 | HB15: 2920.999 | HC15: 1831.894 | HD15: 2793.546 | HE15: 1761.744 | HF15: 2825.773 | HG15: 1716.601 | HH15: 2963.971 | HI15: 1608.459 | HJ15: 2782.062 | HK15: 1874.313 | HL15: 3375.17 | HM15: 1819.611 | HN15: 3950.634 | HO15: 2541.837 | HP15: 4116.941 | HQ15: 2900.768 | HR15: 4550.481 | HS15: 2946.091 | HT15: 3906.157 | HU15: 2362.972 | HV15: 3760.118 | HW15: 2429.899 | HX15: 3571.144 | HY15: 2131.572 | HZ15: 2928.194 | IA15: 1836.406 | IB15: 2800.423 | IC15: 1766.081 | ID15: 2832.728 | IE15: 1720.826 | IF15: 2859.038 | IG15: 1724.643 | IH15: 2907.001 | II15: 1760.829 | IJ15: 3383.472 | IK15: 1824.086 | IL15: 3795.915 | IM15: 2712.522 | IN15: 4299.306 | IO15: 2735.657 | IP15: 4561.667 | IQ15: 2953.333 | IR15: 3915.758 | IS15: 2368.78 | IT15: 3769.361 | IU15: 2435.872 | IV15: 3579.917 | IW15: 2136.808 | IX15: 2818.443 | IY15: 1957.858 | IZ15: 2923.116 | JA15: 1654.602 | JB15: 2839.683 | JC15: 1725.051 | JD15: 2866.056 | JE15: 1728.876 | JF15: 2914.135 | JG15: 1765.15 | JH15: 3391.773 | JI15: 1828.562 | JJ15: 3805.227 | JK15: 2719.176 | JL15: 4309.851 | JM15: 2742.367 | JN15: 4388.41 | JO15: 3145.025 | JP15: 3925.362 | JQ15: 2374.589 | JR15: 3931.105 | JS15: 2289.338 | JT15: 3588.69 | JU15: 2142.044 | JV15: 2825.349 | JW15: 1962.655 | JX15: 2930.276 | JY15: 1658.655 | JZ15: 2846.637 | KA15: 1729.276 | KB15: 2873.074 | KC15: 1733.11 | KD15: 2921.27 | KE15: 1769.471 | KF15: 3271.948 | KG15: 1961.164 | KH15: 3979.78 | KI15: 2560.589 | KJ15: 4320.399 | KK15: 2749.079 | KL15: 4399.144 | KM15: 3152.718 | KN15: 4013.501 | KO15: 2389.486 | KP15: 3940.717 | KQ15: 2294.936 | KR15: 3452.121 | KS15: 2292.623 | KT15: 2949.769 | KU15: 1849.937 | KV15: 2937.436 | KW15: 1662.708 | KX15: 2741.282 | KY15: 1845.81 | KZ15: 2993.144 | LA15: 1624.291 | LB15: 2928.404 | LC15: 1773.792 | LD15: 3279.938 | LE15: 1965.952 | LF15: 3989.499 | LG15: 2566.842 | LH15: 4157.434 | LI15: 2929.299 | LJ15: 4595.229 | LK15: 2975.062 | LL15: 3944.561 | LM15: 2386.204 | LN15: 3950.329 | LO15: 2300.533 | LP15: 3460.539 | LQ15: 2298.213 | LR15: 2956.961 | LS15: 1854.448 | LT15: 2944.597 | LU15: 1666.761 | LV15: 2747.963 | LW15: 1850.309 | LX15: 3000.437 | LY15: 1628.249 | LZ15: 2816.286 | MA15: 1897.371 | MB15: 3416.682 | MC15: 1841.99 | MD15: 3999.214 | ME15: 2573.093 | MF15: 4167.556 | MG15: 2936.43 | MH15: 4606.414 | MI15: 2982.304 | MJ15: 3954.161 | MK15: 2392.011 | ML15: 3806.317 | MM15: 2459.754 | MN15: 3615.008 | MO15: 2157.754 | MP15: 2964.153 | MQ15: 1858.958 | MR15: 2834.806 | MS15: 1787.765 | MT15: 2867.501 | MU15: 1741.95 | MV15: 3007.733 | MW15: 1632.208 | MX15: 2823.13 | MY15: 1901.982 | MZ15: 3424.983 | NA15: 1846.466 | NB15: 4008.929 | NC15: 2579.344 | ND15: 4177.678 | NE15: 2943.563 | NF15: 4617.6 | NG15: 2989.545 | NH15: 3963.76 | NI15: 2397.818 | NJ15: 3815.557 | NK15: 2465.725 | NL15: 3623.781 | NM15: 2162.99 | NN15: 2971.346 | NO15: 1863.468 | NP15: 2841.686 | NQ15: 1792.104 | NR15: 2874.459 | NS15: 1746.177 | NT15: 2901.147 | NU15: 1750.045 | NV15: 2949.809 | NW15: 1786.758 | NY15: 65289.519 | NZ15: 65240.524 | OA15: 65028.554 | OB15: 65191.124 | OC15: 66756.175 | OD15: 66836.116 | OE15: 67001.982 | OF15: 67167.842 | OG15: 67420.476 | OH15: 67499.564 | OI15: 67665.424 | OJ15: 67831.292 | OK15: 68084.778 | OL15: 68163.016 | OM15: 68328.874 | ON15: 68494.738
... 18 more rows

Sheet I_CSP
B1: Customer System Peak (MW)
A2: TOC
B3: BESID | C3: AccountName | D3: JOE | E3: 2015-10-01 | F3: 2015-11-01 | G3: 2015-12-01 | H3: 2016-01-01 | I3: 2016-02-01 | J3: 2016-03-01 | K3: 2016-04-01 | L3: 2016-05-01 | M3: 2016-06-01 | N3: 2016-07-01 | O3: 2016-08-01 | P3: 2016-09-01 | Q3: 2016-10-01 | R3: 2016-11-01 | S3: 2016-12-01 | T3: 2017-01-01 | U3: 2017-02-01 | V3: 2017-03-01 | W3: 2017-04-01 | X3: 2017-05-01 | Y3: 2017-06-01 | Z3: 2017-07-01 | AA3: 2017-08-01 | AB3: 2017-09-01 | AC3: 2017-10-01 | AD3: 2017-11-01 | AE3: 2017-12-01 | AF3: 2018-01-01 | AG3: 2018-02-01 | AH3: 2018-03-01 | AI3: 2018-04-01 | AJ3: 2018-05-01 | AK3: 2018-06-01 | AL3: 2018-07-01 | AM3: 2018-08-01 | AN3: 2018-09-01 | AO3: 2018-10-01 | AP3: 2018-11-01 | AQ3: 2018-12-01 | AR3: 2019-01-01 | AS3: 2019-02-01 | AT3: 2019-03-01 | AU3: 2019-04-01 | AV3: 2019-05-01 | AW3: 2019-06-01 | AX3: 2019-07-01 | AY3: 2019-08-01 | AZ3: 2019-09-01 | BA3: 2019-10-01 | BB3: 2019-11-01 | BC3: 2019-12-01 | BD3: 2020-01-01 | BE3: 2020-02-01 | BF3: 2020-03-01 | BG3: 2020-04-01 | BH3: 2020-05-01 | BI3: 2020-06-01 | BJ3: 2020-07-01 | BK3: 2020-08-01 | BL3: 2020-09-01 | BM3: 2020-10-01 | BN3: 2020-11-01 | BO3: 2020-12-01 | BP3: 2021-01-01 | BQ3: 2021-02-01 | BR3: 2021-03-01 | BS3: 2021-04-01 | BT3: 2021-05-01 | BU3: 2021-06-01 | BV3: 2021-07-01 | BW3: 2021-08-01 | BX3: 2021-09-01 | BY3: 2021-10-01 | BZ3: 2021-11-01 | CA3: 2021-12-01 | CB3: 2022-01-01 | CC3: 2022-02-01 | CD3: 2022-03-01 | CE3: 2022-04-01 | CF3: 2022-05-01 | CG3: 2022-06-01 | CH3: 2022-07-01 | CI3: 2022-08-01 | CJ3: 2022-09-01 | CK3: 2022-10-01 | CL3: 2022-11-01 | CM3: 2022-12-01 | CN3: 2023-01-01 | CO3: 2023-02-01 | CP3: 2023-03-01 | CQ3: 2023-04-01 | CR3: 2023-05-01 | CS3: 2023-06-01 | CT3: 2023-07-01 | CU3: 2023-08-01 | CV3: 2023-09-01 | CW3: 2023-10-01 | CX3: 2023-11-01 | CY3: 2023-12-01 | CZ3: 2024-01-01 | DA3: 2024-02-01 | DB3: 2024-03-01 | DC3: 2024-04-01 | DD3: 2024-05-01 | DE3: 2024-06-01 | DF3: 2024-07-01 | DG3: 2024-08-01 | DH3: 2024-09-01 | DI3: 2024-10-01 | DJ3: 2024-11-01 | DK3: 2024-12-01 | DL3: 2025-01-01 | DM3: 2025-02-01 | DN3: 2025-03-01 | DO3: 2025-04-01 | DP3: 2025-05-01 | DQ3: 2025-06-01 | DR3: 2025-07-01 | DS3: 2025-08-01 | DT3: 2025-09-01 | DU3: 2025-10-01 | DV3: 2025-11-01 | DW3: 2025-12-01 | DX3: 2026-01-01 | DY3: 2026-02-01 | DZ3: 2026-03-01 | EA3: 2026-04-01 | EB3: 2026-05-01 | EC3: 2026-06-01 | ED3: 2026-07-01 | EE3: 2026-08-01 | EF3: 2026-09-01 | EG3: 2026-10-01 | EH3: 2026-11-01 | EI3: 2026-12-01 | EJ3: 2027-01-01 | EK3: 2027-02-01 | EL3: 2027-03-01 | EM3: 2027-04-01 | EN3: 2027-05-01 | EO3: 2027-06-01 | EP3: 2027-07-01 | EQ3: 2027-08-01 | ER3: 2027-09-01 | ES3: 2027-10-01 | ET3: 2027-11-01 | EU3: 2027-12-01 | EV3: 2028-01-01 | EW3: 2028-02-01 | EX3: 2028-03-01 | EY3: 2028-04-01 | EZ3: 2028-05-01 | FA3: 2028-06-01 | FB3: 2028-07-01 | FC3: 2028-08-01 | FD3: 2028-09-01 | FE3: 2028-10-01 | FF3: =+EOMONTH(FE3,0)+1 -> 2028-11-01 | FG3: =+EOMONTH(FF3,0)+1 -> 2028-12-01 | FH3: 2029-01-01 | FI3: 2029-02-01 | FJ3: 2029-03-01 | FK3: 2029-04-01 | FL3: 2029-05-01 | FM3: 2029-06-01 | FN3: 2029-07-01 | FO3: 2029-08-01 | FP3: 2029-09-01 | FQ3: 2029-10-01 | FR3: =+EOMONTH(FQ3,0)+1 -> 2029-11-01 | FS3: =+EOMONTH(FR3,0)+1 -> 2029-12-01 | FT3: 2030-01-01 | FU3: 2030-02-01 | FV3: 2030-03-01 | FW3: 2030-04-01 | FX3: 2030-05-01 | FY3: 2030-06-01 | FZ3: 2030-07-01 | GA3: 2030-08-01 | GB3: 2030-09-01 | GC3: 2030-10-01 | GD3: =+EOMONTH(GC3,0)+1 -> 2030-11-01 | GE3: =+EOMONTH(GD3,0)+1 -> 2030-12-01 | GF3: 2031-01-01 | GG3: 2031-02-01 | GH3: 2031-03-01 | GI3: 2031-04-01 | GJ3: 2031-05-01 | GK3: 2031-06-01 | GL3: 2031-07-01 | GM3: 2031-08-01 | GN3: 2031-09-01
B4: 10005 | C4: Alder Mutual | D4: =VLOOKUP(B4,TOCA!$B$3:$E$138,4,FALSE) -> 0 | E4: 0.961 | F4: 1.173 | G4: 1.336 | H4: 1.331 | I4: 1.245 | J4: 1.125 | K4: 0.911 | L4: 0.738 | M4: 0.602 | N4: 0.568 | O4: 0.55 | P4: 0.62 | Q4: 1.316 | R4: 1.225 | S4: 1.095 | T4: 0.881 | U4: 0.729 | V4: 0.598 | W4: 0.566 | X4: 0.549 | Y4: 0.615 | Z4: 0.937 | AA4: 1.138 | AB4: 1.309 | AC4: 0.86 | AD4: 1.16 | AE4: 1.23 | AF4: 1.29 | AG4: 1.15 | AH4: 1 | AI4: 0.89 | AJ4: 0.74 | AK4: 0.61 | AL4: 0.53 | AM4: 0.53 | AN4: 0.65 | AO4: 0.86 | AP4: 1.16 | AQ4: 1.23 | AR4: 1.29 | AS4: 1.15 | AT4: 1 | AU4: 0.89 | AV4: 0.74 | AW4: 0.61 | AX4: 0.54 | AY4: 0.54 | AZ4: 0.66 | BA4: 0.84 | BB4: 1.22 | BC4: 1.24 | BD4: 1.36 | BE4: 1.24 | BF4: 1.11 | BG4: 1.04 | BH4: 0.74 | BI4: 0.61 | BJ4: 0.57 | BK4: 0.59 | BL4: 0.65 | BM4: 0.84 | BN4: 1.23 | BO4: 1.25 | BP4: 1.37 | BQ4: 1.23 | BR4: 1.12 | BS4: 1.05 | BT4: 0.75 | BU4: 0.62 | BV4: 0.58 | BW4: 0.6 | BX4: 0.65 | BY4: 0.85 | BZ4: 1.23 | CA4: 1.25 | CB4: 1.37 | CC4: 1.24 | CD4: 1.12 | CE4: 1.05 | CF4: 0.76 | CG4: 0.62 | CH4: 0.59 | CI4: 0.61 | CJ4: 0.66 | CK4: 0.86 | CL4: 1.24 | CM4: 1.26 | CN4: 1.38 | CO4: 1.25 | CP4: 1.13 | CQ4: 1.06 | CR4: 0.76 | CS4: 0.63 | CT4: 0.59 | CU4: 0.61 | CV4: 0.67 | CW4: 0.86 | CX4: 1.25 | CY4: 1.26 | CZ4: 1.38 | DA4: 1.27 | DB4: 1.14 | DC4: 1.07 | DD4: 0.77 | DE4: 0.64 | DF4: 0.6 | DG4: 0.62 | DH4: 0.67 | DI4: 0.87 | DJ4: 1.25 | DK4: 1.27 | DL4: 1.39 | DM4: 1.26 | DN4: 1.14 | DO4: 1.07 | DP4: 0.78 | DQ4: 0.64 | DR4: 0.61 | DS4: 0.63 | DT4: 0.68 | DU4: 0.88 | DV4: 1.26 | DW4: 1.28 | DX4: 1.4 | DY4: 1.27 | DZ4: 1.15 | EA4: 1.08 | EB4: 0.78 | EC4: 0.65 | ED4: 0.61 | EE4: 0.63 | EF4: 0.69 | EG4: 0.88 | EH4: 1.27 | EI4: 1.28 | EJ4: 1.4 | EK4: 1.27 | EL4: 1.16 | EM4: 1.09 | EN4: 0.79 | EO4: 0.65 | EP4: 0.62 | EQ4: 0.64 | ER4: 0.69 | ES4: 0.89 | ET4: 1.27 | EU4: 1.29 | EV4: 1.41 | EW4: 1.29 | EX4: 1.16 | EY4: 1.09 | EZ4: 0.8 | FA4: 0.66 | FB4: 0.62 | FC4: 0.64 | FD4: 0.7 | FE4: 0.9 | FF4: 1.28 | FG4: 1.3 | FH4: 1.42 | FI4: 1.29 | FJ4: 1.17 | FK4: 1.1 | FL4: 0.8 | FM4: 0.67 | FN4: 0.63 | FO4: 0.65 | FP4: 0.71 | FQ4: 0.9 | FR4: 1.29 | FS4: 1.3 | FT4: 1.42 | FU4: 1.29 | FV4: 1.18 | FW4: 1.1 | FX4: 0.81 | FY4: 0.67 | FZ4: 0.64 | GA4: 0.66 | GB4: 0.71 | GC4: 0.91 | GD4: 1.29 | GE4: 1.31 | GF4: 1.43 | GG4: 1.3 | GH4: 1.18 | GI4: 1.11 | GJ4: 0.82 | GK4: 0.68 | GL4: 0.64 | GM4: 0.66 | GN4: 0.72
B5: 10015 | C5: Asotin County PUD #1 | D5: =VLOOKUP(B5,TOCA!$B$3:$E$138,4,FALSE) -> 0 | E5: 1.433 | F5: 1.005 | G5: 0.871 | H5: 1.014 | I5: 0.907 | J5: 0.964 | K5: 1.012 | L5: 1.742 | M5: 1.92 | N5: 2.719 | O5: 3.036 | P5: 2.243 | Q5: 1.06 | R5: 0.919 | S5: 0.965 | T5: 0.991 | U5: 1.769 | V5: 2.107 | W5: 2.715 | X5: 3.144 | Y5: 2.449 | Z5: 1.548 | AA5: 1.114 | AB5: 0.877 | AC5: 1.899 | AD5: 1.116 | AE5: 1.16 | AF5: 1.397 | AG5: 1.252 | AH5: 1.289 | AI5: 1.808 | AJ5: 2.327 | AK5: 2.829 | AL5: 3.113 | AM5: 3.023 | AN5: 2.395 | AO5: 1.93 | AP5: 1.135 | AQ5: 1.18 | AR5: 1.42 | AS5: 1.318 | AT5: 1.31 | AU5: 1.838 | AV5: 2.366 | AW5: 2.877 | AX5: 3.165 | AY5: 3.074 | AZ5: 2.435 | BA5: 1.874 | BB5: 1.095 | BC5: 1.139 | BD5: 1.379 | BE5: 1.244 | BF5: 1.244 | BG5: 1.756 | BH5: 2.273 | BI5: 2.739 | BJ5: 3.012 | BK5: 2.915 | BL5: 2.327 | BM5: 1.891 | BN5: 1.105 | BO5: 1.149 | BP5: 1.392 | BQ5: 1.303 | BR5: 1.253 | BS5: 1.771 | BT5: 2.293 | BU5: 2.76 | BV5: 3.035 | BW5: 2.937 | BX5: 2.346 | BY5: 1.908 | BZ5: 1.114 | CA5: 1.159 | CB5: 1.406 | CC5: 1.317 | CD5: 1.262 | CE5: 1.785 | CF5: 2.313 | CG5: 2.782 | CH5: 3.059 | CI5: 2.958 | CJ5: 2.365 | CK5: 1.926 | CL5: 1.123 | CM5: 1.168 | CN5: 1.42 | CO5: 1.331 | CP5: 1.272 | CQ5: 1.8 | CR5: 2.334 | CS5: 2.804 | CT5: 3.083 | CU5: 2.98 | CV5: 2.385 | CW5: 1.943 | CX5: 1.132 | CY5: 1.178 | CZ5: 1.434 | DA5: 1.299 | DB5: 1.281 | DC5: 1.815 | DD5: 2.355 | DE5: 2.826 | DF5: 3.107 | DG5: 3.002 | DH5: 2.405 | DI5: 1.961 | DJ5: 1.142 | DK5: 1.188 | DL5: 1.448 | DM5: 1.36 | DN5: 1.291 | DO5: 1.831 | DP5: 2.376 | DQ5: 2.848 | DR5: 3.131 | DS5: 3.025 | DT5: 2.425 | DU5: 1.98 | DV5: 1.151 | DW5: 1.198 | DX5: 1.463 | DY5: 1.374 | DZ5: 1.3 | EA5: 1.846 | EB5: 2.397 | EC5: 2.871 | ED5: 3.156 | EE5: 3.047 | EF5: 2.445 | EG5: 1.998 | EH5: 1.161 | EI5: 1.208 | EJ5: 1.478 | EK5: 1.389 | EL5: 1.31 | EM5: 1.862 | EN5: 2.419 | EO5: 2.894 | EP5: 3.181 | EQ5: 3.07 | ER5: 2.465 | ES5: 2.016 | ET5: 1.171 | EU5: 1.219 | EV5: 1.493 | EW5: 1.356 | EX5: 1.32 | EY5: 1.878 | EZ5: 2.44 | FA5: 2.917 | FB5: 3.206 | FC5: 3.093 | FD5: 2.486 | FE5: 2.035 | FF5: 1.181 | FG5: 1.229 | FH5: 1.508 | FI5: 1.42 | FJ5: 1.33 | FK5: 1.894 | FL5: 2.462 | FM5: 2.94 | FN5: 3.231 | FO5: 3.116 | FP5: 2.507 | FQ5: 2.054 | FR5: 1.191 | FS5: 1.24 | FT5: 1.519 | FU5: 1.432 | FV5: 1.336 | FW5: 1.905 | FX5: 2.479 | FY5: 2.957 | FZ5: 3.249 | GA5: 3.132 | GB5: 2.522 | GC5: 2.068 | GD5: 1.198 | GE5: 1.247 | GF5: 1.531 | GG5: 1.444 | GH5: 1.343 | GI5: 1.917 | GJ5: 2.495 | GK5: 2.973 | GL5: 3.267 | GM5: 3.147 | GN5: 2.537
B6: 10024 | C6: Benton County PUD #1 | D6: =VLOOKUP(B6,TOCA!$B$3:$E$138,4,FALSE) -> 0 | E6: 223.501 | F6: 262.465 | G6: 295.813 | H6: 294.47 | I6: 270.489 | J6: 241.716 | K6: 235.285 | L6: 297.237 | M6: 399.998 | N6: 429.067 | O6: 386.093 | P6: 297.35 | Q6: 301.09 | R6: 281.731 | S6: 232.325 | T6: 275.546 | U6: 323.644 | V6: 407.383 | W6: 441.883 | X6: 410.283 | Y6: 302.983 | Z6: 249.554 | AA6: 249.212 | AB6: 292.58 | AC6: 249.653 | AD6: 249.513 | AE6: 292.93 | AF6: 302.371 | AG6: 282.931 | AH6: 233.375 | AI6: 276.526 | AJ6: 324.505 | AK6: 408.183 | AL6: 442.653 | AM6: 411.113 | AN6: 303.884 | AO6: 250.633 | AP6: 250.682 | AQ6: 294.241 | AR6: 303.76 | AS6: 284.231 | AT6: 234.545 | AU6: 277.626 | AV6: 325.485 | AW6: 409.123 | AX6: 443.553 | AY6: 412.053 | AZ6: 304.913 | BA6: 238.872 | BB6: 256.3 | BC6: 299.931 | BD6: 303.872 | BE6: 286.395 | BF6: 244.323 | BG6: 255.688 | BH6: 360.895 | BI6: 400.004 | BJ6: 428.66 | BK6: 403.99 | BL6: 299.168 | BM6: 239.811 | BN6: 257.31 | BO6: 301.115 | BP6: 305.072 | BQ6: 287.525 | BR6: 245.285 | BS6: 256.695 | BT6: 362.323 | BU6: 401.588 | BV6: 430.358 | BW6: 405.589 | BX6: 300.349 | BY6: 240.755 | BZ6: 258.323 | CA6: 302.303 | CB6: 306.276 | CC6: 288.659 | CD6: 246.25 | CE6: 257.706 | CF6: 363.756 | CG6: 403.178 | CH6: 432.064 | CI6: 407.196 | CJ6: 301.535 | CK6: 241.702 | CL6: 259.34 | CM6: 303.496 | CN6: 307.485 | CO6: 289.798 | CP6: 247.219 | CQ6: 258.721 | CR6: 365.195 | CS6: 404.775 | CT6: 433.776 | CU6: 408.809 | CV6: 302.725 | CW6: 242.653 | CX6: 260.362 | CY6: 304.694 | CZ6: 308.699 | DA6: 290.941 | DB6: 248.192 | DC6: 259.74 | DD6: 366.64 | DE6: 406.378 | DF6: 435.495 | DG6: 410.428 | DH6: 303.92 | DI6: 243.607 | DJ6: 261.387 | DK6: 305.897 | DL6: 309.918 | DM6: 292.089 | DN6: 249.168 | DO6: 260.762 | DP6: 368.091 | DQ6: 407.988 | DR6: 437.221 | DS6: 412.054 | DT6: 305.119 | DU6: 244.566 | DV6: 262.417 | DW6: 307.105 | DX6: 311.142 | DY6: 293.241 | DZ6: 250.149 | EA6: 261.79 | EB6: 369.547 | EC6: 409.604 | ED6: 438.954 | EE6: 413.686 | EF6: 306.324 | EG6: 245.528 | EH6: 263.45 | EI6: 308.317 | EJ6: 312.37 | EK6: 294.398 | EL6: 251.134 | EM6: 262.821 | EN6: 371.009 | EO6: 411.226 | EP6: 440.694 | EQ6: 415.325 | ER6: 307.533 | ES6: 246.494 | ET6: 264.488 | EU6: 309.535 | EV6: 313.604 | EW6: 295.56 | EX6: 252.122 | EY6: 263.856 | EZ6: 372.477 | FA6: 412.855 | FB6: 442.441 | FC6: 416.97 | FD6: 308.747 | FE6: 247.464 | FF6: 265.53 | FG6: 310.757 | FH6: 314.842 | FI6: 296.726 | FJ6: 253.115 | FK6: 264.895 | FL6: 373.951 | FM6: 414.491 | FN6: 444.194 | FO6: 418.622 | FP6: 309.966 | FQ6: 248.438 | FR6: 266.576 | FS6: 311.984 | FT6: 316.086 | FU6: 297.897 | FV6: 254.111 | FW6: 265.939 | FX6: 375.431 | FY6: 416.132 | FZ6: 445.955 | GA6: 420.28 | GB6: 311.19 | GC6: 249.416 | GD6: 267.626 | GE6: 313.216 | GF6: 317.334 | GG6: 299.072 | GH6: 255.112 | GI6: 266.987 | GJ6: 376.917 | GK6: 417.781 | GL6: 447.723 | GM6: 421.945 | GN6: 312.419
B7: 10025 | C7: Benton REA | D7: =VLOOKUP(B7,TOCA!$B$3:$E$138,4,FALSE) -> 0 | E7: 88.278 | F7: 96.661 | G7: 95.101 | H7: 98.483 | I7: 93.882 | J7: 82.053 | K7: 91.517 | L7: 96.816 | M7: 120.441 | N7: 130.583 | O7: 128.492 | P7: 117.882 | Q7: 104.394 | R7: 97.055 | S7: 80.68 | T7: 90.179 | U7: 102.645 | V7: 113.348 | W7: 130.186 | X7: 124.419 | Y7: 110.05 | Z7: 85.127 | AA7: 85.577 | AB7: 99.02 | AC7: 78.985 | AD7: 77.415 | AE7: 94.23 | AF7: 96.668 | AG7: 89.349 | AH7: 74.115 | AI7: 81.122 | AJ7: 92.519 | AK7: 99.42 | AL7: 114.48 | AM7: 105.454 | AN7: 90.146 | AO7: 80.255 | AP7: 78.685 | AQ7: 95.7 | AR7: 98.208 | AS7: 90.769 | AT7: 75.285 | AU7: 82.442 | AV7: 93.999 | AW7: 101.11 | AX7: 116.43 | AY7: 107.314 | AZ7: 91.756 | BA7: 81.95 | BB7: 81.004 | BC7: 95.02 | BD7: 94.354 | BE7: 88.867 | BF7: 75.428 | BG7: 84.355 | BH7: 96.408 | BI7: 109.85 | BJ7: 123.921 | BK7: 120.948 | BL7: 100.843 | BM7: 84.342 | BN7: 83.415 | BO7: 97.447 | BP7: 96.739 | BQ7: 91.246 | BR7: 77.69 | BS7: 86.588 | BT7: 98.66 | BU7: 112.105 | BV7: 126.16 | BW7: 123.117 | BX7: 102.866 | BY7: 86.154 | BZ7: 85.118 | CA7: 99.082 | CB7: 98.258 | CC7: 92.742 | CD7: 79.133 | CE7: 88.066 | CF7: 100.182 | CG7: 113.686 | CH7: 127.797 | CI7: 124.743 | CJ7: 104.408 | CK7: 87.622 | CL7: 86.593 | CM7: 100.613 | CN7: 99.787 | CO7: 94.249 | CP7: 80.586 | CQ7: 89.555 | CR7: 101.714 | CS7: 115.278 | CT7: 129.446 | CU7: 126.38 | CV7: 105.96 | CW7: 89.101 | CX7: 88.078 | CY7: 102.155 | CZ7: 101.327 | DA7: 95.766 | DB7: 82.049 | DC7: 91.055 | DD7: 103.257 | DE7: 116.881 | DF7: 131.106 | DG7: 128.028 | DH7: 107.523 | DI7: 90.591 | DJ7: 89.574 | DK7: 103.708 | DL7: 102.878 | DM7: 97.294 | DN7: 83.523 | DO7: 92.565 | DP7: 104.811 | DQ7: 118.494 | DR7: 132.776 | DS7: 129.687 | DT7: 109.098 | DU7: 92.091 | DV7: 91.081 | DW7: 105.271 | DX7: 104.439 | DY7: 98.833 | DZ7: 85.008 | EA7: 94.086 | EB7: 106.376 | EC7: 120.119 | ED7: 134.459 | EE7: 131.358 | EF7: 110.682 | EG7: 93.602 | EH7: 92.598 | EI7: 106.846 | EJ7: 106.011 | EK7: 100.382 | EL7: 86.503 | EM7: 95.618 | EN7: 107.952 | EO7: 121.755 | EP7: 136.152 | EQ7: 133.04 | ER7: 112.278 | ES7: 95.124 | ET7: 94.126 | EU7: 108.431 | EV7: 107.595 | EW7: 101.943 | EX7: 88.008 | EY7: 97.16 | EZ7: 109.538 | FA7: 123.402 | FB7: 137.857 | FC7: 134.733 | FD7: 113.885 | FE7: 96.656 | FF7: 95.665 | FG7: 110.027 | FH7: 109.189 | FI7: 103.514 | FJ7: 89.525 | FK7: 98.713 | FL7: 111.136 | FM7: 125.06 | FN7: 139.574 | FO7: 136.437 | FP7: 115.504 | FQ7: 98.199 | FR7: 97.214 | FS7: 111.635 | FT7: 110.794 | FU7: 105.096 | FV7: 91.052 | FW7: 100.278 | FX7: 112.745 | FY7: 126.73 | FZ7: 141.302 | GA7: 138.154 | GB7: 117.133 | GC7: 99.753 | GD7: 98.774 | GE7: 113.253 | GF7: 112.411 | GG7: 106.69 | GH7: 92.589 | GI7: 101.853 | GJ7: 114.365 | GK7: 128.411 | GL7: 143.042 | GM7: 139.881 | GN7: 118.773
B8: 10027 | C8: Big Bend Elec Coop | D8: =VLOOKUP(B8,TOCA!$B$3:$E$138,4,FALSE) -> 0 | E8: 71.7 | F8: 46 | G8: 51.5 | H8: 51.2 | I8: 46.2 | J8: 42.8 | K8: 78.8 | L8: 111.5 | M8: 128.6 | N8: 131.1 | O8: 121.7 | P8: 105.9 | Q8: 53.178 | R8: 49.483 | S8: 47.529 | T8: 82.703 | U8: 115.435 | V8: 132.241 | W8: 135.062 | X8: 125.324 | Y8: 108.328 | Z8: 74.193 | AA8: 48.731 | AB8: 54.745 | AC8: 73.882 | AD8: 49.47 | AE8: 55.472 | AF8: 53.89 | AG8: 50.236 | AH8: 48.282 | AI8: 82.019 | AJ8: 113.798 | AK8: 130.201 | AL8: 132.631 | AM8: 123.367 | AN8: 107.057 | AO8: 74.691 | AP8: 50.279 | AQ8: 56.282 | AR8: 54.7 | AS8: 51.045 | AT8: 49.091 | AU8: 82.828 | AV8: 114.608 | AW8: 131.01 | AX8: 133.44 | AY8: 124.176 | AZ8: 107.866 | BA8: 80.942 | BB8: 56.193 | BC8: 62.265 | BD8: 61.78 | BE8: 55.899 | BF8: 56.741 | BG8: 90.161 | BH8: 120.134 | BI8: 137.036 | BJ8: 136.268 | BK8: 128.725 | BL8: 111.741 | BM8: 81.885 | BN8: 57.136 | BO8: 63.208 | BP8: 62.724 | BQ8: 56.842 | BR8: 57.684 | BS8: 91.104 | BT8: 121.078 | BU8: 137.979 | BV8: 137.211 | BW8: 129.668 | BX8: 112.684 | BY8: 82.828 | BZ8: 58.079 | CA8: 64.151 | CB8: 63.667 | CC8: 57.786 | CD8: 58.628 | CE8: 92.047 | CF8: 122.021 | CG8: 138.922 | CH8: 138.154 | CI8: 130.611 | CJ8: 113.628 | CK8: 83.772 | CL8: 59.022 | CM8: 65.094 | CN8: 64.61 | CO8: 58.729 | CP8: 59.571 | CQ8: 92.991 | CR8: 122.964 | CS8: 139.865 | CT8: 139.098 | CU8: 131.554 | CV8: 114.571 | CW8: 84.715 | CX8: 59.966 | CY8: 66.037 | CZ8: 65.553 | DA8: 59.672 | DB8: 60.514 | DC8: 93.934 | DD8: 123.907 | DE8: 140.809 | DF8: 140.041 | DG8: 132.497 | DH8: 115.514 | DI8: 85.658 | DJ8: 60.909 | DK8: 66.981 | DL8: 66.497 | DM8: 60.615 | DN8: 61.457 | DO8: 94.877 | DP8: 124.85 | DQ8: 141.752 | DR8: 140.984 | DS8: 133.44 | DT8: 116.457 | DU8: 86.601 | DV8: 61.852 | DW8: 67.924 | DX8: 67.44 | DY8: 61.558 | DZ8: 62.401 | EA8: 95.82 | EB8: 125.794 | EC8: 142.695 | ED8: 141.927 | EE8: 134.383 | EF8: 117.4 | EG8: 87.544 | EH8: 62.795 | EI8: 68.867 | EJ8: 68.383 | EK8: 62.501 | EL8: 63.344 | EM8: 96.763 | EN8: 126.737 | EO8: 143.638 | EP8: 142.87 | EQ8: 135.327 | ER8: 118.343 | ES8: 88.487 | ET8: 63.739 | EU8: 69.81 | EV8: 69.326 | EW8: 63.445 | EX8: 64.287 | EY8: 97.707 | EZ8: 127.68 | FA8: 144.582 | FB8: 143.813 | FC8: 136.27 | FD8: 119.287 | FE8: 89.431 | FF8: 64.682 | FG8: 70.754 | FH8: 70.269 | FI8: 64.388 | FJ8: 65.23 | FK8: 98.65 | FL8: 128.623 | FM8: 145.525 | FN8: 144.756 | FO8: 137.213 | FP8: 120.23 | FQ8: 90.374 | FR8: 65.625 | FS8: 71.697 | FT8: 71.212 | FU8: 65.331 | FV8: 66.173 | FW8: 99.593 | FX8: 129.566 | FY8: 146.468 | FZ8: 145.7 | GA8: 138.156 | GB8: 121.173 | GC8: 91.317 | GD8: 66.568 | GE8: 72.64 | GF8: 72.155 | GG8: 66.274 | GH8: 67.116 | GI8: 100.536 | GJ8: 130.509 | GK8: 147.411 | GL8: 146.643 | GM8: 139.1 | GN8: 122.116
B9: 10029 | C9: Blachly Lane Elec Coop | D9: =VLOOKUP(B9,TOCA!$B$3:$E$138,4,FALSE) -> 1 | E9: 29.787 | F9: 32.231 | G9: 34.956 | H9: 34.924 | I9: 33.493 | J9: 32.735 | K9: 31.131 | L9: 26.612 | M9: 25.6 | N9: 25.333 | O9: 24.92 | P9: 25.173 | Q9: 34.924 | R9: 33.493 | S9: 32.735 | T9: 31.131 | U9: 26.612 | V9: 25.6 | W9: 25.333 | X9: 24.92 | Y9: 25.173 | Z9: 29.787 | AA9: 32.231 | AB9: 34.956 | AC9: 29.229 | AD9: 31.757 | AE9: 34.481 | AF9: 34.422 | AG9: 32.989 | AH9: 32.232 | AI9: 30.86 | AJ9: 25.923 | AK9: 25.068 | AL9: 24.843 | AM9: 24.154 | AN9: 24.666 | AO9: 29.229 | AP9: 31.757 | AQ9: 34.481 | AR9: 34.422 | AS9: 32.989 | AT9: 32.232 | AU9: 30.86 | AV9: 25.923 | AW9: 25.068 | AX9: 24.843 | AY9: 24.154 | AZ9: 24.666 | BA9: 31.764 | BB9: 34.371 | BC9: 36.927 | BD9: 37.157 | BE9: 36.62 | BF9: 35.32 | BG9: 33.983 | BH9: 29.155 | BI9: 28.044 | BJ9: 27.827 | BK9: 28.006 | BL9: 27.881 | BM9: 32.094 | BN9: 34.537 | BO9: 36.927 | BP9: 37.157 | BQ9: 36.62 | BR9: 35.32 | BS9: 33.983 | BT9: 29.155 | BU9: 28.044 | BV9: 27.827 | BW9: 28.006 | BX9: 27.881 | BY9: 32.094 | BZ9: 34.537 | CA9: 36.927 | CB9: 37.157 | CC9: 36.708 | CD9: 35.501 | CE9: 34.233 | CF9: 29.469 | CG9: 28.337 | CH9: 28.359 | CI9: 28.598 | CJ9: 28.578 | CK9: 32.905 | CL9: 35.423 | CM9: 37.784 | CN9: 38.163 | CO9: 37.595 | CP9: 36.316 | CQ9: 34.9 | CR9: 30.018 | CS9: 28.688 | CT9: 28.802 | CU9: 28.936 | CV9: 28.839 | CW9: 33.085 | CX9: 35.511 | CY9: 37.784 | CZ9: 38.163 | DA9: 37.595 | DB9: 36.316 | DC9: 34.9 | DD9: 30.018 | DE9: 28.688 | DF9: 28.802 | DG9: 28.936 | DH9: 28.839 | DI9: 33.085 | DJ9: 35.511 | DK9: 37.784 | DL9: 38.163 | DM9: 37.595 | DN9: 36.316 | DO9: 34.9 | DP9: 30.018 | DQ9: 28.688 | DR9: 28.802 | DS9: 28.936 | DT9: 28.839 | DU9: 33.085 | DV9: 35.511 | DW9: 37.784 | DX9: 38.163 | DY9: 37.683 | DZ9: 36.497 | EA9: 35.15 | EB9: 30.332 | EC9: 28.981 | ED9: 29.334 | EE9: 29.527 | EF9: 29.537 | EG9: 33.895 | EH9: 36.397 | EI9: 38.642 | EJ9: 39.169 | EK9: 38.57 | EL9: 37.311 | EM9: 35.817 | EN9: 30.881 | EO9: 29.333 | EP9: 29.778 | EQ9: 29.865 | ER9: 29.798 | ES9: 34.075 | ET9: 36.486 | EU9: 38.642 | EV9: 39.169 | EW9: 38.57 | EX9: 37.311 | EY9: 35.817 | EZ9: 30.881 | FA9: 29.333 | FB9: 29.778 | FC9: 29.865 | FD9: 29.798 | FE9: 34.075 | FF9: 36.486 | FG9: 38.642 | FH9: 39.169 | FI9: 38.57 | FJ9: 37.311 | FK9: 35.817 | FL9: 30.881 | FM9: 29.333 | FN9: 29.778 | FO9: 29.865 | FP9: 29.798 | FQ9: 34.075 | FR9: 36.486 | FS9: 38.642 | FT9: 39.169 | FU9: 38.57 | FV9: 37.311 | FW9: 35.817 | FX9: 30.881 | FY9: 29.333 | FZ9: 29.778 | GA9: 29.865 | GB9: 29.798 | GC9: 34.075 | GD9: 36.486 | GE9: 38.642 | GF9: 39.169 | GG9: 38.57 | GH9: 37.311 | GI9: 35.817 | GJ9: 30.881 | GK9: 29.333 | GL9: 29.778 | GM9: 29.865 | GN9: 29.798
B10: 10044 | C10: Canby, City of | D10: =VLOOKUP(B10,TOCA!$B$3:$E$138,4,FALSE) -> 0 | E10: 29.246 | F10: 34.326 | G10: 37.248 | H10: 37.988 | I10: 36.033 | J10: 32.982 | K10: 30.902 | L10: 28.241 | M10: 29.529 | N10: 33.079 | O10: 33.637 | P10: 30.809 | Q10: 36.024 | R10: 33.577 | S10: 30.499 | T10: 28.42 | U10: 25.716 | V10: 27.034 | W10: 30.558 | X10: 31.14 | Y10: 28.317 | Z10: 26.752 | AA10: 31.848 | AB10: 34.791 | AC10: 26.742 | AD10: 31.849 | AE10: 34.801 | AF10: 36.044 | AG10: 33.598 | AH10: 30.519 | AI10: 28.441 | AJ10: 25.738 | AK10: 27.056 | AL10: 30.58 | AM10: 31.162 | AN10: 28.34 | AO10: 26.909 | AP10: 32.005 | AQ10: 34.948 | AR10: 36.18 | AS10: 33.734 | AT10: 30.655 | AU10: 28.577 | AV10: 25.873 | AW10: 27.191 | AX10: 30.714 | AY10: 31.296 | AZ10: 28.474 | BA10: 27.05 | BB10: 32.158 | BC10: 35.111 | BD10: 36.354 | BE10: 33.918 | BF10: 30.848 | BG10: 28.78 | BH10: 26.062 | BI10: 27.378 | BJ10: 30.902 | BK10: 31.484 | BL10: 28.66 | BM10: 27.227 | BN10: 32.323 | BO10: 35.264 | BP10: 36.496 | BQ10: 34.049 | BR10: 30.967 | BS10: 28.887 | BT10: 26.184 | BU10: 27.5 | BV10: 31.023 | BW10: 31.604 | BX10: 28.781 | BY10: 27.347 | BZ10: 32.443 | CA10: 35.384 | CB10: 36.615 | CC10: 34.167 | CD10: 31.085 | CE10: 29.004 | CF10: 26.301 | CG10: 27.616 | CH10: 31.139 | CI10: 31.72 | CJ10: 28.896 | CK10: 27.462 | CL10: 32.557 | CM10: 35.497 | CN10: 36.729 | CO10: 34.28 | CP10: 31.198 | CQ10: 29.117 | CR10: 26.414 | CS10: 27.729 | CT10: 31.251 | CU10: 31.832 | CV10: 29.007 | CW10: 27.573 | CX10: 32.668 | CY10: 35.608 | CZ10: 36.839 | DA10: 34.39 | DB10: 31.307 | DC10: 29.227 | DD10: 26.523 | DE10: 27.838 | DF10: 31.36 | DG10: 31.94 | DH10: 29.115 | DI10: 27.681 | DJ10: 32.776 | DK10: 35.715 | DL10: 36.946 | DM10: 34.497 | DN10: 31.414 | DO10: 29.333 | DP10: 26.629 | DQ10: 27.944 | DR10: 31.466 | DS10: 32.046 | DT10: 29.221 | DU10: 27.786 | DV10: 32.88 | DW10: 35.82 | DX10: 37.05 | DY10: 34.602 | DZ10: 31.518 | EA10: 29.437 | EB10: 26.733 | EC10: 28.047 | ED10: 31.569 | EE10: 32.149 | EF10: 29.324 | EG10: 27.889 | EH10: 32.983 | EI10: 35.923 | EJ10: 37.153 | EK10: 34.704 | EL10: 31.62 | EM10: 29.539 | EN10: 26.834 | EO10: 28.149 | EP10: 31.67 | EQ10: 32.25 | ER10: 29.425 | ES10: 27.99 | ET10: 33.084 | EU10: 36.023 | EV10: 37.253 | EW10: 34.804 | EX10: 31.72 | EY10: 29.638 | EZ10: 26.933 | FA10: 28.247 | FB10: 31.769 | FC10: 32.349 | FD10: 29.523 | FE10: 28.088 | FF10: 33.181 | FG10: 36.12 | FH10: 37.35 | FI10: 34.901 | FJ10: 31.817 | FK10: 29.735 | FL10: 27.03 | FM10: 28.344 | FN10: 31.865 | FO10: 32.445 | FP10: 29.619 | FQ10: 28.183 | FR10: 33.277 | FS10: 36.216 | FT10: 37.445 | FU10: 34.996 | FV10: 31.911 | FW10: 29.829 | FX10: 27.124 | FY10: 28.438 | FZ10: 31.959 | GA10: 32.538 | GB10: 29.712 | GC10: 28.277 | GD10: 33.37 | GE10: 36.309 | GF10: 37.538 | GG10: 35.088 | GH10: 32.003 | GI10: 29.921 | GJ10: 27.216 | GK10: 28.529 | GL10: 32.05 | GM10: 32.629 | GN10: 29.803
B11: 10046 | C11: Central Electric Coop | D11: =VLOOKUP(B11,TOCA!$B$3:$E$138,4,FALSE) -> 1 | E11: 114.708 | F11: 167.647 | G11: 198.859 | H11: 172.355 | I11: 164.605 | J11: 132.072 | K11: 129.429 | L11: 117.401 | M11: 106.792 | N11: 110.438 | O11: 106.771 | P11: 109.034 | Q11: 182.394 | R11: 174.439 | S11: 145.144 | T11: 137.208 | U11: 124.915 | V11: 113.076 | W11: 118.066 | X11: 114.14 | Y11: 114.689 | Z11: 121.655 | AA11: 177.299 | AB11: 215.369 | AC11: 125.672 | AD11: 183.557 | AE11: 219.99 | AF11: 189.586 | AG11: 178.92 | AH11: 148.647 | AI11: 141.057 | AJ11: 129.889 | AK11: 119.832 | AL11: 123.81 | AM11: 119.463 | AN11: 118.546 | AO11: 127.145 | AP11: 185.03 | AQ11: 221.463 | AR11: 191.059 | AS11: 180.393 | AT11: 150.12 | AU11: 142.53 | AV11: 131.362 | AW11: 121.305 | AX11: 125.283 | AY11: 120.936 | AZ11: 120.019 | BA11: 135.141 | BB11: 192.878 | BC11: 223.059 | BD11: 196.793 | BE11: 191.969 | BF11: 160.718 | BG11: 152.557 | BH11: 136.228 | BI11: 129.926 | BJ11: 134.47 | BK11: 131.473 | BL11: 123.639 | BM11: 137.873 | BN11: 195.61 | BO11: 225.792 | BP11: 199.525 | BQ11: 194.701 | BR11: 163.45 | BS11: 155.289 | BT11: 138.96 | BU11: 132.658 | BV11: 137.202 | BW11: 134.205 | BX11: 126.371 | BY11: 140.605 | BZ11: 198.342 | CA11: 228.524 | CB11: 202.257 | CC11: 197.433 | CD11: 166.182 | CE11: 158.021 | CF11: 141.692 | CG11: 135.39 | CH11: 139.934 | CI11: 136.937 | CJ11: 129.103 | CK11: 143.337 | CL11: 201.075 | CM11: 231.256 | CN11: 204.989 | CO11: 200.165 | CP11: 168.914 | CQ11: 160.753 | CR11: 144.424 | CS11: 138.122 | CT11: 142.666 | CU11: 139.669 | CV11: 131.835 | CW11: 146.069 | CX11: 203.807 | CY11: 233.988 | CZ11: 207.721 | DA11: 202.897 | DB11: 171.646 | DC11: 163.485 | DD11: 147.156 | DE11: 140.854 | DF11: 145.398 | DG11: 142.401 | DH11: 134.567 | DI11: 148.801 | DJ11: 206.539 | DK11: 236.72 | DL11: 210.453 | DM11: 205.629 | DN11: 174.378 | DO11: 166.217 | DP11: 149.888 | DQ11: 143.586 | DR11: 148.13 | DS11: 145.133 | DT11: 137.299 | DU11: 151.533 | DV11: 209.271 | DW11: 239.452 | DX11: 213.185 | DY11: 208.361 | DZ11: 177.11 | EA11: 168.949 | EB11: 152.62 | EC11: 146.318 | ED11: 150.862 | EE11: 147.865 | EF11: 140.031 | EG11: 154.265 | EH11: 212.003 | EI11: 242.184 | EJ11: 215.917 | EK11: 211.093 | EL11: 179.842 | EM11: 171.681 | EN11: 155.352 | EO11: 149.05 | EP11: 153.594 | EQ11: 150.598 | ER11: 142.763 | ES11: 156.997 | ET11: 214.735 | EU11: 244.916 | EV11: 218.649 | EW11: 213.825 | EX11: 182.574 | EY11: 174.413 | EZ11: 158.084 | FA11: 151.782 | FB11: 156.327 | FC11: 153.33 | FD11: 145.495 | FE11: 159.729 | FF11: 217.467 | FG11: 247.648 | FH11: 221.381 | FI11: 216.557 | FJ11: 185.306 | FK11: 177.145 | FL11: 160.816 | FM11: 154.515 | FN11: 159.059 | FO11: 156.062 | FP11: 148.227 | FQ11: 162.461 | FR11: 220.199 | FS11: 250.38 | FT11: 224.114 | FU11: 219.289 | FV11: 188.038 | FW11: 179.877 | FX11: 163.548 | FY11: 157.247 | FZ11: 161.791 | GA11: 158.794 | GB11: 150.959 | GC11: 165.193 | GD11: 222.931 | GE11: 253.112 | GF11: 226.846 | GG11: 222.021 | GH11: 190.77 | GI11: 182.609 | GJ11: 166.28 | GK11: 159.979 | GL11: 164.523 | GM11: 161.526 | GN11: 153.691
B12: 10047 | C12: Central Lincoln PUD | D12: =VLOOKUP(B12,TOCA!$B$3:$E$138,4,FALSE) -> 0 | E12: 203.76 | F12: 225.786 | G12: 248.217 | H12: 245.278 | I12: 241.202 | J12: 228.565 | K12: 214.371 | L12: 172.124 | M12: 160.158 | N12: 154.243 | O12: 153.321 | P12: 163.369 | Q12: 245.175 | R12: 238.594 | S12: 228.477 | T12: 213.009 | U12: 170.219 | V12: 157.522 | W12: 153.047 | X12: 154.132 | Y12: 160.348 | Z12: 201.301 | AA12: 227.105 | AB12: 247.56 | AC12: 201.8 | AD12: 227.668 | AE12: 250.251 | AF12: 247.86 | AG12: 241.263 | AH12: 229.043 | AI12: 213.536 | AJ12: 170.641 | AK12: 157.912 | AL12: 153.426 | AM12: 154.513 | AN12: 160.744 | AO12: 202.299 | AP12: 228.23 | AQ12: 250.869 | AR12: 248.473 | AS12: 241.859 | AT12: 229.608 | AU12: 214.063 | AV12: 171.062 | AW12: 158.302 | AX12: 153.805 | AY12: 154.894 | AZ12: 161.14 | BA12: 198.047 | BB12: 227.583 | BC12: 250.365 | BD12: 245.995 | BE12: 233.073 | BF12: 221.222 | BG12: 211.593 | BH12: 164.786 | BI12: 153.123 | BJ12: 153.073 | BK12: 154.774 | BL12: 157.504 | BM12: 198.53 | BN12: 228.14 | BO12: 250.978 | BP12: 246.597 | BQ12: 233.643 | BR12: 221.763 | BS12: 212.109 | BT12: 165.186 | BU12: 153.493 | BV12: 153.444 | BW12: 155.149 | BX12: 157.886 | BY12: 199.013 | BZ12: 228.697 | CA12: 251.591 | CB12: 247.2 | CC12: 234.213 | CD12: 222.303 | CE12: 212.626 | CF12: 165.585 | CG12: 153.864 | CH12: 153.814 | CI12: 155.524 | CJ12: 158.267 | CK12: 199.496 | CL12: 229.254 | CM12: 252.204 | CN12: 247.802 | CO12: 234.783 | CP12: 222.843 | CQ12: 213.142 | CR12: 165.985 | CS12: 154.235 | CT12: 154.185 | CU12: 155.898 | CV12: 158.649 | CW12: 199.98 | CX12: 229.81 | CY12: 252.818 | CZ12: 248.404 | DA12: 235.353 | DB12: 223.384 | DC12: 213.658 | DD12: 166.385 | DE12: 154.606 | DF12: 154.556 | DG12: 156.273 | DH12: 159.03 | DI12: 200.463 | DJ12: 230.367 | DK12: 253.431 | DL12: 249.006 | DM12: 235.923 | DN12: 223.924 | DO12: 214.175 | DP12: 166.785 | DQ12: 154.976 | DR12: 154.926 | DS12: 156.648 | DT12: 159.411 | DU12: 200.946 | DV12: 230.924 | DW12: 254.044 | DX12: 249.608 | DY12: 236.493 | DZ12: 224.465 | EA12: 214.691 | EB12: 167.185 | EC12: 155.347 | ED12: 155.297 | EE12: 157.022 | EF12: 159.793 | EG12: 201.429 | EH12: 231.48 | EI12: 254.657 | EJ12: 250.211 | EK12: 237.063 | EL12: 225.005 | EM12: 215.207 | EN12: 167.584 | EO12: 155.718 | EP12: 155.667 | EQ12: 157.397 | ER12: 160.174 | ES12: 201.912 | ET12: 232.037 | EU12: 255.271 | EV12: 250.813 | EW12: 237.633 | EX12: 225.545 | EY12: 215.724 | EZ12: 167.984 | FA12: 156.088 | FB12: 156.038 | FC12: 157.772 | FD12: 160.555 | FE12: 202.396 | FF12: 232.594 | FG12: 255.884 | FH12: 251.415 | FI12: 238.203 | FJ12: 226.086 | FK12: 216.24 | FL12: 168.384 | FM12: 156.459 | FN12: 156.408 | FO12: 158.146 | FP12: 160.937 | FQ12: 202.879 | FR12: 233.15 | FS12: 256.497 | FT12: 252.018 | FU12: 238.773 | FV12: 226.626 | FW12: 216.756 | FX12: 168.784 | FY12: 156.83 | FZ12: 156.779 | GA12: 158.521 | GB12: 161.318 | GC12: 203.362 | GD12: 233.707 | GE12: 257.111 | GF12: 252.62 | GG12: 239.343 | GH12: 227.166 | GI12: 217.273 | GJ12: 169.184 | GK12: 157.201 | GL12: 157.149 | GM12: 158.896 | GN12: 161.7
B13: 10055 | C13: Albion, City of | D13: =VLOOKUP(B13,TOCA!$B$3:$E$138,4,FALSE) -> 0 | E13: 0.62 | F13: 0.788 | G13: 0.914 | H13: 1.002 | I13: 0.835 | J13: 0.775 | K13: 0.648 | L13: 0.525 | M13: 0.437 | N13: 0.473 | O13: 0.459 | P13: 0.419 | Q13: 1.01 | R13: 0.843 | S13: 0.787 | T13: 0.678 | U13: 0.525 | V13: 0.441 | W13: 0.474 | X13: 0.462 | Y13: 0.424 | Z13: 0.625 | AA13: 0.802 | AB13: 1.031 | AC13: 0.616 | AD13: 0.799 | AE13: 1.039 | AF13: 1.013 | AG13: 0.839 | AH13: 0.753 | AI13: 0.668 | AJ13: 0.513 | AK13: 0.43 | AL13: 0.463 | AM13: 0.444 | AN13: 0.41 | AO13: 0.617 | AP13: 0.801 | AQ13: 1.04 | AR13: 1.014 | AS13: 0.841 | AT13: 0.755 | AU13: 0.669 | AV13: 0.515 | AW13: 0.431 | AX13: 0.464 | AY13: 0.446 | AZ13: 0.412 | BA13: 0.614 | BB13: 0.793 | BC13: 1.062 | BD13: 1.006 | BE13: 0.844 | BF13: 0.766 | BG13: 0.647 | BH13: 0.508 | BI13: 0.418 | BJ13: 0.45 | BK13: 0.439 | BL13: 0.398 | BM13: 0.614 | BN13: 0.793 | BO13: 1.062 | BP13: 1.006 | BQ13: 0.844 | BR13: 0.766 | BS13: 0.647 | BT13: 0.508 | BU13: 0.418 | BV13: 0.45 | BW13: 0.439 | BX13: 0.398 | BY13: 0.614 | BZ13: 0.793 | CA13: 1.062 | CB13: 1.006 | CC13: 0.844 | CD13: 0.766 | CE13: 0.647 | CF13: 0.508 | CG13: 0.418 | CH13: 0.45 | CI13: 0.439 | CJ13: 0.398 | CK13: 0.614 | CL13: 0.793 | CM13: 1.062 | CN13: 1.006 | CO13: 0.844 | CP13: 0.766 | CQ13: 0.647 | CR13: 0.508 | CS13: 0.418 | CT13: 0.45 | CU13: 0.439 | CV13: 0.398 | CW13: 0.614 | CX13: 0.793 | CY13: 1.062 | CZ13: 1.006 | DA13: 0.844 | DB13: 0.766 | DC13: 0.647 | DD13: 0.508 | DE13: 0.418 | DF13: 0.45 | DG13: 0.439 | DH13: 0.398 | DI13: 0.614 | DJ13: 0.793 | DK13: 1.062 | DL13: 1.006 | DM13: 0.844 | DN13: 0.766 | DO13: 0.647 | DP13: 0.508 | DQ13: 0.418 | DR13: 0.45 | DS13: 0.439 | DT13: 0.398 | DU13: 0.614 | DV13: 0.793 | DW13: 1.062 | DX13: 1.006 | DY13: 0.844 | DZ13: 0.766 | EA13: 0.647 | EB13: 0.508 | EC13: 0.418 | ED13: 0.45 | EE13: 0.439 | EF13: 0.398 | EG13: 0.614 | EH13: 0.793 | EI13: 1.062 | EJ13: 1.006 | EK13: 0.844 | EL13: 0.766 | EM13: 0.647 | EN13: 0.508 | EO13: 0.418 | EP13: 0.45 | EQ13: 0.439 | ER13: 0.398 | ES13: 0.614 | ET13: 0.793 | EU13: 1.062 | EV13: 1.006 | EW13: 0.844 | EX13: 0.766 | EY13: 0.647 | EZ13: 0.508 | FA13: 0.418 | FB13: 0.45 | FC13: 0.439 | FD13: 0.398 | FE13: 0.614 | FF13: 0.793 | FG13: 1.062 | FH13: 1.006 | FI13: 0.844 | FJ13: 0.766 | FK13: 0.647 | FL13: 0.508 | FM13: 0.418 | FN13: 0.45 | FO13: 0.439 | FP13: 0.398 | FQ13: 0.614 | FR13: 0.793 | FS13: 1.062 | FT13: 1.006 | FU13: 0.844 | FV13: 0.766 | FW13: 0.647 | FX13: 0.508 | FY13: 0.418 | FZ13: 0.45 | GA13: 0.439 | GB13: 0.398 | GC13: 0.614 | GD13: 0.793 | GE13: 1.062 | GF13: 1.006 | GG13: 0.844 | GH13: 0.766 | GI13: 0.647 | GJ13: 0.508 | GK13: 0.418 | GL13: 0.45 | GM13: 0.439 | GN13: 0.398
B14: 10057 | C14: Ashland, City of | D14: =VLOOKUP(B14,TOCA!$B$3:$E$138,4,FALSE) -> 0 | E14: 28.48 | F14: 33.025 | G14: 37.048 | H14: 35.993 | I14: 33.685 | J14: 32.344 | K14: 30.743 | L14: 26.515 | M14: 30.072 | N14: 37.834 | O14: 36.142 | P14: 30.665 | Q14: 36.137 | R14: 33.827 | S14: 32.486 | T14: 30.884 | U14: 26.597 | V14: 30.158 | W14: 37.929 | X14: 36.223 | Y14: 30.743 | Z14: 28.631 | AA14: 33.209 | AB14: 37.21 | AC14: 27.409 | AD14: 32.573 | AE14: 36.765 | AF14: 36.455 | AG14: 33.384 | AH14: 32.669 | AI14: 29.754 | AJ14: 24.873 | AK14: 28.858 | AL14: 36.967 | AM14: 35.195 | AN14: 29.612 | AO14: 27.409 | AP14: 32.573 | AQ14: 36.765 | AR14: 36.455 | AS14: 33.384 | AT14: 32.669 | AU14: 29.754 | AV14: 24.873 | AW14: 28.858 | AX14: 36.967 | AY14: 35.195 | AZ14: 29.612 | BA14: 26.712 | BB14: 31.206 | BC14: 35.554 | BD14: 34.107 | BE14: 33.048 | BF14: 31.542 | BG14: 28.511 | BH14: 24.151 | BI14: 31.249 | BJ14: 37.73 | BK14: 35.667 | BL14: 29.939 | BM14: 26.712 | BN14: 31.206 | BO14: 35.554 | BP14: 34.107 | BQ14: 33.048 | BR14: 31.542 | BS14: 28.511 | BT14: 24.151 | BU14: 31.249 | BV14: 37.73 | BW14: 35.667 | BX14: 29.939 | BY14: 26.712 | BZ14: 31.206 | CA14: 35.554 | CB14: 34.107 | CC14: 33.048 | CD14: 31.542 | CE14: 28.511 | CF14: 24.151 | CG14: 31.249 | CH14: 37.73 | CI14: 35.667 | CJ14: 29.939 | CK14: 26.712 | CL14: 31.206 | CM14: 35.554 | CN14: 34.107 | CO14: 33.048 | CP14: 31.542 | CQ14: 28.511 | CR14: 24.151 | CS14: 31.249 | CT14: 37.73 | CU14: 35.667 | CV14: 29.939 | CW14: 26.712 | CX14: 31.206 | CY14: 35.554 | CZ14: 34.107 | DA14: 33.048 | DB14: 31.542 | DC14: 28.511 | DD14: 24.151 | DE14: 31.249 | DF14: 37.73 | DG14: 35.667 | DH14: 29.939 | DI14: 26.712 | DJ14: 31.206 | DK14: 35.554 | DL14: 34.107 | DM14: 33.048 | DN14: 31.542 | DO14: 28.511 | DP14: 24.151 | DQ14: 31.249 | DR14: 37.73 | DS14: 35.667 | DT14: 29.939 | DU14: 26.712 | DV14: 31.206 | DW14: 35.554 | DX14: 34.107 | DY14: 33.048 | DZ14: 31.542 | EA14: 28.511 | EB14: 24.151 | EC14: 31.249 | ED14: 37.73 | EE14: 35.667 | EF14: 29.939 | EG14: 26.712 | EH14: 31.206 | EI14: 35.554 | EJ14: 34.107 | EK14: 33.048 | EL14: 31.542 | EM14: 28.511 | EN14: 24.151 | EO14: 31.249 | EP14: 37.73 | EQ14: 35.667 | ER14: 29.939 | ES14: 26.712 | ET14: 31.206 | EU14: 35.554 | EV14: 34.107 | EW14: 33.048 | EX14: 31.542 | EY14: 28.511 | EZ14: 24.151 | FA14: 31.249 | FB14: 37.73 | FC14: 35.667 | FD14: 29.939 | FE14: 26.712 | FF14: 31.206 | FG14: 35.554 | FH14: 34.107 | FI14: 33.048 | FJ14: 31.542 | FK14: 28.511 | FL14: 24.151 | FM14: 31.249 | FN14: 37.73 | FO14: 35.667 | FP14: 29.939 | FQ14: 26.712 | FR14: 31.206 | FS14: 35.554 | FT14: 34.107 | FU14: 33.048 | FV14: 31.542 | FW14: 28.511 | FX14: 24.151 | FY14: 31.249 | FZ14: 37.73 | GA14: 35.667 | GB14: 29.939 | GC14: 26.712 | GD14: 31.206 | GE14: 35.554 | GF14: 34.107 | GG14: 33.048 | GH14: 31.542 | GI14: 28.511 | GJ14: 24.151 | GK14: 31.249 | GL14: 37.73 | GM14: 35.667 | GN14: 29.939
B15: 10059 | C15: Bandon, City of | D15: =VLOOKUP(B15,TOCA!$B$3:$E$138,4,FALSE) -> 0 | E15: 11.802 | F15: 13.669 | G15: 14.776 | H15: 16.508 | I15: 14.857 | J15: 15.587 | K15: 13.567 | L15: 8.69 | M15: 8.089 | N15: 7.96 | O15: 8.114 | P15: 8.388 | Q15: 16.549 | R15: 14.894 | S15: 15.625 | T15: 13.601 | U15: 8.712 | V15: 8.109 | W15: 7.98 | X15: 8.134 | Y15: 8.409 | Z15: 11.831 | AA15: 13.703 | AB15: 14.812 | AC15: 11.814 | AD15: 13.684 | AE15: 14.791 | AF15: 16.525 | AG15: 14.873 | AH15: 15.603 | AI15: 13.581 | AJ15: 8.7 | AK15: 8.098 | AL15: 7.969 | AM15: 8.123 | AN15: 8.397 | AO15: 11.844 | AP15: 13.718 | AQ15: 14.828 | AR15: 16.567 | AS15: 14.91 | AT15: 15.642 | AU15: 13.615 | AV15: 8.721 | AW15: 8.118 | AX15: 7.988 | AY15: 8.143 | AZ15: 8.418 | BA15: 11.26 | BB15: 14.274 | BC15: 15.679 | BD15: 16.968 | BE15: 15.873 | BF15: 14.989 | BG15: 13.493 | BH15: 8.554 | BI15: 8.174 | BJ15: 7.887 | BK15: 8.073 | BL15: 8.684 | BM15: 11.288 | BN15: 14.309 | BO15: 15.718 | BP15: 17.01 | BQ15: 15.912 | BR15: 15.026 | BS15: 13.527 | BT15: 8.575 | BU15: 8.195 | BV15: 7.907 | BW15: 8.093 | BX15: 8.705 | BY15: 11.316 | BZ15: 14.345 | CA15: 15.757 | CB15: 17.052 | CC15: 15.952 | CD15: 15.064 | CE15: 13.56 | CF15: 8.596 | CG15: 8.215 | CH15: 7.926 | CI15: 8.113 | CJ15: 8.727 | CK15: 11.344 | CL15: 14.38 | CM15: 15.796 | CN15: 17.095 | CO15: 15.991 | CP15: 15.101 | CQ15: 13.594 | CR15: 8.618 | CS15: 8.235 | CT15: 7.946 | CU15: 8.133 | CV15: 8.748 | CW15: 11.372 | CX15: 14.416 | CY15: 15.835 | CZ15: 17.137 | DA15: 16.031 | DB15: 15.138 | DC15: 13.627 | DD15: 8.639 | DE15: 8.256 | DF15: 7.965 | DG15: 8.153 | DH15: 8.77 | DI15: 11.4 | DJ15: 14.451 | DK15: 15.874 | DL15: 17.179 | DM15: 16.07 | DN15: 15.176 | DO15: 13.661 | DP15: 8.66 | DQ15: 8.276 | DR15: 7.985 | DS15: 8.173 | DT15: 8.791 | DU15: 11.428 | DV15: 14.487 | DW15: 15.913 | DX15: 17.221 | DY15: 16.11 | DZ15: 15.213 | EA15: 13.695 | EB15: 8.682 | EC15: 8.296 | ED15: 8.005 | EE15: 8.194 | EF15: 8.813 | EG15: 11.456 | EH15: 14.523 | EI15: 15.952 | EJ15: 17.264 | EK15: 16.149 | EL15: 15.25 | EM15: 13.728 | EN15: 8.703 | EO15: 8.316 | EP15: 8.024 | EQ15: 8.214 | ER15: 8.835 | ES15: 11.485 | ET15: 14.558 | EU15: 15.991 | EV15: 17.306 | EW15: 16.189 | EX15: 15.287 | EY15: 13.762 | EZ15: 8.724 | FA15: 8.337 | FB15: 8.044 | FC15: 8.234 | FD15: 8.856 | FE15: 11.513 | FF15: 14.594 | FG15: 16.03 | FH15: 17.348 | FI15: 16.228 | FJ15: 15.325 | FK15: 13.795 | FL15: 8.745 | FM15: 8.357 | FN15: 8.064 | FO15: 8.254 | FP15: 8.878 | FQ15: 11.541 | FR15: 14.629 | FS15: 16.069 | FT15: 17.39 | FU15: 16.268 | FV15: 15.362 | FW15: 13.829 | FX15: 8.767 | FY15: 8.377 | FZ15: 8.083 | GA15: 8.274 | GB15: 8.899 | GC15: 11.569 | GD15: 14.665 | GE15: 16.108 | GF15: 17.432 | GG15: 16.307 | GH15: 15.399 | GI15: 13.862 | GJ15: 8.788 | GK15: 8.398 | GL15: 8.103 | GM15: 8.294 | GN15: 8.921
... 16 more rows

Sheet I_CDQ
B1: Customer Demand Quantity (MW)
A2: TOC
B3: BESID | C3: AccountName | D3: 10 | E3: 11 | F3: 12 | G3: 1 | H3: =+G3+1 -> 2 | I3: =+H3+1 -> 3 | J3: 4 | K3: 5 | L3: 6 | M3: 7 | N3: 8 | O3: 9
B4: 10005 | C4: Alder Mutual | D4: 0.244 | E4: 0.294 | F4: 0.339 | G4: 0.355 | H4: 0.271 | I4: 0.252 | J4: 0.315 | K4: 0.237 | L4: 0.114 | M4: 0.087 | N4: 0.067 | O4: 0.189
B5: 10015 | C5: Asotin County PUD #1 | D5: 0.914 | E5: 1.084 | F5: 0.942 | G5: 0.875 | H5: 0.846 | I5: 0.763 | J5: 0.617 | K5: 0.897 | L5: 1.271 | M5: 1.015 | N5: 1.404 | O5: 1.037
B6: 10024 | C6: Benton County PUD #1 | D6: 39.766 | E6: 57.361 | F6: 45.338 | G6: 64.421 | H6: 77.727 | I6: 45.723 | J6: 38.283 | K6: 92.854 | L6: 76.384 | M6: 43.433 | N6: 67.005 | O6: 56.736
B7: 10025 | C7: Benton REA | D7: 10.082 | E7: 18.416 | F7: 14.592 | G7: 19.351 | H7: 24.799 | I7: 20.215 | J7: 21.046 | K7: 18.058 | L7: 15.269 | M7: 8.356 | N7: 10.485 | O7: 12.275
B8: 10027 | C8: Big Bend Elec Coop | D8: 11.759 | E8: 8.462 | F8: 6.63 | G8: 7.721 | H8: 11.915 | I8: 10.442 | J8: 15.145 | K8: 25.016 | L8: 15.09 | M8: 6.424 | N8: 4.755 | O8: 14.824
B9: 10029 | C9: Blachly Lane Elec Coop | D9: 5.878 | E9: 5.732 | F9: 7.035 | G9: 5.437 | H9: 6.304 | I9: 5.271 | J9: 6.477 | K9: 4.737 | L9: 2.885 | M9: 2.942 | N9: 1.878 | O9: 3.934
B10: 10044 | C10: Canby, City of | D10: 3.812 | E10: 5.687 | F10: 4.877 | G10: 5.156 | H10: 6.482 | I10: 4.714 | J10: 4.762 | K10: 3.73 | L10: 4.392 | M10: 5.959 | N10: 5.072 | O10: 3.931
B11: 10046 | C11: Central Electric Coop | D11: 49.109 | E11: 60.539 | F11: 52.265 | G11: 52.541 | H11: 65.196 | I11: 45.64 | J11: 44.617 | K11: 29.254 | L11: 14.999 | M11: 14.798 | N11: 11.539 | O11: 21.505
B12: 10047 | C12: Central Lincoln PUD | D12: 30.509 | E12: 41.689 | F12: 33.81 | G12: 36.45 | H12: 47.572 | I12: 33.5 | J12: 34.112 | K12: 26.236 | L12: 8.049 | M12: 2.439 | N12: 0 | O12: 16.614
B13: 10055 | C13: Albion, City of | D13: 0.176 | E13: 0.253 | F13: 0.171 | G13: 0.182 | H13: 0.204 | I13: 0.186 | J13: 0.312 | K13: 0.175 | L13: 0.093 | M13: 0.055 | N13: 0.061 | O13: 0.135
B14: 10057 | C14: Ashland, City of | D14: 5.166 | E14: 6.451 | F14: 5.869 | G14: 5.094 | H14: 5.616 | I14: 5.264 | J14: 4.651 | K14: 5.988 | L14: 8.027 | M14: 9.546 | N14: 8.644 | O14: 5.741
B15: 10059 | C15: Bandon, City of | D15: 3.428 | E15: 3.42 | F15: 3.326 | G15: 3.245 | H15: 4.088 | I15: 3.106 | J15: 3.656 | K15: 2.382 | L15: 1.213 | M15: 0.801 | N15: 0.935 | O15: 2.052
... 18 more rows

Sheet I_NLSL
B1: New Large Single Loads (self-supplied) (MWh)
A2: TOC | D2: 2015-10-01 | E2: 2015-10-01 | F2: 2015-11-01 | G2: 2015-11-01 | H2: 2015-12-01 | I2: 2015-12-01 | J2: 2016-01-01 | K2: 2016-01-01 | L2: 2016-02-01 | M2: 2016-02-01 | N2: 2016-03-01 | O2: 2016-03-01 | P2: 2016-04-01 | Q2: 2016-04-01 | R2: 2016-05-01 | S2: 2016-05-01 | T2: 2016-06-01 | U2: 2016-06-01 | V2: 2016-07-01 | W2: 2016-07-01 | X2: 2016-08-01 | Y2: 2016-08-01 | Z2: 2016-09-01 | AA2: 2016-09-01 | AB2: 2016-10-01 | AC2: 2016-10-01 | AD2: 2016-11-01 | AE2: 2016-11-01 | AF2: 2016-12-01 | AG2: 2016-12-01 | AH2: 2017-01-01 | AI2: 2017-01-01 | AJ2: 2017-02-01 | AK2: 2017-02-01 | AL2: 2017-03-01 | AM2: 2017-03-01 | AN2: 2017-04-01 | AO2: 2017-04-01 | AP2: 2017-05-01 | AQ2: 2017-05-01 | AR2: 2017-06-01 | AS2: 2017-06-01 | AT2: 2017-07-01 | AU2: 2017-07-01 | AV2: 2017-08-01 | AW2: 2017-08-01 | AX2: 2017-09-01 | AY2: 2017-09-01 | AZ2: 2017-10-01 | BA2: 2017-10-01 | BB2: 2017-11-01 | BC2: 2017-11-01 | BD2: 2017-12-01 | BE2: 2017-12-01 | BF2: 2018-01-01 | BG2: 2018-01-01 | BH2: 2018-02-01 | BI2: 2018-02-01 | BJ2: 2018-03-01 | BK2: 2018-03-01 | BL2: 2018-04-01 | BM2: 2018-04-01 | BN2: 2018-05-01 | BO2: 2018-05-01 | BP2: 2018-06-01 | BQ2: 2018-06-01 | BR2: 2018-07-01 | BS2: 2018-07-01 | BT2: 2018-08-01 | BU2: 2018-08-01 | BV2: 2018-09-01 | BW2: 2018-09-01 | BX2: 2018-10-01 | BY2: 2018-10-01 | BZ2: 2018-11-01 | CA2: 2018-11-01 | CB2: 2018-12-01 | CC2: 2018-12-01 | CD2: 2019-01-01 | CE2: 2019-01-01 | CF2: 2019-02-01 | CG2: 2019-02-01 | CH2: 2019-03-01 | CI2: 2019-03-01 | CJ2: 2019-04-01 | CK2: 2019-04-01 | CL2: 2019-05-01 | CM2: 2019-05-01 | CN2: 2019-06-01 | CO2: 2019-06-01 | CP2: 2019-07-01 | CQ2: 2019-07-01 | CR2: 2019-08-01 | CS2: 2019-08-01 | CT2: 2019-09-01 | CU2: 2019-09-01 | CV2: 2019-10-01 | CW2: 2019-10-01 | CX2: 2019-11-01 | CY2: 2019-11-01 | CZ2: 2019-12-01 | DA2: 2019-12-01 | DB2: 2020-01-01 | DC2: 2020-01-01 | DD2: 2020-02-01 | DE2: 2020-02-01 | DF2: 2020-03-01 | DG2: 2020-03-01 | DH2: 2020-04-01 | DI2: 2020-04-01 | DJ2: 2020-05-01 | DK2: 2020-05-01 | DL2: 2020-06-01 | DM2: 2020-06-01 | DN2: 2020-07-01 | DO2: 2020-07-01 | DP2: 2020-08-01 | DQ2: 2020-08-01 | DR2: 2020-09-01 | DS2: 2020-09-01 | DT2: 2020-10-01 | DU2: 2020-10-01 | DV2: 2020-11-01 | DW2: 2020-11-01 | DX2: 2020-12-01 | DY2: 2020-12-01 | DZ2: 2021-01-01 | EA2: 2021-01-01 | EB2: 2021-02-01 | EC2: 2021-02-01 | ED2: 2021-03-01 | EE2: 2021-03-01 | EF2: 2021-04-01 | EG2: 2021-04-01 | EH2: 2021-05-01 | EI2: 2021-05-01 | EJ2: 2021-06-01 | EK2: 2021-06-01 | EL2: 2021-07-01 | EM2: 2021-07-01 | EN2: 2021-08-01 | EO2: 2021-08-01 | EP2: 2021-09-01 | EQ2: 2021-09-01 | ER2: 2021-10-01 | ES2: 2021-10-01 | ET2: 2021-11-01 | EU2: 2021-11-01 | EV2: 2021-12-01 | EW2: 2021-12-01 | EX2: 2022-01-01 | EY2: 2022-01-01 | EZ2: 2022-02-01 | FA2: 2022-02-01 | FB2: 2022-03-01 | FC2: 2022-03-01 | FD2: 2022-04-01 | FE2: 2022-04-01 | FF2: 2022-05-01 | FG2: 2022-05-01 | FH2: 2022-06-01 | FI2: 2022-06-01 | FJ2: 2022-07-01 | FK2: 2022-07-01 | FL2: 2022-08-01 | FM2: 2022-08-01 | FN2: 2022-09-01 | FO2: 2022-09-01 | FP2: 2022-10-01 | FQ2: 2022-10-01 | FR2: 2022-11-01 | FS2: 2022-11-01 | FT2: 2022-12-01 | FU2: 2022-12-01 | FV2: 2023-01-01 | FW2: 2023-01-01 | FX2: 2023-02-01 | FY2: 2023-02-01 | FZ2: 2023-03-01 | GA2: 2023-03-01 | GB2: 2023-04-01 | GC2: 2023-04-01 | GD2: 2023-05-01 | GE2: 2023-05-01 | GF2: 2023-06-01 | GG2: 2023-06-01 | GH2: 2023-07-01 | GI2: 2023-07-01 | GJ2: 2023-08-01 | GK2: 2023-08-01 | GL2: 2023-09-01 | GM2: 2023-09-01 | GN2: 2023-10-01 | GO2: 2023-10-01 | GP2: 2023-11-01 | GQ2: 2023-11-01 | GR2: 2023-12-01 | GS2: 2023-12-01 | GT2: 2024-01-01 | GU2: 2024-01-01 | GV2: 2024-02-01 | GW2: 2024-02-01 | GX2: 2024-03-01 | GY2: 2024-03-01 | GZ2: 2024-04-01 | HA2: 2024-04-01 | HB2: 2024-05-01 | HC2: 2024-05-01 | HD2: 2024-06-01 | HE2: 2024-06-01 | HF2: 2024-07-01 | HG2: 2024-07-01 | HH2: 2024-08-01 | HI2: 2024-08-01 | HJ2: 2024-09-01 | HK2: 2024-09-01 | HL2: 2024-10-01 | HM2: 2024-10-01 | HN2: 2024-11-01 | HO2: 2024-11-01 | HP2: 2024-12-01 | HQ2: 2024-12-01 | HR2: 2025-01-01 | HS2: 2025-01-01 | HT2: 2025-02-01 | HU2: 2025-02-01 | HV2: 2025-03-01 | HW2: 2025-03-01 | HX2: 2025-04-01 | HY2: 2025-04-01 | HZ2: 2025-05-01 | IA2: 2025-05-01 | IB2: 2025-06-01 | IC2: 2025-06-01 | ID2: 2025-07-01 | IE2: 2025-07-01 | IF2: 2025-08-01 | IG2: 2025-08-01 | IH2: 2025-09-01 | II2: 2025-09-01 | IJ2: 2025-10-01 | IK2: 2025-10-01 | IL2: 2025-11-01 | IM2: 2025-11-01 | IN2: 2025-12-01 | IO2: 2025-12-01 | IP2: 2026-01-01 | IQ2: 2026-01-01 | IR2: 2026-02-01 | IS2: 2026-02-01 | IT2: 2026-03-01 | IU2: 2026-03-01 | IV2: 2026-04-01 | IW2: 2026-04-01 | IX2: 2026-05-01 | IY2: 2026-05-01 | IZ2: 2026-06-01 | JA2: 2026-06-01 | JB2: 2026-07-01 | JC2: 2026-07-01 | JD2: 2026-08-01 | JE2: 2026-08-01 | JF2: 2026-09-01 | JG2: 2026-09-01 | JH2: 2026-10-01 | JI2: 2026-10-01 | JJ2: 2026-11-01 | JK2: 2026-11-01 | JL2: 2026-12-01 | JM2: 2026-12-01 | JN2: 2027-01-01 | JO2: 2027-01-01 | JP2: 2027-02-01 | JQ2: 2027-02-01 | JR2: 2027-03-01 | JS2: 2027-03-01 | JT2: 2027-04-01 | JU2: 2027-04-01 | JV2: 2027-05-01 | JW2: 2027-05-01 | JX2: 2027-06-01 | JY2: 2027-06-01 | JZ2: 2027-07-01 | KA2: 2027-07-01 | KB2: 2027-08-01 | KC2: 2027-08-01 | KD2: 2027-09-01 | KE2: 2027-09-01 | KF2: 2027-10-01 | KG2: 2027-10-01 | KH2: 2027-11-01 | KI2: 2027-11-01 | KJ2: 2027-12-01 | KK2: 2027-12-01 | KL2: 2028-01-01 | KM2: 2028-01-01 | KN2: 2028-02-01 | KO2: 2028-02-01 | KP2: 2028-03-01 | KQ2: 2028-03-01 | KR2: 2028-04-01 | KS2: 2028-04-01 | KT2: 2028-05-01 | KU2: 2028-05-01 | KV2: 2028-06-01 | KW2: 2028-06-01 | KX2: 2028-07-01 | KY2: 2028-07-01 | KZ2: 2028-08-01 | LA2: 2028-08-01 | LB2: 2028-09-01 | LC2: 2028-09-01 | LD2: 2028-10-01 | LE2: 2028-10-01 | LF2: 2028-11-01 | LG2: 2028-11-01 | LH2: 2028-12-01 | LI2: 2028-12-01 | LJ2: 2029-01-01 | LK2: 2029-01-01 | LL2: 2029-02-01 | LM2: 2029-02-01 | LN2: 2029-03-01 | LO2: 2029-03-01 | LP2: 2029-04-01 | LQ2: 2029-04-01 | LR2: 2029-05-01 | LS2: 2029-05-01 | LT2: 2029-06-01 | LU2: 2029-06-01 | LV2: 2029-07-01 | LW2: 2029-07-01 | LX2: 2029-08-01 | LY2: 2029-08-01 | LZ2: 2029-09-01 | MA2: 2029-09-01 | MB2: 2029-10-01 | MC2: 2029-10-01 | MD2: 2029-11-01 | ME2: 2029-11-01 | MF2: 2029-12-01 | MG2: 2029-12-01 | MH2: 2030-01-01 | MI2: 2030-01-01 | MJ2: 2030-02-01 | MK2: 2030-02-01 | ML2: 2030-03-01 | MM2: 2030-03-01 | MN2: 2030-04-01 | MO2: 2030-04-01 | MP2: 2030-05-01 | MQ2: 2030-05-01 | MR2: 2030-06-01 | MS2: 2030-06-01 | MT2: 2030-07-01 | MU2: 2030-07-01 | MV2: 2030-08-01 | MW2: 2030-08-01 | MX2: 2030-09-01 | MY2: 2030-09-01 | MZ2: 2030-10-01 | NA2: 2030-10-01 | NB2: 2030-11-01 | NC2: 2030-11-01 | ND2: 2030-12-01 | NE2: 2030-12-01 | NF2: 2031-01-01 | NG2: 2031-01-01 | NH2: 2031-02-01 | NI2: 2031-02-01 | NJ2: 2031-03-01 | NK2: 2031-03-01 | NL2: 2031-04-01 | NM2: 2031-04-01 | NN2: 2031-05-01 | NO2: 2031-05-01 | NP2: 2031-06-01 | NQ2: 2031-06-01 | NR2: 2031-07-01 | NS2: 2031-07-01 | NT2: 2031-08-01 | NU2: 2031-08-01 | NV2: 2031-09-01 | NW2: 2031-09-01 | NY2: 2016 | NZ2: 2017 | OA2: 2018 | OB2: 2019 | OC2: 2020 | OD2: 2021 | OE2: 2022 | OF2: 2023 | OG2: 2024 | OH2: 2025 | OI2: 2026 | OJ2: 2027 | OK2: 2028 | OL2: 2029 | OM2: 2030 | ON2: 2031
B3: BESID | C3: AccountName | D3: HLH | E3: LLH | F3: HLH | G3: LLH | H3: HLH | I3: LLH | J3: HLH | K3: LLH | L3: HLH | M3: LLH | N3: HLH | O3: LLH | P3: HLH | Q3: LLH | R3: HLH | S3: LLH | T3: HLH | U3: LLH | V3: HLH | W3: LLH | X3: HLH | Y3: LLH | Z3: HLH | AA3: LLH | AB3: HLH | AC3: LLH | AD3: HLH | AE3: LLH | AF3: HLH | AG3: LLH | AH3: HLH | AI3: LLH | AJ3: HLH | AK3: LLH | AL3: HLH | AM3: LLH | AN3: HLH | AO3: LLH | AP3: HLH | AQ3: LLH | AR3: HLH | AS3: LLH | AT3: HLH | AU3: LLH | AV3: HLH | AW3: LLH | AX3: HLH | AY3: LLH | AZ3: HLH | BA3: LLH | BB3: HLH | BC3: LLH | BD3: HLH | BE3: LLH | BF3: HLH | BG3: LLH | BH3: HLH | BI3: LLH | BJ3: HLH | BK3: LLH | BL3: HLH | BM3: LLH | BN3: HLH | BO3: LLH | BP3: HLH | BQ3: LLH | BR3: HLH | BS3: LLH | BT3: HLH | BU3: LLH | BV3: HLH | BW3: LLH | BX3: HLH | BY3: LLH | BZ3: HLH | CA3: LLH | CB3: HLH | CC3: LLH | CD3: HLH | CE3: LLH | CF3: HLH | CG3: LLH | CH3: HLH | CI3: LLH | CJ3: HLH | CK3: LLH | CL3: HLH | CM3: LLH | CN3: HLH | CO3: LLH | CP3: HLH | CQ3: LLH | CR3: HLH | CS3: LLH | CT3: HLH | CU3: LLH | CV3: HLH | CW3: LLH | CX3: HLH | CY3: LLH | CZ3: HLH | DA3: LLH | DB3: HLH | DC3: LLH | DD3: HLH | DE3: LLH | DF3: HLH | DG3: LLH | DH3: HLH | DI3: LLH | DJ3: HLH | DK3: LLH | DL3: HLH | DM3: LLH | DN3: HLH | DO3: LLH | DP3: HLH | DQ3: LLH | DR3: HLH | DS3: LLH | DT3: HLH | DU3: LLH | DV3: HLH | DW3: LLH | DX3: HLH | DY3: LLH | DZ3: HLH | EA3: LLH | EB3: HLH | EC3: LLH | ED3: HLH | EE3: LLH | EF3: HLH | EG3: LLH | EH3: HLH | EI3: LLH | EJ3: HLH | EK3: LLH | EL3: HLH | EM3: LLH | EN3: HLH | EO3: LLH | EP3: HLH | EQ3: LLH | ER3: HLH | ES3: LLH | ET3: HLH | EU3: LLH | EV3: HLH | EW3: LLH | EX3: HLH | EY3: LLH | EZ3: HLH | FA3: LLH | FB3: HLH | FC3: LLH | FD3: HLH | FE3: LLH | FF3: HLH | FG3: LLH | FH3: HLH | FI3: LLH | FJ3: HLH | FK3: LLH | FL3: HLH | FM3: LLH | FN3: HLH | FO3: LLH | FP3: HLH | FQ3: LLH | FR3: HLH | FS3: LLH | FT3: HLH | FU3: LLH | FV3: HLH | FW3: LLH | FX3: HLH | FY3: LLH | FZ3: HLH | GA3: LLH | GB3: HLH | GC3: LLH | GD3: HLH | GE3: LLH | GF3: HLH | GG3: LLH | GH3: HLH | GI3: LLH | GJ3: HLH | GK3: LLH | GL3: HLH | GM3: LLH | GN3: HLH | GO3: LLH | GP3: HLH | GQ3: LLH | GR3: HLH | GS3: LLH | GT3: HLH | GU3: LLH | GV3: HLH | GW3: LLH | GX3: HLH | GY3: LLH | GZ3: HLH | HA3: LLH | HB3: HLH | HC3: LLH | HD3: HLH | HE3: LLH | HF3: HLH | HG3: LLH | HH3: HLH | HI3: LLH | HJ3: HLH | HK3: LLH | HL3: HLH | HM3: LLH | HN3: HLH | HO3: LLH | HP3: HLH | HQ3: LLH | HR3: HLH | HS3: LLH | HT3: HLH | HU3: LLH | HV3: HLH | HW3: LLH | HX3: HLH | HY3: LLH | HZ3: HLH | IA3: LLH | IB3: HLH | IC3: LLH | ID3: HLH | IE3: LLH | IF3: HLH | IG3: LLH | IH3: HLH | II3: LLH | IJ3: HLH | IK3: LLH | IL3: HLH | IM3: LLH | IN3: HLH | IO3: LLH | IP3: HLH | IQ3: LLH | IR3: HLH | IS3: LLH | IT3: HLH | IU3: LLH | IV3: HLH | IW3: LLH | IX3: HLH | IY3: LLH | IZ3: HLH | JA3: LLH | JB3: HLH | JC3: LLH | JD3: HLH | JE3: LLH | JF3: HLH | JG3: LLH | JH3: HLH | JI3: LLH | JJ3: HLH | JK3: LLH | JL3: HLH | JM3: LLH | JN3: HLH | JO3: LLH | JP3: HLH | JQ3: LLH | JR3: HLH | JS3: LLH | JT3: HLH | JU3: LLH | JV3: HLH | JW3: LLH | JX3: HLH | JY3: LLH | JZ3: HLH | KA3: LLH | KB3: HLH | KC3: LLH | KD3: HLH | KE3: LLH | KF3: HLH | KG3: LLH | KH3: HLH | KI3: LLH | KJ3: HLH | KK3: LLH | KL3: HLH | KM3: LLH | KN3: HLH | KO3: LLH | KP3: HLH | KQ3: LLH | KR3: HLH | KS3: LLH | KT3: HLH | KU3: LLH | KV3: HLH | KW3: LLH | KX3: HLH | KY3: LLH | KZ3: HLH | LA3: LLH | LB3: HLH | LC3: LLH | LD3: HLH | LE3: LLH | LF3: HLH | LG3: LLH | LH3: HLH | LI3: LLH | LJ3: HLH | LK3: LLH | LL3: HLH | LM3: LLH | LN3: HLH | LO3: LLH | LP3: HLH | LQ3: LLH | LR3: HLH | LS3: LLH | LT3: HLH | LU3: LLH | LV3: HLH | LW3: LLH | LX3: HLH | LY3: LLH | LZ3: HLH | MA3: LLH | MB3: HLH | MC3: LLH | MD3: HLH | ME3: LLH | MF3: HLH | MG3: LLH | MH3: HLH | MI3: LLH | MJ3: HLH | MK3: LLH | ML3: HLH | MM3: LLH | MN3: HLH | MO3: LLH | MP3: HLH | MQ3: LLH | MR3: HLH | MS3: LLH | MT3: HLH | MU3: LLH | MV3: HLH | MW3: LLH | MX3: HLH | MY3: LLH | MZ3: HLH | NA3: LLH | NB3: HLH | NC3: LLH | ND3: HLH | NE3: LLH | NF3: HLH | NG3: LLH | NH3: HLH | NI3: LLH | NJ3: HLH | NK3: LLH | NL3: HLH | NM3: LLH | NN3: HLH | NO3: LLH | NP3: HLH | NQ3: LLH | NR3: HLH | NS3: LLH | NT3: HLH | NU3: LLH | NV3: HLH | NW3: LLH
B4: 10005 | C4: Alder Mutual | D4: 0 | E4: 0 | F4: 0 | G4: 0 | H4: 0 | I4: 0 | J4: 0 | K4: 0 | L4: 0 | M4: 0 | N4: 0 | O4: 0 | P4: 0 | Q4: 0 | R4: 0 | S4: 0 | T4: 0 | U4: 0 | V4: 0 | W4: 0 | X4: 0 | Y4: 0 | Z4: 0 | AA4: 0 | AB4: 0 | AC4: 0 | AD4: 0 | AE4: 0 | AF4: 0 | AG4: 0 | AH4: 0 | AI4: 0 | AJ4: 0 | AK4: 0 | AL4: 0 | AM4: 0 | AN4: 0 | AO4: 0 | AP4: 0 | AQ4: 0 | AR4: 0 | AS4: 0 | AT4: 0 | AU4: 0 | AV4: 0 | AW4: 0 | AX4: 0 | AY4: 0 | AZ4: 0 | BA4: 0 | BB4: 0 | BC4: 0 | BD4: 0 | BE4: 0 | BF4: 0 | BG4: 0 | BH4: 0 | BI4: 0 | BJ4: 0 | BK4: 0 | BL4: 0 | BM4: 0 | BN4: 0 | BO4: 0 | BP4: 0 | BQ4: 0 | BR4: 0 | BS4: 0 | BT4: 0 | BU4: 0 | BV4: 0 | BW4: 0 | BX4: 0 | BY4: 0 | BZ4: 0 | CA4: 0 | CB4: 0 | CC4: 0 | CD4: 0 | CE4: 0 | CF4: 0 | CG4: 0 | CH4: 0 | CI4: 0 | CJ4: 0 | CK4: 0 | CL4: 0 | CM4: 0 | CN4: 0 | CO4: 0 | CP4: 0 | CQ4: 0 | CR4: 0 | CS4: 0 | CT4: 0 | CU4: 0 | CV4: 0 | CW4: 0 | CX4: 0 | CY4: 0 | CZ4: 0 | DA4: 0 | DB4: 0 | DC4: 0 | DD4: 0 | DE4: 0 | DF4: 0 | DG4: 0 | DH4: 0 | DI4: 0 | DJ4: 0 | DK4: 0 | DL4: 0 | DM4: 0 | DN4: 0 | DO4: 0 | DP4: 0 | DQ4: 0 | DR4: 0 | DS4: 0 | DT4: 0 | DU4: 0 | DV4: 0 | DW4: 0 | DX4: 0 | DY4: 0 | DZ4: 0 | EA4: 0 | EB4: 0 | EC4: 0 | ED4: 0 | EE4: 0 | EF4: 0 | EG4: 0 | EH4: 0 | EI4: 0 | EJ4: 0 | EK4: 0 | EL4: 0 | EM4: 0 | EN4: 0 | EO4: 0 | EP4: 0 | EQ4: 0 | ER4: 0 | ES4: 0 | ET4: 0 | EU4: 0 | EV4: 0 | EW4: 0 | EX4: 0 | EY4: 0 | EZ4: 0 | FA4: 0 | FB4: 0 | FC4: 0 | FD4: 0 | FE4: 0 | FF4: 0 | FG4: 0 | FH4: 0 | FI4: 0 | FJ4: 0 | FK4: 0 | FL4: 0 | FM4: 0 | FN4: 0 | FO4: 0 | FP4: 0 | FQ4: 0 | FR4: 0 | FS4: 0 | FT4: 0 | FU4: 0 | FV4: 0 | FW4: 0 | FX4: 0 | FY4: 0 | FZ4: 0 | GA4: 0 | GB4: 0 | GC4: 0 | GD4: 0 | GE4: 0 | GF4: 0 | GG4: 0 | GH4: 0 | GI4: 0 | GJ4: 0 | GK4: 0 | GL4: 0 | GM4: 0 | GN4: 0 | GO4: 0 | GP4: 0 | GQ4: 0 | GR4: 0 | GS4: 0 | GT4: 0 | GU4: 0 | GV4: 0 | GW4: 0 | GX4: 0 | GY4: 0 | GZ4: 0 | HA4: 0 | HB4: 0 | HC4: 0 | HD4: 0 | HE4: 0 | HF4: 0 | HG4: 0 | HH4: 0 | HI4: 0 | HJ4: 0 | HK4: 0 | HL4: 0 | HM4: 0 | HN4: 0 | HO4: 0 | HP4: 0 | HQ4: 0 | HR4: 0 | HS4: 0 | HT4: 0 | HU4: 0 | HV4: 0 | HW4: 0 | HX4: 0 | HY4: 0 | HZ4: 0 | IA4: 0 | IB4: 0 | IC4: 0 | ID4: 0 | IE4: 0 | IF4: 0 | IG4: 0 | IH4: 0 | II4: 0 | IJ4: 0 | IK4: 0 | IL4: 0 | IM4: 0 | IN4: 0 | IO4: 0 | IP4: 0 | IQ4: 0 | IR4: 0 | IS4: 0 | IT4: 0 | IU4: 0 | IV4: 0 | IW4: 0 | IX4: 0 | IY4: 0 | IZ4: 0 | JA4: 0 | JB4: 0 | JC4: 0 | JD4: 0 | JE4: 0 | JF4: 0 | JG4: 0 | JH4: 0 | JI4: 0 | JJ4: 0 | JK4: 0 | JL4: 0 | JM4: 0 | JN4: 0 | JO4: 0 | JP4: 0 | JQ4: 0 | JR4: 0 | JS4: 0 | JT4: 0 | JU4: 0 | JV4: 0 | JW4: 0 | JX4: 0 | JY4: 0 | JZ4: 0 | KA4: 0 | KB4: 0 | KC4: 0 | KD4: 0 | KE4: 0 | KF4: 0 | KG4: 0 | KH4: 0 | KI4: 0 | KJ4: 0 | KK4: 0 | KL4: 0 | KM4: 0 | KN4: 0 | KO4: 0 | KP4: 0 | KQ4: 0 | KR4: 0 | KS4: 0 | KT4: 0 | KU4: 0 | KV4: 0 | KW4: 0 | KX4: 0 | KY4: 0 | KZ4: 0 | LA4: 0 | LB4: 0 | LC4: 0 | LD4: 0 | LE4: 0 | LF4: 0 | LG4: 0 | LH4: 0 | LI4: 0 | LJ4: 0 | LK4: 0 | LL4: 0 | LM4: 0 | LN4: 0 | LO4: 0 | LP4: 0 | LQ4: 0 | LR4: 0 | LS4: 0 | LT4: 0 | LU4: 0 | LV4: 0 | LW4: 0 | LX4: 0 | LY4: 0 | LZ4: 0 | MA4: 0 | MB4: 0 | MC4: 0 | MD4: 0 | ME4: 0 | MF4: 0 | MG4: 0 | MH4: 0 | MI4: 0 | MJ4: 0 | MK4: 0 | ML4: 0 | MM4: 0 | MN4: 0 | MO4: 0 | MP4: 0 | MQ4: 0 | MR4: 0 | MS4: 0 | MT4: 0 | MU4: 0 | MV4: 0 | MW4: 0 | MX4: 0 | MY4: 0 | MZ4: 0 | NA4: 0 | NB4: 0 | NC4: 0 | ND4: 0 | NE4: 0 | NF4: 0 | NG4: 0 | NH4: 0 | NI4: 0 | NJ4: 0 | NK4: 0 | NL4: 0 | NM4: 0 | NN4: 0 | NO4: 0 | NP4: 0 | NQ4: 0 | NR4: 0 | NS4: 0 | NT4: 0 | NU4: 0 | NV4: 0 | NW4: 0 | NY4: =+SUM(D4:AA4) -> 0 | NZ4: =+SUM(AB4:AY4) -> 0 | OA4: =+SUM(AZ4:BW4) -> 0 | OB4: =+SUM(BX4:CU4) -> 0 | OC4: =+SUM(CV4:DS4) -> 0 | OD4: =+SUM(DT4:EQ4) -> 0 | OE4: =+SUM(ER4:FO4) -> 0 | OF4: =+SUM(FP4:GM4) -> 0 | OG4: =+SUM(GN4:HK4) -> 0 | OH4: =+SUM(HL4:II4) -> 0 | OI4: =+SUM(IJ4:JG4) -> 0 | OJ4: =+SUM(JH4:KE4) -> 0 | OK4: =+SUM(KF4:LC4) -> 0 | OL4: =+SUM(LD4:MA4) -> 0 | OM4: =+SUM(MB4:MY4) -> 0 | ON4: =+SUM(MZ4:NW4) -> 0
B5: 10015 | C5: Asotin County PUD #1 | D5: 0 | E5: 0 | F5: 0 | G5: 0 | H5: 0 | I5: 0 | J5: 0 | K5: 0 | L5: 0 | M5: 0 | N5: 0 | O5: 0 | P5: 0 | Q5: 0 | R5: 0 | S5: 0 | T5: 0 | U5: 0 | V5: 0 | W5: 0 | X5: 0 | Y5: 0 | Z5: 0 | AA5: 0 | AB5: 0 | AC5: 0 | AD5: 0 | AE5: 0 | AF5: 0 | AG5: 0 | AH5: 0 | AI5: 0 | AJ5: 0 | AK5: 0 | AL5: 0 | AM5: 0 | AN5: 0 | AO5: 0 | AP5: 0 | AQ5: 0 | AR5: 0 | AS5: 0 | AT5: 0 | AU5: 0 | AV5: 0 | AW5: 0 | AX5: 0 | AY5: 0 | AZ5: 0 | BA5: 0 | BB5: 0 | BC5: 0 | BD5: 0 | BE5: 0 | BF5: 0 | BG5: 0 | BH5: 0 | BI5: 0 | BJ5: 0 | BK5: 0 | BL5: 0 | BM5: 0 | BN5: 0 | BO5: 0 | BP5: 0 | BQ5: 0 | BR5: 0 | BS5: 0 | BT5: 0 | BU5: 0 | BV5: 0 | BW5: 0 | BX5: 0 | BY5: 0 | BZ5: 0 | CA5: 0 | CB5: 0 | CC5: 0 | CD5: 0 | CE5: 0 | CF5: 0 | CG5: 0 | CH5: 0 | CI5: 0 | CJ5: 0 | CK5: 0 | CL5: 0 | CM5: 0 | CN5: 0 | CO5: 0 | CP5: 0 | CQ5: 0 | CR5: 0 | CS5: 0 | CT5: 0 | CU5: 0 | CV5: 0 | CW5: 0 | CX5: 0 | CY5: 0 | CZ5: 0 | DA5: 0 | DB5: 0 | DC5: 0 | DD5: 0 | DE5: 0 | DF5: 0 | DG5: 0 | DH5: 0 | DI5: 0 | DJ5: 0 | DK5: 0 | DL5: 0 | DM5: 0 | DN5: 0 | DO5: 0 | DP5: 0 | DQ5: 0 | DR5: 0 | DS5: 0 | DT5: 0 | DU5: 0 | DV5: 0 | DW5: 0 | DX5: 0 | DY5: 0 | DZ5: 0 | EA5: 0 | EB5: 0 | EC5: 0 | ED5: 0 | EE5: 0 | EF5: 0 | EG5: 0 | EH5: 0 | EI5: 0 | EJ5: 0 | EK5: 0 | EL5: 0 | EM5: 0 | EN5: 0 | EO5: 0 | EP5: 0 | EQ5: 0 | ER5: 0 | ES5: 0 | ET5: 0 | EU5: 0 | EV5: 0 | EW5: 0 | EX5: 0 | EY5: 0 | EZ5: 0 | FA5: 0 | FB5: 0 | FC5: 0 | FD5: 0 | FE5: 0 | FF5: 0 | FG5: 0 | FH5: 0 | FI5: 0 | FJ5: 0 | FK5: 0 | FL5: 0 | FM5: 0 | FN5: 0 | FO5: 0 | FP5: 0 | FQ5: 0 | FR5: 0 | FS5: 0 | FT5: 0 | FU5: 0 | FV5: 0 | FW5: 0 | FX5: 0 | FY5: 0 | FZ5: 0 | GA5: 0 | GB5: 0 | GC5: 0 | GD5: 0 | GE5: 0 | GF5: 0 | GG5: 0 | GH5: 0 | GI5: 0 | GJ5: 0 | GK5: 0 | GL5: 0 | GM5: 0 | GN5: 0 | GO5: 0 | GP5: 0 | GQ5: 0 | GR5: 0 | GS5: 0 | GT5: 0 | GU5: 0 | GV5: 0 | GW5: 0 | GX5: 0 | GY5: 0 | GZ5: 0 | HA5: 0 | HB5: 0 | HC5: 0 | HD5: 0 | HE5: 0 | HF5: 0 | HG5: 0 | HH5: 0 | HI5: 0 | HJ5: 0 | HK5: 0 | HL5: 0 | HM5: 0 | HN5: 0 | HO5: 0 | HP5: 0 | HQ5: 0 | HR5: 0 | HS5: 0 | HT5: 0 | HU5: 0 | HV5: 0 | HW5: 0 | HX5: 0 | HY5: 0 | HZ5: 0 | IA5: 0 | IB5: 0 | IC5: 0 | ID5: 0 | IE5: 0 | IF5: 0 | IG5: 0 | IH5: 0 | II5: 0 | IJ5: 0 | IK5: 0 | IL5: 0 | IM5: 0 | IN5: 0 | IO5: 0 | IP5: 0 | IQ5: 0 | IR5: 0 | IS5: 0 | IT5: 0 | IU5: 0 | IV5: 0 | IW5: 0 | IX5: 0 | IY5: 0 | IZ5: 0 | JA5: 0 | JB5: 0 | JC5: 0 | JD5: 0 | JE5: 0 | JF5: 0 | JG5: 0 | JH5: 0 | JI5: 0 | JJ5: 0 | JK5: 0 | JL5: 0 | JM5: 0 | JN5: 0 | JO5: 0 | JP5: 0 | JQ5: 0 | JR5: 0 | JS5: 0 | JT5: 0 | JU5: 0 | JV5: 0 | JW5: 0 | JX5: 0 | JY5: 0 | JZ5: 0 | KA5: 0 | KB5: 0 | KC5: 0 | KD5: 0 | KE5: 0 | KF5: 0 | KG5: 0 | KH5: 0 | KI5: 0 | KJ5: 0 | KK5: 0 | KL5: 0 | KM5: 0 | KN5: 0 | KO5: 0 | KP5: 0 | KQ5: 0 | KR5: 0 | KS5: 0 | KT5: 0 | KU5: 0 | KV5: 0 | KW5: 0 | KX5: 0 | KY5: 0 | KZ5: 0 | LA5: 0 | LB5: 0 | LC5: 0 | LD5: 0 | LE5: 0 | LF5: 0 | LG5: 0 | LH5: 0 | LI5: 0 | LJ5: 0 | LK5: 0 | LL5: 0 | LM5: 0 | LN5: 0 | LO5: 0 | LP5: 0 | LQ5: 0 | LR5: 0 | LS5: 0 | LT5: 0 | LU5: 0 | LV5: 0 | LW5: 0 | LX5: 0 | LY5: 0 | LZ5: 0 | MA5: 0 | MB5: 0 | MC5: 0 | MD5: 0 | ME5: 0 | MF5: 0 | MG5: 0 | MH5: 0 | MI5: 0 | MJ5: 0 | MK5: 0 | ML5: 0 | MM5: 0 | MN5: 0 | MO5: 0 | MP5: 0 | MQ5: 0 | MR5: 0 | MS5: 0 | MT5: 0 | MU5: 0 | MV5: 0 | MW5: 0 | MX5: 0 | MY5: 0 | MZ5: 0 | NA5: 0 | NB5: 0 | NC5: 0 | ND5: 0 | NE5: 0 | NF5: 0 | NG5: 0 | NH5: 0 | NI5: 0 | NJ5: 0 | NK5: 0 | NL5: 0 | NM5: 0 | NN5: 0 | NO5: 0 | NP5: 0 | NQ5: 0 | NR5: 0 | NS5: 0 | NT5: 0 | NU5: 0 | NV5: 0 | NW5: 0 | NY5: =+SUM(D5:AA5) -> 0 | NZ5: =+SUM(AB5:AY5) -> 0 | OA5: =+SUM(AZ5:BW5) -> 0 | OB5: =+SUM(BX5:CU5) -> 0 | OC5: =+SUM(CV5:DS5) -> 0 | OD5: =+SUM(DT5:EQ5) -> 0 | OE5: =+SUM(ER5:FO5) -> 0 | OF5: =+SUM(FP5:GM5) -> 0 | OG5: =+SUM(GN5:HK5) -> 0 | OH5: =+SUM(HL5:II5) -> 0 | OI5: =+SUM(IJ5:JG5) -> 0 | OJ5: =+SUM(JH5:KE5) -> 0 | OK5: =+SUM(KF5:LC5) -> 0 | OL5: =+SUM(LD5:MA5) -> 0 | OM5: =+SUM(MB5:MY5) -> 0 | ON5: =+SUM(MZ5:NW5) -> 0
B6: 10024 | C6: Benton County PUD #1 | D6: 0 | E6: 0 | F6: 0 | G6: 0 | H6: 0 | I6: 0 | J6: 0 | K6: 0 | L6: 0 | M6: 0 | N6: 0 | O6: 0 | P6: 0 | Q6: 0 | R6: 0 | S6: 0 | T6: 0 | U6: 0 | V6: 0 | W6: 0 | X6: 0 | Y6: 0 | Z6: 0 | AA6: 0 | AB6: 0 | AC6: 0 | AD6: 0 | AE6: 0 | AF6: 0 | AG6: 0 | AH6: 0 | AI6: 0 | AJ6: 0 | AK6: 0 | AL6: 0 | AM6: 0 | AN6: 0 | AO6: 0 | AP6: 0 | AQ6: 0 | AR6: 0 | AS6: 0 | AT6: 0 | AU6: 0 | AV6: 0 | AW6: 0 | AX6: 0 | AY6: 0 | AZ6: 0 | BA6: 0 | BB6: 0 | BC6: 0 | BD6: 0 | BE6: 0 | BF6: 0 | BG6: 0 | BH6: 0 | BI6: 0 | BJ6: 0 | BK6: 0 | BL6: 0 | BM6: 0 | BN6: 0 | BO6: 0 | BP6: 0 | BQ6: 0 | BR6: 0 | BS6: 0 | BT6: 0 | BU6: 0 | BV6: 0 | BW6: 0 | BX6: 0 | BY6: 0 | BZ6: 0 | CA6: 0 | CB6: 0 | CC6: 0 | CD6: 0 | CE6: 0 | CF6: 0 | CG6: 0 | CH6: 0 | CI6: 0 | CJ6: 0 | CK6: 0 | CL6: 0 | CM6: 0 | CN6: 0 | CO6: 0 | CP6: 0 | CQ6: 0 | CR6: 0 | CS6: 0 | CT6: 0 | CU6: 0 | CV6: 0 | CW6: 0 | CX6: 0 | CY6: 0 | CZ6: 0 | DA6: 0 | DB6: 0 | DC6: 0 | DD6: 0 | DE6: 0 | DF6: 0 | DG6: 0 | DH6: 0 | DI6: 0 | DJ6: 0 | DK6: 0 | DL6: 0 | DM6: 0 | DN6: 0 | DO6: 0 | DP6: 0 | DQ6: 0 | DR6: 0 | DS6: 0 | DT6: 0 | DU6: 0 | DV6: 0 | DW6: 0 | DX6: 0 | DY6: 0 | DZ6: 0 | EA6: 0 | EB6: 0 | EC6: 0 | ED6: 0 | EE6: 0 | EF6: 0 | EG6: 0 | EH6: 0 | EI6: 0 | EJ6: 0 | EK6: 0 | EL6: 0 | EM6: 0 | EN6: 0 | EO6: 0 | EP6: 0 | EQ6: 0 | ER6: 0 | ES6: 0 | ET6: 0 | EU6: 0 | EV6: 0 | EW6: 0 | EX6: 0 | EY6: 0 | EZ6: 0 | FA6: 0 | FB6: 0 | FC6: 0 | FD6: 0 | FE6: 0 | FF6: 0 | FG6: 0 | FH6: 0 | FI6: 0 | FJ6: 0 | FK6: 0 | FL6: 0 | FM6: 0 | FN6: 0 | FO6: 0 | FP6: 0 | FQ6: 0 | FR6: 0 | FS6: 0 | FT6: 0 | FU6: 0 | FV6: 0 | FW6: 0 | FX6: 0 | FY6: 0 | FZ6: 0 | GA6: 0 | GB6: 0 | GC6: 0 | GD6: 0 | GE6: 0 | GF6: 0 | GG6: 0 | GH6: 0 | GI6: 0 | GJ6: 0 | GK6: 0 | GL6: 0 | GM6: 0 | GN6: 0 | GO6: 0 | GP6: 0 | GQ6: 0 | GR6: 0 | GS6: 0 | GT6: 0 | GU6: 0 | GV6: 0 | GW6: 0 | GX6: 0 | GY6: 0 | GZ6: 0 | HA6: 0 | HB6: 0 | HC6: 0 | HD6: 0 | HE6: 0 | HF6: 0 | HG6: 0 | HH6: 0 | HI6: 0 | HJ6: 0 | HK6: 0 | HL6: 0 | HM6: 0 | HN6: 0 | HO6: 0 | HP6: 0 | HQ6: 0 | HR6: 0 | HS6: 0 | HT6: 0 | HU6: 0 | HV6: 0 | HW6: 0 | HX6: 0 | HY6: 0 | HZ6: 0 | IA6: 0 | IB6: 0 | IC6: 0 | ID6: 0 | IE6: 0 | IF6: 0 | IG6: 0 | IH6: 0 | II6: 0 | IJ6: 0 | IK6: 0 | IL6: 0 | IM6: 0 | IN6: 0 | IO6: 0 | IP6: 0 | IQ6: 0 | IR6: 0 | IS6: 0 | IT6: 0 | IU6: 0 | IV6: 0 | IW6: 0 | IX6: 0 | IY6: 0 | IZ6: 0 | JA6: 0 | JB6: 0 | JC6: 0 | JD6: 0 | JE6: 0 | JF6: 0 | JG6: 0 | JH6: 0 | JI6: 0 | JJ6: 0 | JK6: 0 | JL6: 0 | JM6: 0 | JN6: 0 | JO6: 0 | JP6: 0 | JQ6: 0 | JR6: 0 | JS6: 0 | JT6: 0 | JU6: 0 | JV6: 0 | JW6: 0 | JX6: 0 | JY6: 0 | JZ6: 0 | KA6: 0 | KB6: 0 | KC6: 0 | KD6: 0 | KE6: 0 | KF6: 0 | KG6: 0 | KH6: 0 | KI6: 0 | KJ6: 0 | KK6: 0 | KL6: 0 | KM6: 0 | KN6: 0 | KO6: 0 | KP6: 0 | KQ6: 0 | KR6: 0 | KS6: 0 | KT6: 0 | KU6: 0 | KV6: 0 | KW6: 0 | KX6: 0 | KY6: 0 | KZ6: 0 | LA6: 0 | LB6: 0 | LC6: 0 | LD6: 0 | LE6: 0 | LF6: 0 | LG6: 0 | LH6: 0 | LI6: 0 | LJ6: 0 | LK6: 0 | LL6: 0 | LM6: 0 | LN6: 0 | LO6: 0 | LP6: 0 | LQ6: 0 | LR6: 0 | LS6: 0 | LT6: 0 | LU6: 0 | LV6: 0 | LW6: 0 | LX6: 0 | LY6: 0 | LZ6: 0 | MA6: 0 | MB6: 0 | MC6: 0 | MD6: 0 | ME6: 0 | MF6: 0 | MG6: 0 | MH6: 0 | MI6: 0 | MJ6: 0 | MK6: 0 | ML6: 0 | MM6: 0 | MN6: 0 | MO6: 0 | MP6: 0 | MQ6: 0 | MR6: 0 | MS6: 0 | MT6: 0 | MU6: 0 | MV6: 0 | MW6: 0 | MX6: 0 | MY6: 0 | MZ6: 0 | NA6: 0 | NB6: 0 | NC6: 0 | ND6: 0 | NE6: 0 | NF6: 0 | NG6: 0 | NH6: 0 | NI6: 0 | NJ6: 0 | NK6: 0 | NL6: 0 | NM6: 0 | NN6: 0 | NO6: 0 | NP6: 0 | NQ6: 0 | NR6: 0 | NS6: 0 | NT6: 0 | NU6: 0 | NV6: 0 | NW6: 0 | NY6: 0 | NZ6: 0 | OA6: 0 | OB6: 0 | OC6: 0 | OD6: 0 | OE6: 0 | OF6: 0 | OG6: 0 | OH6: 0 | OI6: 0 | OJ6: 0 | OK6: 0 | OL6: 0 | OM6: 0 | ON6: 0
B7: 10025 | C7: Benton REA | D7: 0 | E7: 0 | F7: 0 | G7: 0 | H7: 0 | I7: 0 | J7: 0 | K7: 0 | L7: 0 | M7: 0 | N7: 0 | O7: 0 | P7: 0 | Q7: 0 | R7: 0 | S7: 0 | T7: 0 | U7: 0 | V7: 0 | W7: 0 | X7: 0 | Y7: 0 | Z7: 0 | AA7: 0 | AB7: 0 | AC7: 0 | AD7: 0 | AE7: 0 | AF7: 0 | AG7: 0 | AH7: 0 | AI7: 0 | AJ7: 0 | AK7: 0 | AL7: 0 | AM7: 0 | AN7: 0 | AO7: 0 | AP7: 0 | AQ7: 0 | AR7: 0 | AS7: 0 | AT7: 0 | AU7: 0 | AV7: 0 | AW7: 0 | AX7: 0 | AY7: 0 | AZ7: 0 | BA7: 0 | BB7: 0 | BC7: 0 | BD7: 0 | BE7: 0 | BF7: 0 | BG7: 0 | BH7: 0 | BI7: 0 | BJ7: 0 | BK7: 0 | BL7: 0 | BM7: 0 | BN7: 0 | BO7: 0 | BP7: 0 | BQ7: 0 | BR7: 0 | BS7: 0 | BT7: 0 | BU7: 0 | BV7: 0 | BW7: 0 | BX7: 0 | BY7: 0 | BZ7: 0 | CA7: 0 | CB7: 0 | CC7: 0 | CD7: 0 | CE7: 0 | CF7: 0 | CG7: 0 | CH7: 0 | CI7: 0 | CJ7: 0 | CK7: 0 | CL7: 0 | CM7: 0 | CN7: 0 | CO7: 0 | CP7: 0 | CQ7: 0 | CR7: 0 | CS7: 0 | CT7: 0 | CU7: 0 | CV7: 0 | CW7: 0 | CX7: 0 | CY7: 0 | CZ7: 0 | DA7: 0 | DB7: 0 | DC7: 0 | DD7: 0 | DE7: 0 | DF7: 0 | DG7: 0 | DH7: 0 | DI7: 0 | DJ7: 0 | DK7: 0 | DL7: 0 | DM7: 0 | DN7: 0 | DO7: 0 | DP7: 0 | DQ7: 0 | DR7: 0 | DS7: 0 | DT7: 0 | DU7: 0 | DV7: 0 | DW7: 0 | DX7: 0 | DY7: 0 | DZ7: 0 | EA7: 0 | EB7: 0 | EC7: 0 | ED7: 0 | EE7: 0 | EF7: 0 | EG7: 0 | EH7: 0 | EI7: 0 | EJ7: 0 | EK7: 0 | EL7: 0 | EM7: 0 | EN7: 0 | EO7: 0 | EP7: 0 | EQ7: 0 | ER7: 0 | ES7: 0 | ET7: 0 | EU7: 0 | EV7: 0 | EW7: 0 | EX7: 0 | EY7: 0 | EZ7: 0 | FA7: 0 | FB7: 0 | FC7: 0 | FD7: 0 | FE7: 0 | FF7: 0 | FG7: 0 | FH7: 0 | FI7: 0 | FJ7: 0 | FK7: 0 | FL7: 0 | FM7: 0 | FN7: 0 | FO7: 0 | FP7: 0 | FQ7: 0 | FR7: 0 | FS7: 0 | FT7: 0 | FU7: 0 | FV7: 0 | FW7: 0 | FX7: 0 | FY7: 0 | FZ7: 0 | GA7: 0 | GB7: 0 | GC7: 0 | GD7: 0 | GE7: 0 | GF7: 0 | GG7: 0 | GH7: 0 | GI7: 0 | GJ7: 0 | GK7: 0 | GL7: 0 | GM7: 0 | GN7: 0 | GO7: 0 | GP7: 0 | GQ7: 0 | GR7: 0 | GS7: 0 | GT7: 0 | GU7: 0 | GV7: 0 | GW7: 0 | GX7: 0 | GY7: 0 | GZ7: 0 | HA7: 0 | HB7: 0 | HC7: 0 | HD7: 0 | HE7: 0 | HF7: 0 | HG7: 0 | HH7: 0 | HI7: 0 | HJ7: 0 | HK7: 0 | HL7: 0 | HM7: 0 | HN7: 0 | HO7: 0 | HP7: 0 | HQ7: 0 | HR7: 0 | HS7: 0 | HT7: 0 | HU7: 0 | HV7: 0 | HW7: 0 | HX7: 0 | HY7: 0 | HZ7: 0 | IA7: 0 | IB7: 0 | IC7: 0 | ID7: 0 | IE7: 0 | IF7: 0 | IG7: 0 | IH7: 0 | II7: 0 | IJ7: 0 | IK7: 0 | IL7: 0 | IM7: 0 | IN7: 0 | IO7: 0 | IP7: 0 | IQ7: 0 | IR7: 0 | IS7: 0 | IT7: 0 | IU7: 0 | IV7: 0 | IW7: 0 | IX7: 0 | IY7: 0 | IZ7: 0 | JA7: 0 | JB7: 0 | JC7: 0 | JD7: 0 | JE7: 0 | JF7: 0 | JG7: 0 | JH7: 0 | JI7: 0 | JJ7: 0 | JK7: 0 | JL7: 0 | JM7: 0 | JN7: 0 | JO7: 0 | JP7: 0 | JQ7: 0 | JR7: 0 | JS7: 0 | JT7: 0 | JU7: 0 | JV7: 0 | JW7: 0 | JX7: 0 | JY7: 0 | JZ7: 0 | KA7: 0 | KB7: 0 | KC7: 0 | KD7: 0 | KE7: 0 | KF7: 0 | KG7: 0 | KH7: 0 | KI7: 0 | KJ7: 0 | KK7: 0 | KL7: 0 | KM7: 0 | KN7: 0 | KO7: 0 | KP7: 0 | KQ7: 0 | KR7: 0 | KS7: 0 | KT7: 0 | KU7: 0 | KV7: 0 | KW7: 0 | KX7: 0 | KY7: 0 | KZ7: 0 | LA7: 0 | LB7: 0 | LC7: 0 | LD7: 0 | LE7: 0 | LF7: 0 | LG7: 0 | LH7: 0 | LI7: 0 | LJ7: 0 | LK7: 0 | LL7: 0 | LM7: 0 | LN7: 0 | LO7: 0 | LP7: 0 | LQ7: 0 | LR7: 0 | LS7: 0 | LT7: 0 | LU7: 0 | LV7: 0 | LW7: 0 | LX7: 0 | LY7: 0 | LZ7: 0 | MA7: 0 | MB7: 0 | MC7: 0 | MD7: 0 | ME7: 0 | MF7: 0 | MG7: 0 | MH7: 0 | MI7: 0 | MJ7: 0 | MK7: 0 | ML7: 0 | MM7: 0 | MN7: 0 | MO7: 0 | MP7: 0 | MQ7: 0 | MR7: 0 | MS7: 0 | MT7: 0 | MU7: 0 | MV7: 0 | MW7: 0 | MX7: 0 | MY7: 0 | MZ7: 0 | NA7: 0 | NB7: 0 | NC7: 0 | ND7: 0 | NE7: 0 | NF7: 0 | NG7: 0 | NH7: 0 | NI7: 0 | NJ7: 0 | NK7: 0 | NL7: 0 | NM7: 0 | NN7: 0 | NO7: 0 | NP7: 0 | NQ7: 0 | NR7: 0 | NS7: 0 | NT7: 0 | NU7: 0 | NV7: 0 | NW7: 0 | NY7: 0 | NZ7: 0 | OA7: 0 | OB7: 0 | OC7: 0 | OD7: 0 | OE7: 0 | OF7: 0 | OG7: 0 | OH7: 0 | OI7: 0 | OJ7: 0 | OK7: 0 | OL7: 0 | OM7: 0 | ON7: 0
B8: 10027 | C8: Big Bend Elec Coop | D8: 0 | E8: 0 | F8: 0 | G8: 0 | H8: 0 | I8: 0 | J8: 0 | K8: 0 | L8: 0 | M8: 0 | N8: 0 | O8: 0 | P8: 0 | Q8: 0 | R8: 0 | S8: 0 | T8: 0 | U8: 0 | V8: 0 | W8: 0 | X8: 0 | Y8: 0 | Z8: 0 | AA8: 0 | AB8: 0 | AC8: 0 | AD8: 0 | AE8: 0 | AF8: 0 | AG8: 0 | AH8: 0 | AI8: 0 | AJ8: 0 | AK8: 0 | AL8: 0 | AM8: 0 | AN8: 0 | AO8: 0 | AP8: 0 | AQ8: 0 | AR8: 0 | AS8: 0 | AT8: 0 | AU8: 0 | AV8: 0 | AW8: 0 | AX8: 0 | AY8: 0 | AZ8: 0 | BA8: 0 | BB8: 0 | BC8: 0 | BD8: 0 | BE8: 0 | BF8: 0 | BG8: 0 | BH8: 0 | BI8: 0 | BJ8: 0 | BK8: 0 | BL8: 0 | BM8: 0 | BN8: 0 | BO8: 0 | BP8: 0 | BQ8: 0 | BR8: 0 | BS8: 0 | BT8: 0 | BU8: 0 | BV8: 0 | BW8: 0 | BX8: 0 | BY8: 0 | BZ8: 0 | CA8: 0 | CB8: 0 | CC8: 0 | CD8: 0 | CE8: 0 | CF8: 0 | CG8: 0 | CH8: 0 | CI8: 0 | CJ8: 0 | CK8: 0 | CL8: 0 | CM8: 0 | CN8: 0 | CO8: 0 | CP8: 0 | CQ8: 0 | CR8: 0 | CS8: 0 | CT8: 0 | CU8: 0 | CV8: 0 | CW8: 0 | CX8: 0 | CY8: 0 | CZ8: 0 | DA8: 0 | DB8: 0 | DC8: 0 | DD8: 0 | DE8: 0 | DF8: 0 | DG8: 0 | DH8: 0 | DI8: 0 | DJ8: 0 | DK8: 0 | DL8: 0 | DM8: 0 | DN8: 0 | DO8: 0 | DP8: 0 | DQ8: 0 | DR8: 0 | DS8: 0 | DT8: 0 | DU8: 0 | DV8: 0 | DW8: 0 | DX8: 0 | DY8: 0 | DZ8: 0 | EA8: 0 | EB8: 0 | EC8: 0 | ED8: 0 | EE8: 0 | EF8: 0 | EG8: 0 | EH8: 0 | EI8: 0 | EJ8: 0 | EK8: 0 | EL8: 0 | EM8: 0 | EN8: 0 | EO8: 0 | EP8: 0 | EQ8: 0 | ER8: 0 | ES8: 0 | ET8: 0 | EU8: 0 | EV8: 0 | EW8: 0 | EX8: 0 | EY8: 0 | EZ8: 0 | FA8: 0 | FB8: 0 | FC8: 0 | FD8: 0 | FE8: 0 | FF8: 0 | FG8: 0 | FH8: 0 | FI8: 0 | FJ8: 0 | FK8: 0 | FL8: 0 | FM8: 0 | FN8: 0 | FO8: 0 | FP8: 0 | FQ8: 0 | FR8: 0 | FS8: 0 | FT8: 0 | FU8: 0 | FV8: 0 | FW8: 0 | FX8: 0 | FY8: 0 | FZ8: 0 | GA8: 0 | GB8: 0 | GC8: 0 | GD8: 0 | GE8: 0 | GF8: 0 | GG8: 0 | GH8: 0 | GI8: 0 | GJ8: 0 | GK8: 0 | GL8: 0 | GM8: 0 | GN8: 0 | GO8: 0 | GP8: 0 | GQ8: 0 | GR8: 0 | GS8: 0 | GT8: 0 | GU8: 0 | GV8: 0 | GW8: 0 | GX8: 0 | GY8: 0 | GZ8: 0 | HA8: 0 | HB8: 0 | HC8: 0 | HD8: 0 | HE8: 0 | HF8: 0 | HG8: 0 | HH8: 0 | HI8: 0 | HJ8: 0 | HK8: 0 | HL8: 0 | HM8: 0 | HN8: 0 | HO8: 0 | HP8: 0 | HQ8: 0 | HR8: 0 | HS8: 0 | HT8: 0 | HU8: 0 | HV8: 0 | HW8: 0 | HX8: 0 | HY8: 0 | HZ8: 0 | IA8: 0 | IB8: 0 | IC8: 0 | ID8: 0 | IE8: 0 | IF8: 0 | IG8: 0 | IH8: 0 | II8: 0 | IJ8: 0 | IK8: 0 | IL8: 0 | IM8: 0 | IN8: 0 | IO8: 0 | IP8: 0 | IQ8: 0 | IR8: 0 | IS8: 0 | IT8: 0 | IU8: 0 | IV8: 0 | IW8: 0 | IX8: 0 | IY8: 0 | IZ8: 0 | JA8: 0 | JB8: 0 | JC8: 0 | JD8: 0 | JE8: 0 | JF8: 0 | JG8: 0 | JH8: 0 | JI8: 0 | JJ8: 0 | JK8: 0 | JL8: 0 | JM8: 0 | JN8: 0 | JO8: 0 | JP8: 0 | JQ8: 0 | JR8: 0 | JS8: 0 | JT8: 0 | JU8: 0 | JV8: 0 | JW8: 0 | JX8: 0 | JY8: 0 | JZ8: 0 | KA8: 0 | KB8: 0 | KC8: 0 | KD8: 0 | KE8: 0 | KF8: 0 | KG8: 0 | KH8: 0 | KI8: 0 | KJ8: 0 | KK8: 0 | KL8: 0 | KM8: 0 | KN8: 0 | KO8: 0 | KP8: 0 | KQ8: 0 | KR8: 0 | KS8: 0 | KT8: 0 | KU8: 0 | KV8: 0 | KW8: 0 | KX8: 0 | KY8: 0 | KZ8: 0 | LA8: 0 | LB8: 0 | LC8: 0 | LD8: 0 | LE8: 0 | LF8: 0 | LG8: 0 | LH8: 0 | LI8: 0 | LJ8: 0 | LK8: 0 | LL8: 0 | LM8: 0 | LN8: 0 | LO8: 0 | LP8: 0 | LQ8: 0 | LR8: 0 | LS8: 0 | LT8: 0 | LU8: 0 | LV8: 0 | LW8: 0 | LX8: 0 | LY8: 0 | LZ8: 0 | MA8: 0 | MB8: 0 | MC8: 0 | MD8: 0 | ME8: 0 | MF8: 0 | MG8: 0 | MH8: 0 | MI8: 0 | MJ8: 0 | MK8: 0 | ML8: 0 | MM8: 0 | MN8: 0 | MO8: 0 | MP8: 0 | MQ8: 0 | MR8: 0 | MS8: 0 | MT8: 0 | MU8: 0 | MV8: 0 | MW8: 0 | MX8: 0 | MY8: 0 | MZ8: 0 | NA8: 0 | NB8: 0 | NC8: 0 | ND8: 0 | NE8: 0 | NF8: 0 | NG8: 0 | NH8: 0 | NI8: 0 | NJ8: 0 | NK8: 0 | NL8: 0 | NM8: 0 | NN8: 0 | NO8: 0 | NP8: 0 | NQ8: 0 | NR8: 0 | NS8: 0 | NT8: 0 | NU8: 0 | NV8: 0 | NW8: 0 | NY8: 0 | NZ8: 0 | OA8: 0 | OB8: 0 | OC8: 0 | OD8: 0 | OE8: 0 | OF8: 0 | OG8: 0 | OH8: 0 | OI8: 0 | OJ8: 0 | OK8: 0 | OL8: 0 | OM8: 0 | ON8: 0
B9: 10029 | C9: Blachly Lane Elec Coop | D9: 0 | E9: 0 | F9: 0 | G9: 0 | H9: 0 | I9: 0 | J9: 0 | K9: 0 | L9: 0 | M9: 0 | N9: 0 | O9: 0 | P9: 0 | Q9: 0 | R9: 0 | S9: 0 | T9: 0 | U9: 0 | V9: 0 | W9: 0 | X9: 0 | Y9: 0 | Z9: 0 | AA9: 0 | AB9: 0 | AC9: 0 | AD9: 0 | AE9: 0 | AF9: 0 | AG9: 0 | AH9: 0 | AI9: 0 | AJ9: 0 | AK9: 0 | AL9: 0 | AM9: 0 | AN9: 0 | AO9: 0 | AP9: 0 | AQ9: 0 | AR9: 0 | AS9: 0 | AT9: 0 | AU9: 0 | AV9: 0 | AW9: 0 | AX9: 0 | AY9: 0 | AZ9: 0 | BA9: 0 | BB9: 0 | BC9: 0 | BD9: 0 | BE9: 0 | BF9: 0 | BG9: 0 | BH9: 0 | BI9: 0 | BJ9: 0 | BK9: 0 | BL9: 0 | BM9: 0 | BN9: 0 | BO9: 0 | BP9: 0 | BQ9: 0 | BR9: 0 | BS9: 0 | BT9: 0 | BU9: 0 | BV9: 0 | BW9: 0 | BX9: 0 | BY9: 0 | BZ9: 0 | CA9: 0 | CB9: 0 | CC9: 0 | CD9: 0 | CE9: 0 | CF9: 0 | CG9: 0 | CH9: 0 | CI9: 0 | CJ9: 0 | CK9: 0 | CL9: 0 | CM9: 0 | CN9: 0 | CO9: 0 | CP9: 0 | CQ9: 0 | CR9: 0 | CS9: 0 | CT9: 0 | CU9: 0 | CV9: 0 | CW9: 0 | CX9: 0 | CY9: 0 | CZ9: 0 | DA9: 0 | DB9: 0 | DC9: 0 | DD9: 0 | DE9: 0 | DF9: 0 | DG9: 0 | DH9: 0 | DI9: 0 | DJ9: 0 | DK9: 0 | DL9: 0 | DM9: 0 | DN9: 0 | DO9: 0 | DP9: 0 | DQ9: 0 | DR9: 0 | DS9: 0 | DT9: 0 | DU9: 0 | DV9: 0 | DW9: 0 | DX9: 0 | DY9: 0 | DZ9: 0 | EA9: 0 | EB9: 0 | EC9: 0 | ED9: 0 | EE9: 0 | EF9: 0 | EG9: 0 | EH9: 0 | EI9: 0 | EJ9: 0 | EK9: 0 | EL9: 0 | EM9: 0 | EN9: 0 | EO9: 0 | EP9: 0 | EQ9: 0 | ER9: 1596.345 | ES9: 1258.655 | ET9: 1535.104 | EU9: 1231.896 | EV9: 1596.345 | EW9: 1258.655 | EX9: 1534.934 | EY9: 1320.066 | EZ9: 1473.718 | FA9: 1105.282 | FB9: 1658.238 | FC9: 1193.762 | FD9: 1596.406 | FE9: 1166.594 | FF9: 1534.934 | FG9: 1320.066 | FH9: 1596.406 | FI9: 1166.594 | FJ9: 1534.934 | FK9: 1320.066 | FL9: 1657.756 | FM9: 1197.244 | FN9: 1535.012 | FO9: 1227.988 | FP9: 1777.506 | FQ9: 1401.494 | FR9: 1709.308 | FS9: 1371.692 | FT9: 1777.506 | FU9: 1401.494 | FV9: 1709.126 | FW9: 1469.874 | FX9: 1640.576 | FY9: 1230.424 | FZ9: 1846.04 | GA9: 1328.96 | GB9: 1709.458 | GC9: 1367.542 | GD9: 1777.506 | GE9: 1401.494 | GF9: 1777.829 | GG9: 1299.171 | GH9: 1709.126 | GI9: 1469.874 | GJ9: 1845.886 | GK9: 1333.114 | GL9: 1709.458 | GM9: 1367.542 | GN9: 1804.904 | GO9: 1423.096 | GP9: 1735.383 | GQ9: 1392.617 | GR9: 1735.47 | GS9: 1492.53 | GT9: 1804.904 | GU9: 1423.096 | GV9: 1735.624 | GW9: 1284.376 | GX9: 1805.085 | GY9: 1418.915 | GZ9: 1804.985 | HA9: 1319.015 | HB9: 1804.904 | HC9: 1423.096 | HD9: 1735.569 | HE9: 1388.431 | HF9: 1804.904 | HG9: 1423.096 | HH9: 1874.338 | HI9: 1353.662 | HJ9: 1666.123 | HK9: 1457.877 | HL9: 1872.016 | HM9: 1351.984 | HN9: 1733.164 | HO9: 1390.836 | HP9: 1733.319 | HQ9: 1490.681 | HR9: 1802.667 | HS9: 1421.333 | HT9: 1664.004 | HU9: 1247.996 | HV9: 1802.286 | HW9: 1416.714 | HX9: 1802.674 | HY9: 1317.326 | HZ9: 1802.667 | IA9: 1421.333 | IB9: 1733.347 | IC9: 1386.653 | ID9: 1802.667 | IE9: 1421.333 | IF9: 1802.667 | IG9: 1421.333 | IH9: 1733.347 | II9: 1386.653 | IJ9: 1959.113 | IK9: 1414.887 | IL9: 1741.569 | IM9: 1528.431 | IN9: 1886.538 | IO9: 1487.462 | IP9: 1886.538 | IQ9: 1487.462 | IR9: 1741.719 | IS9: 1306.281 | IT9: 1886.829 | IU9: 1483.171 | IV9: 1886.452 | IW9: 1378.548 | IX9: 1813.964 | IY9: 1560.036 | IZ9: 1886.452 | JA9: 1378.548 | JB9: 1886.538 | JC9: 1487.462 | JD9: 1886.538 | JE9: 1487.462 | JF9: 1813.903 | JG9: 1451.097 | JH9: 2146.663 | JI9: 1550.337 | JJ9: 1908.27 | JK9: 1674.73 | JL9: 2067.141 | JM9: 1629.859 | JN9: 1987.618 | JO9: 1709.382 | JP9: 1908.005 | JQ9: 1430.995 | JR9: 2146.64 | JS9: 1545.36 | JT9: 2067.297 | JU9: 1510.703 | JV9: 1987.618 | JW9: 1709.382 | JX9: 2067.297 | JY9: 1510.703 | JZ9: 2067.141 | KA9: 1629.859 | KB9: 2067.141 | KC9: 1629.859 | KD9: 1987.794 | KE9: 1590.206 | KF9: 2090.625 | KG9: 1648.375 | KH9: 2010.559 | KI9: 1613.441 | KJ9: 2090.625 | KK9: 1648.375 | KL9: 2010.199 | KM9: 1728.801 | KN9: 2010.336 | KO9: 1487.664 | KP9: 2171.06 | KQ9: 1562.94 | KR9: 2010.572 | KS9: 1608.428 | KT9: 2090.625 | KU9: 1648.375 | KV9: 2090.986 | KW9: 1528.014 | KX9: 2010.199 | KY9: 1728.801 | KZ9: 2171.05 | LA9: 1567.95 | LB9: 2010.572 | LC9: 1608.428 | LD9: 2087.829 | LE9: 1646.171 | LF9: 2007.785 | LG9: 1611.215 | LH9: 2007.51 | LI9: 1726.49 | LJ9: 2087.829 | LK9: 1646.171 | LL9: 1927.433 | LM9: 1445.567 | LN9: 2168.153 | LO9: 1560.847 | LP9: 2007.794 | LQ9: 1606.206 | LR9: 2087.829 | LS9: 1646.171 | LT9: 2088.097 | LU9: 1525.903 | LV9: 2007.51 | LW9: 1726.49 | LX9: 2168.147 | LY9: 1565.853 | LZ9: 1927.455 | MA9: 1686.545 | MB9: 2165.824 | MC9: 1564.176 | MD9: 2005.566 | ME9: 1609.434 | MF9: 2005.36 | MG9: 1724.64 | MH9: 2085.592 | MI9: 1644.408 | MJ9: 1925.148 | MK9: 1443.852 | ML9: 2085.59 | MM9: 1639.41 | MN9: 2085.786 | MO9: 1524.214 | MP9: 2085.592 | MQ9: 1644.408 | MR9: 2005.572 | MS9: 1604.428 | MT9: 2085.592 | MU9: 1644.408 | MV9: 2165.824 | MW9: 1564.176 | MX9: 1925.321 | MY9: 1684.679 | MZ9: 2165.824 | NA9: 1564.176 | NB9: 2005.566 | NC9: 1609.434 | ND9: 2005.36 | NE9: 1724.64 | NF9: 2085.592 | NG9: 1644.408 | NH9: 1925.148 | NI9: 1443.852 | NJ9: 2085.59 | NK9: 1639.41 | NL9: 2085.786 | NM9: 1524.214 | NN9: 2085.592 | NO9: 1644.408 | NP9: 2005.572 | NQ9: 1604.428 | NR9: 2085.592 | NS9: 1644.408 | NT9: 2085.592 | NU9: 1644.408 | NV9: 2005.572 | NW9: 1604.428 | NY9: 0 | NZ9: 0 | OA9: 0 | OB9: 0 | OC9: 0 | OD9: 0 | OE9: 33617 | OF9: 37432 | OG9: 38112 | OH9: 37959 | OI9: 39727 | OJ9: 43530 | OK9: 44147 | OL9: 43967 | OM9: 43919 | ON9: 43919
B10: 10044 | C10: Canby, City of | D10: 0 | E10: 0 | F10: 0 | G10: 0 | H10: 0 | I10: 0 | J10: 0 | K10: 0 | L10: 0 | M10: 0 | N10: 0 | O10: 0 | P10: 0 | Q10: 0 | R10: 0 | S10: 0 | T10: 0 | U10: 0 | V10: 0 | W10: 0 | X10: 0 | Y10: 0 | Z10: 0 | AA10: 0 | AB10: 0 | AC10: 0 | AD10: 0 | AE10: 0 | AF10: 0 | AG10: 0 | AH10: 0 | AI10: 0 | AJ10: 0 | AK10: 0 | AL10: 0 | AM10: 0 | AN10: 0 | AO10: 0 | AP10: 0 | AQ10: 0 | AR10: 0 | AS10: 0 | AT10: 0 | AU10: 0 | AV10: 0 | AW10: 0 | AX10: 0 | AY10: 0 | AZ10: 0 | BA10: 0 | BB10: 0 | BC10: 0 | BD10: 0 | BE10: 0 | BF10: 0 | BG10: 0 | BH10: 0 | BI10: 0 | BJ10: 0 | BK10: 0 | BL10: 0 | BM10: 0 | BN10: 0 | BO10: 0 | BP10: 0 | BQ10: 0 | BR10: 0 | BS10: 0 | BT10: 0 | BU10: 0 | BV10: 0 | BW10: 0 | BX10: 0 | BY10: 0 | BZ10: 0 | CA10: 0 | CB10: 0 | CC10: 0 | CD10: 0 | CE10: 0 | CF10: 0 | CG10: 0 | CH10: 0 | CI10: 0 | CJ10: 0 | CK10: 0 | CL10: 0 | CM10: 0 | CN10: 0 | CO10: 0 | CP10: 0 | CQ10: 0 | CR10: 0 | CS10: 0 | CT10: 0 | CU10: 0 | CV10: 0 | CW10: 0 | CX10: 0 | CY10: 0 | CZ10: 0 | DA10: 0 | DB10: 0 | DC10: 0 | DD10: 0 | DE10: 0 | DF10: 0 | DG10: 0 | DH10: 0 | DI10: 0 | DJ10: 0 | DK10: 0 | DL10: 0 | DM10: 0 | DN10: 0 | DO10: 0 | DP10: 0 | DQ10: 0 | DR10: 0 | DS10: 0 | DT10: 0 | DU10: 0 | DV10: 0 | DW10: 0 | DX10: 0 | DY10: 0 | DZ10: 0 | EA10: 0 | EB10: 0 | EC10: 0 | ED10: 0 | EE10: 0 | EF10: 0 | EG10: 0 | EH10: 0 | EI10: 0 | EJ10: 0 | EK10: 0 | EL10: 0 | EM10: 0 | EN10: 0 | EO10: 0 | EP10: 0 | EQ10: 0 | ER10: 0 | ES10: 0 | ET10: 0 | EU10: 0 | EV10: 0 | EW10: 0 | EX10: 0 | EY10: 0 | EZ10: 0 | FA10: 0 | FB10: 0 | FC10: 0 | FD10: 0 | FE10: 0 | FF10: 0 | FG10: 0 | FH10: 0 | FI10: 0 | FJ10: 0 | FK10: 0 | FL10: 0 | FM10: 0 | FN10: 0 | FO10: 0 | FP10: 0 | FQ10: 0 | FR10: 0 | FS10: 0 | FT10: 0 | FU10: 0 | FV10: 0 | FW10: 0 | FX10: 0 | FY10: 0 | FZ10: 0 | GA10: 0 | GB10: 0 | GC10: 0 | GD10: 0 | GE10: 0 | GF10: 0 | GG10: 0 | GH10: 0 | GI10: 0 | GJ10: 0 | GK10: 0 | GL10: 0 | GM10: 0 | GN10: 0 | GO10: 0 | GP10: 0 | GQ10: 0 | GR10: 0 | GS10: 0 | GT10: 0 | GU10: 0 | GV10: 0 | GW10: 0 | GX10: 0 | GY10: 0 | GZ10: 0 | HA10: 0 | HB10: 0 | HC10: 0 | HD10: 0 | HE10: 0 | HF10: 0 | HG10: 0 | HH10: 0 | HI10: 0 | HJ10: 0 | HK10: 0 | HL10: 0 | HM10: 0 | HN10: 0 | HO10: 0 | HP10: 0 | HQ10: 0 | HR10: 0 | HS10: 0 | HT10: 0 | HU10: 0 | HV10: 0 | HW10: 0 | HX10: 0 | HY10: 0 | HZ10: 0 | IA10: 0 | IB10: 0 | IC10: 0 | ID10: 0 | IE10: 0 | IF10: 0 | IG10: 0 | IH10: 0 | II10: 0 | IJ10: 0 | IK10: 0 | IL10: 0 | IM10: 0 | IN10: 0 | IO10: 0 | IP10: 0 | IQ10: 0 | IR10: 0 | IS10: 0 | IT10: 0 | IU10: 0 | IV10: 0 | IW10: 0 | IX10: 0 | IY10: 0 | IZ10: 0 | JA10: 0 | JB10: 0 | JC10: 0 | JD10: 0 | JE10: 0 | JF10: 0 | JG10: 0 | JH10: 0 | JI10: 0 | JJ10: 0 | JK10: 0 | JL10: 0 | JM10: 0 | JN10: 0 | JO10: 0 | JP10: 0 | JQ10: 0 | JR10: 0 | JS10: 0 | JT10: 0 | JU10: 0 | JV10: 0 | JW10: 0 | JX10: 0 | JY10: 0 | JZ10: 0 | KA10: 0 | KB10: 0 | KC10: 0 | KD10: 0 | KE10: 0 | KF10: 0 | KG10: 0 | KH10: 0 | KI10: 0 | KJ10: 0 | KK10: 0 | KL10: 0 | KM10: 0 | KN10: 0 | KO10: 0 | KP10: 0 | KQ10: 0 | KR10: 0 | KS10: 0 | KT10: 0 | KU10: 0 | KV10: 0 | KW10: 0 | KX10: 0 | KY10: 0 | KZ10: 0 | LA10: 0 | LB10: 0 | LC10: 0 | LD10: 0 | LE10: 0 | LF10: 0 | LG10: 0 | LH10: 0 | LI10: 0 | LJ10: 0 | LK10: 0 | LL10: 0 | LM10: 0 | LN10: 0 | LO10: 0 | LP10: 0 | LQ10: 0 | LR10: 0 | LS10: 0 | LT10: 0 | LU10: 0 | LV10: 0 | LW10: 0 | LX10: 0 | LY10: 0 | LZ10: 0 | MA10: 0 | MB10: 0 | MC10: 0 | MD10: 0 | ME10: 0 | MF10: 0 | MG10: 0 | MH10: 0 | MI10: 0 | MJ10: 0 | MK10: 0 | ML10: 0 | MM10: 0 | MN10: 0 | MO10: 0 | MP10: 0 | MQ10: 0 | MR10: 0 | MS10: 0 | MT10: 0 | MU10: 0 | MV10: 0 | MW10: 0 | MX10: 0 | MY10: 0 | MZ10: 0 | NA10: 0 | NB10: 0 | NC10: 0 | ND10: 0 | NE10: 0 | NF10: 0 | NG10: 0 | NH10: 0 | NI10: 0 | NJ10: 0 | NK10: 0 | NL10: 0 | NM10: 0 | NN10: 0 | NO10: 0 | NP10: 0 | NQ10: 0 | NR10: 0 | NS10: 0 | NT10: 0 | NU10: 0 | NV10: 0 | NW10: 0 | NY10: 0 | NZ10: 0 | OA10: 0 | OB10: 0 | OC10: 0 | OD10: 0 | OE10: 0 | OF10: 0 | OG10: 0 | OH10: 0 | OI10: 0 | OJ10: 0 | OK10: 0 | OL10: 0 | OM10: 0 | ON10: 0
B11: 10046 | C11: Central Electric Coop | D11: 0 | E11: 0 | F11: 0 | G11: 0 | H11: 0 | I11: 0 | J11: 0 | K11: 0 | L11: 0 | M11: 0 | N11: 0 | O11: 0 | P11: 0 | Q11: 0 | R11: 0 | S11: 0 | T11: 0 | U11: 0 | V11: 0 | W11: 0 | X11: 0 | Y11: 0 | Z11: 0 | AA11: 0 | AB11: 0 | AC11: 0 | AD11: 0 | AE11: 0 | AF11: 0 | AG11: 0 | AH11: 0 | AI11: 0 | AJ11: 0 | AK11: 0 | AL11: 0 | AM11: 0 | AN11: 0 | AO11: 0 | AP11: 0 | AQ11: 0 | AR11: 0 | AS11: 0 | AT11: 0 | AU11: 0 | AV11: 0 | AW11: 0 | AX11: 0 | AY11: 0 | AZ11: 0 | BA11: 0 | BB11: 0 | BC11: 0 | BD11: 0 | BE11: 0 | BF11: 0 | BG11: 0 | BH11: 0 | BI11: 0 | BJ11: 0 | BK11: 0 | BL11: 0 | BM11: 0 | BN11: 0 | BO11: 0 | BP11: 0 | BQ11: 0 | BR11: 0 | BS11: 0 | BT11: 0 | BU11: 0 | BV11: 0 | BW11: 0 | BX11: 0 | BY11: 0 | BZ11: 0 | CA11: 0 | CB11: 0 | CC11: 0 | CD11: 0 | CE11: 0 | CF11: 0 | CG11: 0 | CH11: 0 | CI11: 0 | CJ11: 0 | CK11: 0 | CL11: 0 | CM11: 0 | CN11: 0 | CO11: 0 | CP11: 0 | CQ11: 0 | CR11: 0 | CS11: 0 | CT11: 0 | CU11: 0 | CV11: 0 | CW11: 0 | CX11: 0 | CY11: 0 | CZ11: 0 | DA11: 0 | DB11: 0 | DC11: 0 | DD11: 0 | DE11: 0 | DF11: 0 | DG11: 0 | DH11: 0 | DI11: 0 | DJ11: 0 | DK11: 0 | DL11: 0 | DM11: 0 | DN11: 0 | DO11: 0 | DP11: 0 | DQ11: 0 | DR11: 0 | DS11: 0 | DT11: 0 | DU11: 0 | DV11: 0 | DW11: 0 | DX11: 0 | DY11: 0 | DZ11: 0 | EA11: 0 | EB11: 0 | EC11: 0 | ED11: 0 | EE11: 0 | EF11: 0 | EG11: 0 | EH11: 0 | EI11: 0 | EJ11: 0 | EK11: 0 | EL11: 0 | EM11: 0 | EN11: 0 | EO11: 0 | EP11: 0 | EQ11: 0 | ER11: 5090.843 | ES11: 3853.157 | ET11: 4760.913 | EU11: 3906.087 | EV11: 4921.154 | EW11: 4022.846 | EX11: 4876.456 | EY11: 4067.544 | EZ11: 4596.163 | FA11: 3481.837 | FB11: 5163.335 | FC11: 3768.665 | FD11: 4911.364 | FE11: 3743.636 | FF11: 4913.922 | FG11: 4030.078 | FH11: 4987.016 | FI11: 3667.984 | FJ11: 4882.747 | FK11: 4061.253 | FL11: 5156.429 | FM11: 3787.571 | FN11: 4790.585 | FO11: 3864.415 | FP11: 5657.757 | FQ11: 4282.243 | FR11: 5291.551 | FS11: 4341.449 | FT11: 5469.172 | FU11: 4470.828 | FV11: 5419.496 | FW11: 4520.504 | FX11: 5108.239 | FY11: 3869.761 | FZ11: 5737.939 | GA11: 4188.061 | GB11: 5458.396 | GC11: 4160.604 | GD11: 5461.134 | GE11: 4478.866 | GF11: 5542.474 | GG11: 4076.526 | GH11: 5426.487 | GI11: 4513.513 | GJ11: 5730.647 | GK11: 4209.353 | GL11: 5324.164 | GM11: 4294.836 | GN11: 6265.084 | GO11: 4741.916 | GP11: 5859.543 | GQ11: 4807.457 | GR11: 6056.255 | GS11: 4950.745 | GT11: 6001.246 | GU11: 5005.754 | GV11: 5858.714 | GW11: 4438.286 | GX11: 6354.741 | GY11: 4638.259 | GZ11: 6044.582 | HA11: 4607.418 | HB11: 6047.355 | HC11: 4959.645 | HD11: 6137.689 | HE11: 4514.311 | HF11: 6008.989 | HG11: 4998.011 | HH11: 6345.797 | HI11: 4661.203 | HJ11: 5895.935 | HK11: 4756.065 | HL11: 6880.379 | HM11: 5207.621 | HN11: 6434.676 | HO11: 5279.324 | HP11: 6651.041 | HQ11: 5436.959 | HR11: 6590.631 | HS11: 5497.369 | HT11: 6212.046 | HU11: 4705.954 | HV11: 6978.48 | HW11: 5093.52 | HX11: 6638.145 | HY11: 5059.855 | HZ11: 6641.267 | IA11: 5446.733 | IB11: 6740.395 | IC11: 4957.605 | ID11: 6599.133 | IE11: 5488.867 | IF11: 6969.02 | IG11: 5118.98 | IH11: 6474.9 | II11: 5223.1 | IJ11: 7512.75 | IK11: 5686.25 | IL11: 7026.288 | IM11: 5764.712 | IN11: 7262.334 | IO11: 5936.666 | IP11: 7196.371 | IQ11: 6002.629 | IR11: 6782.726 | IS11: 5138.274 | IT11: 7619.562 | IU11: 5561.438 | IV11: 7248.164 | IW11: 5524.836 | IX11: 7251.661 | IY11: 5947.339 | IZ11: 7359.81 | JA11: 5413.19 | JB11: 7205.655 | JC11: 5993.345 | JD11: 7609.538 | JE11: 5589.462 | JF11: 7069.918 | JG11: 5703.082 | JH11: 8079.665 | JI11: 6115.335 | JJ11: 7556.377 | JK11: 6199.623 | JL11: 7810.352 | JM11: 6384.648 | JN11: 7739.411 | JO11: 6455.589 | JP11: 7294.801 | JQ11: 5526.199 | JR11: 8194.743 | JS11: 5981.257 | JT11: 7795.195 | JU11: 5941.805 | JV11: 7798.874 | JW11: 6396.126 | JX11: 7915.268 | JY11: 5821.732 | JZ11: 7749.396 | KA11: 6445.604 | KB11: 8183.756 | KC11: 6011.244 | KD11: 7603.497 | KE11: 6133.503 | KF11: 8660.809 | KG11: 6555.191 | KH11: 8100.199 | KI11: 6645.801 | KJ11: 8372.125 | KK11: 6843.875 | KL11: 8296.081 | KM11: 6919.919 | KN11: 8099.33 | KO11: 6135.67 | KP11: 8784.376 | KQ11: 6411.624 | KR11: 8355.846 | KS11: 6369.154 | KT11: 8359.821 | KU11: 6856.179 | KV11: 8484.554 | KW11: 6240.446 | KX11: 8306.784 | KY11: 6909.216 | KZ11: 8772.387 | LA11: 6443.613 | LB11: 8150.36 | LC11: 6574.64 | LD11: 9281.796 | LE11: 7025.204 | LF11: 8680.825 | LG11: 7122.175 | LH11: 8972.413 | LI11: 7334.587 | LJ11: 8890.918 | LK11: 7416.082 | LL11: 8380.402 | LM11: 6348.598 | LN11: 9413.896 | LO11: 6871.104 | LP11: 8955.083 | LQ11: 6825.917 | LR11: 8959.228 | LS11: 7347.772 | LT11: 9093.021 | LU11: 6687.979 | LV11: 8902.388 | LW11: 7404.612 | LX11: 9401.374 | LY11: 6905.626 | LZ11: 8734.86 | MA11: 7046.14 | MB11: 9840.173 | MC11: 7447.827 | MD11: 9203.223 | ME11: 7550.777 | MF11: 9512.178 | MG11: 7775.822 | MH11: 9425.779 | MI11: 7862.221 | MJ11: 8884.512 | MK11: 6730.488 | ML11: 9980.406 | MM11: 7284.594 | MN11: 9494.17 | MO11: 7236.83 | MP11: 9498.198 | MQ11: 7789.802 | MR11: 9640.412 | MS11: 7090.588 | MT11: 9437.939 | MU11: 7850.061 | MV11: 9966.943 | MW11: 7321.057 | MX11: 9260.69 | MY11: 7470.31 | MZ11: 10407.655 | NA11: 7877.345 | NB11: 9733.313 | NC11: 7985.688 | ND11: 10060.746 | NE11: 8224.254 | NF11: 9969.364 | NG11: 8315.636 | NH11: 9396.588 | NI11: 7118.412 | NJ11: 10555.588 | NK11: 7704.412 | NL11: 10041.201 | NM11: 7653.799 | NN11: 10045.96 | NO11: 8239.04 | NP11: 10195.869 | NQ11: 7499.131 | NR11: 9982.226 | NS11: 8302.774 | NT11: 10541.737 | NU11: 7743.263 | NV11: 9794.27 | NW11: 7900.73 | NY11: 0 | NZ11: 0 | OA11: 0 | OB11: 0 | OC11: 0 | OD11: 0 | OE11: 105306 | OF11: 117034 | OG11: 129955 | OH11: 142326 | OI11: 155406 | OJ11: 167134 | OK11: 179648 | OL11: 192002 | OM11: 203555 | ON11: 215289.001
B12: 10047 | C12: Central Lincoln PUD | D12: 0 | E12: 0 | F12: 0 | G12: 0 | H12: 0 | I12: 0 | J12: 0 | K12: 0 | L12: 0 | M12: 0 | N12: 0 | O12: 0 | P12: 0 | Q12: 0 | R12: 0 | S12: 0 | T12: 0 | U12: 0 | V12: 0 | W12: 0 | X12: 0 | Y12: 0 | Z12: 0 | AA12: 0 | AB12: 0 | AC12: 0 | AD12: 0 | AE12: 0 | AF12: 0 | AG12: 0 | AH12: 0 | AI12: 0 | AJ12: 0 | AK12: 0 | AL12: 0 | AM12: 0 | AN12: 0 | AO12: 0 | AP12: 0 | AQ12: 0 | AR12: 0 | AS12: 0 | AT12: 0 | AU12: 0 | AV12: 0 | AW12: 0 | AX12: 0 | AY12: 0 | AZ12: 0 | BA12: 0 | BB12: 0 | BC12: 0 | BD12: 0 | BE12: 0 | BF12: 0 | BG12: 0 | BH12: 0 | BI12: 0 | BJ12: 0 | BK12: 0 | BL12: 0 | BM12: 0 | BN12: 0 | BO12: 0 | BP12: 0 | BQ12: 0 | BR12: 0 | BS12: 0 | BT12: 0 | BU12: 0 | BV12: 0 | BW12: 0 | BX12: 0 | BY12: 0 | BZ12: 0 | CA12: 0 | CB12: 0 | CC12: 0 | CD12: 0 | CE12: 0 | CF12: 0 | CG12: 0 | CH12: 0 | CI12: 0 | CJ12: 0 | CK12: 0 | CL12: 0 | CM12: 0 | CN12: 0 | CO12: 0 | CP12: 0 | CQ12: 0 | CR12: 0 | CS12: 0 | CT12: 0 | CU12: 0 | CV12: 0 | CW12: 0 | CX12: 0 | CY12: 0 | CZ12: 0 | DA12: 0 | DB12: 0 | DC12: 0 | DD12: 0 | DE12: 0 | DF12: 0 | DG12: 0 | DH12: 0 | DI12: 0 | DJ12: 0 | DK12: 0 | DL12: 0 | DM12: 0 | DN12: 0 | DO12: 0 | DP12: 0 | DQ12: 0 | DR12: 0 | DS12: 0 | DT12: 0 | DU12: 0 | DV12: 0 | DW12: 0 | DX12: 0 | DY12: 0 | DZ12: 0 | EA12: 0 | EB12: 0 | EC12: 0 | ED12: 0 | EE12: 0 | EF12: 0 | EG12: 0 | EH12: 0 | EI12: 0 | EJ12: 0 | EK12: 0 | EL12: 0 | EM12: 0 | EN12: 0 | EO12: 0 | EP12: 0 | EQ12: 0 | ER12: 0 | ES12: 0 | ET12: 0 | EU12: 0 | EV12: 0 | EW12: 0 | EX12: 0 | EY12: 0 | EZ12: 0 | FA12: 0 | FB12: 0 | FC12: 0 | FD12: 0 | FE12: 0 | FF12: 0 | FG12: 0 | FH12: 0 | FI12: 0 | FJ12: 0 | FK12: 0 | FL12: 0 | FM12: 0 | FN12: 0 | FO12: 0 | FP12: 0 | FQ12: 0 | FR12: 0 | FS12: 0 | FT12: 0 | FU12: 0 | FV12: 0 | FW12: 0 | FX12: 0 | FY12: 0 | FZ12: 0 | GA12: 0 | GB12: 0 | GC12: 0 | GD12: 0 | GE12: 0 | GF12: 0 | GG12: 0 | GH12: 0 | GI12: 0 | GJ12: 0 | GK12: 0 | GL12: 0 | GM12: 0 | GN12: 0 | GO12: 0 | GP12: 0 | GQ12: 0 | GR12: 0 | GS12: 0 | GT12: 0 | GU12: 0 | GV12: 0 | GW12: 0 | GX12: 0 | GY12: 0 | GZ12: 0 | HA12: 0 | HB12: 0 | HC12: 0 | HD12: 0 | HE12: 0 | HF12: 0 | HG12: 0 | HH12: 0 | HI12: 0 | HJ12: 0 | HK12: 0 | HL12: 0 | HM12: 0 | HN12: 0 | HO12: 0 | HP12: 0 | HQ12: 0 | HR12: 0 | HS12: 0 | HT12: 0 | HU12: 0 | HV12: 0 | HW12: 0 | HX12: 0 | HY12: 0 | HZ12: 0 | IA12: 0 | IB12: 0 | IC12: 0 | ID12: 0 | IE12: 0 | IF12: 0 | IG12: 0 | IH12: 0 | II12: 0 | IJ12: 0 | IK12: 0 | IL12: 0 | IM12: 0 | IN12: 0 | IO12: 0 | IP12: 0 | IQ12: 0 | IR12: 0 | IS12: 0 | IT12: 0 | IU12: 0 | IV12: 0 | IW12: 0 | IX12: 0 | IY12: 0 | IZ12: 0 | JA12: 0 | JB12: 0 | JC12: 0 | JD12: 0 | JE12: 0 | JF12: 0 | JG12: 0 | JH12: 0 | JI12: 0 | JJ12: 0 | JK12: 0 | JL12: 0 | JM12: 0 | JN12: 0 | JO12: 0 | JP12: 0 | JQ12: 0 | JR12: 0 | JS12: 0 | JT12: 0 | JU12: 0 | JV12: 0 | JW12: 0 | JX12: 0 | JY12: 0 | JZ12: 0 | KA12: 0 | KB12: 0 | KC12: 0 | KD12: 0 | KE12: 0 | KF12: 0 | KG12: 0 | KH12: 0 | KI12: 0 | KJ12: 0 | KK12: 0 | KL12: 0 | KM12: 0 | KN12: 0 | KO12: 0 | KP12: 0 | KQ12: 0 | KR12: 0 | KS12: 0 | KT12: 0 | KU12: 0 | KV12: 0 | KW12: 0 | KX12: 0 | KY12: 0 | KZ12: 0 | LA12: 0 | LB12: 0 | LC12: 0 | LD12: 0 | LE12: 0 | LF12: 0 | LG12: 0 | LH12: 0 | LI12: 0 | LJ12: 0 | LK12: 0 | LL12: 0 | LM12: 0 | LN12: 0 | LO12: 0 | LP12: 0 | LQ12: 0 | LR12: 0 | LS12: 0 | LT12: 0 | LU12: 0 | LV12: 0 | LW12: 0 | LX12: 0 | LY12: 0 | LZ12: 0 | MA12: 0 | MB12: 0 | MC12: 0 | MD12: 0 | ME12: 0 | MF12: 0 | MG12: 0 | MH12: 0 | MI12: 0 | MJ12: 0 | MK12: 0 | ML12: 0 | MM12: 0 | MN12: 0 | MO12: 0 | MP12: 0 | MQ12: 0 | MR12: 0 | MS12: 0 | MT12: 0 | MU12: 0 | MV12: 0 | MW12: 0 | MX12: 0 | MY12: 0 | MZ12: 0 | NA12: 0 | NB12: 0 | NC12: 0 | ND12: 0 | NE12: 0 | NF12: 0 | NG12: 0 | NH12: 0 | NI12: 0 | NJ12: 0 | NK12: 0 | NL12: 0 | NM12: 0 | NN12: 0 | NO12: 0 | NP12: 0 | NQ12: 0 | NR12: 0 | NS12: 0 | NT12: 0 | NU12: 0 | NV12: 0 | NW12: 0 | NY12: 0 | NZ12: 0 | OA12: 0 | OB12: 0 | OC12: 0 | OD12: 0 | OE12: 0 | OF12: 0 | OG12: 0 | OH12: 0 | OI12: 0 | OJ12: 0 | OK12: 0 | OL12: 0 | OM12: 0 | ON12: 0
B13: 10055 | C13: Albion, City of | D13: 0 | E13: 0 | F13: 0 | G13: 0 | H13: 0 | I13: 0 | J13: 0 | K13: 0 | L13: 0 | M13: 0 | N13: 0 | O13: 0 | P13: 0 | Q13: 0 | R13: 0 | S13: 0 | T13: 0 | U13: 0 | V13: 0 | W13: 0 | X13: 0 | Y13: 0 | Z13: 0 | AA13: 0 | AB13: 0 | AC13: 0 | AD13: 0 | AE13: 0 | AF13: 0 | AG13: 0 | AH13: 0 | AI13: 0 | AJ13: 0 | AK13: 0 | AL13: 0 | AM13: 0 | AN13: 0 | AO13: 0 | AP13: 0 | AQ13: 0 | AR13: 0 | AS13: 0 | AT13: 0 | AU13: 0 | AV13: 0 | AW13: 0 | AX13: 0 | AY13: 0 | AZ13: 0 | BA13: 0 | BB13: 0 | BC13: 0 | BD13: 0 | BE13: 0 | BF13: 0 | BG13: 0 | BH13: 0 | BI13: 0 | BJ13: 0 | BK13: 0 | BL13: 0 | BM13: 0 | BN13: 0 | BO13: 0 | BP13: 0 | BQ13: 0 | BR13: 0 | BS13: 0 | BT13: 0 | BU13: 0 | BV13: 0 | BW13: 0 | BX13: 0 | BY13: 0 | BZ13: 0 | CA13: 0 | CB13: 0 | CC13: 0 | CD13: 0 | CE13: 0 | CF13: 0 | CG13: 0 | CH13: 0 | CI13: 0 | CJ13: 0 | CK13: 0 | CL13: 0 | CM13: 0 | CN13: 0 | CO13: 0 | CP13: 0 | CQ13: 0 | CR13: 0 | CS13: 0 | CT13: 0 | CU13: 0 | CV13: 0 | CW13: 0 | CX13: 0 | CY13: 0 | CZ13: 0 | DA13: 0 | DB13: 0 | DC13: 0 | DD13: 0 | DE13: 0 | DF13: 0 | DG13: 0 | DH13: 0 | DI13: 0 | DJ13: 0 | DK13: 0 | DL13: 0 | DM13: 0 | DN13: 0 | DO13: 0 | DP13: 0 | DQ13: 0 | DR13: 0 | DS13: 0 | DT13: 0 | DU13: 0 | DV13: 0 | DW13: 0 | DX13: 0 | DY13: 0 | DZ13: 0 | EA13: 0 | EB13: 0 | EC13: 0 | ED13: 0 | EE13: 0 | EF13: 0 | EG13: 0 | EH13: 0 | EI13: 0 | EJ13: 0 | EK13: 0 | EL13: 0 | EM13: 0 | EN13: 0 | EO13: 0 | EP13: 0 | EQ13: 0 | ER13: 0 | ES13: 0 | ET13: 0 | EU13: 0 | EV13: 0 | EW13: 0 | EX13: 0 | EY13: 0 | EZ13: 0 | FA13: 0 | FB13: 0 | FC13: 0 | FD13: 0 | FE13: 0 | FF13: 0 | FG13: 0 | FH13: 0 | FI13: 0 | FJ13: 0 | FK13: 0 | FL13: 0 | FM13: 0 | FN13: 0 | FO13: 0 | FP13: 0 | FQ13: 0 | FR13: 0 | FS13: 0 | FT13: 0 | FU13: 0 | FV13: 0 | FW13: 0 | FX13: 0 | FY13: 0 | FZ13: 0 | GA13: 0 | GB13: 0 | GC13: 0 | GD13: 0 | GE13: 0 | GF13: 0 | GG13: 0 | GH13: 0 | GI13: 0 | GJ13: 0 | GK13: 0 | GL13: 0 | GM13: 0 | GN13: 0 | GO13: 0 | GP13: 0 | GQ13: 0 | GR13: 0 | GS13: 0 | GT13: 0 | GU13: 0 | GV13: 0 | GW13: 0 | GX13: 0 | GY13: 0 | GZ13: 0 | HA13: 0 | HB13: 0 | HC13: 0 | HD13: 0 | HE13: 0 | HF13: 0 | HG13: 0 | HH13: 0 | HI13: 0 | HJ13: 0 | HK13: 0 | HL13: 0 | HM13: 0 | HN13: 0 | HO13: 0 | HP13: 0 | HQ13: 0 | HR13: 0 | HS13: 0 | HT13: 0 | HU13: 0 | HV13: 0 | HW13: 0 | HX13: 0 | HY13: 0 | HZ13: 0 | IA13: 0 | IB13: 0 | IC13: 0 | ID13: 0 | IE13: 0 | IF13: 0 | IG13: 0 | IH13: 0 | II13: 0 | IJ13: 0 | IK13: 0 | IL13: 0 | IM13: 0 | IN13: 0 | IO13: 0 | IP13: 0 | IQ13: 0 | IR13: 0 | IS13: 0 | IT13: 0 | IU13: 0 | IV13: 0 | IW13: 0 | IX13: 0 | IY13: 0 | IZ13: 0 | JA13: 0 | JB13: 0 | JC13: 0 | JD13: 0 | JE13: 0 | JF13: 0 | JG13: 0 | JH13: 0 | JI13: 0 | JJ13: 0 | JK13: 0 | JL13: 0 | JM13: 0 | JN13: 0 | JO13: 0 | JP13: 0 | JQ13: 0 | JR13: 0 | JS13: 0 | JT13: 0 | JU13: 0 | JV13: 0 | JW13: 0 | JX13: 0 | JY13: 0 | JZ13: 0 | KA13: 0 | KB13: 0 | KC13: 0 | KD13: 0 | KE13: 0 | KF13: 0 | KG13: 0 | KH13: 0 | KI13: 0 | KJ13: 0 | KK13: 0 | KL13: 0 | KM13: 0 | KN13: 0 | KO13: 0 | KP13: 0 | KQ13: 0 | KR13: 0 | KS13: 0 | KT13: 0 | KU13: 0 | KV13: 0 | KW13: 0 | KX13: 0 | KY13: 0 | KZ13: 0 | LA13: 0 | LB13: 0 | LC13: 0 | LD13: 0 | LE13: 0 | LF13: 0 | LG13: 0 | LH13: 0 | LI13: 0 | LJ13: 0 | LK13: 0 | LL13: 0 | LM13: 0 | LN13: 0 | LO13: 0 | LP13: 0 | LQ13: 0 | LR13: 0 | LS13: 0 | LT13: 0 | LU13: 0 | LV13: 0 | LW13: 0 | LX13: 0 | LY13: 0 | LZ13: 0 | MA13: 0 | MB13: 0 | MC13: 0 | MD13: 0 | ME13: 0 | MF13: 0 | MG13: 0 | MH13: 0 | MI13: 0 | MJ13: 0 | MK13: 0 | ML13: 0 | MM13: 0 | MN13: 0 | MO13: 0 | MP13: 0 | MQ13: 0 | MR13: 0 | MS13: 0 | MT13: 0 | MU13: 0 | MV13: 0 | MW13: 0 | MX13: 0 | MY13: 0 | MZ13: 0 | NA13: 0 | NB13: 0 | NC13: 0 | ND13: 0 | NE13: 0 | NF13: 0 | NG13: 0 | NH13: 0 | NI13: 0 | NJ13: 0 | NK13: 0 | NL13: 0 | NM13: 0 | NN13: 0 | NO13: 0 | NP13: 0 | NQ13: 0 | NR13: 0 | NS13: 0 | NT13: 0 | NU13: 0 | NV13: 0 | NW13: 0 | NY13: 0 | NZ13: 0 | OA13: 0 | OB13: 0 | OC13: 0 | OD13: 0 | OE13: 0 | OF13: 0 | OG13: 0 | OH13: 0 | OI13: 0 | OJ13: 0 | OK13: 0 | OL13: 0 | OM13: 0 | ON13: 0
B14: 10057 | C14: Ashland, City of | D14: 0 | E14: 0 | F14: 0 | G14: 0 | H14: 0 | I14: 0 | J14: 0 | K14: 0 | L14: 0 | M14: 0 | N14: 0 | O14: 0 | P14: 0 | Q14: 0 | R14: 0 | S14: 0 | T14: 0 | U14: 0 | V14: 0 | W14: 0 | X14: 0 | Y14: 0 | Z14: 0 | AA14: 0 | AB14: 0 | AC14: 0 | AD14: 0 | AE14: 0 | AF14: 0 | AG14: 0 | AH14: 0 | AI14: 0 | AJ14: 0 | AK14: 0 | AL14: 0 | AM14: 0 | AN14: 0 | AO14: 0 | AP14: 0 | AQ14: 0 | AR14: 0 | AS14: 0 | AT14: 0 | AU14: 0 | AV14: 0 | AW14: 0 | AX14: 0 | AY14: 0 | AZ14: 0 | BA14: 0 | BB14: 0 | BC14: 0 | BD14: 0 | BE14: 0 | BF14: 0 | BG14: 0 | BH14: 0 | BI14: 0 | BJ14: 0 | BK14: 0 | BL14: 0 | BM14: 0 | BN14: 0 | BO14: 0 | BP14: 0 | BQ14: 0 | BR14: 0 | BS14: 0 | BT14: 0 | BU14: 0 | BV14: 0 | BW14: 0 | BX14: 0 | BY14: 0 | BZ14: 0 | CA14: 0 | CB14: 0 | CC14: 0 | CD14: 0 | CE14: 0 | CF14: 0 | CG14: 0 | CH14: 0 | CI14: 0 | CJ14: 0 | CK14: 0 | CL14: 0 | CM14: 0 | CN14: 0 | CO14: 0 | CP14: 0 | CQ14: 0 | CR14: 0 | CS14: 0 | CT14: 0 | CU14: 0 | CV14: 0 | CW14: 0 | CX14: 0 | CY14: 0 | CZ14: 0 | DA14: 0 | DB14: 0 | DC14: 0 | DD14: 0 | DE14: 0 | DF14: 0 | DG14: 0 | DH14: 0 | DI14: 0 | DJ14: 0 | DK14: 0 | DL14: 0 | DM14: 0 | DN14: 0 | DO14: 0 | DP14: 0 | DQ14: 0 | DR14: 0 | DS14: 0 | DT14: 0 | DU14: 0 | DV14: 0 | DW14: 0 | DX14: 0 | DY14: 0 | DZ14: 0 | EA14: 0 | EB14: 0 | EC14: 0 | ED14: 0 | EE14: 0 | EF14: 0 | EG14: 0 | EH14: 0 | EI14: 0 | EJ14: 0 | EK14: 0 | EL14: 0 | EM14: 0 | EN14: 0 | EO14: 0 | EP14: 0 | EQ14: 0 | ER14: 0 | ES14: 0 | ET14: 0 | EU14: 0 | EV14: 0 | EW14: 0 | EX14: 0 | EY14: 0 | EZ14: 0 | FA14: 0 | FB14: 0 | FC14: 0 | FD14: 0 | FE14: 0 | FF14: 0 | FG14: 0 | FH14: 0 | FI14: 0 | FJ14: 0 | FK14: 0 | FL14: 0 | FM14: 0 | FN14: 0 | FO14: 0 | FP14: 0 | FQ14: 0 | FR14: 0 | FS14: 0 | FT14: 0 | FU14: 0 | FV14: 0 | FW14: 0 | FX14: 0 | FY14: 0 | FZ14: 0 | GA14: 0 | GB14: 0 | GC14: 0 | GD14: 0 | GE14: 0 | GF14: 0 | GG14: 0 | GH14: 0 | GI14: 0 | GJ14: 0 | GK14: 0 | GL14: 0 | GM14: 0 | GN14: 0 | GO14: 0 | GP14: 0 | GQ14: 0 | GR14: 0 | GS14: 0 | GT14: 0 | GU14: 0 | GV14: 0 | GW14: 0 | GX14: 0 | GY14: 0 | GZ14: 0 | HA14: 0 | HB14: 0 | HC14: 0 | HD14: 0 | HE14: 0 | HF14: 0 | HG14: 0 | HH14: 0 | HI14: 0 | HJ14: 0 | HK14: 0 | HL14: 0 | HM14: 0 | HN14: 0 | HO14: 0 | HP14: 0 | HQ14: 0 | HR14: 0 | HS14: 0 | HT14: 0 | HU14: 0 | HV14: 0 | HW14: 0 | HX14: 0 | HY14: 0 | HZ14: 0 | IA14: 0 | IB14: 0 | IC14: 0 | ID14: 0 | IE14: 0 | IF14: 0 | IG14: 0 | IH14: 0 | II14: 0 | IJ14: 0 | IK14: 0 | IL14: 0 | IM14: 0 | IN14: 0 | IO14: 0 | IP14: 0 | IQ14: 0 | IR14: 0 | IS14: 0 | IT14: 0 | IU14: 0 | IV14: 0 | IW14: 0 | IX14: 0 | IY14: 0 | IZ14: 0 | JA14: 0 | JB14: 0 | JC14: 0 | JD14: 0 | JE14: 0 | JF14: 0 | JG14: 0 | JH14: 0 | JI14: 0 | JJ14: 0 | JK14: 0 | JL14: 0 | JM14: 0 | JN14: 0 | JO14: 0 | JP14: 0 | JQ14: 0 | JR14: 0 | JS14: 0 | JT14: 0 | JU14: 0 | JV14: 0 | JW14: 0 | JX14: 0 | JY14: 0 | JZ14: 0 | KA14: 0 | KB14: 0 | KC14: 0 | KD14: 0 | KE14: 0 | KF14: 0 | KG14: 0 | KH14: 0 | KI14: 0 | KJ14: 0 | KK14: 0 | KL14: 0 | KM14: 0 | KN14: 0 | KO14: 0 | KP14: 0 | KQ14: 0 | KR14: 0 | KS14: 0 | KT14: 0 | KU14: 0 | KV14: 0 | KW14: 0 | KX14: 0 | KY14: 0 | KZ14: 0 | LA14: 0 | LB14: 0 | LC14: 0 | LD14: 0 | LE14: 0 | LF14: 0 | LG14: 0 | LH14: 0 | LI14: 0 | LJ14: 0 | LK14: 0 | LL14: 0 | LM14: 0 | LN14: 0 | LO14: 0 | LP14: 0 | LQ14: 0 | LR14: 0 | LS14: 0 | LT14: 0 | LU14: 0 | LV14: 0 | LW14: 0 | LX14: 0 | LY14: 0 | LZ14: 0 | MA14: 0 | MB14: 0 | MC14: 0 | MD14: 0 | ME14: 0 | MF14: 0 | MG14: 0 | MH14: 0 | MI14: 0 | MJ14: 0 | MK14: 0 | ML14: 0 | MM14: 0 | MN14: 0 | MO14: 0 | MP14: 0 | MQ14: 0 | MR14: 0 | MS14: 0 | MT14: 0 | MU14: 0 | MV14: 0 | MW14: 0 | MX14: 0 | MY14: 0 | MZ14: 0 | NA14: 0 | NB14: 0 | NC14: 0 | ND14: 0 | NE14: 0 | NF14: 0 | NG14: 0 | NH14: 0 | NI14: 0 | NJ14: 0 | NK14: 0 | NL14: 0 | NM14: 0 | NN14: 0 | NO14: 0 | NP14: 0 | NQ14: 0 | NR14: 0 | NS14: 0 | NT14: 0 | NU14: 0 | NV14: 0 | NW14: 0 | NY14: 0 | NZ14: 0 | OA14: 0 | OB14: 0 | OC14: 0 | OD14: 0 | OE14: 0 | OF14: 0 | OG14: 0 | OH14: 0 | OI14: 0 | OJ14: 0 | OK14: 0 | OL14: 0 | OM14: 0 | ON14: 0
B15: 10059 | C15: Bandon, City of | D15: 0 | E15: 0 | F15: 0 | G15: 0 | H15: 0 | I15: 0 | J15: 0 | K15: 0 | L15: 0 | M15: 0 | N15: 0 | O15: 0 | P15: 0 | Q15: 0 | R15: 0 | S15: 0 | T15: 0 | U15: 0 | V15: 0 | W15: 0 | X15: 0 | Y15: 0 | Z15: 0 | AA15: 0 | AB15: 0 | AC15: 0 | AD15: 0 | AE15: 0 | AF15: 0 | AG15: 0 | AH15: 0 | AI15: 0 | AJ15: 0 | AK15: 0 | AL15: 0 | AM15: 0 | AN15: 0 | AO15: 0 | AP15: 0 | AQ15: 0 | AR15: 0 | AS15: 0 | AT15: 0 | AU15: 0 | AV15: 0 | AW15: 0 | AX15: 0 | AY15: 0 | AZ15: 0 | BA15: 0 | BB15: 0 | BC15: 0 | BD15: 0 | BE15: 0 | BF15: 0 | BG15: 0 | BH15: 0 | BI15: 0 | BJ15: 0 | BK15: 0 | BL15: 0 | BM15: 0 | BN15: 0 | BO15: 0 | BP15: 0 | BQ15: 0 | BR15: 0 | BS15: 0 | BT15: 0 | BU15: 0 | BV15: 0 | BW15: 0 | BX15: 0 | BY15: 0 | BZ15: 0 | CA15: 0 | CB15: 0 | CC15: 0 | CD15: 0 | CE15: 0 | CF15: 0 | CG15: 0 | CH15: 0 | CI15: 0 | CJ15: 0 | CK15: 0 | CL15: 0 | CM15: 0 | CN15: 0 | CO15: 0 | CP15: 0 | CQ15: 0 | CR15: 0 | CS15: 0 | CT15: 0 | CU15: 0 | CV15: 0 | CW15: 0 | CX15: 0 | CY15: 0 | CZ15: 0 | DA15: 0 | DB15: 0 | DC15: 0 | DD15: 0 | DE15: 0 | DF15: 0 | DG15: 0 | DH15: 0 | DI15: 0 | DJ15: 0 | DK15: 0 | DL15: 0 | DM15: 0 | DN15: 0 | DO15: 0 | DP15: 0 | DQ15: 0 | DR15: 0 | DS15: 0 | DT15: 0 | DU15: 0 | DV15: 0 | DW15: 0 | DX15: 0 | DY15: 0 | DZ15: 0 | EA15: 0 | EB15: 0 | EC15: 0 | ED15: 0 | EE15: 0 | EF15: 0 | EG15: 0 | EH15: 0 | EI15: 0 | EJ15: 0 | EK15: 0 | EL15: 0 | EM15: 0 | EN15: 0 | EO15: 0 | EP15: 0 | EQ15: 0 | ER15: 0 | ES15: 0 | ET15: 0 | EU15: 0 | EV15: 0 | EW15: 0 | EX15: 0 | EY15: 0 | EZ15: 0 | FA15: 0 | FB15: 0 | FC15: 0 | FD15: 0 | FE15: 0 | FF15: 0 | FG15: 0 | FH15: 0 | FI15: 0 | FJ15: 0 | FK15: 0 | FL15: 0 | FM15: 0 | FN15: 0 | FO15: 0 | FP15: 0 | FQ15: 0 | FR15: 0 | FS15: 0 | FT15: 0 | FU15: 0 | FV15: 0 | FW15: 0 | FX15: 0 | FY15: 0 | FZ15: 0 | GA15: 0 | GB15: 0 | GC15: 0 | GD15: 0 | GE15: 0 | GF15: 0 | GG15: 0 | GH15: 0 | GI15: 0 | GJ15: 0 | GK15: 0 | GL15: 0 | GM15: 0 | GN15: 0 | GO15: 0 | GP15: 0 | GQ15: 0 | GR15: 0 | GS15: 0 | GT15: 0 | GU15: 0 | GV15: 0 | GW15: 0 | GX15: 0 | GY15: 0 | GZ15: 0 | HA15: 0 | HB15: 0 | HC15: 0 | HD15: 0 | HE15: 0 | HF15: 0 | HG15: 0 | HH15: 0 | HI15: 0 | HJ15: 0 | HK15: 0 | HL15: 0 | HM15: 0 | HN15: 0 | HO15: 0 | HP15: 0 | HQ15: 0 | HR15: 0 | HS15: 0 | HT15: 0 | HU15: 0 | HV15: 0 | HW15: 0 | HX15: 0 | HY15: 0 | HZ15: 0 | IA15: 0 | IB15: 0 | IC15: 0 | ID15: 0 | IE15: 0 | IF15: 0 | IG15: 0 | IH15: 0 | II15: 0 | IJ15: 0 | IK15: 0 | IL15: 0 | IM15: 0 | IN15: 0 | IO15: 0 | IP15: 0 | IQ15: 0 | IR15: 0 | IS15: 0 | IT15: 0 | IU15: 0 | IV15: 0 | IW15: 0 | IX15: 0 | IY15: 0 | IZ15: 0 | JA15: 0 | JB15: 0 | JC15: 0 | JD15: 0 | JE15: 0 | JF15: 0 | JG15: 0 | JH15: 0 | JI15: 0 | JJ15: 0 | JK15: 0 | JL15: 0 | JM15: 0 | JN15: 0 | JO15: 0 | JP15: 0 | JQ15: 0 | JR15: 0 | JS15: 0 | JT15: 0 | JU15: 0 | JV15: 0 | JW15: 0 | JX15: 0 | JY15: 0 | JZ15: 0 | KA15: 0 | KB15: 0 | KC15: 0 | KD15: 0 | KE15: 0 | KF15: 0 | KG15: 0 | KH15: 0 | KI15: 0 | KJ15: 0 | KK15: 0 | KL15: 0 | KM15: 0 | KN15: 0 | KO15: 0 | KP15: 0 | KQ15: 0 | KR15: 0 | KS15: 0 | KT15: 0 | KU15: 0 | KV15: 0 | KW15: 0 | KX15: 0 | KY15: 0 | KZ15: 0 | LA15: 0 | LB15: 0 | LC15: 0 | LD15: 0 | LE15: 0 | LF15: 0 | LG15: 0 | LH15: 0 | LI15: 0 | LJ15: 0 | LK15: 0 | LL15: 0 | LM15: 0 | LN15: 0 | LO15: 0 | LP15: 0 | LQ15: 0 | LR15: 0 | LS15: 0 | LT15: 0 | LU15: 0 | LV15: 0 | LW15: 0 | LX15: 0 | LY15: 0 | LZ15: 0 | MA15: 0 | MB15: 0 | MC15: 0 | MD15: 0 | ME15: 0 | MF15: 0 | MG15: 0 | MH15: 0 | MI15: 0 | MJ15: 0 | MK15: 0 | ML15: 0 | MM15: 0 | MN15: 0 | MO15: 0 | MP15: 0 | MQ15: 0 | MR15: 0 | MS15: 0 | MT15: 0 | MU15: 0 | MV15: 0 | MW15: 0 | MX15: 0 | MY15: 0 | MZ15: 0 | NA15: 0 | NB15: 0 | NC15: 0 | ND15: 0 | NE15: 0 | NF15: 0 | NG15: 0 | NH15: 0 | NI15: 0 | NJ15: 0 | NK15: 0 | NL15: 0 | NM15: 0 | NN15: 0 | NO15: 0 | NP15: 0 | NQ15: 0 | NR15: 0 | NS15: 0 | NT15: 0 | NU15: 0 | NV15: 0 | NW15: 0 | NY15: 0 | NZ15: 0 | OA15: 0 | OB15: 0 | OC15: 0 | OD15: 0 | OE15: 0 | OF15: 0 | OG15: 0 | OH15: 0 | OI15: 0 | OJ15: 0 | OK15: 0 | OL15: 0 | OM15: 0 | ON15: 0
... 18 more rows

Sheet I_ER
B1: Exhibit A Exisiting Resources (MWh)
A2: TOC | D2: 2015-10-01 | E2: 2015-10-01 | F2: 2015-11-01 | G2: 2015-11-01 | H2: 2015-12-01 | I2: 2015-12-01 | J2: 2016-01-01 | K2: 2016-01-01 | L2: 2016-02-01 | M2: 2016-02-01 | N2: 2016-03-01 | O2: 2016-03-01 | P2: 2016-04-01 | Q2: 2016-04-01 | R2: 2016-05-01 | S2: 2016-05-01 | T2: 2016-06-01 | U2: 2016-06-01 | V2: 2016-07-01 | W2: 2016-07-01 | X2: 2016-08-01 | Y2: 2016-08-01 | Z2: 2016-09-01 | AA2: 2016-09-01 | AB2: 2016-10-01 | AC2: 2016-10-01 | AD2: 2016-11-01 | AE2: 2016-11-01 | AF2: 2016-12-01 | AG2: 2016-12-01 | AH2: 2017-01-01 | AI2: 2017-01-01 | AJ2: 2017-02-01 | AK2: 2017-02-01 | AL2: 2017-03-01 | AM2: 2017-03-01 | AN2: 2017-04-01 | AO2: 2017-04-01 | AP2: 2017-05-01 | AQ2: 2017-05-01 | AR2: 2017-06-01 | AS2: 2017-06-01 | AT2: 2017-07-01 | AU2: 2017-07-01 | AV2: 2017-08-01 | AW2: 2017-08-01 | AX2: 2017-09-01 | AY2: 2017-09-01 | AZ2: 2017-10-01 | BA2: 2017-10-01 | BB2: 2017-11-01 | BC2: 2017-11-01 | BD2: 2017-12-01 | BE2: 2017-12-01 | BF2: 2018-01-01 | BG2: 2018-01-01 | BH2: 2018-02-01 | BI2: 2018-02-01 | BJ2: 2018-03-01 | BK2: 2018-03-01 | BL2: 2018-04-01 | BM2: 2018-04-01 | BN2: 2018-05-01 | BO2: 2018-05-01 | BP2: 2018-06-01 | BQ2: 2018-06-01 | BR2: 2018-07-01 | BS2: 2018-07-01 | BT2: 2018-08-01 | BU2: 2018-08-01 | BV2: 2018-09-01 | BW2: 2018-09-01 | BX2: 2018-10-01 | BY2: 2018-10-01 | BZ2: 2018-11-01 | CA2: 2018-11-01 | CB2: 2018-12-01 | CC2: 2018-12-01 | CD2: 2019-01-01 | CE2: 2019-01-01 | CF2: 2019-02-01 | CG2: 2019-02-01 | CH2: 2019-03-01 | CI2: 2019-03-01 | CJ2: 2019-04-01 | CK2: 2019-04-01 | CL2: 2019-05-01 | CM2: 2019-05-01 | CN2: 2019-06-01 | CO2: 2019-06-01 | CP2: 2019-07-01 | CQ2: 2019-07-01 | CR2: 2019-08-01 | CS2: 2019-08-01 | CT2: 2019-09-01 | CU2: 2019-09-01 | CV2: 2019-10-01 | CW2: 2019-10-01 | CX2: 2019-11-01 | CY2: 2019-11-01 | CZ2: 2019-12-01 | DA2: 2019-12-01 | DB2: 2020-01-01 | DC2: 2020-01-01 | DD2: 2020-02-01 | DE2: 2020-02-01 | DF2: 2020-03-01 | DG2: 2020-03-01 | DH2: 2020-04-01 | DI2: 2020-04-01 | DJ2: 2020-05-01 | DK2: 2020-05-01 | DL2: 2020-06-01 | DM2: 2020-06-01 | DN2: 2020-07-01 | DO2: 2020-07-01 | DP2: 2020-08-01 | DQ2: 2020-08-01 | DR2: 2020-09-01 | DS2: 2020-09-01 | DT2: 2020-10-01 | DU2: 2020-10-01 | DV2: 2020-11-01 | DW2: 2020-11-01 | DX2: 2020-12-01 | DY2: 2020-12-01 | DZ2: 2021-01-01 | EA2: 2021-01-01 | EB2: 2021-02-01 | EC2: 2021-02-01 | ED2: 2021-03-01 | EE2: 2021-03-01 | EF2: 2021-04-01 | EG2: 2021-04-01 | EH2: 2021-05-01 | EI2: 2021-05-01 | EJ2: 2021-06-01 | EK2: 2021-06-01 | EL2: 2021-07-01 | EM2: 2021-07-01 | EN2: 2021-08-01 | EO2: 2021-08-01 | EP2: 2021-09-01 | EQ2: 2021-09-01 | ER2: 2021-10-01 | ES2: 2021-10-01 | ET2: 2021-11-01 | EU2: 2021-11-01 | EV2: 2021-12-01 | EW2: 2021-12-01 | EX2: 2022-01-01 | EY2: 2022-01-01 | EZ2: 2022-02-01 | FA2: 2022-02-01 | FB2: 2022-03-01 | FC2: 2022-03-01 | FD2: 2022-04-01 | FE2: 2022-04-01 | FF2: 2022-05-01 | FG2: 2022-05-01 | FH2: 2022-06-01 | FI2: 2022-06-01 | FJ2: 2022-07-01 | FK2: 2022-07-01 | FL2: 2022-08-01 | FM2: 2022-08-01 | FN2: 2022-09-01 | FO2: 2022-09-01 | FP2: 2022-10-01 | FQ2: 2022-10-01 | FR2: 2022-11-01 | FS2: 2022-11-01 | FT2: 2022-12-01 | FU2: 2022-12-01 | FV2: 2023-01-01 | FW2: 2023-01-01 | FX2: 2023-02-01 | FY2: 2023-02-01 | FZ2: 2023-03-01 | GA2: 2023-03-01 | GB2: 2023-04-01 | GC2: 2023-04-01 | GD2: 2023-05-01 | GE2: 2023-05-01 | GF2: 2023-06-01 | GG2: 2023-06-01 | GH2: 2023-07-01 | GI2: 2023-07-01 | GJ2: 2023-08-01 | GK2: 2023-08-01 | GL2: 2023-09-01 | GM2: 2023-09-01 | GN2: 2023-10-01 | GO2: 2023-10-01 | GP2: 2023-11-01 | GQ2: 2023-11-01 | GR2: 2023-12-01 | GS2: 2023-12-01 | GT2: 2024-01-01 | GU2: 2024-01-01 | GV2: 2024-02-01 | GW2: 2024-02-01 | GX2: 2024-03-01 | GY2: 2024-03-01 | GZ2: 2024-04-01 | HA2: 2024-04-01 | HB2: 2024-05-01 | HC2: 2024-05-01 | HD2: 2024-06-01 | HE2: 2024-06-01 | HF2: 2024-07-01 | HG2: 2024-07-01 | HH2: 2024-08-01 | HI2: 2024-08-01 | HJ2: 2024-09-01 | HK2: 2024-09-01 | HL2: 2024-10-01 | HM2: 2024-10-01 | HN2: 2024-11-01 | HO2: 2024-11-01 | HP2: 2024-12-01 | HQ2: 2024-12-01 | HR2: 2025-01-01 | HS2: 2025-01-01 | HT2: 2025-02-01 | HU2: 2025-02-01 | HV2: 2025-03-01 | HW2: 2025-03-01 | HX2: 2025-04-01 | HY2: 2025-04-01 | HZ2: 2025-05-01 | IA2: 2025-05-01 | IB2: 2025-06-01 | IC2: 2025-06-01 | ID2: 2025-07-01 | IE2: 2025-07-01 | IF2: 2025-08-01 | IG2: 2025-08-01 | IH2: 2025-09-01 | II2: 2025-09-01 | IJ2: 2025-10-01 | IK2: 2025-10-01 | IL2: 2025-11-01 | IM2: 2025-11-01 | IN2: 2025-12-01 | IO2: 2025-12-01 | IP2: 2026-01-01 | IQ2: 2026-01-01 | IR2: 2026-02-01 | IS2: 2026-02-01 | IT2: 2026-03-01 | IU2: 2026-03-01 | IV2: 2026-04-01 | IW2: 2026-04-01 | IX2: 2026-05-01 | IY2: 2026-05-01 | IZ2: 2026-06-01 | JA2: 2026-06-01 | JB2: 2026-07-01 | JC2: 2026-07-01 | JD2: 2026-08-01 | JE2: 2026-08-01 | JF2: 2026-09-01 | JG2: 2026-09-01 | JH2: 2026-10-01 | JI2: 2026-10-01 | JJ2: 2026-11-01 | JK2: 2026-11-01 | JL2: 2026-12-01 | JM2: 2026-12-01 | JN2: 2027-01-01 | JO2: 2027-01-01 | JP2: 2027-02-01 | JQ2: 2027-02-01 | JR2: 2027-03-01 | JS2: 2027-03-01 | JT2: 2027-04-01 | JU2: 2027-04-01 | JV2: 2027-05-01 | JW2: 2027-05-01 | JX2: 2027-06-01 | JY2: 2027-06-01 | JZ2: 2027-07-01 | KA2: 2027-07-01 | KB2: 2027-08-01 | KC2: 2027-08-01 | KD2: 2027-09-01 | KE2: 2027-09-01 | KF2: 2027-10-01 | KG2: 2027-10-01 | KH2: 2027-11-01 | KI2: 2027-11-01 | KJ2: 2027-12-01 | KK2: 2027-12-01 | KL2: 2028-01-01 | KM2: 2028-01-01 | KN2: 2028-02-01 | KO2: 2028-02-01 | KP2: 2028-03-01 | KQ2: 2028-03-01 | KR2: 2028-04-01 | KS2: 2028-04-01 | KT2: 2028-05-01 | KU2: 2028-05-01 | KV2: 2028-06-01 | KW2: 2028-06-01 | KX2: 2028-07-01 | KY2: 2028-07-01 | KZ2: 2028-08-01 | LA2: 2028-08-01 | LB2: 2028-09-01 | LC2: 2028-09-01 | LD2: 2028-10-01 | LE2: 2028-10-01 | LF2: 2028-11-01 | LG2: 2028-11-01 | LH2: 2028-12-01 | LI2: 2028-12-01 | LJ2: 2029-01-01 | LK2: 2029-01-01 | LL2: 2029-02-01 | LM2: 2029-02-01 | LN2: 2029-03-01 | LO2: 2029-03-01 | LP2: 2029-04-01 | LQ2: 2029-04-01 | LR2: 2029-05-01 | LS2: 2029-05-01 | LT2: 2029-06-01 | LU2: 2029-06-01 | LV2: 2029-07-01 | LW2: 2029-07-01 | LX2: 2029-08-01 | LY2: 2029-08-01 | LZ2: 2029-09-01 | MA2: 2029-09-01 | MB2: 2029-10-01 | MC2: 2029-10-01 | MD2: 2029-11-01 | ME2: 2029-11-01 | MF2: 2029-12-01 | MG2: 2029-12-01 | MH2: 2030-01-01 | MI2: 2030-01-01 | MJ2: 2030-02-01 | MK2: 2030-02-01 | ML2: 2030-03-01 | MM2: 2030-03-01 | MN2: 2030-04-01 | MO2: 2030-04-01 | MP2: 2030-05-01 | MQ2: 2030-05-01 | MR2: 2030-06-01 | MS2: 2030-06-01 | MT2: 2030-07-01 | MU2: 2030-07-01 | MV2: 2030-08-01 | MW2: 2030-08-01 | MX2: 2030-09-01 | MY2: 2030-09-01 | MZ2: 2030-10-01 | NA2: 2030-10-01 | NB2: 2030-11-01 | NC2: 2030-11-01 | ND2: 2030-12-01 | NE2: 2030-12-01 | NF2: 2031-01-01 | NG2: 2031-01-01 | NH2: 2031-02-01 | NI2: 2031-02-01 | NJ2: 2031-03-01 | NK2: 2031-03-01 | NL2: 2031-04-01 | NM2: 2031-04-01 | NN2: 2031-05-01 | NO2: 2031-05-01 | NP2: 2031-06-01 | NQ2: 2031-06-01 | NR2: 2031-07-01 | NS2: 2031-07-01 | NT2: 2031-08-01 | NU2: 2031-08-01 | NV2: 2031-09-01 | NW2: 2031-09-01 | NY2: 2016 | NZ2: 2017 | OA2: 2018 | OB2: 2019 | OC2: 2020 | OD2: 2021 | OE2: 2022 | OF2: 2023 | OG2: 2024 | OH2: 2025 | OI2: 2026 | OJ2: 2027 | OK2: 2028 | OL2: 2029 | OM2: 2030 | ON2: 2031
B3: BESID | C3: AccountName | D3: HLH | E3: LLH | F3: HLH | G3: LLH | H3: HLH | I3: LLH | J3: HLH | K3: LLH | L3: HLH | M3: LLH | N3: HLH | O3: LLH | P3: HLH | Q3: LLH | R3: HLH | S3: LLH | T3: HLH | U3: LLH | V3: HLH | W3: LLH | X3: HLH | Y3: LLH | Z3: HLH | AA3: LLH | AB3: HLH | AC3: LLH | AD3: HLH | AE3: LLH | AF3: HLH | AG3: LLH | AH3: HLH | AI3: LLH | AJ3: HLH | AK3: LLH | AL3: HLH | AM3: LLH | AN3: HLH | AO3: LLH | AP3: HLH | AQ3: LLH | AR3: HLH | AS3: LLH | AT3: HLH | AU3: LLH | AV3: HLH | AW3: LLH | AX3: HLH | AY3: LLH | AZ3: HLH | BA3: LLH | BB3: HLH | BC3: LLH | BD3: HLH | BE3: LLH | BF3: HLH | BG3: LLH | BH3: HLH | BI3: LLH | BJ3: HLH | BK3: LLH | BL3: HLH | BM3: LLH | BN3: HLH | BO3: LLH | BP3: HLH | BQ3: LLH | BR3: HLH | BS3: LLH | BT3: HLH | BU3: LLH | BV3: HLH | BW3: LLH | BX3: HLH | BY3: LLH | BZ3: HLH | CA3: LLH | CB3: HLH | CC3: LLH | CD3: HLH | CE3: LLH | CF3: HLH | CG3: LLH | CH3: HLH | CI3: LLH | CJ3: HLH | CK3: LLH | CL3: HLH | CM3: LLH | CN3: HLH | CO3: LLH | CP3: HLH | CQ3: LLH | CR3: HLH | CS3: LLH | CT3: HLH | CU3: LLH | CV3: HLH | CW3: LLH | CX3: HLH | CY3: LLH | CZ3: HLH | DA3: LLH | DB3: HLH | DC3: LLH | DD3: HLH | DE3: LLH | DF3: HLH | DG3: LLH | DH3: HLH | DI3: LLH | DJ3: HLH | DK3: LLH | DL3: HLH | DM3: LLH | DN3: HLH | DO3: LLH | DP3: HLH | DQ3: LLH | DR3: HLH | DS3: LLH | DT3: HLH | DU3: LLH | DV3: HLH | DW3: LLH | DX3: HLH | DY3: LLH | DZ3: HLH | EA3: LLH | EB3: HLH | EC3: LLH | ED3: HLH | EE3: LLH | EF3: HLH | EG3: LLH | EH3: HLH | EI3: LLH | EJ3: HLH | EK3: LLH | EL3: HLH | EM3: LLH | EN3: HLH | EO3: LLH | EP3: HLH | EQ3: LLH | ER3: HLH | ES3: LLH | ET3: HLH | EU3: LLH | EV3: HLH | EW3: LLH | EX3: HLH | EY3: LLH | EZ3: HLH | FA3: LLH | FB3: HLH | FC3: LLH | FD3: HLH | FE3: LLH | FF3: HLH | FG3: LLH | FH3: HLH | FI3: LLH | FJ3: HLH | FK3: LLH | FL3: HLH | FM3: LLH | FN3: HLH | FO3: LLH | FP3: HLH | FQ3: LLH | FR3: HLH | FS3: LLH | FT3: HLH | FU3: LLH | FV3: HLH | FW3: LLH | FX3: HLH | FY3: LLH | FZ3: HLH | GA3: LLH | GB3: HLH | GC3: LLH | GD3: HLH | GE3: LLH | GF3: HLH | GG3: LLH | GH3: HLH | GI3: LLH | GJ3: HLH | GK3: LLH | GL3: HLH | GM3: LLH | GN3: HLH | GO3: LLH | GP3: HLH | GQ3: LLH | GR3: HLH | GS3: LLH | GT3: HLH | GU3: LLH | GV3: HLH | GW3: LLH | GX3: HLH | GY3: LLH | GZ3: HLH | HA3: LLH | HB3: HLH | HC3: LLH | HD3: HLH | HE3: LLH | HF3: HLH | HG3: LLH | HH3: HLH | HI3: LLH | HJ3: HLH | HK3: LLH | HL3: HLH | HM3: LLH | HN3: HLH | HO3: LLH | HP3: HLH | HQ3: LLH | HR3: HLH | HS3: LLH | HT3: HLH | HU3: LLH | HV3: HLH | HW3: LLH | HX3: HLH | HY3: LLH | HZ3: HLH | IA3: LLH | IB3: HLH | IC3: LLH | ID3: HLH | IE3: LLH | IF3: HLH | IG3: LLH | IH3: HLH | II3: LLH | IJ3: HLH | IK3: LLH | IL3: HLH | IM3: LLH | IN3: HLH | IO3: LLH | IP3: HLH | IQ3: LLH | IR3: HLH | IS3: LLH | IT3: HLH | IU3: LLH | IV3: HLH | IW3: LLH | IX3: HLH | IY3: LLH | IZ3: HLH | JA3: LLH | JB3: HLH | JC3: LLH | JD3: HLH | JE3: LLH | JF3: HLH | JG3: LLH | JH3: HLH | JI3: LLH | JJ3: HLH | JK3: LLH | JL3: HLH | JM3: LLH | JN3: HLH | JO3: LLH | JP3: HLH | JQ3: LLH | JR3: HLH | JS3: LLH | JT3: HLH | JU3: LLH | JV3: HLH | JW3: LLH | JX3: HLH | JY3: LLH | JZ3: HLH | KA3: LLH | KB3: HLH | KC3: LLH | KD3: HLH | KE3: LLH | KF3: HLH | KG3: LLH | KH3: HLH | KI3: LLH | KJ3: HLH | KK3: LLH | KL3: HLH | KM3: LLH | KN3: HLH | KO3: LLH | KP3: HLH | KQ3: LLH | KR3: HLH | KS3: LLH | KT3: HLH | KU3: LLH | KV3: HLH | KW3: LLH | KX3: HLH | KY3: LLH | KZ3: HLH | LA3: LLH | LB3: HLH | LC3: LLH | LD3: HLH | LE3: LLH | LF3: HLH | LG3: LLH | LH3: HLH | LI3: LLH | LJ3: HLH | LK3: LLH | LL3: HLH | LM3: LLH | LN3: HLH | LO3: LLH | LP3: HLH | LQ3: LLH | LR3: HLH | LS3: LLH | LT3: HLH | LU3: LLH | LV3: HLH | LW3: LLH | LX3: HLH | LY3: LLH | LZ3: HLH | MA3: LLH | MB3: HLH | MC3: LLH | MD3: HLH | ME3: LLH | MF3: HLH | MG3: LLH | MH3: HLH | MI3: LLH | MJ3: HLH | MK3: LLH | ML3: HLH | MM3: LLH | MN3: HLH | MO3: LLH | MP3: HLH | MQ3: LLH | MR3: HLH | MS3: LLH | MT3: HLH | MU3: LLH | MV3: HLH | MW3: LLH | MX3: HLH | MY3: LLH | MZ3: HLH | NA3: LLH | NB3: HLH | NC3: LLH | ND3: HLH | NE3: LLH | NF3: HLH | NG3: LLH | NH3: HLH | NI3: LLH | NJ3: HLH | NK3: LLH | NL3: HLH | NM3: LLH | NN3: HLH | NO3: LLH | NP3: HLH | NQ3: LLH | NR3: HLH | NS3: LLH | NT3: HLH | NU3: LLH | NV3: HLH | NW3: LLH
B4: 10005 | C4: Alder Mutual | D4: 0 | E4: 0 | F4: 0 | G4: 0 | H4: 0 | I4: 0 | J4: 0 | K4: 0 | L4: 0 | M4: 0 | N4: 0 | O4: 0 | P4: 0 | Q4: 0 | R4: 0 | S4: 0 | T4: 0 | U4: 0 | V4: 0 | W4: 0 | X4: 0 | Y4: 0 | Z4: 0 | AA4: 0 | AB4: 0 | AC4: 0 | AD4: 0 | AE4: 0 | AF4: 0 | AG4: 0 | AH4: 0 | AI4: 0 | AJ4: 0 | AK4: 0 | AL4: 0 | AM4: 0 | AN4: 0 | AO4: 0 | AP4: 0 | AQ4: 0 | AR4: 0 | AS4: 0 | AT4: 0 | AU4: 0 | AV4: 0 | AW4: 0 | AX4: 0 | AY4: 0 | AZ4: 0 | BA4: 0 | BB4: 0 | BC4: 0 | BD4: 0 | BE4: 0 | BF4: 0 | BG4: 0 | BH4: 0 | BI4: 0 | BJ4: 0 | BK4: 0 | BL4: 0 | BM4: 0 | BN4: 0 | BO4: 0 | BP4: 0 | BQ4: 0 | BR4: 0 | BS4: 0 | BT4: 0 | BU4: 0 | BV4: 0 | BW4: 0 | BX4: 0 | BY4: 0 | BZ4: 0 | CA4: 0 | CB4: 0 | CC4: 0 | CD4: 0 | CE4: 0 | CF4: 0 | CG4: 0 | CH4: 0 | CI4: 0 | CJ4: 0 | CK4: 0 | CL4: 0 | CM4: 0 | CN4: 0 | CO4: 0 | CP4: 0 | CQ4: 0 | CR4: 0 | CS4: 0 | CT4: 0 | CU4: 0 | CV4: 0 | CW4: 0 | CX4: 0 | CY4: 0 | CZ4: 0 | DA4: 0 | DB4: 0 | DC4: 0 | DD4: 0 | DE4: 0 | DF4: 0 | DG4: 0 | DH4: 0 | DI4: 0 | DJ4: 0 | DK4: 0 | DL4: 0 | DM4: 0 | DN4: 0 | DO4: 0 | DP4: 0 | DQ4: 0 | DR4: 0 | DS4: 0 | DT4: 0 | DU4: 0 | DV4: 0 | DW4: 0 | DX4: 0 | DY4: 0 | DZ4: 0 | EA4: 0 | EB4: 0 | EC4: 0 | ED4: 0 | EE4: 0 | EF4: 0 | EG4: 0 | EH4: 0 | EI4: 0 | EJ4: 0 | EK4: 0 | EL4: 0 | EM4: 0 | EN4: 0 | EO4: 0 | EP4: 0 | EQ4: 0 | ER4: 0 | ES4: 0 | ET4: 0 | EU4: 0 | EV4: 0 | EW4: 0 | EX4: 0 | EY4: 0 | EZ4: 0 | FA4: 0 | FB4: 0 | FC4: 0 | FD4: 0 | FE4: 0 | FF4: 0 | FG4: 0 | FH4: 0 | FI4: 0 | FJ4: 0 | FK4: 0 | FL4: 0 | FM4: 0 | FN4: 0 | FO4: 0 | FP4: 0 | FQ4: 0 | FR4: 0 | FS4: 0 | FT4: 0 | FU4: 0 | FV4: 0 | FW4: 0 | FX4: 0 | FY4: 0 | FZ4: 0 | GA4: 0 | GB4: 0 | GC4: 0 | GD4: 0 | GE4: 0 | GF4: 0 | GG4: 0 | GH4: 0 | GI4: 0 | GJ4: 0 | GK4: 0 | GL4: 0 | GM4: 0 | GN4: 0 | GO4: 0 | GP4: 0 | GQ4: 0 | GR4: 0 | GS4: 0 | GT4: 0 | GU4: 0 | GV4: 0 | GW4: 0 | GX4: 0 | GY4: 0 | GZ4: 0 | HA4: 0 | HB4: 0 | HC4: 0 | HD4: 0 | HE4: 0 | HF4: 0 | HG4: 0 | HH4: 0 | HI4: 0 | HJ4: 0 | HK4: 0 | HL4: 0 | HM4: 0 | HN4: 0 | HO4: 0 | HP4: 0 | HQ4: 0 | HR4: 0 | HS4: 0 | HT4: 0 | HU4: 0 | HV4: 0 | HW4: 0 | HX4: 0 | HY4: 0 | HZ4: 0 | IA4: 0 | IB4: 0 | IC4: 0 | ID4: 0 | IE4: 0 | IF4: 0 | IG4: 0 | IH4: 0 | II4: 0 | IJ4: 0 | IK4: 0 | IL4: 0 | IM4: 0 | IN4: 0 | IO4: 0 | IP4: 0 | IQ4: 0 | IR4: 0 | IS4: 0 | IT4: 0 | IU4: 0 | IV4: 0 | IW4: 0 | IX4: 0 | IY4: 0 | IZ4: 0 | JA4: 0 | JB4: 0 | JC4: 0 | JD4: 0 | JE4: 0 | JF4: 0 | JG4: 0 | JH4: 0 | JI4: 0 | JJ4: 0 | JK4: 0 | JL4: 0 | JM4: 0 | JN4: 0 | JO4: 0 | JP4: 0 | JQ4: 0 | JR4: 0 | JS4: 0 | JT4: 0 | JU4: 0 | JV4: 0 | JW4: 0 | JX4: 0 | JY4: 0 | JZ4: 0 | KA4: 0 | KB4: 0 | KC4: 0 | KD4: 0 | KE4: 0 | KF4: 0 | KG4: 0 | KH4: 0 | KI4: 0 | KJ4: 0 | KK4: 0 | KL4: 0 | KM4: 0 | KN4: 0 | KO4: 0 | KP4: 0 | KQ4: 0 | KR4: 0 | KS4: 0 | KT4: 0 | KU4: 0 | KV4: 0 | KW4: 0 | KX4: 0 | KY4: 0 | KZ4: 0 | LA4: 0 | LB4: 0 | LC4: 0 | LD4: =+KF4 -> 0 | LE4: =+KG4 -> 0 | LF4: 0 | LG4: 0 | LH4: 0 | LI4: 0 | LJ4: 0 | LK4: 0 | LL4: 0 | LM4: 0 | LN4: 0 | LO4: 0 | LP4: 0 | LQ4: 0 | LR4: 0 | LS4: 0 | LT4: 0 | LU4: 0 | LV4: 0 | LW4: 0 | LX4: 0 | LY4: 0 | LZ4: 0 | MA4: 0 | MB4: 0 | MC4: 0 | MD4: 0 | ME4: 0 | MF4: 0 | MG4: 0 | MH4: 0 | MI4: 0 | MJ4: 0 | MK4: 0 | ML4: 0 | MM4: 0 | MN4: 0 | MO4: 0 | MP4: 0 | MQ4: 0 | MR4: 0 | MS4: 0 | MT4: 0 | MU4: 0 | MV4: 0 | MW4: 0 | MX4: 0 | MY4: 0 | MZ4: 0 | NA4: 0 | NB4: 0 | NC4: 0 | ND4: 0 | NE4: 0 | NF4: 0 | NG4: 0 | NH4: 0 | NI4: 0 | NJ4: 0 | NK4: 0 | NL4: 0 | NM4: 0 | NN4: 0 | NO4: 0 | NP4: 0 | NQ4: =+MS4 -> 0 | NR4: 0 | NS4: 0 | NT4: 0 | NU4: 0 | NV4: 0 | NW4: 0 | NY4: =+SUM(D4:AA4) -> 0 | NZ4: =+SUM(AB4:AY4) -> 0 | OA4: =+SUM(AZ4:BW4) -> 0 | OB4: =+SUM(BX4:CU4) -> 0 | OC4: =+SUM(CV4:DS4) -> 0 | OD4: =+SUM(DT4:EQ4) -> 0 | OE4: =+SUM(ER4:FO4) -> 0 | OF4: =+SUM(FP4:GM4) -> 0 | OG4: =+SUM(GN4:HK4) -> 0 | OH4: =+SUM(HL4:II4) -> 0 | OI4: =+SUM(IJ4:JG4) -> 0 | OJ4: =+SUM(JH4:KE4) -> 0 | OK4: =+SUM(KF4:LC4) -> 0 | OL4: =+SUM(LD4:MA4) -> 0 | OM4: =+SUM(MB4:MY4) -> 0 | ON4: =+SUM(MZ4:NW4) -> 0
B5: 10015 | C5: Asotin County PUD #1 | D5: 0 | E5: 0 | F5: 0 | G5: 0 | H5: 0 | I5: 0 | J5: 0 | K5: 0 | L5: 0 | M5: 0 | N5: 0 | O5: 0 | P5: 0 | Q5: 0 | R5: 0 | S5: 0 | T5: 0 | U5: 0 | V5: 0 | W5: 0 | X5: 0 | Y5: 0 | Z5: 0 | AA5: 0 | AB5: 0 | AC5: 0 | AD5: 0 | AE5: 0 | AF5: 0 | AG5: 0 | AH5: 0 | AI5: 0 | AJ5: 0 | AK5: 0 | AL5: 0 | AM5: 0 | AN5: 0 | AO5: 0 | AP5: 0 | AQ5: 0 | AR5: 0 | AS5: 0 | AT5: 0 | AU5: 0 | AV5: 0 | AW5: 0 | AX5: 0 | AY5: 0 | AZ5: 0 | BA5: 0 | BB5: 0 | BC5: 0 | BD5: 0 | BE5: 0 | BF5: 0 | BG5: 0 | BH5: 0 | BI5: 0 | BJ5: 0 | BK5: 0 | BL5: 0 | BM5: 0 | BN5: 0 | BO5: 0 | BP5: 0 | BQ5: 0 | BR5: 0 | BS5: 0 | BT5: 0 | BU5: 0 | BV5: 0 | BW5: 0 | BX5: 0 | BY5: 0 | BZ5: 0 | CA5: 0 | CB5: 0 | CC5: 0 | CD5: 0 | CE5: 0 | CF5: 0 | CG5: 0 | CH5: 0 | CI5: 0 | CJ5: 0 | CK5: 0 | CL5: 0 | CM5: 0 | CN5: 0 | CO5: 0 | CP5: 0 | CQ5: 0 | CR5: 0 | CS5: 0 | CT5: 0 | CU5: 0 | CV5: 0 | CW5: 0 | CX5: 0 | CY5: 0 | CZ5: 0 | DA5: 0 | DB5: 0 | DC5: 0 | DD5: 0 | DE5: 0 | DF5: 0 | DG5: 0 | DH5: 0 | DI5: 0 | DJ5: 0 | DK5: 0 | DL5: 0 | DM5: 0 | DN5: 0 | DO5: 0 | DP5: 0 | DQ5: 0 | DR5: 0 | DS5: 0 | DT5: 0 | DU5: 0 | DV5: 0 | DW5: 0 | DX5: 0 | DY5: 0 | DZ5: 0 | EA5: 0 | EB5: 0 | EC5: 0 | ED5: 0 | EE5: 0 | EF5: 0 | EG5: 0 | EH5: 0 | EI5: 0 | EJ5: 0 | EK5: 0 | EL5: 0 | EM5: 0 | EN5: 0 | EO5: 0 | EP5: 0 | EQ5: 0 | ER5: 0 | ES5: 0 | ET5: 0 | EU5: 0 | EV5: 0 | EW5: 0 | EX5: 0 | EY5: 0 | EZ5: 0 | FA5: 0 | FB5: 0 | FC5: 0 | FD5: 0 | FE5: 0 | FF5: 0 | FG5: 0 | FH5: 0 | FI5: 0 | FJ5: 0 | FK5: 0 | FL5: 0 | FM5: 0 | FN5: 0 | FO5: 0 | FP5: 0 | FQ5: 0 | FR5: 0 | FS5: 0 | FT5: 0 | FU5: 0 | FV5: 0 | FW5: 0 | FX5: 0 | FY5: 0 | FZ5: 0 | GA5: 0 | GB5: 0 | GC5: 0 | GD5: 0 | GE5: 0 | GF5: 0 | GG5: 0 | GH5: 0 | GI5: 0 | GJ5: 0 | GK5: 0 | GL5: 0 | GM5: 0 | GN5: 0 | GO5: 0 | GP5: 0 | GQ5: 0 | GR5: 0 | GS5: 0 | GT5: 0 | GU5: 0 | GV5: 0 | GW5: 0 | GX5: 0 | GY5: 0 | GZ5: 0 | HA5: 0 | HB5: 0 | HC5: 0 | HD5: 0 | HE5: 0 | HF5: 0 | HG5: 0 | HH5: 0 | HI5: 0 | HJ5: 0 | HK5: 0 | HL5: 0 | HM5: 0 | HN5: 0 | HO5: 0 | HP5: 0 | HQ5: 0 | HR5: 0 | HS5: 0 | HT5: 0 | HU5: 0 | HV5: 0 | HW5: 0 | HX5: 0 | HY5: 0 | HZ5: 0 | IA5: 0 | IB5: 0 | IC5: 0 | ID5: 0 | IE5: 0 | IF5: 0 | IG5: 0 | IH5: 0 | II5: 0 | IJ5: 0 | IK5: 0 | IL5: 0 | IM5: 0 | IN5: 0 | IO5: 0 | IP5: 0 | IQ5: 0 | IR5: 0 | IS5: 0 | IT5: 0 | IU5: 0 | IV5: 0 | IW5: 0 | IX5: 0 | IY5: 0 | IZ5: 0 | JA5: 0 | JB5: 0 | JC5: 0 | JD5: 0 | JE5: 0 | JF5: 0 | JG5: 0 | JH5: 0 | JI5: 0 | JJ5: 0 | JK5: 0 | JL5: 0 | JM5: 0 | JN5: 0 | JO5: 0 | JP5: 0 | JQ5: 0 | JR5: 0 | JS5: 0 | JT5: 0 | JU5: 0 | JV5: 0 | JW5: 0 | JX5: 0 | JY5: 0 | JZ5: 0 | KA5: 0 | KB5: 0 | KC5: 0 | KD5: 0 | KE5: 0 | KF5: 0 | KG5: 0 | KH5: 0 | KI5: 0 | KJ5: 0 | KK5: 0 | KL5: 0 | KM5: 0 | KN5: 0 | KO5: 0 | KP5: 0 | KQ5: 0 | KR5: 0 | KS5: 0 | KT5: 0 | KU5: 0 | KV5: 0 | KW5: 0 | KX5: 0 | KY5: 0 | KZ5: 0 | LA5: 0 | LB5: 0 | LC5: 0 | LD5: =+KF5 -> 0 | LE5: =+KG5 -> 0 | LF5: =+KH5 -> 0 | LG5: =+KI5 -> 0 | LH5: =+KJ5 -> 0 | LI5: =+KK5 -> 0 | LJ5: =+KL5 -> 0 | LK5: =+KM5 -> 0 | LL5: =+KN5 -> 0 | LM5: =+KO5 -> 0 | LN5: =+KP5 -> 0 | LO5: =+KQ5 -> 0 | LP5: =+KR5 -> 0 | LQ5: =+KS5 -> 0 | LR5: =+KT5 -> 0 | LS5: =+KU5 -> 0 | LT5: =+KV5 -> 0 | LU5: =+KW5 -> 0 | LV5: =+KX5 -> 0 | LW5: =+KY5 -> 0 | LX5: =+KZ5 -> 0 | LY5: =+LA5 -> 0 | LZ5: =+LB5 -> 0 | MA5: =+LC5 -> 0 | MB5: =+LD5 -> 0 | MC5: =+LE5 -> 0 | MD5: =+LF5 -> 0 | ME5: =+LG5 -> 0 | MF5: =+LH5 -> 0 | MG5: =+LI5 -> 0 | MH5: =+LJ5 -> 0 | MI5: =+LK5 -> 0 | MJ5: =+LL5 -> 0 | MK5: =+LM5 -> 0 | ML5: =+LN5 -> 0 | MM5: =+LO5 -> 0 | MN5: =+LP5 -> 0 | MO5: =+LQ5 -> 0 | MP5: =+LR5 -> 0 | MQ5: =+LS5 -> 0 | MR5: =+LT5 -> 0 | MS5: =+LU5 -> 0 | MT5: =+LV5 -> 0 | MU5: =+LW5 -> 0 | MV5: =+LX5 -> 0 | MW5: =+LY5 -> 0 | MX5: =+LZ5 -> 0 | MY5: =+MA5 -> 0 | MZ5: =+MB5 -> 0 | NA5: =+MC5 -> 0 | NB5: =+MD5 -> 0 | NC5: =+ME5 -> 0 | ND5: =+MF5 -> 0 | NE5: =+MG5 -> 0 | NF5: =+MH5 -> 0 | NG5: =+MI5 -> 0 | NH5: =+MJ5 -> 0 | NI5: =+MK5 -> 0 | NJ5: =+ML5 -> 0 | NK5: =+MM5 -> 0 | NL5: =+MN5 -> 0 | NM5: =+MO5 -> 0 | NN5: =+MP5 -> 0 | NO5: =+MQ5 -> 0 | NP5: =+MR5 -> 0 | NQ5: =+MS5 -> 0 | NR5: =+MT5 -> 0 | NS5: =+MU5 -> 0 | NT5: =+MV5 -> 0 | NU5: =+MW5 -> 0 | NV5: =+MX5 -> 0 | NW5: =+MY5 -> 0 | NY5: =+SUM(D5:AA5) -> 0 | NZ5: =+SUM(AB5:AY5) -> 0 | OA5: =+SUM(AZ5:BW5) -> 0 | OB5: =+SUM(BX5:CU5) -> 0 | OC5: =+SUM(CV5:DS5) -> 0 | OD5: =+SUM(DT5:EQ5) -> 0 | OE5: =+SUM(ER5:FO5) -> 0 | OF5: =+SUM(FP5:GM5) -> 0 | OG5: =+SUM(GN5:HK5) -> 0 | OH5: =+SUM(HL5:II5) -> 0 | OI5: =+SUM(IJ5:JG5) -> 0 | OJ5: =+SUM(JH5:KE5) -> 0 | OK5: =+SUM(KF5:LC5) -> 0 | OL5: =+SUM(LD5:MA5) -> 0 | OM5: =+SUM(MB5:MY5) -> 0 | ON5: =+SUM(MZ5:NW5) -> 0
B6: 10024 | C6: Benton County PUD #1 | D6: 254 | E6: 183 | F6: 253 | G6: 221 | H6: 495 | I6: 390 | J6: 347 | K6: 299 | L6: 274 | M6: 203 | N6: 260 | O6: 187 | P6: 338 | Q6: 247 | R6: 661 | S6: 568 | T6: 664 | U6: 485 | V6: 414 | W6: 357 | X6: 321 | Y6: 231 | Z6: 230 | AA6: 183 | AB6: 245 | AC6: 192 | AD6: 263 | AE6: 211 | AF6: 495 | AG6: 390 | AH6: 347 | AI6: 299 | AJ6: 263 | AK6: 198 | AL6: 260 | AM6: 187 | AN6: 325 | AO6: 260 | AP6: 687 | AQ6: 542 | AR6: 664 | AS6: 485 | AT6: 414 | AU6: 357 | AV6: 321 | AW6: 231 | AX6: 230 | AY6: 183 | AZ6: 245 | BA6: 192 | BB6: 263 | BC6: 211 | BD6: 476 | BE6: 409 | BF6: 361 | BG6: 285 | BH6: 263 | BI6: 198 | BJ6: 260 | BK6: 187 | BL6: 325 | BM6: 260 | BN6: 687 | BO6: 542 | BP6: 664 | BQ6: 485 | BR6: 414 | BS6: 357 | BT6: 321 | BU6: 231 | BV6: 220 | BW6: 193 | BX6: 254 | BY6: 183 | BZ6: 263 | CA6: 211 | CB6: 476 | CC6: 409 | CD6: 361 | CE6: 285 | CF6: 263 | CG6: 198 | CH6: 250 | CI6: 197 | CJ6: 338 | CK6: 247 | CL6: 687 | CM6: 542 | CN6: 638 | CO6: 511 | CP6: 431 | CQ6: 340 | CR6: 321 | CS6: 231 | CT6: 220 | CU6: 193 | CV6: 254 | CW6: 183 | CX6: 263 | CY6: 211 | CZ6: 476 | DA6: 409 | DB6: 361 | DC6: 285 | DD6: 274 | DE6: 203 | DF6: 250 | DG6: 197 | DH6: 338 | DI6: 247 | DJ6: 661 | DK6: 568 | DL6: 664 | DM6: 485 | DN6: 431 | DO6: 340 | DP6: 309 | DQ6: 243 | DR6: 230 | DS6: 183 | DT6: 254 | DU6: 183 | DV6: 253 | DW6: 221 | DX6: 495 | DY6: 390 | DZ6: 347 | EA6: 299 | EB6: 263 | EC6: 198 | ED6: 260 | EE6: 187 | EF6: 338 | EG6: 247 | EH6: 661 | EI6: 568 | EJ6: 664 | EK6: 485 | EL6: 431 | EM6: 340 | EN6: 309 | EO6: 243 | EP6: 230 | EQ6: 183 | ER6: 245 | ES6: 192 | ET6: 263 | EU6: 211 | EV6: 495 | EW6: 390 | EX6: 347 | EY6: 299 | EZ6: 263 | FA6: 198 | FB6: 260 | FC6: 187 | FD6: 338 | FE6: 247 | FF6: 661 | FG6: 568 | FH6: 664 | FI6: 485 | FJ6: 414 | FK6: 357 | FL6: 321 | FM6: 231 | FN6: 230 | FO6: 183 | FP6: 245 | FQ6: 192 | FR6: 263 | FS6: 211 | FT6: 495 | FU6: 390 | FV6: 347 | FW6: 299 | FX6: 263 | FY6: 198 | FZ6: 260 | GA6: 187 | GB6: 325 | GC6: 260 | GD6: 687 | GE6: 542 | GF6: 664 | GG6: 485 | GH6: 414 | GI6: 357 | GJ6: 321 | GK6: 231 | GL6: 230 | GM6: 183 | GN6: 245 | GO6: 192 | GP6: 263 | GQ6: 211 | GR6: 476 | GS6: 409 | GT6: 361 | GU6: 285 | GV6: 274 | GW6: 203 | GX6: 250 | GY6: 197 | GZ6: 338 | HA6: 247 | HB6: 687 | HC6: 542 | HD6: 638 | HE6: 511 | HF6: 431 | HG6: 340 | HH6: 321 | HI6: 231 | HJ6: 220 | HK6: 193 | HL6: 254 | HM6: 183 | HN6: 263 | HO6: 211 | HP6: 476 | HQ6: 409 | HR6: 361 | HS6: 285 | HT6: 263 | HU6: 198 | HV6: 250 | HW6: 197 | HX6: 338 | HY6: 247 | HZ6: 687 | IA6: 542 | IB6: 638 | IC6: 511 | ID6: 431 | IE6: 340 | IF6: 309 | IG6: 243 | IH6: 230 | II6: 183 | IJ6: 254 | IK6: 183 | IL6: 253 | IM6: 221 | IN6: 495 | IO6: 390 | IP6: 361 | IQ6: 285 | IR6: 263 | IS6: 198 | IT6: 250 | IU6: 197 | IV6: 338 | IW6: 247 | IX6: 661 | IY6: 568 | IZ6: 664 | JA6: 485 | JB6: 431 | JC6: 340 | JD6: 309 | JE6: 243 | JF6: 230 | JG6: 183 | JH6: 254 | JI6: 183 | JJ6: 253 | JK6: 221 | JL6: 495 | JM6: 390 | JN6: 347 | JO6: 299 | JP6: 263 | JQ6: 198 | JR6: 260 | JS6: 187 | JT6: 338 | JU6: 247 | JV6: 661 | JW6: 568 | JX6: 664 | JY6: 485 | JZ6: 431 | KA6: 340 | KB6: 309 | KC6: 243 | KD6: 230 | KE6: 183 | KF6: 245 | KG6: 192 | KH6: 263 | KI6: 211 | KJ6: 495 | KK6: 390 | KL6: 347 | KM6: 299 | KN6: 274 | KO6: 203 | KP6: 260 | KQ6: 187 | KR6: 325 | KS6: 260 | KT6: 687 | KU6: 542 | KV6: 664 | KW6: 485 | KX6: 414 | KY6: 357 | KZ6: 321 | LA6: 231 | LB6: 230 | LC6: 183 | LD6: 245 | LE6: 192 | LF6: 263 | LG6: 211 | LH6: 495 | LI6: 390 | LJ6: 347 | LK6: 299 | LL6: 274 | LM6: 203 | LN6: 260 | LO6: 187 | LP6: 325 | LQ6: 260 | LR6: 687 | LS6: 542 | LT6: 664 | LU6: 485 | LV6: 414 | LW6: 357 | LX6: 321 | LY6: 231 | LZ6: 230 | MA6: 183 | MB6: 245 | MC6: 192 | MD6: 263 | ME6: 211 | MF6: 495 | MG6: 390 | MH6: 347 | MI6: 299 | MJ6: 274 | MK6: 203 | ML6: 260 | MM6: 187 | MN6: 325 | MO6: 260 | MP6: 687 | MQ6: 542 | MR6: 664 | MS6: 485 | MT6: 414 | MU6: 357 | MV6: 321 | MW6: 231 | MX6: 230 | MY6: 183 | MZ6: 245 | NA6: 192 | NB6: 263 | NC6: 211 | ND6: 495 | NE6: 390 | NF6: 347 | NG6: 299 | NH6: 274 | NI6: 203 | NJ6: 260 | NK6: 187 | NL6: 325 | NM6: 260 | NN6: 687 | NO6: 542 | NP6: 664 | NQ6: 485 | NR6: 414 | NS6: 357 | NT6: 321 | NU6: 231 | NV6: 230 | NW6: 183 | NY6: 8065 | NZ6: 8049 | OA6: 8049 | OB6: 8049 | OC6: 8065 | OD6: 8049 | OE6: 8049 | OF6: 8049 | OG6: 8065 | OH6: 8049 | OI6: 8049 | OJ6: 8049 | OK6: 8065 | OL6: 8065 | OM6: 8065 | ON6: 8065
B7: 10025 | C7: Benton REA | D7: 0 | E7: 0 | F7: 0 | G7: 0 | H7: 0 | I7: 0 | J7: 0 | K7: 0 | L7: 0 | M7: 0 | N7: 0 | O7: 0 | P7: 0 | Q7: 0 | R7: 0 | S7: 0 | T7: 0 | U7: 0 | V7: 0 | W7: 0 | X7: 0 | Y7: 0 | Z7: 0 | AA7: 0 | AB7: 0 | AC7: 0 | AD7: 0 | AE7: 0 | AF7: 0 | AG7: 0 | AH7: 0 | AI7: 0 | AJ7: 0 | AK7: 0 | AL7: 0 | AM7: 0 | AN7: 0 | AO7: 0 | AP7: 0 | AQ7: 0 | AR7: 0 | AS7: 0 | AT7: 0 | AU7: 0 | AV7: 0 | AW7: 0 | AX7: 0 | AY7: 0 | AZ7: 0 | BA7: 0 | BB7: 0 | BC7: 0 | BD7: 0 | BE7: 0 | BF7: 0 | BG7: 0 | BH7: 0 | BI7: 0 | BJ7: 0 | BK7: 0 | BL7: 0 | BM7: 0 | BN7: 0 | BO7: 0 | BP7: 0 | BQ7: 0 | BR7: 0 | BS7: 0 | BT7: 0 | BU7: 0 | BV7: 0 | BW7: 0 | BX7: 0 | BY7: 0 | BZ7: 0 | CA7: 0 | CB7: 0 | CC7: 0 | CD7: 0 | CE7: 0 | CF7: 0 | CG7: 0 | CH7: 0 | CI7: 0 | CJ7: 0 | CK7: 0 | CL7: 0 | CM7: 0 | CN7: 0 | CO7: 0 | CP7: 0 | CQ7: 0 | CR7: 0 | CS7: 0 | CT7: 0 | CU7: 0 | CV7: 0 | CW7: 0 | CX7: 0 | CY7: 0 | CZ7: 0 | DA7: 0 | DB7: 0 | DC7: 0 | DD7: 0 | DE7: 0 | DF7: 0 | DG7: 0 | DH7: 0 | DI7: 0 | DJ7: 0 | DK7: 0 | DL7: 0 | DM7: 0 | DN7: 0 | DO7: 0 | DP7: 0 | DQ7: 0 | DR7: 0 | DS7: 0 | DT7: 0 | DU7: 0 | DV7: 0 | DW7: 0 | DX7: 0 | DY7: 0 | DZ7: 0 | EA7: 0 | EB7: 0 | EC7: 0 | ED7: 0 | EE7: 0 | EF7: 0 | EG7: 0 | EH7: 0 | EI7: 0 | EJ7: 0 | EK7: 0 | EL7: 0 | EM7: 0 | EN7: 0 | EO7: 0 | EP7: 0 | EQ7: 0 | ER7: 0 | ES7: 0 | ET7: 0 | EU7: 0 | EV7: 0 | EW7: 0 | EX7: 0 | EY7: 0 | EZ7: 0 | FA7: 0 | FB7: 0 | FC7: 0 | FD7: 0 | FE7: 0 | FF7: 0 | FG7: 0 | FH7: 0 | FI7: 0 | FJ7: 0 | FK7: 0 | FL7: 0 | FM7: 0 | FN7: 0 | FO7: 0 | FP7: 0 | FQ7: 0 | FR7: 0 | FS7: 0 | FT7: 0 | FU7: 0 | FV7: 0 | FW7: 0 | FX7: 0 | FY7: 0 | FZ7: 0 | GA7: 0 | GB7: 0 | GC7: 0 | GD7: 0 | GE7: 0 | GF7: 0 | GG7: 0 | GH7: 0 | GI7: 0 | GJ7: 0 | GK7: 0 | GL7: 0 | GM7: 0 | GN7: 0 | GO7: 0 | GP7: 0 | GQ7: 0 | GR7: 0 | GS7: 0 | GT7: 0 | GU7: 0 | GV7: 0 | GW7: 0 | GX7: 0 | GY7: 0 | GZ7: 0 | HA7: 0 | HB7: 0 | HC7: 0 | HD7: 0 | HE7: 0 | HF7: 0 | HG7: 0 | HH7: 0 | HI7: 0 | HJ7: 0 | HK7: 0 | HL7: 0 | HM7: 0 | HN7: 0 | HO7: 0 | HP7: 0 | HQ7: 0 | HR7: 0 | HS7: 0 | HT7: 0 | HU7: 0 | HV7: 0 | HW7: 0 | HX7: 0 | HY7: 0 | HZ7: 0 | IA7: 0 | IB7: 0 | IC7: 0 | ID7: 0 | IE7: 0 | IF7: 0 | IG7: 0 | IH7: 0 | II7: 0 | IJ7: 0 | IK7: 0 | IL7: 0 | IM7: 0 | IN7: 0 | IO7: 0 | IP7: 0 | IQ7: 0 | IR7: 0 | IS7: 0 | IT7: 0 | IU7: 0 | IV7: 0 | IW7: 0 | IX7: 0 | IY7: 0 | IZ7: 0 | JA7: 0 | JB7: 0 | JC7: 0 | JD7: 0 | JE7: 0 | JF7: 0 | JG7: 0 | JH7: 0 | JI7: 0 | JJ7: 0 | JK7: 0 | JL7: 0 | JM7: 0 | JN7: 0 | JO7: 0 | JP7: 0 | JQ7: 0 | JR7: 0 | JS7: 0 | JT7: 0 | JU7: 0 | JV7: 0 | JW7: 0 | JX7: 0 | JY7: 0 | JZ7: 0 | KA7: 0 | KB7: 0 | KC7: 0 | KD7: 0 | KE7: 0 | KF7: 0 | KG7: 0 | KH7: 0 | KI7: 0 | KJ7: 0 | KK7: 0 | KL7: 0 | KM7: 0 | KN7: 0 | KO7: 0 | KP7: 0 | KQ7: 0 | KR7: 0 | KS7: 0 | KT7: 0 | KU7: 0 | KV7: 0 | KW7: 0 | KX7: 0 | KY7: 0 | KZ7: 0 | LA7: 0 | LB7: 0 | LC7: 0 | LD7: 0 | LE7: 0 | LF7: 0 | LG7: 0 | LH7: 0 | LI7: 0 | LJ7: 0 | LK7: 0 | LL7: 0 | LM7: 0 | LN7: 0 | LO7: 0 | LP7: 0 | LQ7: 0 | LR7: 0 | LS7: 0 | LT7: 0 | LU7: 0 | LV7: 0 | LW7: 0 | LX7: 0 | LY7: 0 | LZ7: 0 | MA7: 0 | MB7: 0 | MC7: 0 | MD7: 0 | ME7: 0 | MF7: 0 | MG7: 0 | MH7: 0 | MI7: 0 | MJ7: 0 | MK7: 0 | ML7: 0 | MM7: 0 | MN7: 0 | MO7: 0 | MP7: 0 | MQ7: 0 | MR7: 0 | MS7: 0 | MT7: 0 | MU7: 0 | MV7: 0 | MW7: 0 | MX7: 0 | MY7: 0 | MZ7: 0 | NA7: 0 | NB7: 0 | NC7: 0 | ND7: 0 | NE7: 0 | NF7: 0 | NG7: 0 | NH7: 0 | NI7: 0 | NJ7: 0 | NK7: 0 | NL7: 0 | NM7: 0 | NN7: 0 | NO7: 0 | NP7: 0 | NQ7: 0 | NR7: 0 | NS7: 0 | NT7: 0 | NU7: 0 | NV7: 0 | NW7: 0 | NY7: 0 | NZ7: 0 | OA7: 0 | OB7: 0 | OC7: 0 | OD7: 0 | OE7: 0 | OF7: 0 | OG7: 0 | OH7: 0 | OI7: 0 | OJ7: 0 | OK7: 0 | OL7: 0 | OM7: 0 | ON7: 0
B8: 10027 | C8: Big Bend Elec Coop | D8: 0 | E8: 0 | F8: 0 | G8: 0 | H8: 0 | I8: 0 | J8: 0 | K8: 0 | L8: 0 | M8: 0 | N8: 0 | O8: 0 | P8: 0 | Q8: 0 | R8: 0 | S8: 0 | T8: 0 | U8: 0 | V8: 0 | W8: 0 | X8: 0 | Y8: 0 | Z8: 0 | AA8: 0 | AB8: 0 | AC8: 0 | AD8: 0 | AE8: 0 | AF8: 0 | AG8: 0 | AH8: 0 | AI8: 0 | AJ8: 0 | AK8: 0 | AL8: 0 | AM8: 0 | AN8: 0 | AO8: 0 | AP8: 0 | AQ8: 0 | AR8: 0 | AS8: 0 | AT8: 0 | AU8: 0 | AV8: 0 | AW8: 0 | AX8: 0 | AY8: 0 | AZ8: 0 | BA8: 0 | BB8: 0 | BC8: 0 | BD8: 0 | BE8: 0 | BF8: 0 | BG8: 0 | BH8: 0 | BI8: 0 | BJ8: 0 | BK8: 0 | BL8: 0 | BM8: 0 | BN8: 0 | BO8: 0 | BP8: 0 | BQ8: 0 | BR8: 0 | BS8: 0 | BT8: 0 | BU8: 0 | BV8: 0 | BW8: 0 | BX8: 0 | BY8: 0 | BZ8: 0 | CA8: 0 | CB8: 0 | CC8: 0 | CD8: 0 | CE8: 0 | CF8: 0 | CG8: 0 | CH8: 0 | CI8: 0 | CJ8: 0 | CK8: 0 | CL8: 0 | CM8: 0 | CN8: 0 | CO8: 0 | CP8: 0 | CQ8: 0 | CR8: 0 | CS8: 0 | CT8: 0 | CU8: 0 | CV8: 0 | CW8: 0 | CX8: 0 | CY8: 0 | CZ8: 0 | DA8: 0 | DB8: 0 | DC8: 0 | DD8: 0 | DE8: 0 | DF8: 0 | DG8: 0 | DH8: 0 | DI8: 0 | DJ8: 0 | DK8: 0 | DL8: 0 | DM8: 0 | DN8: 0 | DO8: 0 | DP8: 0 | DQ8: 0 | DR8: 0 | DS8: 0 | DT8: 0 | DU8: 0 | DV8: 0 | DW8: 0 | DX8: 0 | DY8: 0 | DZ8: 0 | EA8: 0 | EB8: 0 | EC8: 0 | ED8: 0 | EE8: 0 | EF8: 0 | EG8: 0 | EH8: 0 | EI8: 0 | EJ8: 0 | EK8: 0 | EL8: 0 | EM8: 0 | EN8: 0 | EO8: 0 | EP8: 0 | EQ8: 0 | ER8: 0 | ES8: 0 | ET8: 0 | EU8: 0 | EV8: 0 | EW8: 0 | EX8: 0 | EY8: 0 | EZ8: 0 | FA8: 0 | FB8: 0 | FC8: 0 | FD8: 0 | FE8: 0 | FF8: 0 | FG8: 0 | FH8: 0 | FI8: 0 | FJ8: 0 | FK8: 0 | FL8: 0 | FM8: 0 | FN8: 0 | FO8: 0 | FP8: 0 | FQ8: 0 | FR8: 0 | FS8: 0 | FT8: 0 | FU8: 0 | FV8: 0 | FW8: 0 | FX8: 0 | FY8: 0 | FZ8: 0 | GA8: 0 | GB8: 0 | GC8: 0 | GD8: 0 | GE8: 0 | GF8: 0 | GG8: 0 | GH8: 0 | GI8: 0 | GJ8: 0 | GK8: 0 | GL8: 0 | GM8: 0 | GN8: 0 | GO8: 0 | GP8: 0 | GQ8: 0 | GR8: 0 | GS8: 0 | GT8: 0 | GU8: 0 | GV8: 0 | GW8: 0 | GX8: 0 | GY8: 0 | GZ8: 0 | HA8: 0 | HB8: 0 | HC8: 0 | HD8: 0 | HE8: 0 | HF8: 0 | HG8: 0 | HH8: 0 | HI8: 0 | HJ8: 0 | HK8: 0 | HL8: 0 | HM8: 0 | HN8: 0 | HO8: 0 | HP8: 0 | HQ8: 0 | HR8: 0 | HS8: 0 | HT8: 0 | HU8: 0 | HV8: 0 | HW8: 0 | HX8: 0 | HY8: 0 | HZ8: 0 | IA8: 0 | IB8: 0 | IC8: 0 | ID8: 0 | IE8: 0 | IF8: 0 | IG8: 0 | IH8: 0 | II8: 0 | IJ8: 0 | IK8: 0 | IL8: 0 | IM8: 0 | IN8: 0 | IO8: 0 | IP8: 0 | IQ8: 0 | IR8: 0 | IS8: 0 | IT8: 0 | IU8: 0 | IV8: 0 | IW8: 0 | IX8: 0 | IY8: 0 | IZ8: 0 | JA8: 0 | JB8: 0 | JC8: 0 | JD8: 0 | JE8: 0 | JF8: 0 | JG8: 0 | JH8: 0 | JI8: 0 | JJ8: 0 | JK8: 0 | JL8: 0 | JM8: 0 | JN8: 0 | JO8: 0 | JP8: 0 | JQ8: 0 | JR8: 0 | JS8: 0 | JT8: 0 | JU8: 0 | JV8: 0 | JW8: 0 | JX8: 0 | JY8: 0 | JZ8: 0 | KA8: 0 | KB8: 0 | KC8: 0 | KD8: 0 | KE8: 0 | KF8: 0 | KG8: 0 | KH8: 0 | KI8: 0 | KJ8: 0 | KK8: 0 | KL8: 0 | KM8: 0 | KN8: 0 | KO8: 0 | KP8: 0 | KQ8: 0 | KR8: 0 | KS8: 0 | KT8: 0 | KU8: 0 | KV8: 0 | KW8: 0 | KX8: 0 | KY8: 0 | KZ8: 0 | LA8: 0 | LB8: 0 | LC8: 0 | LD8: 0 | LE8: 0 | LF8: 0 | LG8: 0 | LH8: 0 | LI8: 0 | LJ8: 0 | LK8: 0 | LL8: 0 | LM8: 0 | LN8: 0 | LO8: 0 | LP8: 0 | LQ8: 0 | LR8: 0 | LS8: 0 | LT8: 0 | LU8: 0 | LV8: 0 | LW8: 0 | LX8: 0 | LY8: 0 | LZ8: 0 | MA8: 0 | MB8: 0 | MC8: 0 | MD8: 0 | ME8: 0 | MF8: 0 | MG8: 0 | MH8: 0 | MI8: 0 | MJ8: 0 | MK8: 0 | ML8: 0 | MM8: 0 | MN8: 0 | MO8: 0 | MP8: 0 | MQ8: 0 | MR8: 0 | MS8: 0 | MT8: 0 | MU8: 0 | MV8: 0 | MW8: 0 | MX8: 0 | MY8: 0 | MZ8: 0 | NA8: 0 | NB8: 0 | NC8: 0 | ND8: 0 | NE8: 0 | NF8: 0 | NG8: 0 | NH8: 0 | NI8: 0 | NJ8: 0 | NK8: 0 | NL8: 0 | NM8: 0 | NN8: 0 | NO8: 0 | NP8: 0 | NQ8: 0 | NR8: 0 | NS8: 0 | NT8: 0 | NU8: 0 | NV8: 0 | NW8: 0 | NY8: 0 | NZ8: 0 | OA8: 0 | OB8: 0 | OC8: 0 | OD8: 0 | OE8: 0 | OF8: 0 | OG8: 0 | OH8: 0 | OI8: 0 | OJ8: 0 | OK8: 0 | OL8: 0 | OM8: 0 | ON8: 0
B9: 10029 | C9: Blachly Lane Elec Coop | D9: 0 | E9: 0 | F9: 0 | G9: 0 | H9: 0 | I9: 0 | J9: 0 | K9: 0 | L9: 0 | M9: 0 | N9: 0 | O9: 0 | P9: 0 | Q9: 0 | R9: 0 | S9: 0 | T9: 0 | U9: 0 | V9: 0 | W9: 0 | X9: 0 | Y9: 0 | Z9: 0 | AA9: 0 | AB9: 0 | AC9: 0 | AD9: 0 | AE9: 0 | AF9: 0 | AG9: 0 | AH9: 0 | AI9: 0 | AJ9: 0 | AK9: 0 | AL9: 0 | AM9: 0 | AN9: 0 | AO9: 0 | AP9: 0 | AQ9: 0 | AR9: 0 | AS9: 0 | AT9: 0 | AU9: 0 | AV9: 0 | AW9: 0 | AX9: 0 | AY9: 0 | AZ9: 0 | BA9: 0 | BB9: 0 | BC9: 0 | BD9: 0 | BE9: 0 | BF9: 0 | BG9: 0 | BH9: 0 | BI9: 0 | BJ9: 0 | BK9: 0 | BL9: 0 | BM9: 0 | BN9: 0 | BO9: 0 | BP9: 0 | BQ9: 0 | BR9: 0 | BS9: 0 | BT9: 0 | BU9: 0 | BV9: 0 | BW9: 0 | BX9: 0 | BY9: 0 | BZ9: 0 | CA9: 0 | CB9: 0 | CC9: 0 | CD9: 0 | CE9: 0 | CF9: 0 | CG9: 0 | CH9: 0 | CI9: 0 | CJ9: 0 | CK9: 0 | CL9: 0 | CM9: 0 | CN9: 0 | CO9: 0 | CP9: 0 | CQ9: 0 | CR9: 0 | CS9: 0 | CT9: 0 | CU9: 0 | CV9: 0 | CW9: 0 | CX9: 0 | CY9: 0 | CZ9: 0 | DA9: 0 | DB9: 0 | DC9: 0 | DD9: 0 | DE9: 0 | DF9: 0 | DG9: 0 | DH9: 0 | DI9: 0 | DJ9: 0 | DK9: 0 | DL9: 0 | DM9: 0 | DN9: 0 | DO9: 0 | DP9: 0 | DQ9: 0 | DR9: 0 | DS9: 0 | DT9: 0 | DU9: 0 | DV9: 0 | DW9: 0 | DX9: 0 | DY9: 0 | DZ9: 0 | EA9: 0 | EB9: 0 | EC9: 0 | ED9: 0 | EE9: 0 | EF9: 0 | EG9: 0 | EH9: 0 | EI9: 0 | EJ9: 0 | EK9: 0 | EL9: 0 | EM9: 0 | EN9: 0 | EO9: 0 | EP9: 0 | EQ9: 0 | ER9: 0 | ES9: 0 | ET9: 0 | EU9: 0 | EV9: 0 | EW9: 0 | EX9: 0 | EY9: 0 | EZ9: 0 | FA9: 0 | FB9: 0 | FC9: 0 | FD9: 0 | FE9: 0 | FF9: 0 | FG9: 0 | FH9: 0 | FI9: 0 | FJ9: 0 | FK9: 0 | FL9: 0 | FM9: 0 | FN9: 0 | FO9: 0 | FP9: 0 | FQ9: 0 | FR9: 0 | FS9: 0 | FT9: 0 | FU9: 0 | FV9: 0 | FW9: 0 | FX9: 0 | FY9: 0 | FZ9: 0 | GA9: 0 | GB9: 0 | GC9: 0 | GD9: 0 | GE9: 0 | GF9: 0 | GG9: 0 | GH9: 0 | GI9: 0 | GJ9: 0 | GK9: 0 | GL9: 0 | GM9: 0 | GN9: 0 | GO9: 0 | GP9: 0 | GQ9: 0 | GR9: 0 | GS9: 0 | GT9: 0 | GU9: 0 | GV9: 0 | GW9: 0 | GX9: 0 | GY9: 0 | GZ9: 0 | HA9: 0 | HB9: 0 | HC9: 0 | HD9: 0 | HE9: 0 | HF9: 0 | HG9: 0 | HH9: 0 | HI9: 0 | HJ9: 0 | HK9: 0 | HL9: 0 | HM9: 0 | HN9: 0 | HO9: 0 | HP9: 0 | HQ9: 0 | HR9: 0 | HS9: 0 | HT9: 0 | HU9: 0 | HV9: 0 | HW9: 0 | HX9: 0 | HY9: 0 | HZ9: 0 | IA9: 0 | IB9: 0 | IC9: 0 | ID9: 0 | IE9: 0 | IF9: 0 | IG9: 0 | IH9: 0 | II9: 0 | IJ9: 0 | IK9: 0 | IL9: 0 | IM9: 0 | IN9: 0 | IO9: 0 | IP9: 0 | IQ9: 0 | IR9: 0 | IS9: 0 | IT9: 0 | IU9: 0 | IV9: 0 | IW9: 0 | IX9: 0 | IY9: 0 | IZ9: 0 | JA9: 0 | JB9: 0 | JC9: 0 | JD9: 0 | JE9: 0 | JF9: 0 | JG9: 0 | JH9: 0 | JI9: 0 | JJ9: 0 | JK9: 0 | JL9: 0 | JM9: 0 | JN9: 0 | JO9: 0 | JP9: 0 | JQ9: 0 | JR9: 0 | JS9: 0 | JT9: 0 | JU9: 0 | JV9: 0 | JW9: 0 | JX9: 0 | JY9: 0 | JZ9: 0 | KA9: 0 | KB9: 0 | KC9: 0 | KD9: 0 | KE9: 0 | KF9: 0 | KG9: 0 | KH9: 0 | KI9: 0 | KJ9: 0 | KK9: 0 | KL9: 0 | KM9: 0 | KN9: 0 | KO9: 0 | KP9: 0 | KQ9: 0 | KR9: 0 | KS9: 0 | KT9: 0 | KU9: 0 | KV9: 0 | KW9: 0 | KX9: 0 | KY9: 0 | KZ9: 0 | LA9: 0 | LB9: 0 | LC9: 0 | LD9: 0 | LE9: 0 | LF9: 0 | LG9: 0 | LH9: 0 | LI9: 0 | LJ9: 0 | LK9: 0 | LL9: 0 | LM9: 0 | LN9: 0 | LO9: 0 | LP9: 0 | LQ9: 0 | LR9: 0 | LS9: 0 | LT9: 0 | LU9: 0 | LV9: 0 | LW9: 0 | LX9: 0 | LY9: 0 | LZ9: 0 | MA9: 0 | MB9: 0 | MC9: 0 | MD9: 0 | ME9: 0 | MF9: 0 | MG9: 0 | MH9: 0 | MI9: 0 | MJ9: 0 | MK9: 0 | ML9: 0 | MM9: 0 | MN9: 0 | MO9: 0 | MP9: 0 | MQ9: 0 | MR9: 0 | MS9: 0 | MT9: 0 | MU9: 0 | MV9: 0 | MW9: 0 | MX9: 0 | MY9: 0 | MZ9: 0 | NA9: 0 | NB9: 0 | NC9: 0 | ND9: 0 | NE9: 0 | NF9: 0 | NG9: 0 | NH9: 0 | NI9: 0 | NJ9: 0 | NK9: 0 | NL9: 0 | NM9: 0 | NN9: 0 | NO9: 0 | NP9: 0 | NQ9: 0 | NR9: 0 | NS9: 0 | NT9: 0 | NU9: 0 | NV9: 0 | NW9: 0 | NY9: 0 | NZ9: 0 | OA9: 0 | OB9: 0 | OC9: 0 | OD9: 0 | OE9: 0 | OF9: 0 | OG9: 0 | OH9: 0 | OI9: 0 | OJ9: 0 | OK9: 0 | OL9: 0 | OM9: 0 | ON9: 0
B10: 10044 | C10: Canby, City of | D10: 0 | E10: 0 | F10: 0 | G10: 0 | H10: 0 | I10: 0 | J10: 0 | K10: 0 | L10: 0 | M10: 0 | N10: 0 | O10: 0 | P10: 0 | Q10: 0 | R10: 0 | S10: 0 | T10: 0 | U10: 0 | V10: 0 | W10: 0 | X10: 0 | Y10: 0 | Z10: 0 | AA10: 0 | AB10: 0 | AC10: 0 | AD10: 0 | AE10: 0 | AF10: 0 | AG10: 0 | AH10: 0 | AI10: 0 | AJ10: 0 | AK10: 0 | AL10: 0 | AM10: 0 | AN10: 0 | AO10: 0 | AP10: 0 | AQ10: 0 | AR10: 0 | AS10: 0 | AT10: 0 | AU10: 0 | AV10: 0 | AW10: 0 | AX10: 0 | AY10: 0 | AZ10: 0 | BA10: 0 | BB10: 0 | BC10: 0 | BD10: 0 | BE10: 0 | BF10: 0 | BG10: 0 | BH10: 0 | BI10: 0 | BJ10: 0 | BK10: 0 | BL10: 0 | BM10: 0 | BN10: 0 | BO10: 0 | BP10: 0 | BQ10: 0 | BR10: 0 | BS10: 0 | BT10: 0 | BU10: 0 | BV10: 0 | BW10: 0 | BX10: 0 | BY10: 0 | BZ10: 0 | CA10: 0 | CB10: 0 | CC10: 0 | CD10: 0 | CE10: 0 | CF10: 0 | CG10: 0 | CH10: 0 | CI10: 0 | CJ10: 0 | CK10: 0 | CL10: 0 | CM10: 0 | CN10: 0 | CO10: 0 | CP10: 0 | CQ10: 0 | CR10: 0 | CS10: 0 | CT10: 0 | CU10: 0 | CV10: 0 | CW10: 0 | CX10: 0 | CY10: 0 | CZ10: 0 | DA10: 0 | DB10: 0 | DC10: 0 | DD10: 0 | DE10: 0 | DF10: 0 | DG10: 0 | DH10: 0 | DI10: 0 | DJ10: 0 | DK10: 0 | DL10: 0 | DM10: 0 | DN10: 0 | DO10: 0 | DP10: 0 | DQ10: 0 | DR10: 0 | DS10: 0 | DT10: 0 | DU10: 0 | DV10: 0 | DW10: 0 | DX10: 0 | DY10: 0 | DZ10: 0 | EA10: 0 | EB10: 0 | EC10: 0 | ED10: 0 | EE10: 0 | EF10: 0 | EG10: 0 | EH10: 0 | EI10: 0 | EJ10: 0 | EK10: 0 | EL10: 0 | EM10: 0 | EN10: 0 | EO10: 0 | EP10: 0 | EQ10: 0 | ER10: 0 | ES10: 0 | ET10: 0 | EU10: 0 | EV10: 0 | EW10: 0 | EX10: 0 | EY10: 0 | EZ10: 0 | FA10: 0 | FB10: 0 | FC10: 0 | FD10: 0 | FE10: 0 | FF10: 0 | FG10: 0 | FH10: 0 | FI10: 0 | FJ10: 0 | FK10: 0 | FL10: 0 | FM10: 0 | FN10: 0 | FO10: 0 | FP10: 0 | FQ10: 0 | FR10: 0 | FS10: 0 | FT10: 0 | FU10: 0 | FV10: 0 | FW10: 0 | FX10: 0 | FY10: 0 | FZ10: 0 | GA10: 0 | GB10: 0 | GC10: 0 | GD10: 0 | GE10: 0 | GF10: 0 | GG10: 0 | GH10: 0 | GI10: 0 | GJ10: 0 | GK10: 0 | GL10: 0 | GM10: 0 | GN10: 0 | GO10: 0 | GP10: 0 | GQ10: 0 | GR10: 0 | GS10: 0 | GT10: 0 | GU10: 0 | GV10: 0 | GW10: 0 | GX10: 0 | GY10: 0 | GZ10: 0 | HA10: 0 | HB10: 0 | HC10: 0 | HD10: 0 | HE10: 0 | HF10: 0 | HG10: 0 | HH10: 0 | HI10: 0 | HJ10: 0 | HK10: 0 | HL10: 0 | HM10: 0 | HN10: 0 | HO10: 0 | HP10: 0 | HQ10: 0 | HR10: 0 | HS10: 0 | HT10: 0 | HU10: 0 | HV10: 0 | HW10: 0 | HX10: 0 | HY10: 0 | HZ10: 0 | IA10: 0 | IB10: 0 | IC10: 0 | ID10: 0 | IE10: 0 | IF10: 0 | IG10: 0 | IH10: 0 | II10: 0 | IJ10: 0 | IK10: 0 | IL10: 0 | IM10: 0 | IN10: 0 | IO10: 0 | IP10: 0 | IQ10: 0 | IR10: 0 | IS10: 0 | IT10: 0 | IU10: 0 | IV10: 0 | IW10: 0 | IX10: 0 | IY10: 0 | IZ10: 0 | JA10: 0 | JB10: 0 | JC10: 0 | JD10: 0 | JE10: 0 | JF10: 0 | JG10: 0 | JH10: 0 | JI10: 0 | JJ10: 0 | JK10: 0 | JL10: 0 | JM10: 0 | JN10: 0 | JO10: 0 | JP10: 0 | JQ10: 0 | JR10: 0 | JS10: 0 | JT10: 0 | JU10: 0 | JV10: 0 | JW10: 0 | JX10: 0 | JY10: 0 | JZ10: 0 | KA10: 0 | KB10: 0 | KC10: 0 | KD10: 0 | KE10: 0 | KF10: 0 | KG10: 0 | KH10: 0 | KI10: 0 | KJ10: 0 | KK10: 0 | KL10: 0 | KM10: 0 | KN10: 0 | KO10: 0 | KP10: 0 | KQ10: 0 | KR10: 0 | KS10: 0 | KT10: 0 | KU10: 0 | KV10: 0 | KW10: 0 | KX10: 0 | KY10: 0 | KZ10: 0 | LA10: 0 | LB10: 0 | LC10: 0 | LD10: 0 | LE10: 0 | LF10: 0 | LG10: 0 | LH10: 0 | LI10: 0 | LJ10: 0 | LK10: 0 | LL10: 0 | LM10: 0 | LN10: 0 | LO10: 0 | LP10: 0 | LQ10: 0 | LR10: 0 | LS10: 0 | LT10: 0 | LU10: 0 | LV10: 0 | LW10: 0 | LX10: 0 | LY10: 0 | LZ10: 0 | MA10: 0 | MB10: 0 | MC10: 0 | MD10: 0 | ME10: 0 | MF10: 0 | MG10: 0 | MH10: 0 | MI10: 0 | MJ10: 0 | MK10: 0 | ML10: 0 | MM10: 0 | MN10: 0 | MO10: 0 | MP10: 0 | MQ10: 0 | MR10: 0 | MS10: 0 | MT10: 0 | MU10: 0 | MV10: 0 | MW10: 0 | MX10: 0 | MY10: 0 | MZ10: 0 | NA10: 0 | NB10: 0 | NC10: 0 | ND10: 0 | NE10: 0 | NF10: 0 | NG10: 0 | NH10: 0 | NI10: 0 | NJ10: 0 | NK10: 0 | NL10: 0 | NM10: 0 | NN10: 0 | NO10: 0 | NP10: 0 | NQ10: 0 | NR10: 0 | NS10: 0 | NT10: 0 | NU10: 0 | NV10: 0 | NW10: 0 | NY10: 0 | NZ10: 0 | OA10: 0 | OB10: 0 | OC10: 0 | OD10: 0 | OE10: 0 | OF10: 0 | OG10: 0 | OH10: 0 | OI10: 0 | OJ10: 0 | OK10: 0 | OL10: 0 | OM10: 0 | ON10: 0
B11: 10046 | C11: Central Electric Coop | D11: 0 | E11: 0 | F11: 0 | G11: 0 | H11: 0 | I11: 0 | J11: 0 | K11: 0 | L11: 0 | M11: 0 | N11: 0 | O11: 0 | P11: 0 | Q11: 0 | R11: 0 | S11: 0 | T11: 0 | U11: 0 | V11: 0 | W11: 0 | X11: 0 | Y11: 0 | Z11: 0 | AA11: 0 | AB11: 0 | AC11: 0 | AD11: 0 | AE11: 0 | AF11: 0 | AG11: 0 | AH11: 0 | AI11: 0 | AJ11: 0 | AK11: 0 | AL11: 0 | AM11: 0 | AN11: 0 | AO11: 0 | AP11: 0 | AQ11: 0 | AR11: 0 | AS11: 0 | AT11: 0 | AU11: 0 | AV11: 0 | AW11: 0 | AX11: 0 | AY11: 0 | AZ11: 0 | BA11: 0 | BB11: 0 | BC11: 0 | BD11: 0 | BE11: 0 | BF11: 0 | BG11: 0 | BH11: 0 | BI11: 0 | BJ11: 0 | BK11: 0 | BL11: 0 | BM11: 0 | BN11: 0 | BO11: 0 | BP11: 0 | BQ11: 0 | BR11: 0 | BS11: 0 | BT11: 0 | BU11: 0 | BV11: 0 | BW11: 0 | BX11: 0 | BY11: 0 | BZ11: 0 | CA11: 0 | CB11: 0 | CC11: 0 | CD11: 0 | CE11: 0 | CF11: 0 | CG11: 0 | CH11: 0 | CI11: 0 | CJ11: 0 | CK11: 0 | CL11: 0 | CM11: 0 | CN11: 0 | CO11: 0 | CP11: 0 | CQ11: 0 | CR11: 0 | CS11: 0 | CT11: 0 | CU11: 0 | CV11: 0 | CW11: 0 | CX11: 0 | CY11: 0 | CZ11: 0 | DA11: 0 | DB11: 0 | DC11: 0 | DD11: 0 | DE11: 0 | DF11: 0 | DG11: 0 | DH11: 0 | DI11: 0 | DJ11: 0 | DK11: 0 | DL11: 0 | DM11: 0 | DN11: 0 | DO11: 0 | DP11: 0 | DQ11: 0 | DR11: 0 | DS11: 0 | DT11: 0 | DU11: 0 | DV11: 0 | DW11: 0 | DX11: 0 | DY11: 0 | DZ11: 0 | EA11: 0 | EB11: 0 | EC11: 0 | ED11: 0 | EE11: 0 | EF11: 0 | EG11: 0 | EH11: 0 | EI11: 0 | EJ11: 0 | EK11: 0 | EL11: 0 | EM11: 0 | EN11: 0 | EO11: 0 | EP11: 0 | EQ11: 0 | ER11: 0 | ES11: 0 | ET11: 0 | EU11: 0 | EV11: 0 | EW11: 0 | EX11: 0 | EY11: 0 | EZ11: 0 | FA11: 0 | FB11: 0 | FC11: 0 | FD11: 0 | FE11: 0 | FF11: 0 | FG11: 0 | FH11: 0 | FI11: 0 | FJ11: 0 | FK11: 0 | FL11: 0 | FM11: 0 | FN11: 0 | FO11: 0 | FP11: 0 | FQ11: 0 | FR11: 0 | FS11: 0 | FT11: 0 | FU11: 0 | FV11: 0 | FW11: 0 | FX11: 0 | FY11: 0 | FZ11: 0 | GA11: 0 | GB11: 0 | GC11: 0 | GD11: 0 | GE11: 0 | GF11: 0 | GG11: 0 | GH11: 0 | GI11: 0 | GJ11: 0 | GK11: 0 | GL11: 0 | GM11: 0 | GN11: 0 | GO11: 0 | GP11: 0 | GQ11: 0 | GR11: 0 | GS11: 0 | GT11: 0 | GU11: 0 | GV11: 0 | GW11: 0 | GX11: 0 | GY11: 0 | GZ11: 0 | HA11: 0 | HB11: 0 | HC11: 0 | HD11: 0 | HE11: 0 | HF11: 0 | HG11: 0 | HH11: 0 | HI11: 0 | HJ11: 0 | HK11: 0 | HL11: 0 | HM11: 0 | HN11: 0 | HO11: 0 | HP11: 0 | HQ11: 0 | HR11: 0 | HS11: 0 | HT11: 0 | HU11: 0 | HV11: 0 | HW11: 0 | HX11: 0 | HY11: 0 | HZ11: 0 | IA11: 0 | IB11: 0 | IC11: 0 | ID11: 0 | IE11: 0 | IF11: 0 | IG11: 0 | IH11: 0 | II11: 0 | IJ11: 0 | IK11: 0 | IL11: 0 | IM11: 0 | IN11: 0 | IO11: 0 | IP11: 0 | IQ11: 0 | IR11: 0 | IS11: 0 | IT11: 0 | IU11: 0 | IV11: 0 | IW11: 0 | IX11: 0 | IY11: 0 | IZ11: 0 | JA11: 0 | JB11: 0 | JC11: 0 | JD11: 0 | JE11: 0 | JF11: 0 | JG11: 0 | JH11: 0 | JI11: 0 | JJ11: 0 | JK11: 0 | JL11: 0 | JM11: 0 | JN11: 0 | JO11: 0 | JP11: 0 | JQ11: 0 | JR11: 0 | JS11: 0 | JT11: 0 | JU11: 0 | JV11: 0 | JW11: 0 | JX11: 0 | JY11: 0 | JZ11: 0 | KA11: 0 | KB11: 0 | KC11: 0 | KD11: 0 | KE11: 0 | KF11: 0 | KG11: 0 | KH11: 0 | KI11: 0 | KJ11: 0 | KK11: 0 | KL11: 0 | KM11: 0 | KN11: 0 | KO11: 0 | KP11: 0 | KQ11: 0 | KR11: 0 | KS11: 0 | KT11: 0 | KU11: 0 | KV11: 0 | KW11: 0 | KX11: 0 | KY11: 0 | KZ11: 0 | LA11: 0 | LB11: 0 | LC11: 0 | LD11: 0 | LE11: 0 | LF11: 0 | LG11: 0 | LH11: 0 | LI11: 0 | LJ11: 0 | LK11: 0 | LL11: 0 | LM11: 0 | LN11: 0 | LO11: 0 | LP11: 0 | LQ11: 0 | LR11: 0 | LS11: 0 | LT11: 0 | LU11: 0 | LV11: 0 | LW11: 0 | LX11: 0 | LY11: 0 | LZ11: 0 | MA11: 0 | MB11: 0 | MC11: 0 | MD11: 0 | ME11: 0 | MF11: 0 | MG11: 0 | MH11: 0 | MI11: 0 | MJ11: 0 | MK11: 0 | ML11: 0 | MM11: 0 | MN11: 0 | MO11: 0 | MP11: 0 | MQ11: 0 | MR11: 0 | MS11: 0 | MT11: 0 | MU11: 0 | MV11: 0 | MW11: 0 | MX11: 0 | MY11: 0 | MZ11: 0 | NA11: 0 | NB11: 0 | NC11: 0 | ND11: 0 | NE11: 0 | NF11: 0 | NG11: 0 | NH11: 0 | NI11: 0 | NJ11: 0 | NK11: 0 | NL11: 0 | NM11: 0 | NN11: 0 | NO11: 0 | NP11: 0 | NQ11: 0 | NR11: 0 | NS11: 0 | NT11: 0 | NU11: 0 | NV11: 0 | NW11: 0 | NY11: 0 | NZ11: 0 | OA11: 0 | OB11: 0 | OC11: 0 | OD11: 0 | OE11: 0 | OF11: 0 | OG11: 0 | OH11: 0 | OI11: 0 | OJ11: 0 | OK11: 0 | OL11: 0 | OM11: 0 | ON11: 0
B12: 10047 | C12: Central Lincoln PUD | D12: 0 | E12: 0 | F12: 0 | G12: 0 | H12: 0 | I12: 0 | J12: 0 | K12: 0 | L12: 0 | M12: 0 | N12: 0 | O12: 0 | P12: 0 | Q12: 0 | R12: 0 | S12: 0 | T12: 0 | U12: 0 | V12: 0 | W12: 0 | X12: 0 | Y12: 0 | Z12: 0 | AA12: 0 | AB12: 0 | AC12: 0 | AD12: 0 | AE12: 0 | AF12: 0 | AG12: 0 | AH12: 0 | AI12: 0 | AJ12: 0 | AK12: 0 | AL12: 0 | AM12: 0 | AN12: 0 | AO12: 0 | AP12: 0 | AQ12: 0 | AR12: 0 | AS12: 0 | AT12: 0 | AU12: 0 | AV12: 0 | AW12: 0 | AX12: 0 | AY12: 0 | AZ12: 0 | BA12: 0 | BB12: 0 | BC12: 0 | BD12: 0 | BE12: 0 | BF12: 0 | BG12: 0 | BH12: 0 | BI12: 0 | BJ12: 0 | BK12: 0 | BL12: 0 | BM12: 0 | BN12: 0 | BO12: 0 | BP12: 0 | BQ12: 0 | BR12: 0 | BS12: 0 | BT12: 0 | BU12: 0 | BV12: 0 | BW12: 0 | BX12: 0 | BY12: 0 | BZ12: 0 | CA12: 0 | CB12: 0 | CC12: 0 | CD12: 0 | CE12: 0 | CF12: 0 | CG12: 0 | CH12: 0 | CI12: 0 | CJ12: 0 | CK12: 0 | CL12: 0 | CM12: 0 | CN12: 0 | CO12: 0 | CP12: 0 | CQ12: 0 | CR12: 0 | CS12: 0 | CT12: 0 | CU12: 0 | CV12: 0 | CW12: 0 | CX12: 0 | CY12: 0 | CZ12: 0 | DA12: 0 | DB12: 0 | DC12: 0 | DD12: 0 | DE12: 0 | DF12: 0 | DG12: 0 | DH12: 0 | DI12: 0 | DJ12: 0 | DK12: 0 | DL12: 0 | DM12: 0 | DN12: 0 | DO12: 0 | DP12: 0 | DQ12: 0 | DR12: 0 | DS12: 0 | DT12: 0 | DU12: 0 | DV12: 0 | DW12: 0 | DX12: 0 | DY12: 0 | DZ12: 0 | EA12: 0 | EB12: 0 | EC12: 0 | ED12: 0 | EE12: 0 | EF12: 0 | EG12: 0 | EH12: 0 | EI12: 0 | EJ12: 0 | EK12: 0 | EL12: 0 | EM12: 0 | EN12: 0 | EO12: 0 | EP12: 0 | EQ12: 0 | ER12: 0 | ES12: 0 | ET12: 0 | EU12: 0 | EV12: 0 | EW12: 0 | EX12: 0 | EY12: 0 | EZ12: 0 | FA12: 0 | FB12: 0 | FC12: 0 | FD12: 0 | FE12: 0 | FF12: 0 | FG12: 0 | FH12: 0 | FI12: 0 | FJ12: 0 | FK12: 0 | FL12: 0 | FM12: 0 | FN12: 0 | FO12: 0 | FP12: 0 | FQ12: 0 | FR12: 0 | FS12: 0 | FT12: 0 | FU12: 0 | FV12: 0 | FW12: 0 | FX12: 0 | FY12: 0 | FZ12: 0 | GA12: 0 | GB12: 0 | GC12: 0 | GD12: 0 | GE12: 0 | GF12: 0 | GG12: 0 | GH12: 0 | GI12: 0 | GJ12: 0 | GK12: 0 | GL12: 0 | GM12: 0 | GN12: 0 | GO12: 0 | GP12: 0 | GQ12: 0 | GR12: 0 | GS12: 0 | GT12: 0 | GU12: 0 | GV12: 0 | GW12: 0 | GX12: 0 | GY12: 0 | GZ12: 0 | HA12: 0 | HB12: 0 | HC12: 0 | HD12: 0 | HE12: 0 | HF12: 0 | HG12: 0 | HH12: 0 | HI12: 0 | HJ12: 0 | HK12: 0 | HL12: 0 | HM12: 0 | HN12: 0 | HO12: 0 | HP12: 0 | HQ12: 0 | HR12: 0 | HS12: 0 | HT12: 0 | HU12: 0 | HV12: 0 | HW12: 0 | HX12: 0 | HY12: 0 | HZ12: 0 | IA12: 0 | IB12: 0 | IC12: 0 | ID12: 0 | IE12: 0 | IF12: 0 | IG12: 0 | IH12: 0 | II12: 0 | IJ12: 0 | IK12: 0 | IL12: 0 | IM12: 0 | IN12: 0 | IO12: 0 | IP12: 0 | IQ12: 0 | IR12: 0 | IS12: 0 | IT12: 0 | IU12: 0 | IV12: 0 | IW12: 0 | IX12: 0 | IY12: 0 | IZ12: 0 | JA12: 0 | JB12: 0 | JC12: 0 | JD12: 0 | JE12: 0 | JF12: 0 | JG12: 0 | JH12: 0 | JI12: 0 | JJ12: 0 | JK12: 0 | JL12: 0 | JM12: 0 | JN12: 0 | JO12: 0 | JP12: 0 | JQ12: 0 | JR12: 0 | JS12: 0 | JT12: 0 | JU12: 0 | JV12: 0 | JW12: 0 | JX12: 0 | JY12: 0 | JZ12: 0 | KA12: 0 | KB12: 0 | KC12: 0 | KD12: 0 | KE12: 0 | KF12: 0 | KG12: 0 | KH12: 0 | KI12: 0 | KJ12: 0 | KK12: 0 | KL12: 0 | KM12: 0 | KN12: 0 | KO12: 0 | KP12: 0 | KQ12: 0 | KR12: 0 | KS12: 0 | KT12: 0 | KU12: 0 | KV12: 0 | KW12: 0 | KX12: 0 | KY12: 0 | KZ12: 0 | LA12: 0 | LB12: 0 | LC12: 0 | LD12: 0 | LE12: 0 | LF12: 0 | LG12: 0 | LH12: 0 | LI12: 0 | LJ12: 0 | LK12: 0 | LL12: 0 | LM12: 0 | LN12: 0 | LO12: 0 | LP12: 0 | LQ12: 0 | LR12: 0 | LS12: 0 | LT12: 0 | LU12: 0 | LV12: 0 | LW12: 0 | LX12: 0 | LY12: 0 | LZ12: 0 | MA12: 0 | MB12: 0 | MC12: 0 | MD12: 0 | ME12: 0 | MF12: 0 | MG12: 0 | MH12: 0 | MI12: 0 | MJ12: 0 | MK12: 0 | ML12: 0 | MM12: 0 | MN12: 0 | MO12: 0 | MP12: 0 | MQ12: 0 | MR12: 0 | MS12: 0 | MT12: 0 | MU12: 0 | MV12: 0 | MW12: 0 | MX12: 0 | MY12: 0 | MZ12: 0 | NA12: 0 | NB12: 0 | NC12: 0 | ND12: 0 | NE12: 0 | NF12: 0 | NG12: 0 | NH12: 0 | NI12: 0 | NJ12: 0 | NK12: 0 | NL12: 0 | NM12: 0 | NN12: 0 | NO12: 0 | NP12: 0 | NQ12: 0 | NR12: 0 | NS12: 0 | NT12: 0 | NU12: 0 | NV12: 0 | NW12: 0 | NY12: 0 | NZ12: 0 | OA12: 0 | OB12: 0 | OC12: 0 | OD12: 0 | OE12: 0 | OF12: 0 | OG12: 0 | OH12: 0 | OI12: 0 | OJ12: 0 | OK12: 0 | OL12: 0 | OM12: 0 | ON12: 0
B13: 10055 | C13: Albion, City of | D13: 0 | E13: 0 | F13: 0 | G13: 0 | H13: 0 | I13: 0 | J13: 0 | K13: 0 | L13: 0 | M13: 0 | N13: 0 | O13: 0 | P13: 0 | Q13: 0 | R13: 0 | S13: 0 | T13: 0 | U13: 0 | V13: 0 | W13: 0 | X13: 0 | Y13: 0 | Z13: 0 | AA13: 0 | AB13: 0 | AC13: 0 | AD13: 0 | AE13: 0 | AF13: 0 | AG13: 0 | AH13: 0 | AI13: 0 | AJ13: 0 | AK13: 0 | AL13: 0 | AM13: 0 | AN13: 0 | AO13: 0 | AP13: 0 | AQ13: 0 | AR13: 0 | AS13: 0 | AT13: 0 | AU13: 0 | AV13: 0 | AW13: 0 | AX13: 0 | AY13: 0 | AZ13: 0 | BA13: 0 | BB13: 0 | BC13: 0 | BD13: 0 | BE13: 0 | BF13: 0 | BG13: 0 | BH13: 0 | BI13: 0 | BJ13: 0 | BK13: 0 | BL13: 0 | BM13: 0 | BN13: 0 | BO13: 0 | BP13: 0 | BQ13: 0 | BR13: 0 | BS13: 0 | BT13: 0 | BU13: 0 | BV13: 0 | BW13: 0 | BX13: 0 | BY13: 0 | BZ13: 0 | CA13: 0 | CB13: 0 | CC13: 0 | CD13: 0 | CE13: 0 | CF13: 0 | CG13: 0 | CH13: 0 | CI13: 0 | CJ13: 0 | CK13: 0 | CL13: 0 | CM13: 0 | CN13: 0 | CO13: 0 | CP13: 0 | CQ13: 0 | CR13: 0 | CS13: 0 | CT13: 0 | CU13: 0 | CV13: 0 | CW13: 0 | CX13: 0 | CY13: 0 | CZ13: 0 | DA13: 0 | DB13: 0 | DC13: 0 | DD13: 0 | DE13: 0 | DF13: 0 | DG13: 0 | DH13: 0 | DI13: 0 | DJ13: 0 | DK13: 0 | DL13: 0 | DM13: 0 | DN13: 0 | DO13: 0 | DP13: 0 | DQ13: 0 | DR13: 0 | DS13: 0 | DT13: 0 | DU13: 0 | DV13: 0 | DW13: 0 | DX13: 0 | DY13: 0 | DZ13: 0 | EA13: 0 | EB13: 0 | EC13: 0 | ED13: 0 | EE13: 0 | EF13: 0 | EG13: 0 | EH13: 0 | EI13: 0 | EJ13: 0 | EK13: 0 | EL13: 0 | EM13: 0 | EN13: 0 | EO13: 0 | EP13: 0 | EQ13: 0 | ER13: 0 | ES13: 0 | ET13: 0 | EU13: 0 | EV13: 0 | EW13: 0 | EX13: 0 | EY13: 0 | EZ13: 0 | FA13: 0 | FB13: 0 | FC13: 0 | FD13: 0 | FE13: 0 | FF13: 0 | FG13: 0 | FH13: 0 | FI13: 0 | FJ13: 0 | FK13: 0 | FL13: 0 | FM13: 0 | FN13: 0 | FO13: 0 | FP13: 0 | FQ13: 0 | FR13: 0 | FS13: 0 | FT13: 0 | FU13: 0 | FV13: 0 | FW13: 0 | FX13: 0 | FY13: 0 | FZ13: 0 | GA13: 0 | GB13: 0 | GC13: 0 | GD13: 0 | GE13: 0 | GF13: 0 | GG13: 0 | GH13: 0 | GI13: 0 | GJ13: 0 | GK13: 0 | GL13: 0 | GM13: 0 | GN13: 0 | GO13: 0 | GP13: 0 | GQ13: 0 | GR13: 0 | GS13: 0 | GT13: 0 | GU13: 0 | GV13: 0 | GW13: 0 | GX13: 0 | GY13: 0 | GZ13: 0 | HA13: 0 | HB13: 0 | HC13: 0 | HD13: 0 | HE13: 0 | HF13: 0 | HG13: 0 | HH13: 0 | HI13: 0 | HJ13: 0 | HK13: 0 | HL13: 0 | HM13: 0 | HN13: 0 | HO13: 0 | HP13: 0 | HQ13: 0 | HR13: 0 | HS13: 0 | HT13: 0 | HU13: 0 | HV13: 0 | HW13: 0 | HX13: 0 | HY13: 0 | HZ13: 0 | IA13: 0 | IB13: 0 | IC13: 0 | ID13: 0 | IE13: 0 | IF13: 0 | IG13: 0 | IH13: 0 | II13: 0 | IJ13: 0 | IK13: 0 | IL13: 0 | IM13: 0 | IN13: 0 | IO13: 0 | IP13: 0 | IQ13: 0 | IR13: 0 | IS13: 0 | IT13: 0 | IU13: 0 | IV13: 0 | IW13: 0 | IX13: 0 | IY13: 0 | IZ13: 0 | JA13: 0 | JB13: 0 | JC13: 0 | JD13: 0 | JE13: 0 | JF13: 0 | JG13: 0 | JH13: 0 | JI13: 0 | JJ13: 0 | JK13: 0 | JL13: 0 | JM13: 0 | JN13: 0 | JO13: 0 | JP13: 0 | JQ13: 0 | JR13: 0 | JS13: 0 | JT13: 0 | JU13: 0 | JV13: 0 | JW13: 0 | JX13: 0 | JY13: 0 | JZ13: 0 | KA13: 0 | KB13: 0 | KC13: 0 | KD13: 0 | KE13: 0 | KF13: 0 | KG13: 0 | KH13: 0 | KI13: 0 | KJ13: 0 | KK13: 0 | KL13: 0 | KM13: 0 | KN13: 0 | KO13: 0 | KP13: 0 | KQ13: 0 | KR13: 0 | KS13: 0 | KT13: 0 | KU13: 0 | KV13: 0 | KW13: 0 | KX13: 0 | KY13: 0 | KZ13: 0 | LA13: 0 | LB13: 0 | LC13: 0 | LD13: 0 | LE13: 0 | LF13: 0 | LG13: 0 | LH13: 0 | LI13: 0 | LJ13: 0 | LK13: 0 | LL13: 0 | LM13: 0 | LN13: 0 | LO13: 0 | LP13: 0 | LQ13: 0 | LR13: 0 | LS13: 0 | LT13: 0 | LU13: 0 | LV13: 0 | LW13: 0 | LX13: 0 | LY13: 0 | LZ13: 0 | MA13: 0 | MB13: 0 | MC13: 0 | MD13: 0 | ME13: 0 | MF13: 0 | MG13: 0 | MH13: 0 | MI13: 0 | MJ13: 0 | MK13: 0 | ML13: 0 | MM13: 0 | MN13: 0 | MO13: 0 | MP13: 0 | MQ13: 0 | MR13: 0 | MS13: 0 | MT13: 0 | MU13: 0 | MV13: 0 | MW13: 0 | MX13: 0 | MY13: 0 | MZ13: 0 | NA13: 0 | NB13: 0 | NC13: 0 | ND13: 0 | NE13: 0 | NF13: 0 | NG13: 0 | NH13: 0 | NI13: 0 | NJ13: 0 | NK13: 0 | NL13: 0 | NM13: 0 | NN13: 0 | NO13: 0 | NP13: 0 | NQ13: 0 | NR13: 0 | NS13: 0 | NT13: 0 | NU13: 0 | NV13: 0 | NW13: 0 | NY13: 0 | NZ13: 0 | OA13: 0 | OB13: 0 | OC13: 0 | OD13: 0 | OE13: 0 | OF13: 0 | OG13: 0 | OH13: 0 | OI13: 0 | OJ13: 0 | OK13: 0 | OL13: 0 | OM13: 0 | ON13: 0
B14: 10057 | C14: Ashland, City of | D14: 47 | E14: 34 | F14: 31 | G14: 27 | H14: 48 | I14: 38 | J14: 51 | K14: 43 | L14: 68 | M14: 50 | N14: 79 | O14: 57 | P14: 87 | Q14: 64 | R14: 90 | S14: 77 | T14: 97 | U14: 71 | V14: 78 | W14: 67 | X14: 65 | Y14: 47 | Z14: 40 | AA14: 32 | AB14: 45 | AC14: 36 | AD14: 32 | AE14: 26 | AF14: 48 | AG14: 38 | AH14: 51 | AI14: 43 | AJ14: 65 | AK14: 49 | AL14: 79 | AM14: 57 | AN14: 84 | AO14: 67 | AP14: 94 | AQ14: 74 | AR14: 97 | AS14: 71 | AT14: 78 | AU14: 67 | AV14: 65 | AW14: 47 | AX14: 40 | AY14: 32 | AZ14: 45 | BA14: 36 | BB14: 32 | BC14: 26 | BD14: 46 | BE14: 40 | BF14: 53 | BG14: 41 | BH14: 65 | BI14: 49 | BJ14: 79 | BK14: 57 | BL14: 84 | BM14: 67 | BN14: 94 | BO14: 74 | BP14: 97 | BQ14: 71 | BR14: 78 | BS14: 67 | BT14: 65 | BU14: 47 | BV14: 38 | BW14: 34 | BX14: 47 | BY14: 34 | BZ14: 32 | CA14: 26 | CB14: 46 | CC14: 40 | CD14: 53 | CE14: 41 | CF14: 65 | CG14: 49 | CH14: 76 | CI14: 60 | CJ14: 87 | CK14: 64 | CL14: 94 | CM14: 74 | CN14: 93 | CO14: 74 | CP14: 82 | CQ14: 64 | CR14: 65 | CS14: 47 | CT14: 38 | CU14: 34 | CV14: 47 | CW14: 34 | CX14: 32 | CY14: 26 | CZ14: 46 | DA14: 40 | DB14: 53 | DC14: 41 | DD14: 68 | DE14: 50 | DF14: 76 | DG14: 60 | DH14: 87 | DI14: 64 | DJ14: 90 | DK14: 77 | DL14: 97 | DM14: 71 | DN14: 82 | DO14: 64 | DP14: 63 | DQ14: 50 | DR14: 40 | DS14: 32 | DT14: 47 | DU14: 34 | DV14: 31 | DW14: 27 | DX14: 48 | DY14: 38 | DZ14: 51 | EA14: 43 | EB14: 65 | EC14: 49 | ED14: 79 | EE14: 57 | EF14: 87 | EG14: 64 | EH14: 90 | EI14: 77 | EJ14: 97 | EK14: 71 | EL14: 82 | EM14: 64 | EN14: 63 | EO14: 50 | EP14: 40 | EQ14: 32 | ER14: 45 | ES14: 36 | ET14: 32 | EU14: 26 | EV14: 48 | EW14: 38 | EX14: 51 | EY14: 43 | EZ14: 65 | FA14: 49 | FB14: 79 | FC14: 57 | FD14: 87 | FE14: 64 | FF14: 90 | FG14: 77 | FH14: 97 | FI14: 71 | FJ14: 78 | FK14: 67 | FL14: 65 | FM14: 47 | FN14: 40 | FO14: 32 | FP14: 45 | FQ14: 36 | FR14: 32 | FS14: 26 | FT14: 48 | FU14: 38 | FV14: 51 | FW14: 43 | FX14: 65 | FY14: 49 | FZ14: 79 | GA14: 57 | GB14: 84 | GC14: 67 | GD14: 94 | GE14: 74 | GF14: 97 | GG14: 71 | GH14: 78 | GI14: 67 | GJ14: 65 | GK14: 47 | GL14: 40 | GM14: 32 | GN14: 45 | GO14: 36 | GP14: 32 | GQ14: 26 | GR14: 46 | GS14: 40 | GT14: 53 | GU14: 41 | GV14: 68 | GW14: 50 | GX14: 76 | GY14: 60 | GZ14: 87 | HA14: 64 | HB14: 94 | HC14: 74 | HD14: 93 | HE14: 74 | HF14: 82 | HG14: 64 | HH14: 65 | HI14: 47 | HJ14: 38 | HK14: 34 | HL14: 47 | HM14: 34 | HN14: 32 | HO14: 26 | HP14: 46 | HQ14: 40 | HR14: 53 | HS14: 41 | HT14: 65 | HU14: 49 | HV14: 76 | HW14: 60 | HX14: 87 | HY14: 64 | HZ14: 94 | IA14: 74 | IB14: 93 | IC14: 74 | ID14: 82 | IE14: 64 | IF14: 63 | IG14: 50 | IH14: 40 | II14: 32 | IJ14: 47 | IK14: 34 | IL14: 31 | IM14: 27 | IN14: 48 | IO14: 38 | IP14: 53 | IQ14: 41 | IR14: 65 | IS14: 49 | IT14: 76 | IU14: 60 | IV14: 87 | IW14: 64 | IX14: 90 | IY14: 77 | IZ14: 97 | JA14: 71 | JB14: 82 | JC14: 64 | JD14: 63 | JE14: 50 | JF14: 40 | JG14: 32 | JH14: 47 | JI14: 34 | JJ14: 31 | JK14: 27 | JL14: 48 | JM14: 38 | JN14: 51 | JO14: 43 | JP14: 65 | JQ14: 49 | JR14: 79 | JS14: 57 | JT14: 87 | JU14: 64 | JV14: 90 | JW14: 77 | JX14: 97 | JY14: 71 | JZ14: 82 | KA14: 64 | KB14: 63 | KC14: 50 | KD14: 40 | KE14: 32 | KF14: 45 | KG14: 36 | KH14: 32 | KI14: 26 | KJ14: 48 | KK14: 38 | KL14: 51 | KM14: 43 | KN14: 68 | KO14: 50 | KP14: 79 | KQ14: 57 | KR14: 84 | KS14: 67 | KT14: 94 | KU14: 74 | KV14: 97 | KW14: 71 | KX14: 78 | KY14: 67 | KZ14: 65 | LA14: 47 | LB14: 40 | LC14: 32 | LD14: 45 | LE14: 36 | LF14: 32 | LG14: 26 | LH14: 48 | LI14: 38 | LJ14: 51 | LK14: 43 | LL14: 68 | LM14: 50 | LN14: 79 | LO14: 57 | LP14: 84 | LQ14: 67 | LR14: 94 | LS14: 74 | LT14: 97 | LU14: 71 | LV14: 78 | LW14: 67 | LX14: 65 | LY14: 47 | LZ14: 40 | MA14: 32 | MB14: 45 | MC14: 36 | MD14: 32 | ME14: 26 | MF14: 48 | MG14: 38 | MH14: 51 | MI14: 43 | MJ14: 68 | MK14: 50 | ML14: 79 | MM14: 57 | MN14: 84 | MO14: 67 | MP14: 94 | MQ14: 74 | MR14: 97 | MS14: 71 | MT14: 78 | MU14: 67 | MV14: 65 | MW14: 47 | MX14: 40 | MY14: 32 | MZ14: 45 | NA14: 36 | NB14: 32 | NC14: 26 | ND14: 48 | NE14: 38 | NF14: 51 | NG14: 43 | NH14: 68 | NI14: 50 | NJ14: 79 | NK14: 57 | NL14: 84 | NM14: 67 | NN14: 94 | NO14: 74 | NP14: 97 | NQ14: 71 | NR14: 78 | NS14: 67 | NT14: 65 | NU14: 47 | NV14: 40 | NW14: 32 | NY14: 1388 | NZ14: 1385 | OA14: 1385 | OB14: 1385 | OC14: 1390 | OD14: 1386 | OE14: 1384 | OF14: 1385 | OG14: 1389 | OH14: 1386 | OI14: 1386 | OJ14: 1386 | OK14: 1389 | OL14: 1389 | OM14: 1389 | ON14: 1389
B15: 10059 | C15: Bandon, City of | D15: 0 | E15: 0 | F15: 0 | G15: 0 | H15: 0 | I15: 0 | J15: 0 | K15: 0 | L15: 0 | M15: 0 | N15: 0 | O15: 0 | P15: 0 | Q15: 0 | R15: 0 | S15: 0 | T15: 0 | U15: 0 | V15: 0 | W15: 0 | X15: 0 | Y15: 0 | Z15: 0 | AA15: 0 | AB15: 0 | AC15: 0 | AD15: 0 | AE15: 0 | AF15: 0 | AG15: 0 | AH15: 0 | AI15: 0 | AJ15: 0 | AK15: 0 | AL15: 0 | AM15: 0 | AN15: 0 | AO15: 0 | AP15: 0 | AQ15: 0 | AR15: 0 | AS15: 0 | AT15: 0 | AU15: 0 | AV15: 0 | AW15: 0 | AX15: 0 | AY15: 0 | AZ15: 0 | BA15: 0 | BB15: 0 | BC15: 0 | BD15: 0 | BE15: 0 | BF15: 0 | BG15: 0 | BH15: 0 | BI15: 0 | BJ15: 0 | BK15: 0 | BL15: 0 | BM15: 0 | BN15: 0 | BO15: 0 | BP15: 0 | BQ15: 0 | BR15: 0 | BS15: 0 | BT15: 0 | BU15: 0 | BV15: 0 | BW15: 0 | BX15: 0 | BY15: 0 | BZ15: 0 | CA15: 0 | CB15: 0 | CC15: 0 | CD15: 0 | CE15: 0 | CF15: 0 | CG15: 0 | CH15: 0 | CI15: 0 | CJ15: 0 | CK15: 0 | CL15: 0 | CM15: 0 | CN15: 0 | CO15: 0 | CP15: 0 | CQ15: 0 | CR15: 0 | CS15: 0 | CT15: 0 | CU15: 0 | CV15: 0 | CW15: 0 | CX15: 0 | CY15: 0 | CZ15: 0 | DA15: 0 | DB15: 0 | DC15: 0 | DD15: 0 | DE15: 0 | DF15: 0 | DG15: 0 | DH15: 0 | DI15: 0 | DJ15: 0 | DK15: 0 | DL15: 0 | DM15: 0 | DN15: 0 | DO15: 0 | DP15: 0 | DQ15: 0 | DR15: 0 | DS15: 0 | DT15: 0 | DU15: 0 | DV15: 0 | DW15: 0 | DX15: 0 | DY15: 0 | DZ15: 0 | EA15: 0 | EB15: 0 | EC15: 0 | ED15: 0 | EE15: 0 | EF15: 0 | EG15: 0 | EH15: 0 | EI15: 0 | EJ15: 0 | EK15: 0 | EL15: 0 | EM15: 0 | EN15: 0 | EO15: 0 | EP15: 0 | EQ15: 0 | ER15: 0 | ES15: 0 | ET15: 0 | EU15: 0 | EV15: 0 | EW15: 0 | EX15: 0 | EY15: 0 | EZ15: 0 | FA15: 0 | FB15: 0 | FC15: 0 | FD15: 0 | FE15: 0 | FF15: 0 | FG15: 0 | FH15: 0 | FI15: 0 | FJ15: 0 | FK15: 0 | FL15: 0 | FM15: 0 | FN15: 0 | FO15: 0 | FP15: 0 | FQ15: 0 | FR15: 0 | FS15: 0 | FT15: 0 | FU15: 0 | FV15: 0 | FW15: 0 | FX15: 0 | FY15: 0 | FZ15: 0 | GA15: 0 | GB15: 0 | GC15: 0 | GD15: 0 | GE15: 0 | GF15: 0 | GG15: 0 | GH15: 0 | GI15: 0 | GJ15: 0 | GK15: 0 | GL15: 0 | GM15: 0 | GN15: 0 | GO15: 0 | GP15: 0 | GQ15: 0 | GR15: 0 | GS15: 0 | GT15: 0 | GU15: 0 | GV15: 0 | GW15: 0 | GX15: 0 | GY15: 0 | GZ15: 0 | HA15: 0 | HB15: 0 | HC15: 0 | HD15: 0 | HE15: 0 | HF15: 0 | HG15: 0 | HH15: 0 | HI15: 0 | HJ15: 0 | HK15: 0 | HL15: 0 | HM15: 0 | HN15: 0 | HO15: 0 | HP15: 0 | HQ15: 0 | HR15: 0 | HS15: 0 | HT15: 0 | HU15: 0 | HV15: 0 | HW15: 0 | HX15: 0 | HY15: 0 | HZ15: 0 | IA15: 0 | IB15: 0 | IC15: 0 | ID15: 0 | IE15: 0 | IF15: 0 | IG15: 0 | IH15: 0 | II15: 0 | IJ15: 0 | IK15: 0 | IL15: 0 | IM15: 0 | IN15: 0 | IO15: 0 | IP15: 0 | IQ15: 0 | IR15: 0 | IS15: 0 | IT15: 0 | IU15: 0 | IV15: 0 | IW15: 0 | IX15: 0 | IY15: 0 | IZ15: 0 | JA15: 0 | JB15: 0 | JC15: 0 | JD15: 0 | JE15: 0 | JF15: 0 | JG15: 0 | JH15: 0 | JI15: 0 | JJ15: 0 | JK15: 0 | JL15: 0 | JM15: 0 | JN15: 0 | JO15: 0 | JP15: 0 | JQ15: 0 | JR15: 0 | JS15: 0 | JT15: 0 | JU15: 0 | JV15: 0 | JW15: 0 | JX15: 0 | JY15: 0 | JZ15: 0 | KA15: 0 | KB15: 0 | KC15: 0 | KD15: 0 | KE15: 0 | KF15: 0 | KG15: 0 | KH15: 0 | KI15: 0 | KJ15: 0 | KK15: 0 | KL15: 0 | KM15: 0 | KN15: 0 | KO15: 0 | KP15: 0 | KQ15: 0 | KR15: 0 | KS15: 0 | KT15: 0 | KU15: 0 | KV15: 0 | KW15: 0 | KX15: 0 | KY15: 0 | KZ15: 0 | LA15: 0 | LB15: 0 | LC15: 0 | LD15: 0 | LE15: 0 | LF15: 0 | LG15: 0 | LH15: 0 | LI15: 0 | LJ15: 0 | LK15: 0 | LL15: 0 | LM15: 0 | LN15: 0 | LO15: 0 | LP15: 0 | LQ15: 0 | LR15: 0 | LS15: 0 | LT15: 0 | LU15: 0 | LV15: 0 | LW15: 0 | LX15: 0 | LY15: 0 | LZ15: 0 | MA15: 0 | MB15: 0 | MC15: 0 | MD15: 0 | ME15: 0 | MF15: 0 | MG15: 0 | MH15: 0 | MI15: 0 | MJ15: 0 | MK15: 0 | ML15: 0 | MM15: 0 | MN15: 0 | MO15: 0 | MP15: 0 | MQ15: 0 | MR15: 0 | MS15: 0 | MT15: 0 | MU15: 0 | MV15: 0 | MW15: 0 | MX15: 0 | MY15: 0 | MZ15: 0 | NA15: 0 | NB15: 0 | NC15: 0 | ND15: 0 | NE15: 0 | NF15: 0 | NG15: 0 | NH15: 0 | NI15: 0 | NJ15: 0 | NK15: 0 | NL15: 0 | NM15: 0 | NN15: 0 | NO15: 0 | NP15: 0 | NQ15: 0 | NR15: 0 | NS15: 0 | NT15: 0 | NU15: 0 | NV15: 0 | NW15: 0 | NY15: 0 | NZ15: 0 | OA15: 0 | OB15: 0 | OC15: 0 | OD15: 0 | OE15: 0 | OF15: 0 | OG15: 0 | OH15: 0 | OI15: 0 | OJ15: 0 | OK15: 0 | OL15: 0 | OM15: 0 | ON15: 0
... 17 more rows

Sheet I_ER_other
B1: Existing Resources - Other (SNEERS, CORs, Green Exception)
A2: TOC | D2: 2015-10-01 | E2: 2015-10-01 | F2: 2015-11-01 | G2: 2015-11-01 | H2: 2015-12-01 | I2: 2015-12-01 | J2: 2016-01-01 | K2: 2016-01-01 | L2: 2016-02-01 | M2: 2016-02-01 | N2: 2016-03-01 | O2: 2016-03-01 | P2: 2016-04-01 | Q2: 2016-04-01 | R2: 2016-05-01 | S2: 2016-05-01 | T2: 2016-06-01 | U2: 2016-06-01 | V2: 2016-07-01 | W2: 2016-07-01 | X2: 2016-08-01 | Y2: 2016-08-01 | Z2: 2016-09-01 | AA2: 2016-09-01 | AB2: 2016-10-01 | AC2: 2016-10-01 | AD2: 2016-11-01 | AE2: 2016-11-01 | AF2: 2016-12-01 | AG2: 2016-12-01 | AH2: 2017-01-01 | AI2: 2017-01-01 | AJ2: 2017-02-01 | AK2: 2017-02-01 | AL2: 2017-03-01 | AM2: 2017-03-01 | AN2: 2017-04-01 | AO2: 2017-04-01 | AP2: 2017-05-01 | AQ2: 2017-05-01 | AR2: 2017-06-01 | AS2: 2017-06-01 | AT2: 2017-07-01 | AU2: 2017-07-01 | AV2: 2017-08-01 | AW2: 2017-08-01 | AX2: 2017-09-01 | AY2: 2017-09-01 | AZ2: 2017-10-01 | BA2: 2017-10-01 | BB2: 2017-11-01 | BC2: 2017-11-01 | BD2: 2017-12-01 | BE2: 2017-12-01 | BF2: 2018-01-01 | BG2: 2018-01-01 | BH2: 2018-02-01 | BI2: 2018-02-01 | BJ2: 2018-03-01 | BK2: 2018-03-01 | BL2: 2018-04-01 | BM2: 2018-04-01 | BN2: 2018-05-01 | BO2: 2018-05-01 | BP2: 2018-06-01 | BQ2: 2018-06-01 | BR2: 2018-07-01 | BS2: 2018-07-01 | BT2: 2018-08-01 | BU2: 2018-08-01 | BV2: 2018-09-01 | BW2: 2018-09-01 | BX2: 2018-10-01 | BY2: 2018-10-01 | BZ2: 2018-11-01 | CA2: 2018-11-01 | CB2: 2018-12-01 | CC2: 2018-12-01 | CD2: 2019-01-01 | CE2: 2019-01-01 | CF2: 2019-02-01 | CG2: 2019-02-01 | CH2: 2019-03-01 | CI2: 2019-03-01 | CJ2: 2019-04-01 | CK2: 2019-04-01 | CL2: 2019-05-01 | CM2: 2019-05-01 | CN2: 2019-06-01 | CO2: 2019-06-01 | CP2: 2019-07-01 | CQ2: 2019-07-01 | CR2: 2019-08-01 | CS2: 2019-08-01 | CT2: 2019-09-01 | CU2: 2019-09-01 | CV2: 2019-10-01 | CW2: 2019-10-01 | CX2: 2019-11-01 | CY2: 2019-11-01 | CZ2: 2019-12-01 | DA2: 2019-12-01 | DB2: 2020-01-01 | DC2: 2020-01-01 | DD2: 2020-02-01 | DE2: 2020-02-01 | DF2: 2020-03-01 | DG2: 2020-03-01 | DH2: 2020-04-01 | DI2: 2020-04-01 | DJ2: 2020-05-01 | DK2: 2020-05-01 | DL2: 2020-06-01 | DM2: 2020-06-01 | DN2: 2020-07-01 | DO2: 2020-07-01 | DP2: 2020-08-01 | DQ2: 2020-08-01 | DR2: 2020-09-01 | DS2: 2020-09-01 | DT2: 2020-10-01 | DU2: 2020-10-01 | DV2: 2020-11-01 | DW2: 2020-11-01 | DX2: 2020-12-01 | DY2: 2020-12-01 | DZ2: 2021-01-01 | EA2: 2021-01-01 | EB2: 2021-02-01 | EC2: 2021-02-01 | ED2: 2021-03-01 | EE2: 2021-03-01 | EF2: 2021-04-01 | EG2: 2021-04-01 | EH2: 2021-05-01 | EI2: 2021-05-01 | EJ2: 2021-06-01 | EK2: 2021-06-01 | EL2: 2021-07-01 | EM2: 2021-07-01 | EN2: 2021-08-01 | EO2: 2021-08-01 | EP2: 2021-09-01 | EQ2: 2021-09-01 | ER2: 2021-10-01 | ES2: 2021-10-01 | ET2: 2021-11-01 | EU2: 2021-11-01 | EV2: 2021-12-01 | EW2: 2021-12-01 | EX2: 2022-01-01 | EY2: 2022-01-01 | EZ2: 2022-02-01 | FA2: 2022-02-01 | FB2: 2022-03-01 | FC2: 2022-03-01 | FD2: 2022-04-01 | FE2: 2022-04-01 | FF2: 2022-05-01 | FG2: 2022-05-01 | FH2: 2022-06-01 | FI2: 2022-06-01 | FJ2: 2022-07-01 | FK2: 2022-07-01 | FL2: 2022-08-01 | FM2: 2022-08-01 | FN2: 2022-09-01 | FO2: 2022-09-01 | FP2: 2022-10-01 | FQ2: 2022-10-01 | FR2: 2022-11-01 | FS2: 2022-11-01 | FT2: 2022-12-01 | FU2: 2022-12-01 | FV2: 2023-01-01 | FW2: 2023-01-01 | FX2: 2023-02-01 | FY2: 2023-02-01 | FZ2: 2023-03-01 | GA2: 2023-03-01 | GB2: 2023-04-01 | GC2: 2023-04-01 | GD2: 2023-05-01 | GE2: 2023-05-01 | GF2: 2023-06-01 | GG2: 2023-06-01 | GH2: 2023-07-01 | GI2: 2023-07-01 | GJ2: 2023-08-01 | GK2: 2023-08-01 | GL2: 2023-09-01 | GM2: 2023-09-01 | GN2: 2023-10-01 | GO2: 2023-10-01 | GP2: 2023-11-01 | GQ2: 2023-11-01 | GR2: 2023-12-01 | GS2: 2023-12-01 | GT2: 2024-01-01 | GU2: 2024-01-01 | GV2: 2024-02-01 | GW2: 2024-02-01 | GX2: 2024-03-01 | GY2: 2024-03-01 | GZ2: 2024-04-01 | HA2: 2024-04-01 | HB2: 2024-05-01 | HC2: 2024-05-01 | HD2: 2024-06-01 | HE2: 2024-06-01 | HF2: 2024-07-01 | HG2: 2024-07-01 | HH2: 2024-08-01 | HI2: 2024-08-01 | HJ2: 2024-09-01 | HK2: 2024-09-01 | HL2: 2024-10-01 | HM2: 2024-10-01 | HN2: 2024-11-01 | HO2: 2024-11-01 | HP2: 2024-12-01 | HQ2: 2024-12-01 | HR2: 2025-01-01 | HS2: 2025-01-01 | HT2: 2025-02-01 | HU2: 2025-02-01 | HV2: 2025-03-01 | HW2: 2025-03-01 | HX2: 2025-04-01 | HY2: 2025-04-01 | HZ2: 2025-05-01 | IA2: 2025-05-01 | IB2: 2025-06-01 | IC2: 2025-06-01 | ID2: 2025-07-01 | IE2: 2025-07-01 | IF2: 2025-08-01 | IG2: 2025-08-01 | IH2: 2025-09-01 | II2: 2025-09-01 | IJ2: 2025-10-01 | IK2: 2025-10-01 | IL2: 2025-11-01 | IM2: 2025-11-01 | IN2: 2025-12-01 | IO2: 2025-12-01 | IP2: 2026-01-01 | IQ2: 2026-01-01 | IR2: 2026-02-01 | IS2: 2026-02-01 | IT2: 2026-03-01 | IU2: 2026-03-01 | IV2: 2026-04-01 | IW2: 2026-04-01 | IX2: 2026-05-01 | IY2: 2026-05-01 | IZ2: 2026-06-01 | JA2: 2026-06-01 | JB2: 2026-07-01 | JC2: 2026-07-01 | JD2: 2026-08-01 | JE2: 2026-08-01 | JF2: 2026-09-01 | JG2: 2026-09-01 | JH2: 2026-10-01 | JI2: 2026-10-01 | JJ2: 2026-11-01 | JK2: 2026-11-01 | JL2: 2026-12-01 | JM2: 2026-12-01 | JN2: 2027-01-01 | JO2: 2027-01-01 | JP2: 2027-02-01 | JQ2: 2027-02-01 | JR2: 2027-03-01 | JS2: 2027-03-01 | JT2: 2027-04-01 | JU2: 2027-04-01 | JV2: 2027-05-01 | JW2: 2027-05-01 | JX2: 2027-06-01 | JY2: 2027-06-01 | JZ2: 2027-07-01 | KA2: 2027-07-01 | KB2: 2027-08-01 | KC2: 2027-08-01 | KD2: 2027-09-01 | KE2: 2027-09-01 | KF2: 2027-10-01 | KG2: 2027-10-01 | KH2: 2027-11-01 | KI2: 2027-11-01 | KJ2: 2027-12-01 | KK2: 2027-12-01 | KL2: 2028-01-01 | KM2: 2028-01-01 | KN2: 2028-02-01 | KO2: 2028-02-01 | KP2: 2028-03-01 | KQ2: 2028-03-01 | KR2: 2028-04-01 | KS2: 2028-04-01 | KT2: 2028-05-01 | KU2: 2028-05-01 | KV2: 2028-06-01 | KW2: 2028-06-01 | KX2: 2028-07-01 | KY2: 2028-07-01 | KZ2: 2028-08-01 | LA2: 2028-08-01 | LB2: 2028-09-01 | LC2: 2028-09-01 | LD2: 2028-10-01 | LE2: 2028-10-01 | LF2: 2028-11-01 | LG2: 2028-11-01 | LH2: 2028-12-01 | LI2: 2028-12-01 | LJ2: 2029-01-01 | LK2: 2029-01-01 | LL2: 2029-02-01 | LM2: 2029-02-01 | LN2: 2029-03-01 | LO2: 2029-03-01 | LP2: 2029-04-01 | LQ2: 2029-04-01 | LR2: 2029-05-01 | LS2: 2029-05-01 | LT2: 2029-06-01 | LU2: 2029-06-01 | LV2: 2029-07-01 | LW2: 2029-07-01 | LX2: 2029-08-01 | LY2: 2029-08-01 | LZ2: 2029-09-01 | MA2: 2029-09-01 | MB2: 2029-10-01 | MC2: 2029-10-01 | MD2: 2029-11-01 | ME2: 2029-11-01 | MF2: 2029-12-01 | MG2: 2029-12-01 | MH2: 2030-01-01 | MI2: 2030-01-01 | MJ2: 2030-02-01 | MK2: 2030-02-01 | ML2: 2030-03-01 | MM2: 2030-03-01 | MN2: 2030-04-01 | MO2: 2030-04-01 | MP2: 2030-05-01 | MQ2: 2030-05-01 | MR2: 2030-06-01 | MS2: 2030-06-01 | MT2: 2030-07-01 | MU2: 2030-07-01 | MV2: 2030-08-01 | MW2: 2030-08-01 | MX2: 2030-09-01 | MY2: 2030-09-01 | MZ2: 2030-10-01 | NA2: 2030-10-01 | NB2: 2030-11-01 | NC2: 2030-11-01 | ND2: 2030-12-01 | NE2: 2030-12-01 | NF2: 2031-01-01 | NG2: 2031-01-01 | NH2: 2031-02-01 | NI2: 2031-02-01 | NJ2: 2031-03-01 | NK2: 2031-03-01 | NL2: 2031-04-01 | NM2: 2031-04-01 | NN2: 2031-05-01 | NO2: 2031-05-01 | NP2: 2031-06-01 | NQ2: 2031-06-01 | NR2: 2031-07-01 | NS2: 2031-07-01 | NT2: 2031-08-01 | NU2: 2031-08-01 | NV2: 2031-09-01 | NW2: 2031-09-01 | NY2: 2016 | NZ2: 2017 | OA2: 2018 | OB2: 2019 | OC2: 2020 | OD2: 2021 | OE2: 2022 | OF2: 2023 | OG2: 2024 | OH2: 2025 | OI2: 2026 | OJ2: 2027 | OK2: 2028 | OL2: 2029 | OM2: 2030 | ON2: 2031
B3: BESID | C3: AccountName | D3: HLH | E3: LLH | F3: HLH | G3: LLH | H3: HLH | I3: LLH | J3: HLH | K3: LLH | L3: HLH | M3: LLH | N3: HLH | O3: LLH | P3: HLH | Q3: LLH | R3: HLH | S3: LLH | T3: HLH | U3: LLH | V3: HLH | W3: LLH | X3: HLH | Y3: LLH | Z3: HLH | AA3: LLH | AB3: HLH | AC3: LLH | AD3: HLH | AE3: LLH | AF3: HLH | AG3: LLH | AH3: HLH | AI3: LLH | AJ3: HLH | AK3: LLH | AL3: HLH | AM3: LLH | AN3: HLH | AO3: LLH | AP3: HLH | AQ3: LLH | AR3: HLH | AS3: LLH | AT3: HLH | AU3: LLH | AV3: HLH | AW3: LLH | AX3: HLH | AY3: LLH | AZ3: HLH | BA3: LLH | BB3: HLH | BC3: LLH | BD3: HLH | BE3: LLH | BF3: HLH | BG3: LLH | BH3: HLH | BI3: LLH | BJ3: HLH | BK3: LLH | BL3: HLH | BM3: LLH | BN3: HLH | BO3: LLH | BP3: HLH | BQ3: LLH | BR3: HLH | BS3: LLH | BT3: HLH | BU3: LLH | BV3: HLH | BW3: LLH | BX3: HLH | BY3: LLH | BZ3: HLH | CA3: LLH | CB3: HLH | CC3: LLH | CD3: HLH | CE3: LLH | CF3: HLH | CG3: LLH | CH3: HLH | CI3: LLH | CJ3: HLH | CK3: LLH | CL3: HLH | CM3: LLH | CN3: HLH | CO3: LLH | CP3: HLH | CQ3: LLH | CR3: HLH | CS3: LLH | CT3: HLH | CU3: LLH | CV3: HLH | CW3: LLH | CX3: HLH | CY3: LLH | CZ3: HLH | DA3: LLH | DB3: HLH | DC3: LLH | DD3: HLH | DE3: LLH | DF3: HLH | DG3: LLH | DH3: HLH | DI3: LLH | DJ3: HLH | DK3: LLH | DL3: HLH | DM3: LLH | DN3: HLH | DO3: LLH | DP3: HLH | DQ3: LLH | DR3: HLH | DS3: LLH | DT3: HLH | DU3: LLH | DV3: HLH | DW3: LLH | DX3: HLH | DY3: LLH | DZ3: HLH | EA3: LLH | EB3: HLH | EC3: LLH | ED3: HLH | EE3: LLH | EF3: HLH | EG3: LLH | EH3: HLH | EI3: LLH | EJ3: HLH | EK3: LLH | EL3: HLH | EM3: LLH | EN3: HLH | EO3: LLH | EP3: HLH | EQ3: LLH | ER3: HLH | ES3: LLH | ET3: HLH | EU3: LLH | EV3: HLH | EW3: LLH | EX3: HLH | EY3: LLH | EZ3: HLH | FA3: LLH | FB3: HLH | FC3: LLH | FD3: HLH | FE3: LLH | FF3: HLH | FG3: LLH | FH3: HLH | FI3: LLH | FJ3: HLH | FK3: LLH | FL3: HLH | FM3: LLH | FN3: HLH | FO3: LLH | FP3: HLH | FQ3: LLH | FR3: HLH | FS3: LLH | FT3: HLH | FU3: LLH | FV3: HLH | FW3: LLH | FX3: HLH | FY3: LLH | FZ3: HLH | GA3: LLH | GB3: HLH | GC3: LLH | GD3: HLH | GE3: LLH | GF3: HLH | GG3: LLH | GH3: HLH | GI3: LLH | GJ3: HLH | GK3: LLH | GL3: HLH | GM3: LLH | GN3: HLH | GO3: LLH | GP3: HLH | GQ3: LLH | GR3: HLH | GS3: LLH | GT3: HLH | GU3: LLH | GV3: HLH | GW3: LLH | GX3: HLH | GY3: LLH | GZ3: HLH | HA3: LLH | HB3: HLH | HC3: LLH | HD3: HLH | HE3: LLH | HF3: HLH | HG3: LLH | HH3: HLH | HI3: LLH | HJ3: HLH | HK3: LLH | HL3: HLH | HM3: LLH | HN3: HLH | HO3: LLH | HP3: HLH | HQ3: LLH | HR3: HLH | HS3: LLH | HT3: HLH | HU3: LLH | HV3: HLH | HW3: LLH | HX3: HLH | HY3: LLH | HZ3: HLH | IA3: LLH | IB3: HLH | IC3: LLH | ID3: HLH | IE3: LLH | IF3: HLH | IG3: LLH | IH3: HLH | II3: LLH | IJ3: HLH | IK3: LLH | IL3: HLH | IM3: LLH | IN3: HLH | IO3: LLH | IP3: HLH | IQ3: LLH | IR3: HLH | IS3: LLH | IT3: HLH | IU3: LLH | IV3: HLH | IW3: LLH | IX3: HLH | IY3: LLH | IZ3: HLH | JA3: LLH | JB3: HLH | JC3: LLH | JD3: HLH | JE3: LLH | JF3: HLH | JG3: LLH | JH3: HLH | JI3: LLH | JJ3: HLH | JK3: LLH | JL3: HLH | JM3: LLH | JN3: HLH | JO3: LLH | JP3: HLH | JQ3: LLH | JR3: HLH | JS3: LLH | JT3: HLH | JU3: LLH | JV3: HLH | JW3: LLH | JX3: HLH | JY3: LLH | JZ3: HLH | KA3: LLH | KB3: HLH | KC3: LLH | KD3: HLH | KE3: LLH | KF3: HLH | KG3: LLH | KH3: HLH | KI3: LLH | KJ3: HLH | KK3: LLH | KL3: HLH | KM3: LLH | KN3: HLH | KO3: LLH | KP3: HLH | KQ3: LLH | KR3: HLH | KS3: LLH | KT3: HLH | KU3: LLH | KV3: HLH | KW3: LLH | KX3: HLH | KY3: LLH | KZ3: HLH | LA3: LLH | LB3: HLH | LC3: LLH | LD3: HLH | LE3: LLH | LF3: HLH | LG3: LLH | LH3: HLH | LI3: LLH | LJ3: HLH | LK3: LLH | LL3: HLH | LM3: LLH | LN3: HLH | LO3: LLH | LP3: HLH | LQ3: LLH | LR3: HLH | LS3: LLH | LT3: HLH | LU3: LLH | LV3: HLH | LW3: LLH | LX3: HLH | LY3: LLH | LZ3: HLH | MA3: LLH | MB3: HLH | MC3: LLH | MD3: HLH | ME3: LLH | MF3: HLH | MG3: LLH | MH3: HLH | MI3: LLH | MJ3: HLH | MK3: LLH | ML3: HLH | MM3: LLH | MN3: HLH | MO3: LLH | MP3: HLH | MQ3: LLH | MR3: HLH | MS3: LLH | MT3: HLH | MU3: LLH | MV3: HLH | MW3: LLH | MX3: HLH | MY3: LLH | MZ3: HLH | NA3: LLH | NB3: HLH | NC3: LLH | ND3: HLH | NE3: LLH | NF3: HLH | NG3: LLH | NH3: HLH | NI3: LLH | NJ3: HLH | NK3: LLH | NL3: HLH | NM3: LLH | NN3: HLH | NO3: LLH | NP3: HLH | NQ3: LLH | NR3: HLH | NS3: LLH | NT3: HLH | NU3: LLH | NV3: HLH | NW3: LLH
B4: 10005 | C4: Alder Mutual | D4: 0 | E4: 0 | F4: 0 | G4: 0 | H4: 0 | I4: 0 | J4: 0 | K4: 0 | L4: 0 | M4: 0 | N4: 0 | O4: 0 | P4: 0 | Q4: 0 | R4: 0 | S4: 0 | T4: 0 | U4: 0 | V4: 0 | W4: 0 | X4: 0 | Y4: 0 | Z4: 0 | AA4: 0 | AB4: 0 | AC4: 0 | AD4: 0 | AE4: 0 | AF4: 0 | AG4: 0 | AH4: 0 | AI4: 0 | AJ4: 0 | AK4: 0 | AL4: 0 | AM4: 0 | AN4: 0 | AO4: 0 | AP4: 0 | AQ4: 0 | AR4: 0 | AS4: 0 | AT4: 0 | AU4: 0 | AV4: 0 | AW4: 0 | AX4: 0 | AY4: 0 | AZ4: 0 | BA4: 0 | BB4: 0 | BC4: 0 | BD4: 0 | BE4: 0 | BF4: 0 | BG4: 0 | BH4: 0 | BI4: 0 | BJ4: 0 | BK4: 0 | BL4: 0 | BM4: 0 | BN4: 0 | BO4: 0 | BP4: 0 | BQ4: 0 | BR4: 0 | BS4: 0 | BT4: 0 | BU4: 0 | BV4: 0 | BW4: 0 | BX4: 0 | BY4: 0 | BZ4: 0 | CA4: 0 | CB4: 0 | CC4: 0 | CD4: 0 | CE4: 0 | CF4: 0 | CG4: 0 | CH4: 0 | CI4: 0 | CJ4: 0 | CK4: 0 | CL4: 0 | CM4: 0 | CN4: 0 | CO4: 0 | CP4: 0 | CQ4: 0 | CR4: 0 | CS4: 0 | CT4: 0 | CU4: 0 | CV4: 0 | CW4: 0 | CX4: 0 | CY4: 0 | CZ4: 0 | DA4: 0 | DB4: 0 | DC4: 0 | DD4: 0 | DE4: 0 | DF4: 0 | DG4: 0 | DH4: 0 | DI4: 0 | DJ4: 0 | DK4: 0 | DL4: 0 | DM4: 0 | DN4: 0 | DO4: 0 | DP4: 0 | DQ4: 0 | DR4: 0 | DS4: 0 | DT4: 0 | DU4: 0 | DV4: 0 | DW4: 0 | DX4: 0 | DY4: 0 | DZ4: 0 | EA4: 0 | EB4: 0 | EC4: 0 | ED4: 0 | EE4: 0 | EF4: 0 | EG4: 0 | EH4: 0 | EI4: 0 | EJ4: 0 | EK4: 0 | EL4: 0 | EM4: 0 | EN4: 0 | EO4: 0 | EP4: 0 | EQ4: 0 | ER4: 0 | ES4: 0 | ET4: 0 | EU4: 0 | EV4: 0 | EW4: 0 | EX4: 0 | EY4: 0 | EZ4: 0 | FA4: 0 | FB4: 0 | FC4: 0 | FD4: 0 | FE4: 0 | FF4: 0 | FG4: 0 | FH4: 0 | FI4: 0 | FJ4: 0 | FK4: 0 | FL4: 0 | FM4: 0 | FN4: 0 | FO4: 0 | FP4: 0 | FQ4: 0 | FR4: 0 | FS4: 0 | FT4: 0 | FU4: 0 | FV4: 0 | FW4: 0 | FX4: 0 | FY4: 0 | FZ4: 0 | GA4: 0 | GB4: 0 | GC4: 0 | GD4: 0 | GE4: 0 | GF4: 0 | GG4: 0 | GH4: 0 | GI4: 0 | GJ4: 0 | GK4: 0 | GL4: 0 | GM4: 0 | GN4: 0 | GO4: 0 | GP4: 0 | GQ4: 0 | GR4: 0 | GS4: 0 | GT4: 0 | GU4: 0 | GV4: 0 | GW4: 0 | GX4: 0 | GY4: 0 | GZ4: 0 | HA4: 0 | HB4: 0 | HC4: 0 | HD4: 0 | HE4: 0 | HF4: 0 | HG4: 0 | HH4: 0 | HI4: 0 | HJ4: 0 | HK4: 0 | HL4: 0 | HM4: 0 | HN4: 0 | HO4: 0 | HP4: 0 | HQ4: 0 | HR4: 0 | HS4: 0 | HT4: 0 | HU4: 0 | HV4: 0 | HW4: 0 | HX4: 0 | HY4: 0 | HZ4: 0 | IA4: 0 | IB4: 0 | IC4: 0 | ID4: 0 | IE4: 0 | IF4: 0 | IG4: 0 | IH4: 0 | II4: 0 | IJ4: 0 | IK4: 0 | IL4: 0 | IM4: 0 | IN4: 0 | IO4: 0 | IP4: 0 | IQ4: 0 | IR4: 0 | IS4: 0 | IT4: 0 | IU4: 0 | IV4: 0 | IW4: 0 | IX4: 0 | IY4: 0 | IZ4: 0 | JA4: 0 | JB4: 0 | JC4: 0 | JD4: 0 | JE4: 0 | JF4: 0 | JG4: 0 | JH4: 0 | JI4: 0 | JJ4: 0 | JK4: 0 | JL4: 0 | JM4: 0 | JN4: 0 | JO4: 0 | JP4: 0 | JQ4: 0 | JR4: 0 | JS4: 0 | JT4: 0 | JU4: 0 | JV4: 0 | JW4: 0 | JX4: 0 | JY4: 0 | JZ4: 0 | KA4: 0 | KB4: 0 | KC4: 0 | KD4: 0 | KE4: 0 | KF4: 0 | KG4: 0 | KH4: 0 | KI4: 0 | KJ4: 0 | KK4: 0 | KL4: 0 | KM4: 0 | KN4: 0 | KO4: 0 | KP4: 0 | KQ4: 0 | KR4: 0 | KS4: 0 | KT4: 0 | KU4: 0 | KV4: 0 | KW4: 0 | KX4: 0 | KY4: 0 | KZ4: 0 | LA4: 0 | LB4: 0 | LC4: 0 | LD4: =+KF4 -> 0 | LE4: =+KG4 -> 0 | LF4: 0 | LG4: 0 | LH4: 0 | LI4: 0 | LJ4: 0 | LK4: 0 | LL4: 0 | LM4: 0 | LN4: 0 | LO4: 0 | LP4: 0 | LQ4: 0 | LR4: 0 | LS4: 0 | LT4: 0 | LU4: 0 | LV4: 0 | LW4: 0 | LX4: 0 | LY4: 0 | LZ4: 0 | MA4: 0 | MB4: 0 | MC4: 0 | MD4: 0 | ME4: 0 | MF4: 0 | MG4: 0 | MH4: 0 | MI4: 0 | MJ4: 0 | MK4: 0 | ML4: 0 | MM4: 0 | MN4: 0 | MO4: 0 | MP4: 0 | MQ4: 0 | MR4: 0 | MS4: 0 | MT4: 0 | MU4: 0 | MV4: 0 | MW4: 0 | MX4: 0 | MY4: 0 | MZ4: 0 | NA4: 0 | NB4: 0 | NC4: 0 | ND4: 0 | NE4: 0 | NF4: 0 | NG4: 0 | NH4: 0 | NI4: 0 | NJ4: 0 | NK4: 0 | NL4: 0 | NM4: 0 | NN4: 0 | NO4: 0 | NP4: 0 | NQ4: =+MS4 -> 0 | NR4: 0 | NS4: 0 | NT4: 0 | NU4: 0 | NV4: 0 | NW4: 0 | NY4: =+SUM(D4:AA4) -> 0 | NZ4: =+SUM(AB4:AY4) -> 0 | OA4: =+SUM(AZ4:BW4) -> 0 | OB4: =+SUM(BX4:CU4) -> 0 | OC4: =+SUM(CV4:DS4) -> 0 | OD4: =+SUM(DT4:EQ4) -> 0 | OE4: =+SUM(ER4:FO4) -> 0 | OF4: =+SUM(FP4:GM4) -> 0 | OG4: =+SUM(GN4:HK4) -> 0 | OH4: =+SUM(HL4:II4) -> 0 | OI4: =+SUM(IJ4:JG4) -> 0 | OJ4: =+SUM(JH4:KE4) -> 0 | OK4: =+SUM(KF4:LC4) -> 0 | OL4: =+SUM(LD4:MA4) -> 0 | OM4: =+SUM(MB4:MY4) -> 0 | ON4: =+SUM(MZ4:NW4) -> 0
